Workbook

Sheet Content
C3: Sheet Tab | D3: Description | E3: Author
B4: 1 | C4: Content
B5: 2 | C5: Summary
B6: 3 | C6: Master Scenario
B7: 4 | C7: Working Model (Q)
B8: 5 | C8: Model Tests
B9: 6 | C9: Tornado Chart
B10: 7 | C10: Chart Made with INDEX
B11: 8 | C11: Annual
B12: 9 | C12: Property Index
B13: 10 | C13: Lease Roll
B14: 11 | C14: Mixed Use
B15: 12 | C15: Cap Rate
B16: 13 | C16: S-Curve
B17: 14 | C17: IRR
B18: 15 | C18: Circular
B19: 16 | C19: Dates
B21: File Name: | D21: C:\Users\Gebruiker\Course Materials\Chapter 1. Models and Analysis\4. Real Estate Template and Exercises\Featured Models\Commercial Building with Property Index and Financing.xlsm
B23: Colour Codes
B25: Last Save Date | D25: 13/12/2014 21:00:32
B26: Last Save By | D26: Elvis Presley

Sheet Summary
B3: Construction Period | D3: 32 | G3: Returns
B5: Holding Period | D5: ='Master Scenario'!C3 -> 10
G6: Pre-tax IRR | I6: ='Working Model (Q)'!$H$134 -> 0.1074097696
E7: Custom | G7: Project IRR | I7: ='Working Model (Q)'!F160 -> 0.1020682275
B8: PDE | D8: =PDE -> 1200 | G8: Equity IRR | I8: ='Working Model (Q)'!J278 -> 0.1550624662
B9: Inflation | D9: =INDEX('Working Model (Q)'!C34:C36,'Working Model (Q)'!E38) -> Base inflation
B10: Rental Rate | D10: ='Master Scenario'!F27 -> 14
B11: Occupancy | D11: =INDEX('Working Model (Q)'!O42:O44,'Working Model (Q)'!F40) -> Base Case
B12: Step up | D12: ='Master Scenario'!H27 -> 0.5
B13: Prop Tax | D13: ='Master Scenario'!I25 -> 0.1
B14: Utilities | D14: ='Master Scenario'!J27 -> 1.5
P15: Chart Created by INDEX Function

Sheet Master Scenario
B1: Scenario no | C1: 1
B3: Holding Period | C3: ='Working Model (Q)'!F21 -> 10
L4: IRR | M4: MIRR | N4: NPV | O4: Payback Date
C5: Efficiency | D5: PDE | E5: Inflation | F5: Rental Rate | G5: Occupancy | H5: Step up | I5: Prop Tax | J5: Utilities | L5: ='Working Model (Q)'!H134 -> 0.1074097696 | N5: ='Working Model (Q)'!H136 -> 82248343.26 | O5: ='Working Model (Q)'!G139 -> 2026-09-30
B6: Base Case | C6: 0.65 | D6: 1200 | E6: 1 | F6: 14 | G6: 1 | H6: 0.5 | I6: 0.1 | J6: 1.5 | K6: 1 | L6: 0.1074097696 | M6: 0 | N6: 82248343.26 | O6: 2026-09-30
B7: Low Case | C7: 0.55 | D7: 1400 | E7: 2 | F7: 10 | G7: 2 | H7: 0.2 | I7: 0.105 | J7: 1.7 | K7: 2 | L7: -0.01486170165 | M7: 0 | N7: -51467195.02 | O7: 2049-09-30
B8: High Case | C8: 0.7 | D8: 1150 | E8: 3 | F8: 16 | G8: 3 | H8: 1 | I8: 0.095 | J8: 1.4 | K8: 3 | L8: 0.1635453971 | M8: 0 | N8: 221718871.2 | O8: 2024-09-30
B9: =TRANSPOSE(C5:J5)&" low" -> Efficiency low | C9: =C7 -> 0.55 | D9: =D$6 -> 1200 | E9: 1 | F9: 14 | G9: 1 | H9: 0.5 | I9: 0.1 | J9: 1.5 | K9: 4 | L9: 0.1074097696 | M9: 0 | N9: 69594751.99 | O9: 2026-09-30
B10: PDE low | C10: =C$6 -> 0.65 | D10: =D7 -> 1400 | E10: 1 | F10: 14 | G10: 1 | H10: 0.5 | I10: 0.1 | J10: 1.5 | K10: 5 | L10: 0.09213611193 | M10: 0 | N10: 65456896 | O10: 2026-09-30
B11: Inflation low | C11: 0.65 | D11: 1200 | E11: =E7 -> 2 | F11: 14 | G11: 1 | H11: 0.5 | I11: 0.1 | J11: 1.5 | K11: 6 | L11: 0.09558552749 | M11: 0 | N11: 61244191.01 | O11: 2026-09-30
B12: Rental Rate low | C12: 0.65 | D12: 1200 | E12: 1 | F12: =F7 -> 10 | G12: 1 | H12: 0.5 | I12: 0.1 | J12: 1.5 | K12: 7 | L12: 0.07256481286 | M12: 0 | N12: 27820119.27 | O12: 2026-09-30
B13: Occupancy low | C13: 0.65 | D13: 1200 | E13: 1 | F13: 14 | G13: =G7 -> 2 | H13: 0.5 | I13: 0.1 | J13: 1.5 | K13: 8 | L13: 0.09910905947 | M13: 0 | N13: 67924387.33 | O13: 2026-09-30
B14: Step up low | C14: 0.65 | D14: 1200 | E14: 1 | F14: 14 | G14: 1 | H14: =H7 -> 0.2 | I14: 0.1 | J14: 1.5 | K14: 9 | L14: 0.0882424705 | M14: 0 | N14: 49089700.8 | O14: 2026-09-30
B15: Prop Tax low | C15: 0.65 | D15: 1200 | E15: 1 | F15: 14 | G15: 1 | H15: 0.5 | I15: =I7 -> 0.105 | J15: 1.5 | K15: 10 | L15: 0.1066531499 | M15: 0 | N15: 80882992.21 | O15: 2026-09-30
B16: Utilities low | C16: 0.65 | D16: 1200 | E16: 1 | F16: 14 | G16: 1 | H16: 0.5 | I16: 0.1 | J16: =J7 -> 1.7 | K16: 11 | L16: 0.1046707267 | M16: 0 | N16: 77436922.09 | O16: 2026-09-30
B17: =TRANSPOSE(C5:J5)& " High" -> Efficiency High | C17: =C8 -> 0.7 | D17: 1200 | E17: 1 | F17: 14 | G17: 1 | H17: 0.5 | I17: 0.1 | J17: 1.5 | K17: 12 | L17: 0.1074097696 | M17: 0 | N17: 88575138.89 | O17: 2026-09-30
B18: PDE High | C18: 0.65 | D18: =D8 -> 1150 | E18: 1 | F18: 14 | G18: 1 | H18: 0.5 | I18: 0.1 | J18: 1.5 | K18: 13 | L18: 0.1116874182 | M18: 0 | N18: 86446205.07 | O18: 2026-09-30
B19: Inflation High | C19: 0.65 | D19: 1200 | E19: =E8 -> 3 | F19: 14 | G19: 1 | H19: 0.5 | I19: 0.1 | J19: 1.5 | K19: 14 | L19: 0.108615354 | M19: 0 | N19: 84487470.49 | O19: 2026-09-30
B20: Rental Rate High | C20: 0.65 | D20: 1200 | E20: 1 | F20: =F8 -> 16 | G20: 1 | H20: 0.5 | I20: 0.1 | J20: 1.5 | K20: 15 | L20: 0.1218466996 | M20: 0 | N20: 109462455.3 | O20: 2026-09-30
B21: Occupancy High | C21: 0.65 | D21: 1200 | E21: 1 | F21: 14 | G21: =G8 -> 3 | H21: 0.5 | I21: 0.1 | J21: 1.5 | K21: 16 | L21: 0.1197000981 | M21: 0 | N21: 105166672.8 | O21: 2026-09-30
B22: Step up High | C22: 0.65 | D22: 1200 | E22: 1 | F22: 14 | G22: 1 | H22: =H8 -> 1 | I22: 0.1 | J22: 1.5 | K22: 17 | L22: 0.1328641733 | M22: 0 | N22: 137512747.4 | O22: 2026-09-30
B23: Prop Tax High | C23: 0.65 | D23: 1200 | E23: 1 | F23: 14 | G23: 1 | H23: 0.5 | I23: =I8 -> 0.095 | J23: 1.5 | K23: 18 | L23: 0.1081617419 | M23: 0 | N23: 83613694.3 | O23: 2026-09-30
B24: Utilities High | C24: 0.65 | D24: 1200 | E24: 1 | F24: 14 | G24: 1 | H24: 0.5 | I24: 0.1 | J24: =J8 -> 1.4 | K24: 19 | L24: 0.1087587019 | M24: 0 | N24: 84654053.84 | O24: 2026-09-30
B25: Custom Case | C25: =C32/C30 -> 0.59 | D25: 800 | E25: =E32/E30 -> 1 | F25: 11.8 | G25: 1 | H25: 0.4 | I25: 0.1 | J25: 1.2 | K25: 20 | L25: 0.1278635118 | M25: 0 | N25: 74485199.48 | O25: 2026-09-30
B27: =INDEX(B6:B25,$C$1) -> Base Case | C27: =INDEX(C6:C25,$C$1) -> 0.65 | D27: 1200 | E27: 1 | F27: 14 | G27: 1 | H27: 0.5 | I27: 0.1 | J27: 1.5
B29: Copied Case Fixed | C29: 0.59 | D29: 1200 | E29: 1 | F29: 12 | G29: 1 | H29: 0.5 | I29: 0.1 | J29: 1.5
B30: Multiplier | C30: 100 | D30: 1 | E30: 1 | F30: 10 | G30: 1 | H30: 10 | I30: 100 | J30: 10
B31: Copied Case x Multiplier | C31: =C29*C30 -> 59 | D31: =D29*D30 -> 1200 | E31: 1 | F31: 120 | G31: 1 | H31: 5 | I31: 10 | J31: 15
B32: Fixed Case for Spinner | C32: 59 | D32: 1200 | E32: 1 | F32: 118 | G32: 1 | H32: 4 | I32: 10 | J32: 12
C35: Low vs Base | D35: High vs Base
B36: =TRANSPOSE(C5:J5) -> Efficiency | C36: =L9-$L$6 -> 8.881784197e-16 | D36: =L17-$L$6 -> 8.881784197e-16
B37: PDE | C37: =L10-$L$6 -> -0.01527365766 | D37: =L18-$L$6 -> 0.004277648593
B38: Inflation | C38: -0.0118242421 | D38: 0.001205584381
B39: Rental Rate | C39: -0.03484495673 | D39: 0.01443692999
B40: Occupancy | C40: -0.00830071012 | D40: 0.01229032848
B41: Step up | C41: -0.01916729908 | D41: 0.0254544037
B42: Prop Tax | C42: -0.000756619702 | D42: 0.0007519723571
B43: Utilities | C43: -0.002739042919 | D43: 0.001348932307

Sheet Working Model (Q)
A1: Start Date | K1: =J2+1 -> 2013-01-01 | L1: 2013-04-01 | M1: 2013-07-01 | N1: 2013-10-01 | O1: 2014-01-01 | P1: 2014-04-01 | Q1: 2014-07-01 | R1: 2014-10-01 | S1: 2015-01-01 | T1: 2015-04-01 | U1: 2015-07-01 | V1: 2015-10-01 | W1: 2016-01-01 | X1: 2016-04-01 | Y1: 2016-07-01 | Z1: 2016-10-01 | AA1: 2017-01-01 | AB1: 2017-04-01 | AC1: 2017-07-01 | AD1: 2017-10-01 | AE1: 2018-01-01 | AF1: 2018-04-01 | AG1: 2018-07-01 | AH1: 2018-10-01 | AI1: 2019-01-01 | AJ1: 2019-04-01 | AK1: 2019-07-01 | AL1: 2019-10-01 | AM1: 2020-01-01 | AN1: 2020-04-01 | AO1: 2020-07-01 | AP1: 2020-10-01 | AQ1: =AP2+1 -> 2021-01-01 | AR1: 2021-04-01 | AS1: 2021-07-01 | AT1: 2021-10-01 | AU1: 2022-01-01 | AV1: 2022-04-01 | AW1: 2022-07-01 | AX1: 2022-10-01 | AY1: 2023-01-01 | AZ1: 2023-04-01 | BA1: 2023-07-01 | BB1: 2023-10-01 | BC1: 2024-01-01 | BD1: 2024-04-01 | BE1: 2024-07-01 | BF1: 2024-10-01 | BG1: 2025-01-01 | BH1: 2025-04-01 | BI1: 2025-07-01 | BJ1: 2025-10-01 | BK1: 2026-01-01 | BL1: 2026-04-01 | BM1: 2026-07-01 | BN1: 2026-10-01 | BO1: 2027-01-01 | BP1: 2027-04-01 | BQ1: 2027-07-01 | BR1: 2027-10-01 | BS1: 2028-01-01 | BT1: 2028-04-01 | BU1: 2028-07-01 | BV1: 2028-10-01 | BW1: =BV2+1 -> 2029-01-01 | BX1: 2029-04-01 | BY1: 2029-07-01 | BZ1: 2029-10-01 | CA1: 2030-01-01 | CB1: 2030-04-01 | CC1: 2030-07-01 | CD1: 2030-10-01 | CE1: 2031-01-01 | CF1: 2031-04-01 | CG1: 2031-07-01 | CH1: 2031-10-01 | CI1: 2032-01-01 | CJ1: 2032-04-01 | CK1: 2032-07-01 | CL1: 2032-10-01 | CM1: 2033-01-01 | CN1: 2033-04-01 | CO1: 2033-07-01 | CP1: 2033-10-01 | CQ1: 2034-01-01 | CR1: 2034-04-01 | CS1: 2034-07-01 | CT1: 2034-10-01 | CU1: 2035-01-01 | CV1: 2035-04-01 | CW1: 2035-07-01 | CX1: 2035-10-01 | CY1: 2036-01-01 | CZ1: 2036-04-01 | DA1: 2036-07-01 | DB1: 2036-10-01 | DC1: =DB2+1 -> 2037-01-01 | DD1: 2037-04-01 | DE1: 2037-07-01 | DF1: 2037-10-01 | DG1: 2038-01-01 | DH1: 2038-04-01 | DI1: 2038-07-01 | DJ1: 2038-10-01 | DK1: 2039-01-01 | DL1: 2039-04-01 | DM1: 2039-07-01 | DN1: 2039-10-01 | DO1: 2040-01-01 | DP1: 2040-04-01 | DQ1: 2040-07-01 | DR1: 2040-10-01 | DS1: 2041-01-01 | DT1: 2041-04-01 | DU1: 2041-07-01 | DV1: 2041-10-01 | DW1: 2042-01-01 | DX1: 2042-04-01 | DY1: 2042-07-01 | DZ1: 2042-10-01 | EA1: 2043-01-01 | EB1: 2043-04-01 | EC1: 2043-07-01 | ED1: 2043-10-01 | EE1: 2044-01-01 | EF1: 2044-04-01 | EG1: 2044-07-01 | EH1: 2044-10-01 | EI1: =EH2+1 -> 2045-01-01 | EJ1: 2045-04-01 | EK1: 2045-07-01 | EL1: 2045-10-01 | EM1: 2046-01-01 | EN1: 2046-04-01 | EO1: 2046-07-01 | EP1: 2046-10-01 | EQ1: 2047-01-01 | ER1: 2047-04-01 | ES1: 2047-07-01 | ET1: 2047-10-01 | EU1: 2048-01-01 | EV1: 2048-04-01 | EW1: 2048-07-01 | EX1: 2048-10-01 | EY1: 2049-01-01 | EZ1: 2049-04-01 | FA1: 2049-07-01
A2: End Date | J2: =F16-1 -> 2012-12-31 | K2: =EDATE(K1,K12)-1 -> 2013-03-31 | L2: 2013-06-30 | M2: 2013-09-30 | N2: 2013-12-31 | O2: 2014-03-31 | P2: 2014-06-30 | Q2: 2014-09-30 | R2: 2014-12-31 | S2: 2015-03-31 | T2: 2015-06-30 | U2: 2015-09-30 | V2: 2015-12-31 | W2: 2016-03-31 | X2: 2016-06-30 | Y2: 2016-09-30 | Z2: 2016-12-31 | AA2: 2017-03-31 | AB2: 2017-06-30 | AC2: 2017-09-30 | AD2: 2017-12-31 | AE2: 2018-03-31 | AF2: 2018-06-30 | AG2: 2018-09-30 | AH2: 2018-12-31 | AI2: 2019-03-31 | AJ2: 2019-06-30 | AK2: 2019-09-30 | AL2: 2019-12-31 | AM2: 2020-03-31 | AN2: 2020-06-30 | AO2: 2020-09-30 | AP2: 2020-12-31 | AQ2: =EDATE(AQ1,AQ12)-1 -> 2021-03-31 | AR2: 2021-06-30 | AS2: 2021-09-30 | AT2: 2021-12-31 | AU2: 2022-03-31 | AV2: 2022-06-30 | AW2: 2022-09-30 | AX2: 2022-12-31 | AY2: 2023-03-31 | AZ2: 2023-06-30 | BA2: 2023-09-30 | BB2: 2023-12-31 | BC2: 2024-03-31 | BD2: 2024-06-30 | BE2: 2024-09-30 | BF2: 2024-12-31 | BG2: 2025-03-31 | BH2: 2025-06-30 | BI2: 2025-09-30 | BJ2: 2025-12-31 | BK2: 2026-03-31 | BL2: 2026-06-30 | BM2: 2026-09-30 | BN2: 2026-12-31 | BO2: 2027-03-31 | BP2: 2027-06-30 | BQ2: 2027-09-30 | BR2: 2027-12-31 | BS2: 2028-03-31 | BT2: 2028-06-30 | BU2: 2028-09-30 | BV2: 2028-12-31 | BW2: =EDATE(BW1,BW12)-1 -> 2029-03-31 | BX2: 2029-06-30 | BY2: 2029-09-30 | BZ2: 2029-12-31 | CA2: 2030-03-31 | CB2: 2030-06-30 | CC2: 2030-09-30 | CD2: 2030-12-31 | CE2: 2031-03-31 | CF2: 2031-06-30 | CG2: 2031-09-30 | CH2: 2031-12-31 | CI2: 2032-03-31 | CJ2: 2032-06-30 | CK2: 2032-09-30 | CL2: 2032-12-31 | CM2: 2033-03-31 | CN2: 2033-06-30 | CO2: 2033-09-30 | CP2: 2033-12-31 | CQ2: 2034-03-31 | CR2: 2034-06-30 | CS2: 2034-09-30 | CT2: 2034-12-31 | CU2: 2035-03-31 | CV2: 2035-06-30 | CW2: 2035-09-30 | CX2: 2035-12-31 | CY2: 2036-03-31 | CZ2: 2036-06-30 | DA2: 2036-09-30 | DB2: 2036-12-31 | DC2: =EDATE(DC1,DC12)-1 -> 2037-03-31 | DD2: 2037-06-30 | DE2: 2037-09-30 | DF2: 2037-12-31 | DG2: 2038-03-31 | DH2: 2038-06-30 | DI2: 2038-09-30 | DJ2: 2038-12-31 | DK2: 2039-03-31 | DL2: 2039-06-30 | DM2: 2039-09-30 | DN2: 2039-12-31 | DO2: 2040-03-31 | DP2: 2040-06-30 | DQ2: 2040-09-30 | DR2: 2040-12-31 | DS2: 2041-03-31 | DT2: 2041-06-30 | DU2: 2041-09-30 | DV2: 2041-12-31 | DW2: 2042-03-31 | DX2: 2042-06-30 | DY2: 2042-09-30 | DZ2: 2042-12-31 | EA2: 2043-03-31 | EB2: 2043-06-30 | EC2: 2043-09-30 | ED2: 2043-12-31 | EE2: 2044-03-31 | EF2: 2044-06-30 | EG2: 2044-09-30 | EH2: 2044-12-31 | EI2: =EDATE(EI1,EI12)-1 -> 2045-03-31 | EJ2: 2045-06-30 | EK2: 2045-09-30 | EL2: 2045-12-31 | EM2: 2046-03-31 | EN2: 2046-06-30 | EO2: 2046-09-30 | EP2: 2046-12-31 | EQ2: 2047-03-31 | ER2: 2047-06-30 | ES2: 2047-09-30 | ET2: 2047-12-31 | EU2: 2048-03-31 | EV2: 2048-06-30 | EW2: 2048-09-30 | EX2: 2048-12-31 | EY2: 2049-03-31 | EZ2: 2049-06-30 | FA2: 2049-09-30
A3: Year | J3: =YEAR(J2) -> 2012 | K3: 2013 | L3: 2013 | M3: 2013 | N3: 2013 | O3: 2014 | P3: 2014 | Q3: 2014 | R3: 2014 | S3: 2015 | T3: 2015 | U3: 2015 | V3: 2015 | W3: 2016 | X3: 2016 | Y3: 2016 | Z3: 2016 | AA3: 2017 | AB3: 2017 | AC3: 2017 | AD3: 2017 | AE3: 2018 | AF3: 2018 | AG3: 2018 | AH3: 2018 | AI3: 2019 | AJ3: 2019 | AK3: 2019 | AL3: 2019 | AM3: 2020 | AN3: 2020 | AO3: 2020 | AP3: =YEAR(AP2) -> 2020 | AQ3: 2021 | AR3: 2021 | AS3: 2021 | AT3: 2021 | AU3: 2022 | AV3: 2022 | AW3: 2022 | AX3: 2022 | AY3: 2023 | AZ3: 2023 | BA3: 2023 | BB3: 2023 | BC3: 2024 | BD3: 2024 | BE3: 2024 | BF3: 2024 | BG3: 2025 | BH3: 2025 | BI3: 2025 | BJ3: 2025 | BK3: 2026 | BL3: 2026 | BM3: 2026 | BN3: 2026 | BO3: 2027 | BP3: 2027 | BQ3: 2027 | BR3: 2027 | BS3: 2028 | BT3: 2028 | BU3: 2028 | BV3: =YEAR(BV2) -> 2028 | BW3: 2029 | BX3: 2029 | BY3: 2029 | BZ3: 2029 | CA3: 2030 | CB3: 2030 | CC3: 2030 | CD3: 2030 | CE3: 2031 | CF3: 2031 | CG3: 2031 | CH3: 2031 | CI3: 2032 | CJ3: 2032 | CK3: 2032 | CL3: 2032 | CM3: 2033 | CN3: 2033 | CO3: 2033 | CP3: 2033 | CQ3: 2034 | CR3: 2034 | CS3: 2034 | CT3: 2034 | CU3: 2035 | CV3: 2035 | CW3: 2035 | CX3: 2035 | CY3: 2036 | CZ3: 2036 | DA3: 2036 | DB3: =YEAR(DB2) -> 2036 | DC3: 2037 | DD3: 2037 | DE3: 2037 | DF3: 2037 | DG3: 2038 | DH3: 2038 | DI3: 2038 | DJ3: 2038 | DK3: 2039 | DL3: 2039 | DM3: 2039 | DN3: 2039 | DO3: 2040 | DP3: 2040 | DQ3: 2040 | DR3: 2040 | DS3: 2041 | DT3: 2041 | DU3: 2041 | DV3: 2041 | DW3: 2042 | DX3: 2042 | DY3: 2042 | DZ3: 2042 | EA3: 2043 | EB3: 2043 | EC3: 2043 | ED3: 2043 | EE3: 2044 | EF3: 2044 | EG3: 2044 | EH3: =YEAR(EH2) -> 2044 | EI3: 2045 | EJ3: 2045 | EK3: 2045 | EL3: 2045 | EM3: 2046 | EN3: 2046 | EO3: 2046 | EP3: 2046 | EQ3: 2047 | ER3: 2047 | ES3: 2047 | ET3: 2047 | EU3: 2048 | EV3: 2048 | EW3: 2048 | EX3: 2048 | EY3: 2049 | EZ3: 2049 | FA3: 2049
B4: Project Phases
C5: Construction Phase | E5: TOP Date | F5: =F20 -> 2017-01-01 | G5: Periods | H5: =COUNTIF(K5:FA5,TRUE) -> 16 | I5: =H5=F18 -> TRUE | K5: =K1<$F$5 -> TRUE | L5: TRUE | M5: TRUE | N5: TRUE | O5: TRUE | P5: TRUE | Q5: TRUE | R5: TRUE | S5: TRUE | T5: TRUE | U5: TRUE | V5: TRUE | W5: TRUE | X5: TRUE | Y5: TRUE | Z5: TRUE | AA5: FALSE | AB5: FALSE | AC5: FALSE | AD5: FALSE | AE5: FALSE | AF5: FALSE | AG5: FALSE | AH5: FALSE | AI5: FALSE | AJ5: FALSE | AK5: FALSE | AL5: FALSE | AM5: FALSE | AN5: FALSE | AO5: FALSE | AP5: FALSE | AQ5: =AQ1<$F$5 -> FALSE | AR5: FALSE | AS5: FALSE | AT5: FALSE | AU5: FALSE | AV5: FALSE | AW5: FALSE | AX5: FALSE | AY5: FALSE | AZ5: FALSE | BA5: FALSE | BB5: FALSE | BC5: FALSE | BD5: FALSE | BE5: FALSE | BF5: FALSE | BG5: FALSE | BH5: FALSE | BI5: FALSE | BJ5: FALSE | BK5: FALSE | BL5: FALSE | BM5: FALSE | BN5: FALSE | BO5: FALSE | BP5: FALSE | BQ5: FALSE | BR5: FALSE | BS5: FALSE | BT5: FALSE | BU5: FALSE | BV5: FALSE | BW5: =BW1<$F$5 -> FALSE | BX5: FALSE | BY5: FALSE | BZ5: FALSE | CA5: FALSE | CB5: FALSE | CC5: FALSE | CD5: FALSE | CE5: FALSE | CF5: FALSE | CG5: FALSE | CH5: FALSE | CI5: FALSE | CJ5: FALSE | CK5: FALSE | CL5: FALSE | CM5: FALSE | CN5: FALSE | CO5: FALSE | CP5: FALSE | CQ5: FALSE | CR5: FALSE | CS5: FALSE | CT5: FALSE | CU5: FALSE | CV5: FALSE | CW5: FALSE | CX5: FALSE | CY5: FALSE | CZ5: FALSE | DA5: FALSE | DB5: FALSE | DC5: =DC1<$F$5 -> FALSE | DD5: FALSE | DE5: FALSE | DF5: FALSE | DG5: FALSE | DH5: FALSE | DI5: FALSE | DJ5: FALSE | DK5: FALSE | DL5: FALSE | DM5: FALSE | DN5: FALSE | DO5: FALSE | DP5: FALSE | DQ5: FALSE | DR5: FALSE | DS5: FALSE | DT5: FALSE | DU5: FALSE | DV5: FALSE | DW5: FALSE | DX5: FALSE | DY5: FALSE | DZ5: FALSE | EA5: FALSE | EB5: FALSE | EC5: FALSE | ED5: FALSE | EE5: FALSE | EF5: FALSE | EG5: FALSE | EH5: FALSE | EI5: =EI1<$F$5 -> FALSE | EJ5: FALSE | EK5: FALSE | EL5: FALSE | EM5: FALSE | EN5: FALSE | EO5: FALSE | EP5: FALSE | EQ5: FALSE | ER5: FALSE | ES5: FALSE | ET5: FALSE | EU5: FALSE | EV5: FALSE | EW5: FALSE | EX5: FALSE | EY5: FALSE | EZ5: FALSE | FA5: FALSE
C6: Holding Period | E6: End of Project | F6: =F22 -> 2027-01-01 | G6: Periods | H6: =COUNTIF(K6:FA6,TRUE) -> 40 | I6: =H6/F19=F21 -> TRUE | K6: =AND(K1>=$F$5,K1<$F$6) -> FALSE | L6: FALSE | M6: FALSE | N6: FALSE | O6: FALSE | P6: FALSE | Q6: FALSE | R6: FALSE | S6: FALSE | T6: FALSE | U6: FALSE | V6: FALSE | W6: FALSE | X6: FALSE | Y6: FALSE | Z6: FALSE | AA6: TRUE | AB6: TRUE | AC6: TRUE | AD6: TRUE | AE6: TRUE | AF6: TRUE | AG6: TRUE | AH6: TRUE | AI6: TRUE | AJ6: TRUE | AK6: TRUE | AL6: TRUE | AM6: TRUE | AN6: TRUE | AO6: TRUE | AP6: TRUE | AQ6: =AND(AQ1>=$F$5,AQ1<$F$6) -> TRUE | AR6: TRUE | AS6: TRUE | AT6: TRUE | AU6: TRUE | AV6: TRUE | AW6: TRUE | AX6: TRUE | AY6: TRUE | AZ6: TRUE | BA6: TRUE | BB6: TRUE | BC6: TRUE | BD6: TRUE | BE6: TRUE | BF6: TRUE | BG6: TRUE | BH6: TRUE | BI6: TRUE | BJ6: TRUE | BK6: TRUE | BL6: TRUE | BM6: TRUE | BN6: TRUE | BO6: FALSE | BP6: FALSE | BQ6: FALSE | BR6: FALSE | BS6: FALSE | BT6: FALSE | BU6: FALSE | BV6: FALSE | BW6: =AND(BW1>=$F$5,BW1<$F$6) -> FALSE | BX6: FALSE | BY6: FALSE | BZ6: FALSE | CA6: FALSE | CB6: FALSE | CC6: FALSE | CD6: FALSE | CE6: FALSE | CF6: FALSE | CG6: FALSE | CH6: FALSE | CI6: FALSE | CJ6: FALSE | CK6: FALSE | CL6: FALSE | CM6: FALSE | CN6: FALSE | CO6: FALSE | CP6: FALSE | CQ6: FALSE | CR6: FALSE | CS6: FALSE | CT6: FALSE | CU6: FALSE | CV6: FALSE | CW6: FALSE | CX6: FALSE | CY6: FALSE | CZ6: FALSE | DA6: FALSE | DB6: FALSE | DC6: =AND(DC1>=$F$5,DC1<$F$6) -> FALSE | DD6: FALSE | DE6: FALSE | DF6: FALSE | DG6: FALSE | DH6: FALSE | DI6: FALSE | DJ6: FALSE | DK6: FALSE | DL6: FALSE | DM6: FALSE | DN6: FALSE | DO6: FALSE | DP6: FALSE | DQ6: FALSE | DR6: FALSE | DS6: FALSE | DT6: FALSE | DU6: FALSE | DV6: FALSE | DW6: FALSE | DX6: FALSE | DY6: FALSE | DZ6: FALSE | EA6: FALSE | EB6: FALSE | EC6: FALSE | ED6: FALSE | EE6: FALSE | EF6: FALSE | EG6: FALSE | EH6: FALSE | EI6: =AND(EI1>=$F$5,EI1<$F$6) -> FALSE | EJ6: FALSE | EK6: FALSE | EL6: FALSE | EM6: FALSE | EN6: FALSE | EO6: FALSE | EP6: FALSE | EQ6: FALSE | ER6: FALSE | ES6: FALSE | ET6: FALSE | EU6: FALSE | EV6: FALSE | EW6: FALSE | EX6: FALSE | EY6: FALSE | EZ6: FALSE | FA6: FALSE
C7: Operating Period | K7: =J7+K6 -> 0 | L7: 0 | M7: 0 | N7: 0 | O7: 0 | P7: 0 | Q7: 0 | R7: 0 | S7: 0 | T7: 0 | U7: 0 | V7: 0 | W7: 0 | X7: 0 | Y7: 0 | Z7: 0 | AA7: 1 | AB7: 2 | AC7: 3 | AD7: 4 | AE7: 5 | AF7: 6 | AG7: 7 | AH7: 8 | AI7: 9 | AJ7: 10 | AK7: 11 | AL7: 12 | AM7: 13 | AN7: 14 | AO7: 15 | AP7: 16 | AQ7: =AP7+AQ6 -> 17 | AR7: 18 | AS7: 19 | AT7: 20 | AU7: 21 | AV7: 22 | AW7: 23 | AX7: 24 | AY7: 25 | AZ7: 26 | BA7: 27 | BB7: 28 | BC7: 29 | BD7: 30 | BE7: 31 | BF7: 32 | BG7: 33 | BH7: 34 | BI7: 35 | BJ7: 36 | BK7: 37 | BL7: 38 | BM7: 39 | BN7: 40 | BO7: 40 | BP7: 40 | BQ7: 40 | BR7: 40 | BS7: 40 | BT7: 40 | BU7: 40 | BV7: 40 | BW7: =BV7+BW6 -> 40 | BX7: 40 | BY7: 40 | BZ7: 40 | CA7: 40 | CB7: 40 | CC7: 40 | CD7: 40 | CE7: 40 | CF7: 40 | CG7: 40 | CH7: 40 | CI7: 40 | CJ7: 40 | CK7: 40 | CL7: 40 | CM7: 40 | CN7: 40 | CO7: 40 | CP7: 40 | CQ7: 40 | CR7: 40 | CS7: 40 | CT7: 40 | CU7: 40 | CV7: 40 | CW7: 40 | CX7: 40 | CY7: 40 | CZ7: 40 | DA7: 40 | DB7: 40 | DC7: =DB7+DC6 -> 40 | DD7: 40 | DE7: 40 | DF7: 40 | DG7: 40 | DH7: 40 | DI7: 40 | DJ7: 40 | DK7: 40 | DL7: 40 | DM7: 40 | DN7: 40 | DO7: 40 | DP7: 40 | DQ7: 40 | DR7: 40 | DS7: 40 | DT7: 40 | DU7: 40 | DV7: 40 | DW7: 40 | DX7: 40 | DY7: 40 | DZ7: 40 | EA7: 40 | EB7: 40 | EC7: 40 | ED7: 40 | EE7: 40 | EF7: 40 | EG7: 40 | EH7: 40 | EI7: =EH7+EI6 -> 40 | EJ7: 40 | EK7: 40 | EL7: 40 | EM7: 40 | EN7: 40 | EO7: 40 | EP7: 40 | EQ7: 40 | ER7: 40 | ES7: 40 | ET7: 40 | EU7: 40 | EV7: 40 | EW7: 40 | EX7: 40 | EY7: 40 | EZ7: 40 | FA7: 40
C8: Step Up Period | K8: =AND(MOD(K7,$F$52)=0,K6) -> FALSE | L8: FALSE | M8: FALSE | N8: FALSE | O8: FALSE | P8: FALSE | Q8: FALSE | R8: FALSE | S8: FALSE | T8: FALSE | U8: FALSE | V8: FALSE | W8: FALSE | X8: FALSE | Y8: FALSE | Z8: FALSE | AA8: FALSE | AB8: FALSE | AC8: FALSE | AD8: TRUE | AE8: FALSE | AF8: FALSE | AG8: FALSE | AH8: TRUE | AI8: FALSE | AJ8: FALSE | AK8: FALSE | AL8: TRUE | AM8: FALSE | AN8: FALSE | AO8: FALSE | AP8: TRUE | AQ8: =AND(MOD(AQ7,$F$52)=0,AQ6) -> FALSE | AR8: FALSE | AS8: FALSE | AT8: TRUE | AU8: FALSE | AV8: FALSE | AW8: FALSE | AX8: TRUE | AY8: FALSE | AZ8: FALSE | BA8: FALSE | BB8: TRUE | BC8: FALSE | BD8: FALSE | BE8: FALSE | BF8: TRUE | BG8: FALSE | BH8: FALSE | BI8: FALSE | BJ8: TRUE | BK8: FALSE | BL8: FALSE | BM8: FALSE | BN8: TRUE | BO8: FALSE | BP8: FALSE | BQ8: FALSE | BR8: FALSE | BS8: FALSE | BT8: FALSE | BU8: FALSE | BV8: FALSE | BW8: =AND(MOD(BW7,$F$52)=0,BW6) -> FALSE | BX8: FALSE | BY8: FALSE | BZ8: FALSE | CA8: FALSE | CB8: FALSE | CC8: FALSE | CD8: FALSE | CE8: FALSE | CF8: FALSE | CG8: FALSE | CH8: FALSE | CI8: FALSE | CJ8: FALSE | CK8: FALSE | CL8: FALSE | CM8: FALSE | CN8: FALSE | CO8: FALSE | CP8: FALSE | CQ8: FALSE | CR8: FALSE | CS8: FALSE | CT8: FALSE | CU8: FALSE | CV8: FALSE | CW8: FALSE | CX8: FALSE | CY8: FALSE | CZ8: FALSE | DA8: FALSE | DB8: FALSE | DC8: =AND(MOD(DC7,$F$52)=0,DC6) -> FALSE | DD8: FALSE | DE8: FALSE | DF8: FALSE | DG8: FALSE | DH8: FALSE | DI8: FALSE | DJ8: FALSE | DK8: FALSE | DL8: FALSE | DM8: FALSE | DN8: FALSE | DO8: FALSE | DP8: FALSE | DQ8: FALSE | DR8: FALSE | DS8: FALSE | DT8: FALSE | DU8: FALSE | DV8: FALSE | DW8: FALSE | DX8: FALSE | DY8: FALSE | DZ8: FALSE | EA8: FALSE | EB8: FALSE | EC8: FALSE | ED8: FALSE | EE8: FALSE | EF8: FALSE | EG8: FALSE | EH8: FALSE | EI8: =AND(MOD(EI7,$F$52)=0,EI6) -> FALSE | EJ8: FALSE | EK8: FALSE | EL8: FALSE | EM8: FALSE | EN8: FALSE | EO8: FALSE | EP8: FALSE | EQ8: FALSE | ER8: FALSE | ES8: FALSE | ET8: FALSE | EU8: FALSE | EV8: FALSE | EW8: FALSE | EX8: FALSE | EY8: FALSE | EZ8: FALSE | FA8: FALSE
C9: Inflation Period | E9: Start of Inflation | F9: =H57 -> 2014-01-01 | K9: =K1>=$F$9 -> FALSE | L9: FALSE | M9: FALSE | N9: FALSE | O9: TRUE | P9: TRUE | Q9: TRUE | R9: TRUE | S9: TRUE | T9: TRUE | U9: TRUE | V9: TRUE | W9: TRUE | X9: TRUE | Y9: TRUE | Z9: TRUE | AA9: TRUE | AB9: TRUE | AC9: TRUE | AD9: TRUE | AE9: TRUE | AF9: TRUE | AG9: TRUE | AH9: TRUE | AI9: TRUE | AJ9: TRUE | AK9: TRUE | AL9: TRUE | AM9: TRUE | AN9: TRUE | AO9: TRUE | AP9: TRUE | AQ9: =AQ1>=$F$9 -> TRUE | AR9: TRUE | AS9: TRUE | AT9: TRUE | AU9: TRUE | AV9: TRUE | AW9: TRUE | AX9: TRUE | AY9: TRUE | AZ9: TRUE | BA9: TRUE | BB9: TRUE | BC9: TRUE | BD9: TRUE | BE9: TRUE | BF9: TRUE | BG9: TRUE | BH9: TRUE | BI9: TRUE | BJ9: TRUE | BK9: TRUE | BL9: TRUE | BM9: TRUE | BN9: TRUE | BO9: TRUE | BP9: TRUE | BQ9: TRUE | BR9: TRUE | BS9: TRUE | BT9: TRUE | BU9: TRUE | BV9: TRUE | BW9: =BW1>=$F$9 -> TRUE | BX9: TRUE | BY9: TRUE | BZ9: TRUE | CA9: TRUE | CB9: TRUE | CC9: TRUE | CD9: TRUE | CE9: TRUE | CF9: TRUE | CG9: TRUE | CH9: TRUE | CI9: TRUE | CJ9: TRUE | CK9: TRUE | CL9: TRUE | CM9: TRUE | CN9: TRUE | CO9: TRUE | CP9: TRUE | CQ9: TRUE | CR9: TRUE | CS9: TRUE | CT9: TRUE | CU9: TRUE | CV9: TRUE | CW9: TRUE | CX9: TRUE | CY9: TRUE | CZ9: TRUE | DA9: TRUE | DB9: TRUE | DC9: =DC1>=$F$9 -> TRUE | DD9: TRUE | DE9: TRUE | DF9: TRUE | DG9: TRUE | DH9: TRUE | DI9: TRUE | DJ9: TRUE | DK9: TRUE | DL9: TRUE | DM9: TRUE | DN9: TRUE | DO9: TRUE | DP9: TRUE | DQ9: TRUE | DR9: TRUE | DS9: TRUE | DT9: TRUE | DU9: TRUE | DV9: TRUE | DW9: TRUE | DX9: TRUE | DY9: TRUE | DZ9: TRUE | EA9: TRUE | EB9: TRUE | EC9: TRUE | ED9: TRUE | EE9: TRUE | EF9: TRUE | EG9: TRUE | EH9: TRUE | EI9: =EI1>=$F$9 -> TRUE | EJ9: TRUE | EK9: TRUE | EL9: TRUE | EM9: TRUE | EN9: TRUE | EO9: TRUE | EP9: TRUE | EQ9: TRUE | ER9: TRUE | ES9: TRUE | ET9: TRUE | EU9: TRUE | EV9: TRUE | EW9: TRUE | EX9: TRUE | EY9: TRUE | EZ9: TRUE | FA9: TRUE
C10: Exit Period Switch | E10: Exit Date | F10: =EDATE(F6,-F17) -> 2026-10-01 | G10: Periods | H10: =COUNTIF(K10:FA10,TRUE) -> 1 | K10: =K1=$F$10 -> FALSE | L10: FALSE | M10: FALSE | N10: FALSE | O10: FALSE | P10: FALSE | Q10: FALSE | R10: FALSE | S10: FALSE | T10: FALSE | U10: FALSE | V10: FALSE | W10: FALSE | X10: FALSE | Y10: FALSE | Z10: FALSE | AA10: FALSE | AB10: FALSE | AC10: FALSE | AD10: FALSE | AE10: FALSE | AF10: FALSE | AG10: FALSE | AH10: FALSE | AI10: FALSE | AJ10: FALSE | AK10: FALSE | AL10: FALSE | AM10: FALSE | AN10: FALSE | AO10: FALSE | AP10: FALSE | AQ10: =AQ1=$F$10 -> FALSE | AR10: FALSE | AS10: FALSE | AT10: FALSE | AU10: FALSE | AV10: FALSE | AW10: FALSE | AX10: FALSE | AY10: FALSE | AZ10: FALSE | BA10: FALSE | BB10: FALSE | BC10: FALSE | BD10: FALSE | BE10: FALSE | BF10: FALSE | BG10: FALSE | BH10: FALSE | BI10: FALSE | BJ10: FALSE | BK10: FALSE | BL10: FALSE | BM10: FALSE | BN10: TRUE | BO10: FALSE | BP10: FALSE | BQ10: FALSE | BR10: FALSE | BS10: FALSE | BT10: FALSE | BU10: FALSE | BV10: FALSE | BW10: =BW1=$F$10 -> FALSE | BX10: FALSE | BY10: FALSE | BZ10: FALSE | CA10: FALSE | CB10: FALSE | CC10: FALSE | CD10: FALSE | CE10: FALSE | CF10: FALSE | CG10: FALSE | CH10: FALSE | CI10: FALSE | CJ10: FALSE | CK10: FALSE | CL10: FALSE | CM10: FALSE | CN10: FALSE | CO10: FALSE | CP10: FALSE | CQ10: FALSE | CR10: FALSE | CS10: FALSE | CT10: FALSE | CU10: FALSE | CV10: FALSE | CW10: FALSE | CX10: FALSE | CY10: FALSE | CZ10: FALSE | DA10: FALSE | DB10: FALSE | DC10: =DC1=$F$10 -> FALSE | DD10: FALSE | DE10: FALSE | DF10: FALSE | DG10: FALSE | DH10: FALSE | DI10: FALSE | DJ10: FALSE | DK10: FALSE | DL10: FALSE | DM10: FALSE | DN10: FALSE | DO10: FALSE | DP10: FALSE | DQ10: FALSE | DR10: FALSE | DS10: FALSE | DT10: FALSE | DU10: FALSE | DV10: FALSE | DW10: FALSE | DX10: FALSE | DY10: FALSE | DZ10: FALSE | EA10: FALSE | EB10: FALSE | EC10: FALSE | ED10: FALSE | EE10: FALSE | EF10: FALSE | EG10: FALSE | EH10: FALSE | EI10: =EI1=$F$10 -> FALSE | EJ10: FALSE | EK10: FALSE | EL10: FALSE | EM10: FALSE | EN10: FALSE | EO10: FALSE | EP10: FALSE | EQ10: FALSE | ER10: FALSE | ES10: FALSE | ET10: FALSE | EU10: FALSE | EV10: FALSE | EW10: FALSE | EX10: FALSE | EY10: FALSE | EZ10: FALSE | FA10: FALSE
C11: Loan Repayment Switch | E11: Repayment Date | F11: =F76 -> 2018-01-01 | K11: =K1=$F$11 -> FALSE | L11: FALSE | M11: FALSE | N11: FALSE | O11: FALSE | P11: FALSE | Q11: FALSE | R11: FALSE | S11: FALSE | T11: FALSE | U11: FALSE | V11: FALSE | W11: FALSE | X11: FALSE | Y11: FALSE | Z11: FALSE | AA11: FALSE | AB11: FALSE | AC11: FALSE | AD11: FALSE | AE11: TRUE | AF11: FALSE | AG11: FALSE | AH11: FALSE | AI11: FALSE | AJ11: FALSE | AK11: FALSE | AL11: FALSE | AM11: FALSE | AN11: FALSE | AO11: FALSE | AP11: FALSE | AQ11: =AQ1=$F$11 -> FALSE | AR11: FALSE | AS11: FALSE | AT11: FALSE | AU11: FALSE | AV11: FALSE | AW11: FALSE | AX11: FALSE | AY11: FALSE | AZ11: FALSE | BA11: FALSE | BB11: FALSE | BC11: FALSE | BD11: FALSE | BE11: FALSE | BF11: FALSE | BG11: FALSE | BH11: FALSE | BI11: FALSE | BJ11: FALSE | BK11: FALSE | BL11: FALSE | BM11: FALSE | BN11: FALSE | BO11: FALSE | BP11: FALSE | BQ11: FALSE | BR11: FALSE | BS11: FALSE | BT11: FALSE | BU11: FALSE | BV11: FALSE | BW11: =BW1=$F$11 -> FALSE | BX11: FALSE | BY11: FALSE | BZ11: FALSE | CA11: FALSE | CB11: FALSE | CC11: FALSE | CD11: FALSE | CE11: FALSE | CF11: FALSE | CG11: FALSE | CH11: FALSE | CI11: FALSE | CJ11: FALSE | CK11: FALSE | CL11: FALSE | CM11: FALSE | CN11: FALSE | CO11: FALSE | CP11: FALSE | CQ11: FALSE | CR11: FALSE | CS11: FALSE | CT11: FALSE | CU11: FALSE | CV11: FALSE | CW11: FALSE | CX11: FALSE | CY11: FALSE | CZ11: FALSE | DA11: FALSE | DB11: FALSE | DC11: =DC1=$F$11 -> FALSE | DD11: FALSE | DE11: FALSE | DF11: FALSE | DG11: FALSE | DH11: FALSE | DI11: FALSE | DJ11: FALSE | DK11: FALSE | DL11: FALSE | DM11: FALSE | DN11: FALSE | DO11: FALSE | DP11: FALSE | DQ11: FALSE | DR11: FALSE | DS11: FALSE | DT11: FALSE | DU11: FALSE | DV11: FALSE | DW11: FALSE | DX11: FALSE | DY11: FALSE | DZ11: FALSE | EA11: FALSE | EB11: FALSE | EC11: FALSE | ED11: FALSE | EE11: FALSE | EF11: FALSE | EG11: FALSE | EH11: FALSE | EI11: =EI1=$F$11 -> FALSE | EJ11: FALSE | EK11: FALSE | EL11: FALSE | EM11: FALSE | EN11: FALSE | EO11: FALSE | EP11: FALSE | EQ11: FALSE | ER11: FALSE | ES11: FALSE | ET11: FALSE | EU11: FALSE | EV11: FALSE | EW11: FALSE | EX11: FALSE | EY11: FALSE | EZ11: FALSE | FA11: FALSE
C12: Months per period: | E12: =F17 -> 3 | J12: =$E$12 -> 3 | K12: 3 | L12: 3 | M12: 3 | N12: 3 | O12: 3 | P12: 3 | Q12: 3 | R12: 3 | S12: 3 | T12: 3 | U12: 3 | V12: 3 | W12: 3 | X12: 3 | Y12: 3 | Z12: 3 | AA12: 3 | AB12: 3 | AC12: 3 | AD12: 3 | AE12: 3 | AF12: 3 | AG12: 3 | AH12: 3 | AI12: 3 | AJ12: 3 | AK12: 3 | AL12: 3 | AM12: 3 | AN12: 3 | AO12: 3 | AP12: =$E$12 -> 3 | AQ12: 3 | AR12: 3 | AS12: 3 | AT12: 3 | AU12: 3 | AV12: 3 | AW12: 3 | AX12: 3 | AY12: 3 | AZ12: 3 | BA12: 3 | BB12: 3 | BC12: 3 | BD12: 3 | BE12: 3 | BF12: 3 | BG12: 3 | BH12: 3 | BI12: 3 | BJ12: 3 | BK12: 3 | BL12: 3 | BM12: 3 | BN12: 3 | BO12: 3 | BP12: 3 | BQ12: 3 | BR12: 3 | BS12: 3 | BT12: 3 | BU12: 3 | BV12: =$E$12 -> 3 | BW12: 3 | BX12: 3 | BY12: 3 | BZ12: 3 | CA12: 3 | CB12: 3 | CC12: 3 | CD12: 3 | CE12: 3 | CF12: 3 | CG12: 3 | CH12: 3 | CI12: 3 | CJ12: 3 | CK12: 3 | CL12: 3 | CM12: 3 | CN12: 3 | CO12: 3 | CP12: 3 | CQ12: 3 | CR12: 3 | CS12: 3 | CT12: 3 | CU12: 3 | CV12: 3 | CW12: 3 | CX12: 3 | CY12: 3 | CZ12: 3 | DA12: 3 | DB12: =$E$12 -> 3 | DC12: 3 | DD12: 3 | DE12: 3 | DF12: 3 | DG12: 3 | DH12: 3 | DI12: 3 | DJ12: 3 | DK12: 3 | DL12: 3 | DM12: 3 | DN12: 3 | DO12: 3 | DP12: 3 | DQ12: 3 | DR12: 3 | DS12: 3 | DT12: 3 | DU12: 3 | DV12: 3 | DW12: 3 | DX12: 3 | DY12: 3 | DZ12: 3 | EA12: 3 | EB12: 3 | EC12: 3 | ED12: 3 | EE12: 3 | EF12: 3 | EG12: 3 | EH12: =$E$12 -> 3 | EI12: 3 | EJ12: 3 | EK12: 3 | EL12: 3 | EM12: 3 | EN12: 3 | EO12: 3 | EP12: 3 | EQ12: 3 | ER12: 3 | ES12: 3 | ET12: 3 | EU12: 3 | EV12: 3 | EW12: 3 | EX12: 3 | EY12: 3 | EZ12: 3 | FA12: 3
C13: Construction period | K13: =J13+K5 -> 1 | L13: 2 | M13: 3 | N13: 4 | O13: 5 | P13: 6 | Q13: 7 | R13: 8 | S13: 9 | T13: 10 | U13: 11 | V13: 12 | W13: 13 | X13: 14 | Y13: 15 | Z13: 16 | AA13: 16 | AB13: 16 | AC13: 16 | AD13: 16 | AE13: 16 | AF13: 16 | AG13: 16 | AH13: 16 | AI13: 16 | AJ13: 16 | AK13: 16 | AL13: 16 | AM13: 16 | AN13: 16 | AO13: 16 | AP13: 16 | AQ13: =AP13+AQ5 -> 16 | AR13: 16 | AS13: 16 | AT13: 16 | AU13: 16 | AV13: 16 | AW13: 16 | AX13: 16 | AY13: 16 | AZ13: 16 | BA13: 16 | BB13: 16 | BC13: 16 | BD13: 16 | BE13: 16 | BF13: 16 | BG13: 16 | BH13: 16 | BI13: 16 | BJ13: 16 | BK13: 16 | BL13: 16 | BM13: 16 | BN13: 16 | BO13: 16 | BP13: 16 | BQ13: 16 | BR13: 16 | BS13: 16 | BT13: 16 | BU13: 16 | BV13: 16 | BW13: =BV13+BW5 -> 16 | BX13: 16 | BY13: 16 | BZ13: 16 | CA13: 16 | CB13: 16 | CC13: 16 | CD13: 16 | CE13: 16 | CF13: 16 | CG13: 16 | CH13: 16 | CI13: 16 | CJ13: 16 | CK13: 16 | CL13: 16 | CM13: 16 | CN13: 16 | CO13: 16 | CP13: 16 | CQ13: 16 | CR13: 16 | CS13: 16 | CT13: 16 | CU13: 16 | CV13: 16 | CW13: 16 | CX13: 16 | CY13: 16 | CZ13: 16 | DA13: 16 | DB13: 16 | DC13: =DB13+DC5 -> 16 | DD13: 16 | DE13: 16 | DF13: 16 | DG13: 16 | DH13: 16 | DI13: 16 | DJ13: 16 | DK13: 16 | DL13: 16 | DM13: 16 | DN13: 16 | DO13: 16 | DP13: 16 | DQ13: 16 | DR13: 16 | DS13: 16 | DT13: 16 | DU13: 16 | DV13: 16 | DW13: 16 | DX13: 16 | DY13: 16 | DZ13: 16 | EA13: 16 | EB13: 16 | EC13: 16 | ED13: 16 | EE13: 16 | EF13: 16 | EG13: 16 | EH13: 16 | EI13: =EH13+EI5 -> 16 | EJ13: 16 | EK13: 16 | EL13: 16 | EM13: 16 | EN13: 16 | EO13: 16 | EP13: 16 | EQ13: 16 | ER13: 16 | ES13: 16 | ET13: 16 | EU13: 16 | EV13: 16 | EW13: 16 | EX13: 16 | EY13: 16 | EZ13: 16 | FA13: 16
A15: Timing:
C16: Start of Construction | E16: Date | F16: 2013-01-01
C17: Months Per Period | E17: Months | F17: 3
C18: Construction Period | E18: Quarters | F18: 16
C19: Period per year | E19: Period | F19: 4
C20: TOP Date | E20: Date | F20: =EDATE(F16,F18*F17) -> 2017-01-01
C21: Holding Period | E21: Years | F21: 10
C22: Exit Date | E22: Date | F22: =EDATE(F20,F21*12) -> 2027-01-01
A24: Operating Assumptions:
C25: GFA | E25: SqFt | F25: 136000
C26: Efficiency | E26: % | F26: ='Master Scenario'!C27 -> 0.65
C27: NLA | E27: SqFt | F27: =GFA*F26 -> 88400 | G27: NLA
C28: PDE | E28: $PerNLA (SqFt) | F28: ='Master Scenario'!D27 -> 1200 | G28: PDE
C29: Land | E29: % | F29: 0.4
C30: Land cost | F30: =PDE*F29 -> 480
C31: Construction cost | F31: =PDE-F30 -> 720
C33: Year | F33: =2013 -> 2013 | G33: =F33+1 -> 2014 | H33: =G33+1 -> 2015 | I33: =H33+1 -> 2016 | J33: =I33+1 -> 2017 | K33: =J33+1 -> 2018
C34: Base inflation | F34: 0.07 | G34: 0.05 | H34: 0.03 | I34: 0.025 | J34: 0.025 | K34: 0.025
C35: High inflation | F35: 0.07 | G35: 0.07 | H35: 0.07 | I35: 0.07 | J35: 0.07 | K35: 0.07
C36: Low inflation | F36: 0.05 | G36: 0.04 | H36: 0.02 | I36: 0.02 | J36: 0.02 | K36: 0.02
E37: Code
C38: =INDEX(C34:C36,$E$38) -> Base inflation | E38: ='Master Scenario'!E27 -> 1 | F38: =INDEX(F34:F36,$E$38) -> 0.07 | G38: 0.05 | H38: 0.03 | I38: 0.025 | J38: 0.025 | K38: 0.025
C40: Occupancy Code | E40: Code | F40: ='Master Scenario'!G27 -> 1
C41: Occupancy Rate | E41: Percent | F41: Periods (Qtr) | G41: Date | I41: % | K41: Base Case | L41: Low Case | M41: High Case
F42: 1 | G42: =EDATE($F$20,(F42-1)*3) -> 2017-01-01 | I42: =INDEX(K42:M42,$F$40) -> 0.5 | K42: 0.5 | L42: =K42-0.05 -> 0.45 | M42: =K42+0.08 -> 0.58 | O42: =TRANSPOSE(K41:M41) -> Base Case
F43: 2 | G43: 2017-04-01 | I43: 0.55 | K43: 0.55 | L43: 0.5 | M43: 0.63 | O43: Low Case
F44: 4 | G44: 2017-10-01 | I44: 0.6 | K44: 0.6 | L44: 0.55 | M44: 0.68 | O44: High Case
F45: 6 | G45: 2018-04-01 | I45: 0.705 | K45: 0.705 | L45: 0.655 | M45: 0.785
F46: 12 | G46: 2019-10-01 | I46: 0.8 | K46: 0.8 | L46: 0.75 | M46: 0.88
F47: 24 | G47: 2022-10-01 | I47: 0.857 | K47: 0.857 | L47: 0.807 | M47: 0.937
F48: 36 | G48: 2025-10-01 | I48: 0.9 | K48: 0.9 | L48: 0.85 | M48: 0.98
B49: Rental Rates
C50: Rental Rate
C51: Base Rent | E51: $ per Sqft per mth | F51: ='Master Scenario'!F27 -> 14
C52: Step up Period | E52: Quarters | F52: 4
C53: Step up amount | E53: $ per Sqft | F53: ='Master Scenario'!H27 -> 0.5
B55: Operating Costs
C56: Property Tax | E56: % | F56: ='Master Scenario'!I27 -> 0.1
C57: Utilities | E57: $ per Sqft per mth | F57: ='Master Scenario'!J27 -> 1.5 | G57: inflation Starts | H57: 2014-01-01
C58: Marketing | E58: $ per Sqft per mth | F58: 1.5
B60: S-Curve
C61: Middle value | E61: months | F61: =F18/2 -> 8
C62: Deviation | E62: months | F62: 6
C64: Cap Rate | E64: % | F64: 0.05
B66: Tax & Capital Allowance
C67: Plant & Machinery | E67: % | F67: 0.15
C68: Period of Capital Allowance | E68: Years | F68: 5
C69: Tax rate | E69: % | F69: 0.17
A71: Financing
B72: Land Loan
C73: Date of Loan Commitment | F73: =F16 -> 2013-01-01
C74: Loan to value ( Land) | E74: % | F74: 0.7
C75: Tenor of Land Loan | E75: Years | F75: 5
C76: Loan repayment date | F76: =EDATE(F73,F75*12) -> 2018-01-01
C77: Breakage cost | E77: % | F77: 0.02
C78: Upfront fee | E78: % | F78: 0.0075
C79: Interest rate | E79: % | F79: 0.022
B81: Term Loan
C82: Date of Commitment | F82: =F16 -> 2013-01-01
C83: Final Date of Drawdown | F83: =EDATE(F20,1) -> 2017-02-01
C84: Loan to value (Non-Land) | E84: % | F84: 0.8
C85: Cash Sweep Percent for Term Loan | E85: % | F85: 0.3
C86: Upfront fee | E86: % | F86: 0.0075
C87: Commitment fee | E87: % | F87: 0.01
C88: Contruction | E88: % | F88: 0.019
B90: Dividends | I90: Loan Balance | J90: =FA210 -> 0
C91: Date First Dividend Allowed | F91: =F16 -> 2013-01-01
I92: Test
C93: Total land borrowing | F93: =F74*F96 -> 0.28
C94: Construction loan | E94: % | F94: =F84-F93 -> 0.52
C95: WACC | E95: % | F95: 0.05
C96: Land value | E96: % | F96: =F29 -> 0.4
A99: Operating Analysis
B100: Revenue
C101: Base Rent | E101: SD/Sqft/Mo. | F101: =F51 -> 14 | K101: =$F$101 -> 14 | L101: 14 | M101: 14 | N101: 14 | O101: 14 | P101: 14 | Q101: 14 | R101: 14 | S101: 14 | T101: 14 | U101: 14 | V101: 14 | W101: 14 | X101: 14 | Y101: 14 | Z101: 14 | AA101: 14 | AB101: 14 | AC101: 14 | AD101: 14 | AE101: 14 | AF101: 14 | AG101: 14 | AH101: 14 | AI101: 14 | AJ101: 14 | AK101: 14 | AL101: 14 | AM101: 14 | AN101: 14 | AO101: 14 | AP101: 14 | AQ101: =$F$101 -> 14 | AR101: 14 | AS101: 14 | AT101: 14 | AU101: 14 | AV101: 14 | AW101: 14 | AX101: 14 | AY101: 14 | AZ101: 14 | BA101: 14 | BB101: 14 | BC101: 14 | BD101: 14 | BE101: 14 | BF101: 14 | BG101: 14 | BH101: 14 | BI101: 14 | BJ101: 14 | BK101: 14 | BL101: 14 | BM101: 14 | BN101: 14 | BO101: 14 | BP101: 14 | BQ101: 14 | BR101: 14 | BS101: 14 | BT101: 14 | BU101: 14 | BV101: 14 | BW101: =$F$101 -> 14 | BX101: 14 | BY101: 14 | BZ101: 14 | CA101: 14 | CB101: 14 | CC101: 14 | CD101: 14 | CE101: 14 | CF101: 14 | CG101: 14 | CH101: 14 | CI101: 14 | CJ101: 14 | CK101: 14 | CL101: 14 | CM101: 14 | CN101: 14 | CO101: 14 | CP101: 14 | CQ101: 14 | CR101: 14 | CS101: 14 | CT101: 14 | CU101: 14 | CV101: 14 | CW101: 14 | CX101: 14 | CY101: 14 | CZ101: 14 | DA101: 14 | DB101: 14 | DC101: =$F$101 -> 14 | DD101: 14 | DE101: 14 | DF101: 14 | DG101: 14 | DH101: 14 | DI101: 14 | DJ101: 14 | DK101: 14 | DL101: 14 | DM101: 14 | DN101: 14 | DO101: 14 | DP101: 14 | DQ101: 14 | DR101: 14 | DS101: 14 | DT101: 14 | DU101: 14 | DV101: 14 | DW101: 14 | DX101: 14 | DY101: 14 | DZ101: 14 | EA101: 14 | EB101: 14 | EC101: 14 | ED101: 14 | EE101: 14 | EF101: 14 | EG101: 14 | EH101: 14 | EI101: =$F$101 -> 14 | EJ101: 14 | EK101: 14 | EL101: 14 | EM101: 14 | EN101: 14 | EO101: 14 | EP101: 14 | EQ101: 14 | ER101: 14 | ES101: 14 | ET101: 14 | EU101: 14 | EV101: 14 | EW101: 14 | EX101: 14 | EY101: 14 | EZ101: 14 | FA101: 14
C102: Step Up | E102: SD/Sqft/Mo. | F102: =F53 -> 0.5 | K102: =J102+$F$102*K8 -> 0 | L102: 0 | M102: 0 | N102: 0 | O102: 0 | P102: 0 | Q102: 0 | R102: 0 | S102: 0 | T102: 0 | U102: 0 | V102: 0 | W102: 0 | X102: 0 | Y102: 0 | Z102: 0 | AA102: 0 | AB102: 0 | AC102: 0 | AD102: 0.5 | AE102: 0.5 | AF102: 0.5 | AG102: 0.5 | AH102: 1 | AI102: 1 | AJ102: 1 | AK102: 1 | AL102: 1.5 | AM102: 1.5 | AN102: 1.5 | AO102: 1.5 | AP102: 2 | AQ102: =AP102+$F$102*AQ8 -> 2 | AR102: 2 | AS102: 2 | AT102: 2.5 | AU102: 2.5 | AV102: 2.5 | AW102: 2.5 | AX102: 3 | AY102: 3 | AZ102: 3 | BA102: 3 | BB102: 3.5 | BC102: 3.5 | BD102: 3.5 | BE102: 3.5 | BF102: 4 | BG102: 4 | BH102: 4 | BI102: 4 | BJ102: 4.5 | BK102: 4.5 | BL102: 4.5 | BM102: 4.5 | BN102: 5 | BO102: 5 | BP102: 5 | BQ102: 5 | BR102: 5 | BS102: 5 | BT102: 5 | BU102: 5 | BV102: 5 | BW102: =BV102+$F$102*BW8 -> 5 | BX102: 5 | BY102: 5 | BZ102: 5 | CA102: 5 | CB102: 5 | CC102: 5 | CD102: 5 | CE102: 5 | CF102: 5 | CG102: 5 | CH102: 5 | CI102: 5 | CJ102: 5 | CK102: 5 | CL102: 5 | CM102: 5 | CN102: 5 | CO102: 5 | CP102: 5 | CQ102: 5 | CR102: 5 | CS102: 5 | CT102: 5 | CU102: 5 | CV102: 5 | CW102: 5 | CX102: 5 | CY102: 5 | CZ102: 5 | DA102: 5 | DB102: 5 | DC102: =DB102+$F$102*DC8 -> 5 | DD102: 5 | DE102: 5 | DF102: 5 | DG102: 5 | DH102: 5 | DI102: 5 | DJ102: 5 | DK102: 5 | DL102: 5 | DM102: 5 | DN102: 5 | DO102: 5 | DP102: 5 | DQ102: 5 | DR102: 5 | DS102: 5 | DT102: 5 | DU102: 5 | DV102: 5 | DW102: 5 | DX102: 5 | DY102: 5 | DZ102: 5 | EA102: 5 | EB102: 5 | EC102: 5 | ED102: 5 | EE102: 5 | EF102: 5 | EG102: 5 | EH102: 5 | EI102: =EH102+$F$102*EI8 -> 5 | EJ102: 5 | EK102: 5 | EL102: 5 | EM102: 5 | EN102: 5 | EO102: 5 | EP102: 5 | EQ102: 5 | ER102: 5 | ES102: 5 | ET102: 5 | EU102: 5 | EV102: 5 | EW102: 5 | EX102: 5 | EY102: 5 | EZ102: 5 | FA102: 5
D103: Spot Rent | K103: =SUM(K101:K102) -> 14 | L103: 14 | M103: 14 | N103: 14 | O103: 14 | P103: 14 | Q103: 14 | R103: 14 | S103: 14 | T103: 14 | U103: 14 | V103: 14 | W103: 14 | X103: 14 | Y103: 14 | Z103: 14 | AA103: 14 | AB103: 14 | AC103: 14 | AD103: 14.5 | AE103: 14.5 | AF103: 14.5 | AG103: 14.5 | AH103: 15 | AI103: 15 | AJ103: 15 | AK103: 15 | AL103: 15.5 | AM103: 15.5 | AN103: 15.5 | AO103: 15.5 | AP103: 16 | AQ103: =SUM(AQ101:AQ102) -> 16 | AR103: 16 | AS103: 16 | AT103: 16.5 | AU103: 16.5 | AV103: 16.5 | AW103: 16.5 | AX103: 17 | AY103: 17 | AZ103: 17 | BA103: 17 | BB103: 17.5 | BC103: 17.5 | BD103: 17.5 | BE103: 17.5 | BF103: 18 | BG103: 18 | BH103: 18 | BI103: 18 | BJ103: 18.5 | BK103: 18.5 | BL103: 18.5 | BM103: 18.5 | BN103: 19 | BO103: 19 | BP103: 19 | BQ103: 19 | BR103: 19 | BS103: 19 | BT103: 19 | BU103: 19 | BV103: 19 | BW103: =SUM(BW101:BW102) -> 19 | BX103: 19 | BY103: 19 | BZ103: 19 | CA103: 19 | CB103: 19 | CC103: 19 | CD103: 19 | CE103: 19 | CF103: 19 | CG103: 19 | CH103: 19 | CI103: 19 | CJ103: 19 | CK103: 19 | CL103: 19 | CM103: 19 | CN103: 19 | CO103: 19 | CP103: 19 | CQ103: 19 | CR103: 19 | CS103: 19 | CT103: 19 | CU103: 19 | CV103: 19 | CW103: 19 | CX103: 19 | CY103: 19 | CZ103: 19 | DA103: 19 | DB103: 19 | DC103: =SUM(DC101:DC102) -> 19 | DD103: 19 | DE103: 19 | DF103: 19 | DG103: 19 | DH103: 19 | DI103: 19 | DJ103: 19 | DK103: 19 | DL103: 19 | DM103: 19 | DN103: 19 | DO103: 19 | DP103: 19 | DQ103: 19 | DR103: 19 | DS103: 19 | DT103: 19 | DU103: 19 | DV103: 19 | DW103: 19 | DX103: 19 | DY103: 19 | DZ103: 19 | EA103: 19 | EB103: 19 | EC103: 19 | ED103: 19 | EE103: 19 | EF103: 19 | EG103: 19 | EH103: 19 | EI103: =SUM(EI101:EI102) -> 19 | EJ103: 19 | EK103: 19 | EL103: 19 | EM103: 19 | EN103: 19 | EO103: 19 | EP103: 19 | EQ103: 19 | ER103: 19 | ES103: 19 | ET103: 19 | EU103: 19 | EV103: 19 | EW103: 19 | EX103: 19 | EY103: 19 | EZ103: 19 | FA103: 19
C104: Amount
C105: NLA | E105: NLA | F105: =F27 -> 88400 | K105: =$F$105*K6 -> 0 | L105: 0 | M105: 0 | N105: 0 | O105: 0 | P105: 0 | Q105: 0 | R105: 0 | S105: 0 | T105: 0 | U105: 0 | V105: 0 | W105: 0 | X105: 0 | Y105: 0 | Z105: 0 | AA105: 88400 | AB105: 88400 | AC105: 88400 | AD105: 88400 | AE105: 88400 | AF105: 88400 | AG105: 88400 | AH105: 88400 | AI105: 88400 | AJ105: 88400 | AK105: 88400 | AL105: 88400 | AM105: 88400 | AN105: 88400 | AO105: 88400 | AP105: 88400 | AQ105: =$F$105*AQ6 -> 88400 | AR105: 88400 | AS105: 88400 | AT105: 88400 | AU105: 88400 | AV105: 88400 | AW105: 88400 | AX105: 88400 | AY105: 88400 | AZ105: 88400 | BA105: 88400 | BB105: 88400 | BC105: 88400 | BD105: 88400 | BE105: 88400 | BF105: 88400 | BG105: 88400 | BH105: 88400 | BI105: 88400 | BJ105: 88400 | BK105: 88400 | BL105: 88400 | BM105: 88400 | BN105: 88400 | BO105: 0 | BP105: 0 | BQ105: 0 | BR105: 0 | BS105: 0 | BT105: 0 | BU105: 0 | BV105: 0 | BW105: =$F$105*BW6 -> 0 | BX105: 0 | BY105: 0 | BZ105: 0 | CA105: 0 | CB105: 0 | CC105: 0 | CD105: 0 | CE105: 0 | CF105: 0 | CG105: 0 | CH105: 0 | CI105: 0 | CJ105: 0 | CK105: 0 | CL105: 0 | CM105: 0 | CN105: 0 | CO105: 0 | CP105: 0 | CQ105: 0 | CR105: 0 | CS105: 0 | CT105: 0 | CU105: 0 | CV105: 0 | CW105: 0 | CX105: 0 | CY105: 0 | CZ105: 0 | DA105: 0 | DB105: 0 | DC105: =$F$105*DC6 -> 0 | DD105: 0 | DE105: 0 | DF105: 0 | DG105: 0 | DH105: 0 | DI105: 0 | DJ105: 0 | DK105: 0 | DL105: 0 | DM105: 0 | DN105: 0 | DO105: 0 | DP105: 0 | DQ105: 0 | DR105: 0 | DS105: 0 | DT105: 0 | DU105: 0 | DV105: 0 | DW105: 0 | DX105: 0 | DY105: 0 | DZ105: 0 | EA105: 0 | EB105: 0 | EC105: 0 | ED105: 0 | EE105: 0 | EF105: 0 | EG105: 0 | EH105: 0 | EI105: =$F$105*EI6 -> 0 | EJ105: 0 | EK105: 0 | EL105: 0 | EM105: 0 | EN105: 0 | EO105: 0 | EP105: 0 | EQ105: 0 | ER105: 0 | ES105: 0 | ET105: 0 | EU105: 0 | EV105: 0 | EW105: 0 | EX105: 0 | EY105: 0 | EZ105: 0 | FA105: 0
C106: Occupancy | E106: Scenario | K106: =IFERROR(LOOKUP(K1,$G$42:$G$48,$I$42:$I$48),0) -> 0 | L106: 0 | M106: 0 | N106: 0 | O106: 0 | P106: 0 | Q106: 0 | R106: 0 | S106: 0 | T106: 0 | U106: 0 | V106: 0 | W106: 0 | X106: 0 | Y106: 0 | Z106: 0 | AA106: 0.5 | AB106: 0.55 | AC106: 0.55 | AD106: 0.6 | AE106: 0.6 | AF106: 0.705 | AG106: 0.705 | AH106: 0.705 | AI106: 0.705 | AJ106: 0.705 | AK106: 0.705 | AL106: 0.8 | AM106: 0.8 | AN106: 0.8 | AO106: 0.8 | AP106: 0.8 | AQ106: =IFERROR(LOOKUP(AQ1,$G$42:$G$48,$I$42:$I$48),0) -> 0.8 | AR106: 0.8 | AS106: 0.8 | AT106: 0.8 | AU106: 0.8 | AV106: 0.8 | AW106: 0.8 | AX106: 0.857 | AY106: 0.857 | AZ106: 0.857 | BA106: 0.857 | BB106: 0.857 | BC106: 0.857 | BD106: 0.857 | BE106: 0.857 | BF106: 0.857 | BG106: 0.857 | BH106: 0.857 | BI106: 0.857 | BJ106: 0.9 | BK106: 0.9 | BL106: 0.9 | BM106: 0.9 | BN106: 0.9 | BO106: 0.9 | BP106: 0.9 | BQ106: 0.9 | BR106: 0.9 | BS106: 0.9 | BT106: 0.9 | BU106: 0.9 | BV106: 0.9 | BW106: =IFERROR(LOOKUP(BW1,$G$42:$G$48,$I$42:$I$48),0) -> 0.9 | BX106: 0.9 | BY106: 0.9 | BZ106: 0.9 | CA106: 0.9 | CB106: 0.9 | CC106: 0.9 | CD106: 0.9 | CE106: 0.9 | CF106: 0.9 | CG106: 0.9 | CH106: 0.9 | CI106: 0.9 | CJ106: 0.9 | CK106: 0.9 | CL106: 0.9 | CM106: 0.9 | CN106: 0.9 | CO106: 0.9 | CP106: 0.9 | CQ106: 0.9 | CR106: 0.9 | CS106: 0.9 | CT106: 0.9 | CU106: 0.9 | CV106: 0.9 | CW106: 0.9 | CX106: 0.9 | CY106: 0.9 | CZ106: 0.9 | DA106: 0.9 | DB106: 0.9 | DC106: =IFERROR(LOOKUP(DC1,$G$42:$G$48,$I$42:$I$48),0) -> 0.9 | DD106: 0.9 | DE106: 0.9 | DF106: 0.9 | DG106: 0.9 | DH106: 0.9 | DI106: 0.9 | DJ106: 0.9 | DK106: 0.9 | DL106: 0.9 | DM106: 0.9 | DN106: 0.9 | DO106: 0.9 | DP106: 0.9 | DQ106: 0.9 | DR106: 0.9 | DS106: 0.9 | DT106: 0.9 | DU106: 0.9 | DV106: 0.9 | DW106: 0.9 | DX106: 0.9 | DY106: 0.9 | DZ106: 0.9 | EA106: 0.9 | EB106: 0.9 | EC106: 0.9 | ED106: 0.9 | EE106: 0.9 | EF106: 0.9 | EG106: 0.9 | EH106: 0.9 | EI106: =IFERROR(LOOKUP(EI1,$G$42:$G$48,$I$42:$I$48),0) -> 0.9 | EJ106: 0.9 | EK106: 0.9 | EL106: 0.9 | EM106: 0.9 | EN106: 0.9 | EO106: 0.9 | EP106: 0.9 | EQ106: 0.9 | ER106: 0.9 | ES106: 0.9 | ET106: 0.9 | EU106: 0.9 | EV106: 0.9 | EW106: 0.9 | EX106: 0.9 | EY106: 0.9 | EZ106: 0.9 | FA106: 0.9
D107: Revenue | K107: =K105*K103*K106*3 -> 0 | L107: 0 | M107: 0 | N107: 0 | O107: 0 | P107: 0 | Q107: 0 | R107: 0 | S107: 0 | T107: 0 | U107: 0 | V107: 0 | W107: 0 | X107: 0 | Y107: 0 | Z107: 0 | AA107: 1856400 | AB107: 2042040 | AC107: 2042040 | AD107: 2307240 | AE107: 2307240 | AF107: 2711007 | AG107: 2711007 | AH107: 2804490 | AI107: 2804490 | AJ107: 2804490 | AK107: 2804490 | AL107: 3288480 | AM107: 3288480 | AN107: 3288480 | AO107: 3288480 | AP107: 3394560 | AQ107: =AQ105*AQ103*AQ106*3 -> 3394560 | AR107: 3394560 | AS107: 3394560 | AT107: 3500640 | AU107: 3500640 | AV107: 3500640 | AW107: 3500640 | AX107: 3863698.8 | AY107: 3863698.8 | AZ107: 3863698.8 | BA107: 3863698.8 | BB107: 3977337 | BC107: 3977337 | BD107: 3977337 | BE107: 3977337 | BF107: 4090975.2 | BG107: 4090975.2 | BH107: 4090975.2 | BI107: 4090975.2 | BJ107: 4415580 | BK107: 4415580 | BL107: 4415580 | BM107: 4415580 | BN107: 4534920 | BO107: 0 | BP107: 0 | BQ107: 0 | BR107: 0 | BS107: 0 | BT107: 0 | BU107: 0 | BV107: 0 | BW107: =BW105*BW103*BW106*3 -> 0 | BX107: 0 | BY107: 0 | BZ107: 0 | CA107: 0 | CB107: 0 | CC107: 0 | CD107: 0 | CE107: 0 | CF107: 0 | CG107: 0 | CH107: 0 | CI107: 0 | CJ107: 0 | CK107: 0 | CL107: 0 | CM107: 0 | CN107: 0 | CO107: 0 | CP107: 0 | CQ107: 0 | CR107: 0 | CS107: 0 | CT107: 0 | CU107: 0 | CV107: 0 | CW107: 0 | CX107: 0 | CY107: 0 | CZ107: 0 | DA107: 0 | DB107: 0 | DC107: =DC105*DC103*DC106*3 -> 0 | DD107: 0 | DE107: 0 | DF107: 0 | DG107: 0 | DH107: 0 | DI107: 0 | DJ107: 0 | DK107: 0 | DL107: 0 | DM107: 0 | DN107: 0 | DO107: 0 | DP107: 0 | DQ107: 0 | DR107: 0 | DS107: 0 | DT107: 0 | DU107: 0 | DV107: 0 | DW107: 0 | DX107: 0 | DY107: 0 | DZ107: 0 | EA107: 0 | EB107: 0 | EC107: 0 | ED107: 0 | EE107: 0 | EF107: 0 | EG107: 0 | EH107: 0 | EI107: =EI105*EI103*EI106*3 -> 0 | EJ107: 0 | EK107: 0 | EL107: 0 | EM107: 0 | EN107: 0 | EO107: 0 | EP107: 0 | EQ107: 0 | ER107: 0 | ES107: 0 | ET107: 0 | EU107: 0 | EV107: 0 | EW107: 0 | EX107: 0 | EY107: 0 | EZ107: 0 | FA107: 0
B109: Operating Expenses
C110: Property Tax | E110: % | F110: =F56 -> 0.1 | K110: =+$F$110*K107 -> 0 | L110: =+$F$110*L107 -> 0 | M110: 0 | N110: 0 | O110: 0 | P110: 0 | Q110: 0 | R110: 0 | S110: 0 | T110: 0 | U110: 0 | V110: 0 | W110: 0 | X110: 0 | Y110: 0 | Z110: 0 | AA110: 185640 | AB110: 204204 | AC110: 204204 | AD110: 230724 | AE110: 230724 | AF110: 271100.7 | AG110: 271100.7 | AH110: 280449 | AI110: 280449 | AJ110: 280449 | AK110: 280449 | AL110: 328848 | AM110: 328848 | AN110: 328848 | AO110: 328848 | AP110: 339456 | AQ110: 339456 | AR110: 339456 | AS110: 339456 | AT110: 350064 | AU110: 350064 | AV110: 350064 | AW110: 350064 | AX110: 386369.88 | AY110: 386369.88 | AZ110: 386369.88 | BA110: 386369.88 | BB110: 397733.7 | BC110: 397733.7 | BD110: 397733.7 | BE110: 397733.7 | BF110: 409097.52 | BG110: 409097.52 | BH110: 409097.52 | BI110: 409097.52 | BJ110: 441558 | BK110: 441558 | BL110: 441558 | BM110: 441558 | BN110: 453492 | BO110: 0 | BP110: 0 | BQ110: 0 | BR110: 0 | BS110: 0 | BT110: 0 | BU110: 0 | BV110: 0 | BW110: 0 | BX110: =+$F$110*BX107 -> 0 | BY110: 0 | BZ110: 0 | CA110: 0 | CB110: 0 | CC110: 0 | CD110: 0 | CE110: 0 | CF110: 0 | CG110: 0 | CH110: 0 | CI110: 0 | CJ110: 0 | CK110: 0 | CL110: 0 | CM110: 0 | CN110: 0 | CO110: 0 | CP110: 0 | CQ110: 0 | CR110: 0 | CS110: 0 | CT110: 0 | CU110: 0 | CV110: 0 | CW110: 0 | CX110: 0 | CY110: 0 | CZ110: 0 | DA110: 0 | DB110: 0 | DC110: 0 | DD110: 0 | DE110: 0 | DF110: 0 | DG110: 0 | DH110: 0 | DI110: 0 | DJ110: 0 | DK110: 0 | DL110: 0 | DM110: 0 | DN110: 0 | DO110: 0 | DP110: 0 | DQ110: 0 | DR110: 0 | DS110: 0 | DT110: 0 | DU110: 0 | DV110: 0 | DW110: 0 | DX110: 0 | DY110: 0 | DZ110: 0 | EA110: 0 | EB110: 0 | EC110: 0 | ED110: 0 | EE110: 0 | EF110: 0 | EG110: 0 | EH110: 0 | EI110: 0 | EJ110: =+$F$110*EJ107 -> 0 | EK110: 0 | EL110: 0 | EM110: 0 | EN110: 0 | EO110: 0 | EP110: 0 | EQ110: 0 | ER110: 0 | ES110: 0 | ET110: 0 | EU110: 0 | EV110: 0 | EW110: 0 | EX110: 0 | EY110: 0 | EZ110: 0 | FA110: 0
C111: Utilities w/o inflation | E111: $ per Sqft per mth | F111: =F57 -> 1.5 | K111: =$F$111*K105*K12 -> 0 | L111: 0 | M111: 0 | N111: 0 | O111: 0 | P111: 0 | Q111: 0 | R111: 0 | S111: 0 | T111: 0 | U111: 0 | V111: 0 | W111: 0 | X111: 0 | Y111: 0 | Z111: 0 | AA111: 397800 | AB111: 397800 | AC111: 397800 | AD111: 397800 | AE111: 397800 | AF111: 397800 | AG111: 397800 | AH111: 397800 | AI111: 397800 | AJ111: 397800 | AK111: 397800 | AL111: 397800 | AM111: 397800 | AN111: 397800 | AO111: 397800 | AP111: 397800 | AQ111: =$F$111*AQ105*AQ12 -> 397800 | AR111: 397800 | AS111: 397800 | AT111: 397800 | AU111: 397800 | AV111: 397800 | AW111: 397800 | AX111: 397800 | AY111: 397800 | AZ111: 397800 | BA111: 397800 | BB111: 397800 | BC111: 397800 | BD111: 397800 | BE111: 397800 | BF111: 397800 | BG111: 397800 | BH111: 397800 | BI111: 397800 | BJ111: 397800 | BK111: 397800 | BL111: 397800 | BM111: 397800 | BN111: 397800 | BO111: 0 | BP111: 0 | BQ111: 0 | BR111: 0 | BS111: 0 | BT111: 0 | BU111: 0 | BV111: 0 | BW111: =$F$111*BW105*BW12 -> 0 | BX111: 0 | BY111: 0 | BZ111: 0 | CA111: 0 | CB111: 0 | CC111: 0 | CD111: 0 | CE111: 0 | CF111: 0 | CG111: 0 | CH111: 0 | CI111: 0 | CJ111: 0 | CK111: 0 | CL111: 0 | CM111: 0 | CN111: 0 | CO111: 0 | CP111: 0 | CQ111: 0 | CR111: 0 | CS111: 0 | CT111: 0 | CU111: 0 | CV111: 0 | CW111: 0 | CX111: 0 | CY111: 0 | CZ111: 0 | DA111: 0 | DB111: 0 | DC111: =$F$111*DC105*DC12 -> 0 | DD111: 0 | DE111: 0 | DF111: 0 | DG111: 0 | DH111: 0 | DI111: 0 | DJ111: 0 | DK111: 0 | DL111: 0 | DM111: 0 | DN111: 0 | DO111: 0 | DP111: 0 | DQ111: 0 | DR111: 0 | DS111: 0 | DT111: 0 | DU111: 0 | DV111: 0 | DW111: 0 | DX111: 0 | DY111: 0 | DZ111: 0 | EA111: 0 | EB111: 0 | EC111: 0 | ED111: 0 | EE111: 0 | EF111: 0 | EG111: 0 | EH111: 0 | EI111: =$F$111*EI105*EI12 -> 0 | EJ111: 0 | EK111: 0 | EL111: 0 | EM111: 0 | EN111: 0 | EO111: 0 | EP111: 0 | EQ111: 0 | ER111: 0 | ES111: 0 | ET111: 0 | EU111: 0 | EV111: 0 | EW111: 0 | EX111: 0 | EY111: 0 | EZ111: 0 | FA111: 0
C112: Inflation Rate | E112: Annual Rate | F112: =C38 -> Base inflation | K112: =LOOKUP(K3,33:33,38:38) -> 0.07 | L112: 0.07 | M112: 0.07 | N112: 0.07 | O112: 0.05 | P112: 0.05 | Q112: 0.05 | R112: 0.05 | S112: 0.03 | T112: 0.03 | U112: 0.03 | V112: 0.03 | W112: 0.025 | X112: 0.025 | Y112: 0.025 | Z112: 0.025 | AA112: 0.025 | AB112: 0.025 | AC112: 0.025 | AD112: 0.025 | AE112: 0.025 | AF112: 0.025 | AG112: 0.025 | AH112: 0.025 | AI112: 0.025 | AJ112: 0.025 | AK112: 0.025 | AL112: 0.025 | AM112: 0.025 | AN112: 0.025 | AO112: 0.025 | AP112: 0.025 | AQ112: =LOOKUP(AQ3,33:33,38:38) -> 0.025 | AR112: 0.025 | AS112: 0.025 | AT112: 0.025 | AU112: 0.025 | AV112: 0.025 | AW112: 0.025 | AX112: 0.025 | AY112: 0.025 | AZ112: 0.025 | BA112: 0.025 | BB112: 0.025 | BC112: 0.025 | BD112: 0.025 | BE112: 0.025 | BF112: 0.025 | BG112: 0.025 | BH112: 0.025 | BI112: 0.025 | BJ112: 0.025 | BK112: 0.025 | BL112: 0.025 | BM112: 0.025 | BN112: 0.025 | BO112: 0.025 | BP112: 0.025 | BQ112: 0.025 | BR112: 0.025 | BS112: 0.025 | BT112: 0.025 | BU112: 0.025 | BV112: 0.025 | BW112: =LOOKUP(BW3,33:33,38:38) -> 0.025 | BX112: 0.025 | BY112: 0.025 | BZ112: 0.025 | CA112: 0.025 | CB112: 0.025 | CC112: 0.025 | CD112: 0.025 | CE112: 0.025 | CF112: 0.025 | CG112: 0.025 | CH112: 0.025 | CI112: 0.025 | CJ112: 0.025 | CK112: 0.025 | CL112: 0.025 | CM112: 0.025 | CN112: 0.025 | CO112: 0.025 | CP112: 0.025 | CQ112: 0.025 | CR112: 0.025 | CS112: 0.025 | CT112: 0.025 | CU112: 0.025 | CV112: 0.025 | CW112: 0.025 | CX112: 0.025 | CY112: 0.025 | CZ112: 0.025 | DA112: 0.025 | DB112: 0.025 | DC112: =LOOKUP(DC3,33:33,38:38) -> 0.025 | DD112: 0.025 | DE112: 0.025 | DF112: 0.025 | DG112: 0.025 | DH112: 0.025 | DI112: 0.025 | DJ112: 0.025 | DK112: 0.025 | DL112: 0.025 | DM112: 0.025 | DN112: 0.025 | DO112: 0.025 | DP112: 0.025 | DQ112: 0.025 | DR112: 0.025 | DS112: 0.025 | DT112: 0.025 | DU112: 0.025 | DV112: 0.025 | DW112: 0.025 | DX112: 0.025 | DY112: 0.025 | DZ112: 0.025 | EA112: 0.025 | EB112: 0.025 | EC112: 0.025 | ED112: 0.025 | EE112: 0.025 | EF112: 0.025 | EG112: 0.025 | EH112: 0.025 | EI112: =LOOKUP(EI3,33:33,38:38) -> 0.025 | EJ112: 0.025 | EK112: 0.025 | EL112: 0.025 | EM112: 0.025 | EN112: 0.025 | EO112: 0.025 | EP112: 0.025 | EQ112: 0.025 | ER112: 0.025 | ES112: 0.025 | ET112: 0.025 | EU112: 0.025 | EV112: 0.025 | EW112: 0.025 | EX112: 0.025 | EY112: 0.025 | EZ112: 0.025 | FA112: 0.025
C113: Periodic Inflation Rate | E113: Period per year | F113: =F19 -> 4 | K113: =(1+K112)^(1/$F$113)-1 -> 0.017058525 | L113: =(1+L112)^(1/$F$113)-1 -> 0.017058525 | M113: 0.017058525 | N113: 0.017058525 | O113: 0.01227223443 | P113: 0.01227223443 | Q113: 0.01227223443 | R113: 0.01227223443 | S113: 0.007417071778 | T113: 0.007417071778 | U113: 0.007417071778 | V113: 0.007417071778 | W113: 0.006192246326 | X113: 0.006192246326 | Y113: 0.006192246326 | Z113: 0.006192246326 | AA113: 0.006192246326 | AB113: 0.006192246326 | AC113: 0.006192246326 | AD113: 0.006192246326 | AE113: 0.006192246326 | AF113: 0.006192246326 | AG113: 0.006192246326 | AH113: 0.006192246326 | AI113: 0.006192246326 | AJ113: 0.006192246326 | AK113: 0.006192246326 | AL113: 0.006192246326 | AM113: 0.006192246326 | AN113: 0.006192246326 | AO113: 0.006192246326 | AP113: 0.006192246326 | AQ113: 0.006192246326 | AR113: 0.006192246326 | AS113: 0.006192246326 | AT113: 0.006192246326 | AU113: 0.006192246326 | AV113: 0.006192246326 | AW113: 0.006192246326 | AX113: 0.006192246326 | AY113: 0.006192246326 | AZ113: 0.006192246326 | BA113: 0.006192246326 | BB113: 0.006192246326 | BC113: 0.006192246326 | BD113: 0.006192246326 | BE113: 0.006192246326 | BF113: 0.006192246326 | BG113: 0.006192246326 | BH113: 0.006192246326 | BI113: 0.006192246326 | BJ113: 0.006192246326 | BK113: 0.006192246326 | BL113: 0.006192246326 | BM113: 0.006192246326 | BN113: 0.006192246326 | BO113: 0.006192246326 | BP113: 0.006192246326 | BQ113: 0.006192246326 | BR113: 0.006192246326 | BS113: 0.006192246326 | BT113: 0.006192246326 | BU113: 0.006192246326 | BV113: 0.006192246326 | BW113: 0.006192246326 | BX113: =(1+BX112)^(1/$F$113)-1 -> 0.006192246326 | BY113: 0.006192246326 | BZ113: 0.006192246326 | CA113: 0.006192246326 | CB113: 0.006192246326 | CC113: 0.006192246326 | CD113: 0.006192246326 | CE113: 0.006192246326 | CF113: 0.006192246326 | CG113: 0.006192246326 | CH113: 0.006192246326 | CI113: 0.006192246326 | CJ113: 0.006192246326 | CK113: 0.006192246326 | CL113: 0.006192246326 | CM113: 0.006192246326 | CN113: 0.006192246326 | CO113: 0.006192246326 | CP113: 0.006192246326 | CQ113: 0.006192246326 | CR113: 0.006192246326 | CS113: 0.006192246326 | CT113: 0.006192246326 | CU113: 0.006192246326 | CV113: 0.006192246326 | CW113: 0.006192246326 | CX113: 0.006192246326 | CY113: 0.006192246326 | CZ113: 0.006192246326 | DA113: 0.006192246326 | DB113: 0.006192246326 | DC113: 0.006192246326 | DD113: 0.006192246326 | DE113: 0.006192246326 | DF113: 0.006192246326 | DG113: 0.006192246326 | DH113: 0.006192246326 | DI113: 0.006192246326 | DJ113: 0.006192246326 | DK113: 0.006192246326 | DL113: 0.006192246326 | DM113: 0.006192246326 | DN113: 0.006192246326 | DO113: 0.006192246326 | DP113: 0.006192246326 | DQ113: 0.006192246326 | DR113: 0.006192246326 | DS113: 0.006192246326 | DT113: 0.006192246326 | DU113: 0.006192246326 | DV113: 0.006192246326 | DW113: 0.006192246326 | DX113: 0.006192246326 | DY113: 0.006192246326 | DZ113: 0.006192246326 | EA113: 0.006192246326 | EB113: 0.006192246326 | EC113: 0.006192246326 | ED113: 0.006192246326 | EE113: 0.006192246326 | EF113: 0.006192246326 | EG113: 0.006192246326 | EH113: 0.006192246326 | EI113: 0.006192246326 | EJ113: =(1+EJ112)^(1/$F$113)-1 -> 0.006192246326 | EK113: 0.006192246326 | EL113: 0.006192246326 | EM113: 0.006192246326 | EN113: 0.006192246326 | EO113: 0.006192246326 | EP113: 0.006192246326 | EQ113: 0.006192246326 | ER113: 0.006192246326 | ES113: 0.006192246326 | ET113: 0.006192246326 | EU113: 0.006192246326 | EV113: 0.006192246326 | EW113: 0.006192246326 | EX113: 0.006192246326 | EY113: 0.006192246326 | EZ113: 0.006192246326 | FA113: 0.006192246326
C114: Inflation Index | J114: 1 | K114: =J114*(1+K113*K9) -> 1 | L114: 1 | M114: 1 | N114: 1 | O114: 1.012272234 | P114: 1.024695077 | Q114: 1.037270375 | R114: 1.05 | S114: 1.057787925 | T114: 1.065633614 | U114: 1.073537495 | V114: 1.0815 | W114: 1.088196914 | X114: 1.094935298 | Y114: 1.101715407 | Z114: 1.1085375 | AA114: 1.115401837 | AB114: 1.12230868 | AC114: 1.129258292 | AD114: 1.136250938 | AE114: 1.143286883 | AF114: 1.150366397 | AG114: 1.157489749 | AH114: 1.164657211 | AI114: 1.171869055 | AJ114: 1.179125557 | AK114: 1.186426993 | AL114: 1.193773641 | AM114: 1.201165782 | AN114: 1.208603696 | AO114: 1.216087668 | AP114: 1.223617982 | AQ114: =AP114*(1+AQ113*AQ9) -> 1.231194926 | AR114: 1.238818788 | AS114: 1.24648986 | AT114: 1.254208432 | AU114: 1.261974799 | AV114: 1.269789258 | AW114: 1.277652106 | AX114: 1.285563643 | AY114: 1.293524169 | AZ114: 1.30153399 | BA114: 1.309593409 | BB114: 1.317702734 | BC114: 1.325862274 | BD114: 1.334072339 | BE114: 1.342333244 | BF114: 1.350645302 | BG114: 1.35900883 | BH114: 1.367424148 | BI114: 1.375891575 | BJ114: 1.384411435 | BK114: 1.392984051 | BL114: 1.401609752 | BM114: 1.410288864 | BN114: 1.41902172 | BO114: 1.427808652 | BP114: 1.436649995 | BQ114: 1.445546086 | BR114: 1.454497263 | BS114: 1.463503869 | BT114: 1.472566245 | BU114: 1.481684738 | BV114: 1.490859695 | BW114: =BV114*(1+BW113*BW9) -> 1.500091465 | BX114: 1.509380401 | BY114: 1.518726857 | BZ114: 1.528131187 | CA114: 1.537593752 | CB114: 1.547114911 | CC114: 1.556695028 | CD114: 1.566334467 | CE114: 1.576033596 | CF114: 1.585792784 | CG114: 1.595612404 | CH114: 1.605492829 | CI114: 1.615434436 | CJ114: 1.625437604 | CK114: 1.635502714 | CL114: 1.645630149 | CM114: 1.655820297 | CN114: 1.666073544 | CO114: 1.676390282 | CP114: 1.686770903 | CQ114: 1.697215804 | CR114: 1.707725382 | CS114: 1.718300039 | CT114: 1.728940176 | CU114: 1.739646199 | CV114: 1.750418517 | CW114: 1.76125754 | CX114: 1.77216368 | CY114: 1.783137354 | CZ114: 1.79417898 | DA114: 1.805288978 | DB114: 1.816467772 | DC114: =DB114*(1+DC113*DC9) -> 1.827715788 | DD114: 1.839033454 | DE114: 1.850421203 | DF114: 1.861879466 | DG114: 1.873408683 | DH114: 1.885009291 | DI114: 1.896681733 | DJ114: 1.908426453 | DK114: 1.9202439 | DL114: 1.932134523 | DM114: 1.944098776 | DN114: 1.956137114 | DO114: 1.968249997 | DP114: 1.980437886 | DQ114: 1.992701245 | DR114: 2.005040542 | DS114: 2.017456247 | DT114: 2.029948833 | DU114: 2.042518777 | DV114: 2.055166556 | DW114: 2.067892653 | DX114: 2.080697554 | DY114: 2.093581746 | DZ114: 2.10654572 | EA114: 2.11958997 | EB114: 2.132714993 | EC114: 2.14592129 | ED114: 2.159209363 | EE114: 2.172579719 | EF114: 2.186032868 | EG114: 2.199569322 | EH114: 2.213189597 | EI114: =EH114*(1+EI113*EI9) -> 2.226894212 | EJ114: 2.24068369 | EK114: 2.254558555 | EL114: 2.268519337 | EM114: 2.282566567 | EN114: 2.296700782 | EO114: 2.310922519 | EP114: 2.32523232 | EQ114: 2.339630731 | ER114: 2.354118301 | ES114: 2.368695582 | ET114: 2.383363128 | EU114: 2.3981215 | EV114: 2.412971259 | EW114: 2.427912971 | EX114: 2.442947206 | EY114: 2.458074537 | EZ114: 2.47329554 | FA114: 2.488610796
C115: Utilities w/inflation | K115: =K114*K111 -> 0 | L115: =L114*L111 -> 0 | M115: 0 | N115: 0 | O115: 0 | P115: 0 | Q115: 0 | R115: 0 | S115: 0 | T115: 0 | U115: 0 | V115: 0 | W115: 0 | X115: 0 | Y115: 0 | Z115: 0 | AA115: 443706.8509 | AB115: 446454.393 | AC115: 449218.9486 | AD115: 452000.6229 | AE115: 454799.5221 | AF115: 457615.7528 | AG115: 460449.4223 | AH115: 463300.6385 | AI115: 466169.5102 | AJ115: 469056.1466 | AK115: 471960.6578 | AL115: 474883.1545 | AM115: 477823.7479 | AN115: 480782.5503 | AO115: 483759.6743 | AP115: 486755.2333 | AQ115: 489769.3416 | AR115: 492802.114 | AS115: 495853.6661 | AT115: 498924.1142 | AU115: 502013.5752 | AV115: 505122.1669 | AW115: 508250.0078 | AX115: 511397.217 | AY115: 514563.9146 | AZ115: 517750.2211 | BA115: 520956.258 | BB115: 524182.1474 | BC115: 527428.0124 | BD115: 530693.9766 | BE115: 533980.1644 | BF115: 537286.7011 | BG115: 540613.7127 | BH115: 543961.326 | BI115: 547329.6685 | BJ115: 550718.8687 | BK115: 554129.0556 | BL115: 557560.3592 | BM115: 561012.9102 | BN115: 564486.8404 | BO115: 0 | BP115: 0 | BQ115: 0 | BR115: 0 | BS115: 0 | BT115: 0 | BU115: 0 | BV115: 0 | BW115: 0 | BX115: =BX114*BX111 -> 0 | BY115: 0 | BZ115: 0 | CA115: 0 | CB115: 0 | CC115: 0 | CD115: 0 | CE115: 0 | CF115: 0 | CG115: 0 | CH115: 0 | CI115: 0 | CJ115: 0 | CK115: 0 | CL115: 0 | CM115: 0 | CN115: 0 | CO115: 0 | CP115: 0 | CQ115: 0 | CR115: 0 | CS115: 0 | CT115: 0 | CU115: 0 | CV115: 0 | CW115: 0 | CX115: 0 | CY115: 0 | CZ115: 0 | DA115: 0 | DB115: 0 | DC115: 0 | DD115: 0 | DE115: 0 | DF115: 0 | DG115: 0 | DH115: 0 | DI115: 0 | DJ115: 0 | DK115: 0 | DL115: 0 | DM115: 0 | DN115: 0 | DO115: 0 | DP115: 0 | DQ115: 0 | DR115: 0 | DS115: 0 | DT115: 0 | DU115: 0 | DV115: 0 | DW115: 0 | DX115: 0 | DY115: 0 | DZ115: 0 | EA115: 0 | EB115: 0 | EC115: 0 | ED115: 0 | EE115: 0 | EF115: 0 | EG115: 0 | EH115: 0 | EI115: 0 | EJ115: =EJ114*EJ111 -> 0 | EK115: 0 | EL115: 0 | EM115: 0 | EN115: 0 | EO115: 0 | EP115: 0 | EQ115: 0 | ER115: 0 | ES115: 0 | ET115: 0 | EU115: 0 | EV115: 0 | EW115: 0 | EX115: 0 | EY115: 0 | EZ115: 0 | FA115: 0
C116: Marketing | E116: $ per Sqft per mth | F116: =F58 -> 1.5 | K116: =$F$116*K105*K12 -> 0 | L116: 0 | M116: 0 | N116: 0 | O116: 0 | P116: 0 | Q116: 0 | R116: 0 | S116: 0 | T116: 0 | U116: 0 | V116: 0 | W116: 0 | X116: 0 | Y116: 0 | Z116: 0 | AA116: 397800 | AB116: 397800 | AC116: 397800 | AD116: 397800 | AE116: 397800 | AF116: 397800 | AG116: 397800 | AH116: 397800 | AI116: 397800 | AJ116: 397800 | AK116: 397800 | AL116: 397800 | AM116: 397800 | AN116: 397800 | AO116: 397800 | AP116: 397800 | AQ116: =$F$116*AQ105*AQ12 -> 397800 | AR116: 397800 | AS116: 397800 | AT116: 397800 | AU116: 397800 | AV116: 397800 | AW116: 397800 | AX116: 397800 | AY116: 397800 | AZ116: 397800 | BA116: 397800 | BB116: 397800 | BC116: 397800 | BD116: 397800 | BE116: 397800 | BF116: 397800 | BG116: 397800 | BH116: 397800 | BI116: 397800 | BJ116: 397800 | BK116: 397800 | BL116: 397800 | BM116: 397800 | BN116: 397800 | BO116: 0 | BP116: 0 | BQ116: 0 | BR116: 0 | BS116: 0 | BT116: 0 | BU116: 0 | BV116: 0 | BW116: =$F$116*BW105*BW12 -> 0 | BX116: 0 | BY116: 0 | BZ116: 0 | CA116: 0 | CB116: 0 | CC116: 0 | CD116: 0 | CE116: 0 | CF116: 0 | CG116: 0 | CH116: 0 | CI116: 0 | CJ116: 0 | CK116: 0 | CL116: 0 | CM116: 0 | CN116: 0 | CO116: 0 | CP116: 0 | CQ116: 0 | CR116: 0 | CS116: 0 | CT116: 0 | CU116: 0 | CV116: 0 | CW116: 0 | CX116: 0 | CY116: 0 | CZ116: 0 | DA116: 0 | DB116: 0 | DC116: =$F$116*DC105*DC12 -> 0 | DD116: 0 | DE116: 0 | DF116: 0 | DG116: 0 | DH116: 0 | DI116: 0 | DJ116: 0 | DK116: 0 | DL116: 0 | DM116: 0 | DN116: 0 | DO116: 0 | DP116: 0 | DQ116: 0 | DR116: 0 | DS116: 0 | DT116: 0 | DU116: 0 | DV116: 0 | DW116: 0 | DX116: 0 | DY116: 0 | DZ116: 0 | EA116: 0 | EB116: 0 | EC116: 0 | ED116: 0 | EE116: 0 | EF116: 0 | EG116: 0 | EH116: 0 | EI116: =$F$116*EI105*EI12 -> 0 | EJ116: 0 | EK116: 0 | EL116: 0 | EM116: 0 | EN116: 0 | EO116: 0 | EP116: 0 | EQ116: 0 | ER116: 0 | ES116: 0 | ET116: 0 | EU116: 0 | EV116: 0 | EW116: 0 | EX116: 0 | EY116: 0 | EZ116: 0 | FA116: 0
D117: Total Operating Expenses | K117: =+K110+K115+K116 -> 0 | L117: 0 | M117: 0 | N117: 0 | O117: 0 | P117: 0 | Q117: 0 | R117: 0 | S117: 0 | T117: 0 | U117: 0 | V117: 0 | W117: 0 | X117: 0 | Y117: 0 | Z117: 0 | AA117: 1027146.851 | AB117: 1048458.393 | AC117: 1051222.949 | AD117: 1080524.623 | AE117: 1083323.522 | AF117: 1126516.453 | AG117: 1129350.122 | AH117: 1141549.639 | AI117: 1144418.51 | AJ117: 1147305.147 | AK117: 1150209.658 | AL117: 1201531.154 | AM117: 1204471.748 | AN117: 1207430.55 | AO117: 1210407.674 | AP117: 1224011.233 | AQ117: =+AQ110+AQ115+AQ116 -> 1227025.342 | AR117: 1230058.114 | AS117: 1233109.666 | AT117: 1246788.114 | AU117: 1249877.575 | AV117: 1252986.167 | AW117: 1256114.008 | AX117: 1295567.097 | AY117: 1298733.795 | AZ117: 1301920.101 | BA117: 1305126.138 | BB117: 1319715.847 | BC117: 1322961.712 | BD117: 1326227.677 | BE117: 1329513.864 | BF117: 1344184.221 | BG117: 1347511.233 | BH117: 1350858.846 | BI117: 1354227.189 | BJ117: 1390076.869 | BK117: 1393487.056 | BL117: 1396918.359 | BM117: 1400370.91 | BN117: 1415778.84 | BO117: 0 | BP117: 0 | BQ117: 0 | BR117: 0 | BS117: 0 | BT117: 0 | BU117: 0 | BV117: 0 | BW117: =+BW110+BW115+BW116 -> 0 | BX117: 0 | BY117: 0 | BZ117: 0 | CA117: 0 | CB117: 0 | CC117: 0 | CD117: 0 | CE117: 0 | CF117: 0 | CG117: 0 | CH117: 0 | CI117: 0 | CJ117: 0 | CK117: 0 | CL117: 0 | CM117: 0 | CN117: 0 | CO117: 0 | CP117: 0 | CQ117: 0 | CR117: 0 | CS117: 0 | CT117: 0 | CU117: 0 | CV117: 0 | CW117: 0 | CX117: 0 | CY117: 0 | CZ117: 0 | DA117: 0 | DB117: 0 | DC117: =+DC110+DC115+DC116 -> 0 | DD117: 0 | DE117: 0 | DF117: 0 | DG117: 0 | DH117: 0 | DI117: 0 | DJ117: 0 | DK117: 0 | DL117: 0 | DM117: 0 | DN117: 0 | DO117: 0 | DP117: 0 | DQ117: 0 | DR117: 0 | DS117: 0 | DT117: 0 | DU117: 0 | DV117: 0 | DW117: 0 | DX117: 0 | DY117: 0 | DZ117: 0 | EA117: 0 | EB117: 0 | EC117: 0 | ED117: 0 | EE117: 0 | EF117: 0 | EG117: 0 | EH117: 0 | EI117: =+EI110+EI115+EI116 -> 0 | EJ117: 0 | EK117: 0 | EL117: 0 | EM117: 0 | EN117: 0 | EO117: 0 | EP117: 0 | EQ117: 0 | ER117: 0 | ES117: 0 | ET117: 0 | EU117: 0 | EV117: 0 | EW117: 0 | EX117: 0 | EY117: 0 | EZ117: 0 | FA117: 0
C119: Net Property Income | K119: =K107-K117 -> 0 | L119: 0 | M119: 0 | N119: 0 | O119: 0 | P119: 0 | Q119: 0 | R119: 0 | S119: 0 | T119: 0 | U119: 0 | V119: 0 | W119: 0 | X119: 0 | Y119: 0 | Z119: 0 | AA119: 829253.1491 | AB119: 993581.607 | AC119: 990817.0514 | AD119: 1226715.377 | AE119: 1223916.478 | AF119: 1584490.547 | AG119: 1581656.878 | AH119: 1662940.361 | AI119: 1660071.49 | AJ119: 1657184.853 | AK119: 1654280.342 | AL119: 2086948.846 | AM119: 2084008.252 | AN119: 2081049.45 | AO119: 2078072.326 | AP119: 2170548.767 | AQ119: =AQ107-AQ117 -> 2167534.658 | AR119: 2164501.886 | AS119: 2161450.334 | AT119: 2253851.886 | AU119: 2250762.425 | AV119: 2247653.833 | AW119: 2244525.992 | AX119: 2568131.703 | AY119: 2564965.005 | AZ119: 2561778.699 | BA119: 2558572.662 | BB119: 2657621.153 | BC119: 2654375.288 | BD119: 2651109.323 | BE119: 2647823.136 | BF119: 2746790.979 | BG119: 2743463.967 | BH119: 2740116.354 | BI119: 2736748.011 | BJ119: 3025503.131 | BK119: 3022092.944 | BL119: 3018661.641 | BM119: 3015209.09 | BN119: 3119141.16 | BO119: 0 | BP119: 0 | BQ119: 0 | BR119: 0 | BS119: 0 | BT119: 0 | BU119: 0 | BV119: 0 | BW119: =BW107-BW117 -> 0 | BX119: 0 | BY119: 0 | BZ119: 0 | CA119: 0 | CB119: 0 | CC119: 0 | CD119: 0 | CE119: 0 | CF119: 0 | CG119: 0 | CH119: 0 | CI119: 0 | CJ119: 0 | CK119: 0 | CL119: 0 | CM119: 0 | CN119: 0 | CO119: 0 | CP119: 0 | CQ119: 0 | CR119: 0 | CS119: 0 | CT119: 0 | CU119: 0 | CV119: 0 | CW119: 0 | CX119: 0 | CY119: 0 | CZ119: 0 | DA119: 0 | DB119: 0 | DC119: =DC107-DC117 -> 0 | DD119: 0 | DE119: 0 | DF119: 0 | DG119: 0 | DH119: 0 | DI119: 0 | DJ119: 0 | DK119: 0 | DL119: 0 | DM119: 0 | DN119: 0 | DO119: 0 | DP119: 0 | DQ119: 0 | DR119: 0 | DS119: 0 | DT119: 0 | DU119: 0 | DV119: 0 | DW119: 0 | DX119: 0 | DY119: 0 | DZ119: 0 | EA119: 0 | EB119: 0 | EC119: 0 | ED119: 0 | EE119: 0 | EF119: 0 | EG119: 0 | EH119: 0 | EI119: =EI107-EI117 -> 0 | EJ119: 0 | EK119: 0 | EL119: 0 | EM119: 0 | EN119: 0 | EO119: 0 | EP119: 0 | EQ119: 0 | ER119: 0 | ES119: 0 | ET119: 0 | EU119: 0 | EV119: 0 | EW119: 0 | EX119: 0 | EY119: 0 | EZ119: 0 | FA119: 0
C120: Cap rate | E120: Annual Percent | F120: =F64 -> 0.05 | K120: =$F$120 -> 0.05 | L120: =$F$120 -> 0.05 | M120: 0.05 | N120: 0.05 | O120: 0.05 | P120: 0.05 | Q120: 0.05 | R120: 0.05 | S120: 0.05 | T120: 0.05 | U120: 0.05 | V120: 0.05 | W120: 0.05 | X120: 0.05 | Y120: 0.05 | Z120: 0.05 | AA120: 0.05 | AB120: 0.05 | AC120: 0.05 | AD120: 0.05 | AE120: 0.05 | AF120: 0.05 | AG120: 0.05 | AH120: 0.05 | AI120: 0.05 | AJ120: 0.05 | AK120: 0.05 | AL120: 0.05 | AM120: 0.05 | AN120: 0.05 | AO120: 0.05 | AP120: 0.05 | AQ120: 0.05 | AR120: 0.05 | AS120: 0.05 | AT120: 0.05 | AU120: 0.05 | AV120: 0.05 | AW120: 0.05 | AX120: 0.05 | AY120: 0.05 | AZ120: 0.05 | BA120: 0.05 | BB120: 0.05 | BC120: 0.05 | BD120: 0.05 | BE120: 0.05 | BF120: 0.05 | BG120: 0.05 | BH120: 0.05 | BI120: 0.05 | BJ120: 0.05 | BK120: 0.05 | BL120: 0.05 | BM120: 0.05 | BN120: 0.05 | BO120: 0.05 | BP120: 0.05 | BQ120: 0.05 | BR120: 0.05 | BS120: 0.05 | BT120: 0.05 | BU120: 0.05 | BV120: 0.05 | BW120: 0.05 | BX120: =$F$120 -> 0.05 | BY120: 0.05 | BZ120: 0.05 | CA120: 0.05 | CB120: 0.05 | CC120: 0.05 | CD120: 0.05 | CE120: 0.05 | CF120: 0.05 | CG120: 0.05 | CH120: 0.05 | CI120: 0.05 | CJ120: 0.05 | CK120: 0.05 | CL120: 0.05 | CM120: 0.05 | CN120: 0.05 | CO120: 0.05 | CP120: 0.05 | CQ120: 0.05 | CR120: 0.05 | CS120: 0.05 | CT120: 0.05 | CU120: 0.05 | CV120: 0.05 | CW120: 0.05 | CX120: 0.05 | CY120: 0.05 | CZ120: 0.05 | DA120: 0.05 | DB120: 0.05 | DC120: 0.05 | DD120: 0.05 | DE120: 0.05 | DF120: 0.05 | DG120: 0.05 | DH120: 0.05 | DI120: 0.05 | DJ120: 0.05 | DK120: 0.05 | DL120: 0.05 | DM120: 0.05 | DN120: 0.05 | DO120: 0.05 | DP120: 0.05 | DQ120: 0.05 | DR120: 0.05 | DS120: 0.05 | DT120: 0.05 | DU120: 0.05 | DV120: 0.05 | DW120: 0.05 | DX120: 0.05 | DY120: 0.05 | DZ120: 0.05 | EA120: 0.05 | EB120: 0.05 | EC120: 0.05 | ED120: 0.05 | EE120: 0.05 | EF120: 0.05 | EG120: 0.05 | EH120: 0.05 | EI120: 0.05 | EJ120: =$F$120 -> 0.05 | EK120: 0.05 | EL120: 0.05 | EM120: 0.05 | EN120: 0.05 | EO120: 0.05 | EP120: 0.05 | EQ120: 0.05 | ER120: 0.05 | ES120: 0.05 | ET120: 0.05 | EU120: 0.05 | EV120: 0.05 | EW120: 0.05 | EX120: 0.05 | EY120: 0.05 | EZ120: 0.05 | FA120: 0.05
C121: Exit Proceeds | K121: =K119/K120*K10*$F$19 -> 0 | L121: 0 | M121: 0 | N121: 0 | O121: 0 | P121: 0 | Q121: 0 | R121: 0 | S121: 0 | T121: 0 | U121: 0 | V121: 0 | W121: 0 | X121: 0 | Y121: 0 | Z121: 0 | AA121: 0 | AB121: 0 | AC121: 0 | AD121: 0 | AE121: 0 | AF121: 0 | AG121: 0 | AH121: 0 | AI121: 0 | AJ121: 0 | AK121: 0 | AL121: 0 | AM121: 0 | AN121: 0 | AO121: 0 | AP121: 0 | AQ121: =AQ119/AQ120*AQ10*$F$19 -> 0 | AR121: 0 | AS121: 0 | AT121: 0 | AU121: 0 | AV121: 0 | AW121: 0 | AX121: 0 | AY121: 0 | AZ121: 0 | BA121: 0 | BB121: 0 | BC121: 0 | BD121: 0 | BE121: 0 | BF121: 0 | BG121: 0 | BH121: 0 | BI121: 0 | BJ121: 0 | BK121: 0 | BL121: 0 | BM121: 0 | BN121: 249531292.8 | BO121: 0 | BP121: 0 | BQ121: 0 | BR121: 0 | BS121: 0 | BT121: 0 | BU121: 0 | BV121: 0 | BW121: =BW119/BW120*BW10*$F$19 -> 0 | BX121: 0 | BY121: 0 | BZ121: 0 | CA121: 0 | CB121: 0 | CC121: 0 | CD121: 0 | CE121: 0 | CF121: 0 | CG121: 0 | CH121: 0 | CI121: 0 | CJ121: 0 | CK121: 0 | CL121: 0 | CM121: 0 | CN121: 0 | CO121: 0 | CP121: 0 | CQ121: 0 | CR121: 0 | CS121: 0 | CT121: 0 | CU121: 0 | CV121: 0 | CW121: 0 | CX121: 0 | CY121: 0 | CZ121: 0 | DA121: 0 | DB121: 0 | DC121: =DC119/DC120*DC10*$F$19 -> 0 | DD121: 0 | DE121: 0 | DF121: 0 | DG121: 0 | DH121: 0 | DI121: 0 | DJ121: 0 | DK121: 0 | DL121: 0 | DM121: 0 | DN121: 0 | DO121: 0 | DP121: 0 | DQ121: 0 | DR121: 0 | DS121: 0 | DT121: 0 | DU121: 0 | DV121: 0 | DW121: 0 | DX121: 0 | DY121: 0 | DZ121: 0 | EA121: 0 | EB121: 0 | EC121: 0 | ED121: 0 | EE121: 0 | EF121: 0 | EG121: 0 | EH121: 0 | EI121: =EI119/EI120*EI10*$F$19 -> 0 | EJ121: 0 | EK121: 0 | EL121: 0 | EM121: 0 | EN121: 0 | EO121: 0 | EP121: 0 | EQ121: 0 | ER121: 0 | ES121: 0 | ET121: 0 | EU121: 0 | EV121: 0 | EW121: 0 | EX121: 0 | EY121: 0 | EZ121: 0 | FA121: 0
C123: Initial Capital Expenditure
D124: Total Cost | F124: NLA | G124: =NLA -> 88400 | H124: PDE | I124: =F31 -> 720 | K124: =$I$124*$G$124 -> 63648000 | L124: =$I$124*$G$124 -> 63648000 | M124: 63648000 | N124: 63648000 | O124: 63648000 | P124: 63648000 | Q124: 63648000 | R124: 63648000 | S124: 63648000 | T124: 63648000 | U124: 63648000 | V124: 63648000 | W124: 63648000 | X124: 63648000 | Y124: 63648000 | Z124: 63648000 | AA124: 63648000 | AB124: 63648000 | AC124: 63648000 | AD124: 63648000 | AE124: 63648000 | AF124: 63648000 | AG124: 63648000 | AH124: 63648000 | AI124: 63648000 | AJ124: 63648000 | AK124: 63648000 | AL124: 63648000 | AM124: 63648000 | AN124: 63648000 | AO124: 63648000 | AP124: 63648000 | AQ124: 63648000 | AR124: 63648000 | AS124: 63648000 | AT124: 63648000 | AU124: 63648000 | AV124: 63648000 | AW124: 63648000 | AX124: 63648000 | AY124: 63648000 | AZ124: 63648000 | BA124: 63648000 | BB124: 63648000 | BC124: 63648000 | BD124: 63648000 | BE124: 63648000 | BF124: 63648000 | BG124: 63648000 | BH124: 63648000 | BI124: 63648000 | BJ124: 63648000 | BK124: 63648000 | BL124: 63648000 | BM124: 63648000 | BN124: 63648000 | BO124: 63648000 | BP124: 63648000 | BQ124: 63648000 | BR124: 63648000 | BS124: 63648000 | BT124: 63648000 | BU124: 63648000 | BV124: 63648000 | BW124: 63648000 | BX124: =$I$124*$G$124 -> 63648000 | BY124: 63648000 | BZ124: 63648000 | CA124: 63648000 | CB124: 63648000 | CC124: 63648000 | CD124: 63648000 | CE124: 63648000 | CF124: 63648000 | CG124: 63648000 | CH124: 63648000 | CI124: 63648000 | CJ124: 63648000 | CK124: 63648000 | CL124: 63648000 | CM124: 63648000 | CN124: 63648000 | CO124: 63648000 | CP124: 63648000 | CQ124: 63648000 | CR124: 63648000 | CS124: 63648000 | CT124: 63648000 | CU124: 63648000 | CV124: 63648000 | CW124: 63648000 | CX124: 63648000 | CY124: 63648000 | CZ124: 63648000 | DA124: 63648000 | DB124: 63648000 | DC124: 63648000 | DD124: 63648000 | DE124: 63648000 | DF124: 63648000 | DG124: 63648000 | DH124: 63648000 | DI124: 63648000 | DJ124: 63648000 | DK124: 63648000 | DL124: 63648000 | DM124: 63648000 | DN124: 63648000 | DO124: 63648000 | DP124: 63648000 | DQ124: 63648000 | DR124: 63648000 | DS124: 63648000 | DT124: 63648000 | DU124: 63648000 | DV124: 63648000 | DW124: 63648000 | DX124: 63648000 | DY124: 63648000 | DZ124: 63648000 | EA124: 63648000 | EB124: 63648000 | EC124: 63648000 | ED124: 63648000 | EE124: 63648000 | EF124: 63648000 | EG124: 63648000 | EH124: 63648000 | EI124: 63648000 | EJ124: =$I$124*$G$124 -> 63648000 | EK124: 63648000 | EL124: 63648000 | EM124: 63648000 | EN124: 63648000 | EO124: 63648000 | EP124: 63648000 | EQ124: 63648000 | ER124: 63648000 | ES124: 63648000 | ET124: 63648000 | EU124: 63648000 | EV124: 63648000 | EW124: 63648000 | EX124: 63648000 | EY124: 63648000 | EZ124: 63648000 | FA124: 63648000
D126: Normal Distribution | E126: Mean | F126: =F61 -> 8 | G126: Deviation | H126: =F62 -> 6 | K126: =NORMDIST(K13,$F$126,$H$126,0)*K5 -> 0.03366644759 | L126: 0.04032845409 | M126: 0.04698531257 | N126: 0.05324133425 | O126: 0.05867755446 | P126: 0.06289720462 | Q126: 0.06557328602 | R126: 0.06649038007 | S126: 0.06557328602 | T126: 0.06289720462 | U126: 0.05867755446 | V126: 0.05324133425 | W126: 0.04698531257 | X126: 0.04032845409 | Y126: 0.03366644759 | Z126: 0.02733501245 | AA126: 0 | AB126: 0 | AC126: 0 | AD126: 0 | AE126: 0 | AF126: 0 | AG126: 0 | AH126: 0 | AI126: 0 | AJ126: 0 | AK126: 0 | AL126: 0 | AM126: 0 | AN126: 0 | AO126: 0 | AP126: 0 | AQ126: =NORMDIST(AQ13,$F$126,$H$126,0)*AQ5 -> 0 | AR126: 0 | AS126: 0 | AT126: 0 | AU126: 0 | AV126: 0 | AW126: 0 | AX126: 0 | AY126: 0 | AZ126: 0 | BA126: 0 | BB126: 0 | BC126: 0 | BD126: 0 | BE126: 0 | BF126: 0 | BG126: 0 | BH126: 0 | BI126: 0 | BJ126: 0 | BK126: 0 | BL126: 0 | BM126: 0 | BN126: 0 | BO126: 0 | BP126: 0 | BQ126: 0 | BR126: 0 | BS126: 0 | BT126: 0 | BU126: 0 | BV126: 0 | BW126: =NORMDIST(BW13,$F$126,$H$126,0)*BW5 -> 0 | BX126: 0 | BY126: 0 | BZ126: 0 | CA126: 0 | CB126: 0 | CC126: 0 | CD126: 0 | CE126: 0 | CF126: 0 | CG126: 0 | CH126: 0 | CI126: 0 | CJ126: 0 | CK126: 0 | CL126: 0 | CM126: 0 | CN126: 0 | CO126: 0 | CP126: 0 | CQ126: 0 | CR126: 0 | CS126: 0 | CT126: 0 | CU126: 0 | CV126: 0 | CW126: 0 | CX126: 0 | CY126: 0 | CZ126: 0 | DA126: 0 | DB126: 0 | DC126: =NORMDIST(DC13,$F$126,$H$126,0)*DC5 -> 0 | DD126: 0 | DE126: 0 | DF126: 0 | DG126: 0 | DH126: 0 | DI126: 0 | DJ126: 0 | DK126: 0 | DL126: 0 | DM126: 0 | DN126: 0 | DO126: 0 | DP126: 0 | DQ126: 0 | DR126: 0 | DS126: 0 | DT126: 0 | DU126: 0 | DV126: 0 | DW126: 0 | DX126: 0 | DY126: 0 | DZ126: 0 | EA126: 0 | EB126: 0 | EC126: 0 | ED126: 0 | EE126: 0 | EF126: 0 | EG126: 0 | EH126: 0 | EI126: =NORMDIST(EI13,$F$126,$H$126,0)*EI5 -> 0 | EJ126: 0 | EK126: 0 | EL126: 0 | EM126: 0 | EN126: 0 | EO126: 0 | EP126: 0 | EQ126: 0 | ER126: 0 | ES126: 0 | ET126: 0 | EU126: 0 | EV126: 0 | EW126: 0 | EX126: 0 | EY126: 0 | EZ126: 0 | FA126: 0
D127: S-curve | I127: =SUM(K127:FA127) -> 1 | J127: =I127=1 -> TRUE | K127: =K126/SUM($K$126:$FA$126) -> 0.0412293754 | L127: =L126/SUM($K$126:$FA$126) -> 0.04938795423 | M127: 0.05754022858 | N127: 0.06520162101 | O127: 0.07185904939 | P127: 0.07702661391 | Q127: 0.08030385795 | R127: 0.08142697065 | S127: 0.08030385795 | T127: 0.07702661391 | U127: 0.07185904939 | V127: 0.06520162101 | W127: 0.05754022858 | X127: 0.04938795423 | Y127: 0.0412293754 | Z127: 0.03347562841 | AA127: 0 | AB127: 0 | AC127: 0 | AD127: 0 | AE127: 0 | AF127: 0 | AG127: 0 | AH127: 0 | AI127: 0 | AJ127: 0 | AK127: 0 | AL127: 0 | AM127: 0 | AN127: 0 | AO127: 0 | AP127: 0 | AQ127: 0 | AR127: 0 | AS127: 0 | AT127: 0 | AU127: 0 | AV127: 0 | AW127: 0 | AX127: 0 | AY127: 0 | AZ127: 0 | BA127: 0 | BB127: 0 | BC127: 0 | BD127: 0 | BE127: 0 | BF127: 0 | BG127: 0 | BH127: 0 | BI127: 0 | BJ127: 0 | BK127: 0 | BL127: 0 | BM127: 0 | BN127: 0 | BO127: 0 | BP127: 0 | BQ127: 0 | BR127: 0 | BS127: 0 | BT127: 0 | BU127: 0 | BV127: 0 | BW127: 0 | BX127: =BX126/SUM($K$126:$FA$126) -> 0 | BY127: 0 | BZ127: 0 | CA127: 0 | CB127: 0 | CC127: 0 | CD127: 0 | CE127: 0 | CF127: 0 | CG127: 0 | CH127: 0 | CI127: 0 | CJ127: 0 | CK127: 0 | CL127: 0 | CM127: 0 | CN127: 0 | CO127: 0 | CP127: 0 | CQ127: 0 | CR127: 0 | CS127: 0 | CT127: 0 | CU127: 0 | CV127: 0 | CW127: 0 | CX127: 0 | CY127: 0 | CZ127: 0 | DA127: 0 | DB127: 0 | DC127: 0 | DD127: 0 | DE127: 0 | DF127: 0 | DG127: 0 | DH127: 0 | DI127: 0 | DJ127: 0 | DK127: 0 | DL127: 0 | DM127: 0 | DN127: 0 | DO127: 0 | DP127: 0 | DQ127: 0 | DR127: 0 | DS127: 0 | DT127: 0 | DU127: 0 | DV127: 0 | DW127: 0 | DX127: 0 | DY127: 0 | DZ127: 0 | EA127: 0 | EB127: 0 | EC127: 0 | ED127: 0 | EE127: 0 | EF127: 0 | EG127: 0 | EH127: 0 | EI127: 0 | EJ127: =EJ126/SUM($K$126:$FA$126) -> 0 | EK127: 0 | EL127: 0 | EM127: 0 | EN127: 0 | EO127: 0 | EP127: 0 | EQ127: 0 | ER127: 0 | ES127: 0 | ET127: 0 | EU127: 0 | EV127: 0 | EW127: 0 | EX127: 0 | EY127: 0 | EZ127: 0 | FA127: 0
D128: Construction Expenditure | K128: =K124*K127 -> 2624167.285 | L128: =L124*L127 -> 3143444.511 | M128: 3662320.469 | N128: 4149952.774 | O128: 4573684.775 | P128: 4902589.922 | Q128: 5111179.951 | R128: 5182663.828 | S128: 5111179.951 | T128: 4902589.922 | U128: 4573684.775 | V128: 4149952.774 | W128: 3662320.469 | X128: 3143444.511 | Y128: 2624167.285 | Z128: 2130656.797 | AA128: 0 | AB128: 0 | AC128: 0 | AD128: 0 | AE128: 0 | AF128: 0 | AG128: 0 | AH128: 0 | AI128: 0 | AJ128: 0 | AK128: 0 | AL128: 0 | AM128: 0 | AN128: 0 | AO128: 0 | AP128: 0 | AQ128: 0 | AR128: 0 | AS128: 0 | AT128: 0 | AU128: 0 | AV128: 0 | AW128: 0 | AX128: 0 | AY128: 0 | AZ128: 0 | BA128: 0 | BB128: 0 | BC128: 0 | BD128: 0 | BE128: 0 | BF128: 0 | BG128: 0 | BH128: 0 | BI128: 0 | BJ128: 0 | BK128: 0 | BL128: 0 | BM128: 0 | BN128: 0 | BO128: 0 | BP128: 0 | BQ128: 0 | BR128: 0 | BS128: 0 | BT128: 0 | BU128: 0 | BV128: 0 | BW128: 0 | BX128: =BX124*BX127 -> 0 | BY128: 0 | BZ128: 0 | CA128: 0 | CB128: 0 | CC128: 0 | CD128: 0 | CE128: 0 | CF128: 0 | CG128: 0 | CH128: 0 | CI128: 0 | CJ128: 0 | CK128: 0 | CL128: 0 | CM128: 0 | CN128: 0 | CO128: 0 | CP128: 0 | CQ128: 0 | CR128: 0 | CS128: 0 | CT128: 0 | CU128: 0 | CV128: 0 | CW128: 0 | CX128: 0 | CY128: 0 | CZ128: 0 | DA128: 0 | DB128: 0 | DC128: 0 | DD128: 0 | DE128: 0 | DF128: 0 | DG128: 0 | DH128: 0 | DI128: 0 | DJ128: 0 | DK128: 0 | DL128: 0 | DM128: 0 | DN128: 0 | DO128: 0 | DP128: 0 | DQ128: 0 | DR128: 0 | DS128: 0 | DT128: 0 | DU128: 0 | DV128: 0 | DW128: 0 | DX128: 0 | DY128: 0 | DZ128: 0 | EA128: 0 | EB128: 0 | EC128: 0 | ED128: 0 | EE128: 0 | EF128: 0 | EG128: 0 | EH128: 0 | EI128: 0 | EJ128: =EJ124*EJ127 -> 0 | EK128: 0 | EL128: 0 | EM128: 0 | EN128: 0 | EO128: 0 | EP128: 0 | EQ128: 0 | ER128: 0 | ES128: 0 | ET128: 0 | EU128: 0 | EV128: 0 | EW128: 0 | EX128: 0 | EY128: 0 | EZ128: 0 | FA128: 0
D129: Land Cost | F129: NLA | G129: =G124 -> 88400 | H129: PDE | I129: =F30 -> 480 | K129: =I129*G129 -> 42432000
D130: Total Project Dev Expenditure | K130: =K129+K128 -> 45056167.29 | L130: =L129+L128 -> 3143444.511 | M130: 3662320.469 | N130: 4149952.774 | O130: 4573684.775 | P130: 4902589.922 | Q130: 5111179.951 | R130: 5182663.828 | S130: 5111179.951 | T130: 4902589.922 | U130: 4573684.775 | V130: 4149952.774 | W130: 3662320.469 | X130: 3143444.511 | Y130: 2624167.285 | Z130: 2130656.797 | AA130: 0 | AB130: 0 | AC130: 0 | AD130: 0 | AE130: 0 | AF130: 0 | AG130: 0 | AH130: 0 | AI130: 0 | AJ130: 0 | AK130: 0 | AL130: 0 | AM130: 0 | AN130: 0 | AO130: 0 | AP130: 0 | AQ130: 0 | AR130: 0 | AS130: 0 | AT130: 0 | AU130: 0 | AV130: 0 | AW130: 0 | AX130: 0 | AY130: 0 | AZ130: 0 | BA130: 0 | BB130: 0 | BC130: 0 | BD130: 0 | BE130: 0 | BF130: 0 | BG130: 0 | BH130: 0 | BI130: 0 | BJ130: 0 | BK130: 0 | BL130: 0 | BM130: 0 | BN130: 0 | BO130: 0 | BP130: 0 | BQ130: 0 | BR130: 0 | BS130: 0 | BT130: 0 | BU130: 0 | BV130: 0 | BW130: 0 | BX130: =BX129+BX128 -> 0 | BY130: 0 | BZ130: 0 | CA130: 0 | CB130: 0 | CC130: 0 | CD130: 0 | CE130: 0 | CF130: 0 | CG130: 0 | CH130: 0 | CI130: 0 | CJ130: 0 | CK130: 0 | CL130: 0 | CM130: 0 | CN130: 0 | CO130: 0 | CP130: 0 | CQ130: 0 | CR130: 0 | CS130: 0 | CT130: 0 | CU130: 0 | CV130: 0 | CW130: 0 | CX130: 0 | CY130: 0 | CZ130: 0 | DA130: 0 | DB130: 0 | DC130: 0 | DD130: 0 | DE130: 0 | DF130: 0 | DG130: 0 | DH130: 0 | DI130: 0 | DJ130: 0 | DK130: 0 | DL130: 0 | DM130: 0 | DN130: 0 | DO130: 0 | DP130: 0 | DQ130: 0 | DR130: 0 | DS130: 0 | DT130: 0 | DU130: 0 | DV130: 0 | DW130: 0 | DX130: 0 | DY130: 0 | DZ130: 0 | EA130: 0 | EB130: 0 | EC130: 0 | ED130: 0 | EE130: 0 | EF130: 0 | EG130: 0 | EH130: 0 | EI130: 0 | EJ130: =EJ129+EJ128 -> 0 | EK130: 0 | EL130: 0 | EM130: 0 | EN130: 0 | EO130: 0 | EP130: 0 | EQ130: 0 | ER130: 0 | ES130: 0 | ET130: 0 | EU130: 0 | EV130: 0 | EW130: 0 | EX130: 0 | EY130: 0 | EZ130: 0 | FA130: 0
C132: Net Pre-tax Cash Flow | K132: =K107-K117-K130+K121 -> -45056167.29 | L132: -3143444.511 | M132: -3662320.469 | N132: -4149952.774 | O132: -4573684.775 | P132: -4902589.922 | Q132: -5111179.951 | R132: -5182663.828 | S132: -5111179.951 | T132: -4902589.922 | U132: -4573684.775 | V132: -4149952.774 | W132: -3662320.469 | X132: -3143444.511 | Y132: -2624167.285 | Z132: -2130656.797 | AA132: 829253.1491 | AB132: 993581.607 | AC132: 990817.0514 | AD132: 1226715.377 | AE132: 1223916.478 | AF132: 1584490.547 | AG132: 1581656.878 | AH132: 1662940.361 | AI132: 1660071.49 | AJ132: 1657184.853 | AK132: 1654280.342 | AL132: 2086948.846 | AM132: 2084008.252 | AN132: 2081049.45 | AO132: 2078072.326 | AP132: 2170548.767 | AQ132: =AQ107-AQ117-AQ130+AQ121 -> 2167534.658 | AR132: 2164501.886 | AS132: 2161450.334 | AT132: 2253851.886 | AU132: 2250762.425 | AV132: 2247653.833 | AW132: 2244525.992 | AX132: 2568131.703 | AY132: 2564965.005 | AZ132: 2561778.699 | BA132: 2558572.662 | BB132: 2657621.153 | BC132: 2654375.288 | BD132: 2651109.323 | BE132: 2647823.136 | BF132: 2746790.979 | BG132: 2743463.967 | BH132: 2740116.354 | BI132: 2736748.011 | BJ132: 3025503.131 | BK132: 3022092.944 | BL132: 3018661.641 | BM132: 3015209.09 | BN132: 252650433.9 | BO132: 0 | BP132: 0 | BQ132: 0 | BR132: 0 | BS132: 0 | BT132: 0 | BU132: 0 | BV132: 0 | BW132: =BW107-BW117-BW130+BW121 -> 0 | BX132: 0 | BY132: 0 | BZ132: 0 | CA132: 0 | CB132: 0 | CC132: 0 | CD132: 0 | CE132: 0 | CF132: 0 | CG132: 0 | CH132: 0 | CI132: 0 | CJ132: 0 | CK132: 0 | CL132: 0 | CM132: 0 | CN132: 0 | CO132: 0 | CP132: 0 | CQ132: 0 | CR132: 0 | CS132: 0 | CT132: 0 | CU132: 0 | CV132: 0 | CW132: 0 | CX132: 0 | CY132: 0 | CZ132: 0 | DA132: 0 | DB132: 0 | DC132: =DC107-DC117-DC130+DC121 -> 0 | DD132: 0 | DE132: 0 | DF132: 0 | DG132: 0 | DH132: 0 | DI132: 0 | DJ132: 0 | DK132: 0 | DL132: 0 | DM132: 0 | DN132: 0 | DO132: 0 | DP132: 0 | DQ132: 0 | DR132: 0 | DS132: 0 | DT132: 0 | DU132: 0 | DV132: 0 | DW132: 0 | DX132: 0 | DY132: 0 | DZ132: 0 | EA132: 0 | EB132: 0 | EC132: 0 | ED132: 0 | EE132: 0 | EF132: 0 | EG132: 0 | EH132: 0 | EI132: =EI107-EI117-EI130+EI121 -> 0 | EJ132: 0 | EK132: 0 | EL132: 0 | EM132: 0 | EN132: 0 | EO132: 0 | EP132: 0 | EQ132: 0 | ER132: 0 | ES132: 0 | ET132: 0 | EU132: 0 | EV132: 0 | EW132: 0 | EX132: 0 | EY132: 0 | EZ132: 0 | FA132: 0
C134: IRR | E134: XIRR | F134: =XIRR(K132:FA132,K2:FA2) -> 0.1073176086 | G134: Annual | H134: =(1+K134)^$F$19-1 -> 0.1074097696 | J134: Q IRR | K134: =IRR(132:132,0.01) -> 0.02583399649
C135: NPV | E135: WACC | F135: =F95 -> 0.05 | G135: =(1+F135)^(1/4)-1 -> 0.01227223443
E136: NPV | F136: =NPV(G135,132:132) -> 81336923.45 | G136: XNPV | H136: =XNPV(F135,K132:FA132,K2:FA2) -> 82248343.26
C137: Payback Period
D138: Accumulated Cashflow | K138: =K132+J138 -> -45056167.29 | L138: -48199611.8 | M138: -51861932.26 | N138: -56011885.04 | O138: -60585569.81 | P138: -65488159.74 | Q138: -70599339.69 | R138: -75782003.52 | S138: -80893183.47 | T138: -85795773.39 | U138: -90369458.16 | V138: -94519410.94 | W138: -98181731.41 | X138: -101325175.9 | Y138: -103949343.2 | Z138: -106080000 | AA138: -105250746.9 | AB138: -104257165.2 | AC138: -103266348.2 | AD138: -102039632.8 | AE138: -100815716.3 | AF138: -99231225.79 | AG138: -97649568.91 | AH138: -95986628.55 | AI138: -94326557.06 | AJ138: -92669372.21 | AK138: -91015091.87 | AL138: -88928143.02 | AM138: -86844134.77 | AN138: -84763085.32 | AO138: -82685012.99 | AP138: -80514464.23 | AQ138: =AQ132+AP138 -> -78346929.57 | AR138: -76182427.68 | AS138: -74020977.35 | AT138: -71767125.46 | AU138: -69516363.04 | AV138: -67268709.2 | AW138: -65024183.21 | AX138: -62456051.51 | AY138: -59891086.5 | AZ138: -57329307.8 | BA138: -54770735.14 | BB138: -52113113.99 | BC138: -49458738.7 | BD138: -46807629.38 | BE138: -44159806.24 | BF138: -41413015.26 | BG138: -38669551.3 | BH138: -35929434.94 | BI138: -33192686.93 | BJ138: -30167183.8 | BK138: -27145090.86 | BL138: -24126429.22 | BM138: -21111220.13 | BN138: 231539213.8 | BO138: 231539213.8 | BP138: 231539213.8 | BQ138: 231539213.8 | BR138: 231539213.8 | BS138: 231539213.8 | BT138: 231539213.8 | BU138: 231539213.8 | BV138: 231539213.8 | BW138: =BW132+BV138 -> 231539213.8 | BX138: 231539213.8 | BY138: 231539213.8 | BZ138: 231539213.8 | CA138: 231539213.8 | CB138: 231539213.8 | CC138: 231539213.8 | CD138: 231539213.8 | CE138: 231539213.8 | CF138: 231539213.8 | CG138: 231539213.8 | CH138: 231539213.8 | CI138: 231539213.8 | CJ138: 231539213.8 | CK138: 231539213.8 | CL138: 231539213.8 | CM138: 231539213.8 | CN138: 231539213.8 | CO138: 231539213.8 | CP138: 231539213.8 | CQ138: 231539213.8 | CR138: 231539213.8 | CS138: 231539213.8 | CT138: 231539213.8 | CU138: 231539213.8 | CV138: 231539213.8 | CW138: 231539213.8 | CX138: 231539213.8 | CY138: 231539213.8 | CZ138: 231539213.8 | DA138: 231539213.8 | DB138: 231539213.8 | DC138: =DC132+DB138 -> 231539213.8 | DD138: 231539213.8 | DE138: 231539213.8 | DF138: 231539213.8 | DG138: 231539213.8 | DH138: 231539213.8 | DI138: 231539213.8 | DJ138: 231539213.8 | DK138: 231539213.8 | DL138: 231539213.8 | DM138: 231539213.8 | DN138: 231539213.8 | DO138: 231539213.8 | DP138: 231539213.8 | DQ138: 231539213.8 | DR138: 231539213.8 | DS138: 231539213.8 | DT138: 231539213.8 | DU138: 231539213.8 | DV138: 231539213.8 | DW138: 231539213.8 | DX138: 231539213.8 | DY138: 231539213.8 | DZ138: 231539213.8 | EA138: 231539213.8 | EB138: 231539213.8 | EC138: 231539213.8 | ED138: 231539213.8 | EE138: 231539213.8 | EF138: 231539213.8 | EG138: 231539213.8 | EH138: 231539213.8 | EI138: =EI132+EH138 -> 231539213.8 | EJ138: 231539213.8 | EK138: 231539213.8 | EL138: 231539213.8 | EM138: 231539213.8 | EN138: 231539213.8 | EO138: 231539213.8 | EP138: 231539213.8 | EQ138: 231539213.8 | ER138: 231539213.8 | ES138: 231539213.8 | ET138: 231539213.8 | EU138: 231539213.8 | EV138: 231539213.8 | EW138: 231539213.8 | EX138: 231539213.8 | EY138: 231539213.8 | EZ138: 231539213.8 | FA138: 231539213.8
D139: Payback Date | E139: Index | F139: =INDEX(2:2,F140) -> 2026-09-30 | G139: =INDEX(K2:FA2, G140) -> 2026-09-30
D140: Match of Zero Cashflows | E140: Match | F140: =MATCH(0,138:138) -> 65 | G140: =MATCH(0,K138:FA138) -> 55 | K140: =COLUMN() -> 11 | L140: =COLUMN() -> 12 | M140: =COLUMN() -> 13 | N140: =COLUMN() -> 14 | O140: =COLUMN() -> 15 | P140: =COLUMN() -> 16 | Q140: =COLUMN() -> 17 | R140: =COLUMN() -> 18 | S140: =COLUMN() -> 19 | T140: =COLUMN() -> 20 | U140: =COLUMN() -> 21 | V140: =COLUMN() -> 22 | W140: =COLUMN() -> 23 | X140: =COLUMN() -> 24 | Y140: =COLUMN() -> 25 | Z140: =COLUMN() -> 26 | AA140: =COLUMN() -> 27 | AB140: =COLUMN() -> 28 | AC140: =COLUMN() -> 29 | AD140: =COLUMN() -> 30 | AE140: =COLUMN() -> 31 | AF140: =COLUMN() -> 32 | AG140: =COLUMN() -> 33 | AH140: =COLUMN() -> 34 | AI140: =COLUMN() -> 35 | AJ140: =COLUMN() -> 36 | AK140: =COLUMN() -> 37 | AL140: =COLUMN() -> 38 | AM140: =COLUMN() -> 39 | AN140: =COLUMN() -> 40 | AO140: =COLUMN() -> 41 | AP140: =COLUMN() -> 42 | AQ140: =COLUMN() -> 43 | AR140: =COLUMN() -> 44 | AS140: =COLUMN() -> 45 | AT140: =COLUMN() -> 46 | AU140: =COLUMN() -> 47 | AV140: =COLUMN() -> 48 | AW140: =COLUMN() -> 49 | AX140: =COLUMN() -> 50 | AY140: =COLUMN() -> 51 | AZ140: =COLUMN() -> 52 | BA140: =COLUMN() -> 53 | BB140: =COLUMN() -> 54 | BC140: =COLUMN() -> 55 | BD140: =COLUMN() -> 56 | BE140: =COLUMN() -> 57 | BF140: =COLUMN() -> 58 | BG140: =COLUMN() -> 59 | BH140: =COLUMN() -> 60 | BI140: =COLUMN() -> 61 | BJ140: =COLUMN() -> 62 | BK140: =COLUMN() -> 63 | BL140: =COLUMN() -> 64 | BM140: =COLUMN() -> 65 | BN140: =COLUMN() -> 66 | BO140: =COLUMN() -> 67 | BP140: =COLUMN() -> 68 | BQ140: =COLUMN() -> 69 | BR140: =COLUMN() -> 70 | BS140: =COLUMN() -> 71 | BT140: =COLUMN() -> 72 | BU140: =COLUMN() -> 73 | BV140: =COLUMN() -> 74 | BW140: =COLUMN() -> 75 | BX140: =COLUMN() -> 76 | BY140: =COLUMN() -> 77 | BZ140: =COLUMN() -> 78 | CA140: =COLUMN() -> 79 | CB140: =COLUMN() -> 80 | CC140: =COLUMN() -> 81 | CD140: =COLUMN() -> 82 | CE140: =COLUMN() -> 83 | CF140: =COLUMN() -> 84 | CG140: =COLUMN() -> 85 | CH140: =COLUMN() -> 86 | CI140: =COLUMN() -> 87 | CJ140: =COLUMN() -> 88 | CK140: =COLUMN() -> 89 | CL140: =COLUMN() -> 90 | CM140: =COLUMN() -> 91 | CN140: =COLUMN() -> 92 | CO140: =COLUMN() -> 93 | CP140: =COLUMN() -> 94 | CQ140: =COLUMN() -> 95 | CR140: =COLUMN() -> 96 | CS140: =COLUMN() -> 97 | CT140: =COLUMN() -> 98 | CU140: =COLUMN() -> 99 | CV140: =COLUMN() -> 100 | CW140: =COLUMN() -> 101 | CX140: =COLUMN() -> 102 | CY140: =COLUMN() -> 103 | CZ140: =COLUMN() -> 104 | DA140: =COLUMN() -> 105 | DB140: =COLUMN() -> 106 | DC140: =COLUMN() -> 107 | DD140: =COLUMN() -> 108 | DE140: =COLUMN() -> 109 | DF140: =COLUMN() -> 110 | DG140: =COLUMN() -> 111 | DH140: =COLUMN() -> 112 | DI140: =COLUMN() -> 113 | DJ140: =COLUMN() -> 114 | DK140: =COLUMN() -> 115 | DL140: =COLUMN() -> 116 | DM140: =COLUMN() -> 117 | DN140: =COLUMN() -> 118 | DO140: =COLUMN() -> 119 | DP140: =COLUMN() -> 120 | DQ140: =COLUMN() -> 121 | DR140: =COLUMN() -> 122 | DS140: =COLUMN() -> 123 | DT140: =COLUMN() -> 124 | DU140: =COLUMN() -> 125 | DV140: =COLUMN() -> 126 | DW140: =COLUMN() -> 127 | DX140: =COLUMN() -> 128 | DY140: =COLUMN() -> 129 | DZ140: =COLUMN() -> 130 | EA140: =COLUMN() -> 131 | EB140: =COLUMN() -> 132 | EC140: =COLUMN() -> 133 | ED140: =COLUMN() -> 134 | EE140: =COLUMN() -> 135 | EF140: =COLUMN() -> 136 | EG140: =COLUMN() -> 137 | EH140: =COLUMN() -> 138 | EI140: =COLUMN() -> 139 | EJ140: =COLUMN() -> 140 | EK140: =COLUMN() -> 141 | EL140: =COLUMN() -> 142 | EM140: =COLUMN() -> 143 | EN140: =COLUMN() -> 144 | EO140: =COLUMN() -> 145 | EP140: =COLUMN() -> 146 | EQ140: =COLUMN() -> 147 | ER140: =COLUMN() -> 148 | ES140: =COLUMN() -> 149 | ET140: =COLUMN() -> 150 | EU140: =COLUMN() -> 151 | EV140: =COLUMN() -> 152 | EW140: =COLUMN() -> 153 | EX140: =COLUMN() -> 154 | EY140: =COLUMN() -> 155 | EZ140: =COLUMN() -> 156 | FA140: =COLUMN() -> 157
A142: Tax & Capital Allowance
C143: Base for capital allowance | E143: % | F143: =F67 -> 0.15 | K143: =$F$143*K128 -> 393625.0928 | L143: 471516.6766 | M143: 549348.0703 | N143: 622492.9161 | O143: 686052.7163 | P143: 735388.4883 | Q143: 766676.9926 | R143: 777399.5742 | S143: 766676.9926 | T143: 735388.4883 | U143: 686052.7163 | V143: 622492.9161 | W143: 549348.0703 | X143: 471516.6766 | Y143: 393625.0928 | Z143: 319598.5196 | AA143: 0 | AB143: 0 | AC143: 0 | AD143: 0 | AE143: 0 | AF143: 0 | AG143: 0 | AH143: 0 | AI143: 0 | AJ143: 0 | AK143: 0 | AL143: 0 | AM143: 0 | AN143: 0 | AO143: 0 | AP143: 0 | AQ143: =$F$143*AQ128 -> 0 | AR143: 0 | AS143: 0 | AT143: 0 | AU143: 0 | AV143: 0 | AW143: 0 | AX143: 0 | AY143: 0 | AZ143: 0 | BA143: 0 | BB143: 0 | BC143: 0 | BD143: 0 | BE143: 0 | BF143: 0 | BG143: 0 | BH143: 0 | BI143: 0 | BJ143: 0 | BK143: 0 | BL143: 0 | BM143: 0 | BN143: 0 | BO143: 0 | BP143: 0 | BQ143: 0 | BR143: 0 | BS143: 0 | BT143: 0 | BU143: 0 | BV143: 0 | BW143: =$F$143*BW128 -> 0 | BX143: 0 | BY143: 0 | BZ143: 0 | CA143: 0 | CB143: 0 | CC143: 0 | CD143: 0 | CE143: 0 | CF143: 0 | CG143: 0 | CH143: 0 | CI143: 0 | CJ143: 0 | CK143: 0 | CL143: 0 | CM143: 0 | CN143: 0 | CO143: 0 | CP143: 0 | CQ143: 0 | CR143: 0 | CS143: 0 | CT143: 0 | CU143: 0 | CV143: 0 | CW143: 0 | CX143: 0 | CY143: 0 | CZ143: 0 | DA143: 0 | DB143: 0 | DC143: =$F$143*DC128 -> 0 | DD143: 0 | DE143: 0 | DF143: 0 | DG143: 0 | DH143: 0 | DI143: 0 | DJ143: 0 | DK143: 0 | DL143: 0 | DM143: 0 | DN143: 0 | DO143: 0 | DP143: 0 | DQ143: 0 | DR143: 0 | DS143: 0 | DT143: 0 | DU143: 0 | DV143: 0 | DW143: 0 | DX143: 0 | DY143: 0 | DZ143: 0 | EA143: 0 | EB143: 0 | EC143: 0 | ED143: 0 | EE143: 0 | EF143: 0 | EG143: 0 | EH143: 0 | EI143: =$F$143*EI128 -> 0 | EJ143: 0 | EK143: 0 | EL143: 0 | EM143: 0 | EN143: 0 | EO143: 0 | EP143: 0 | EQ143: 0 | ER143: 0 | ES143: 0 | ET143: 0 | EU143: 0 | EV143: 0 | EW143: 0 | EX143: 0 | EY143: 0 | EZ143: 0 | FA143: 0
C144: Plant balance
D145: Opening bal | K145: =J147 -> 0 | L145: =K147 -> 393625.0928 | M145: 865141.7694 | N145: 1414489.84 | O145: 2036982.756 | P145: 2723035.472 | Q145: 3458423.96 | R145: 4225100.953 | S145: 5002500.527 | T145: 5769177.52 | U145: 6504566.008 | V145: 7190618.725 | W145: 7813111.641 | X145: 8362459.711 | Y145: 8833976.388 | Z145: 9227601.48 | AA145: 9547200 | AB145: 9547200 | AC145: 9547200 | AD145: 9547200 | AE145: 9547200 | AF145: 9547200 | AG145: 9547200 | AH145: 9547200 | AI145: 9547200 | AJ145: 9547200 | AK145: 9547200 | AL145: 9547200 | AM145: 9547200 | AN145: 9547200 | AO145: 9547200 | AP145: 9547200 | AQ145: 9547200 | AR145: 9547200 | AS145: 9547200 | AT145: 9547200 | AU145: 9547200 | AV145: 9547200 | AW145: 9547200 | AX145: 9547200 | AY145: 9547200 | AZ145: 9547200 | BA145: 9547200 | BB145: 9547200 | BC145: 9547200 | BD145: 9547200 | BE145: 9547200 | BF145: 9547200 | BG145: 9547200 | BH145: 9547200 | BI145: 9547200 | BJ145: 9547200 | BK145: 9547200 | BL145: 9547200 | BM145: 9547200 | BN145: 9547200 | BO145: 9547200 | BP145: 9547200 | BQ145: 9547200 | BR145: 9547200 | BS145: 9547200 | BT145: 9547200 | BU145: 9547200 | BV145: 9547200 | BW145: 9547200 | BX145: =BW147 -> 9547200 | BY145: 9547200 | BZ145: 9547200 | CA145: 9547200 | CB145: 9547200 | CC145: 9547200 | CD145: 9547200 | CE145: 9547200 | CF145: 9547200 | CG145: 9547200 | CH145: 9547200 | CI145: 9547200 | CJ145: 9547200 | CK145: 9547200 | CL145: 9547200 | CM145: 9547200 | CN145: 9547200 | CO145: 9547200 | CP145: 9547200 | CQ145: 9547200 | CR145: 9547200 | CS145: 9547200 | CT145: 9547200 | CU145: 9547200 | CV145: 9547200 | CW145: 9547200 | CX145: 9547200 | CY145: 9547200 | CZ145: 9547200 | DA145: 9547200 | DB145: 9547200 | DC145: 9547200 | DD145: 9547200 | DE145: 9547200 | DF145: 9547200 | DG145: 9547200 | DH145: 9547200 | DI145: 9547200 | DJ145: 9547200 | DK145: 9547200 | DL145: 9547200 | DM145: 9547200 | DN145: 9547200 | DO145: 9547200 | DP145: 9547200 | DQ145: 9547200 | DR145: 9547200 | DS145: 9547200 | DT145: 9547200 | DU145: 9547200 | DV145: 9547200 | DW145: 9547200 | DX145: 9547200 | DY145: 9547200 | DZ145: 9547200 | EA145: 9547200 | EB145: 9547200 | EC145: 9547200 | ED145: 9547200 | EE145: 9547200 | EF145: 9547200 | EG145: 9547200 | EH145: 9547200 | EI145: 9547200 | EJ145: =EI147 -> 9547200 | EK145: 9547200 | EL145: 9547200 | EM145: 9547200 | EN145: 9547200 | EO145: 9547200 | EP145: 9547200 | EQ145: 9547200 | ER145: 9547200 | ES145: 9547200 | ET145: 9547200 | EU145: 9547200 | EV145: 9547200 | EW145: 9547200 | EX145: 9547200 | EY145: 9547200 | EZ145: 9547200 | FA145: 9547200
D146: Addition | K146: =K143 -> 393625.0928 | L146: =L143 -> 471516.6766 | M146: 549348.0703 | N146: 622492.9161 | O146: 686052.7163 | P146: 735388.4883 | Q146: 766676.9926 | R146: 777399.5742 | S146: 766676.9926 | T146: 735388.4883 | U146: 686052.7163 | V146: 622492.9161 | W146: 549348.0703 | X146: 471516.6766 | Y146: 393625.0928 | Z146: 319598.5196 | AA146: 0 | AB146: 0 | AC146: 0 | AD146: 0 | AE146: 0 | AF146: 0 | AG146: 0 | AH146: 0 | AI146: 0 | AJ146: 0 | AK146: 0 | AL146: 0 | AM146: 0 | AN146: 0 | AO146: 0 | AP146: 0 | AQ146: 0 | AR146: 0 | AS146: 0 | AT146: 0 | AU146: 0 | AV146: 0 | AW146: 0 | AX146: 0 | AY146: 0 | AZ146: 0 | BA146: 0 | BB146: 0 | BC146: 0 | BD146: 0 | BE146: 0 | BF146: 0 | BG146: 0 | BH146: 0 | BI146: 0 | BJ146: 0 | BK146: 0 | BL146: 0 | BM146: 0 | BN146: 0 | BO146: 0 | BP146: 0 | BQ146: 0 | BR146: 0 | BS146: 0 | BT146: 0 | BU146: 0 | BV146: 0 | BW146: 0 | BX146: =BX143 -> 0 | BY146: 0 | BZ146: 0 | CA146: 0 | CB146: 0 | CC146: 0 | CD146: 0 | CE146: 0 | CF146: 0 | CG146: 0 | CH146: 0 | CI146: 0 | CJ146: 0 | CK146: 0 | CL146: 0 | CM146: 0 | CN146: 0 | CO146: 0 | CP146: 0 | CQ146: 0 | CR146: 0 | CS146: 0 | CT146: 0 | CU146: 0 | CV146: 0 | CW146: 0 | CX146: 0 | CY146: 0 | CZ146: 0 | DA146: 0 | DB146: 0 | DC146: 0 | DD146: 0 | DE146: 0 | DF146: 0 | DG146: 0 | DH146: 0 | DI146: 0 | DJ146: 0 | DK146: 0 | DL146: 0 | DM146: 0 | DN146: 0 | DO146: 0 | DP146: 0 | DQ146: 0 | DR146: 0 | DS146: 0 | DT146: 0 | DU146: 0 | DV146: 0 | DW146: 0 | DX146: 0 | DY146: 0 | DZ146: 0 | EA146: 0 | EB146: 0 | EC146: 0 | ED146: 0 | EE146: 0 | EF146: 0 | EG146: 0 | EH146: 0 | EI146: 0 | EJ146: =EJ143 -> 0 | EK146: 0 | EL146: 0 | EM146: 0 | EN146: 0 | EO146: 0 | EP146: 0 | EQ146: 0 | ER146: 0 | ES146: 0 | ET146: 0 | EU146: 0 | EV146: 0 | EW146: 0 | EX146: 0 | EY146: 0 | EZ146: 0 | FA146: 0
D147: Closing balance | K147: =SUM(K145:K146) -> 393625.0928 | L147: =SUM(L145:L146) -> 865141.7694 | M147: 1414489.84 | N147: 2036982.756 | O147: 2723035.472 | P147: 3458423.96 | Q147: 4225100.953 | R147: 5002500.527 | S147: 5769177.52 | T147: 6504566.008 | U147: 7190618.725 | V147: 7813111.641 | W147: 8362459.711 | X147: 8833976.388 | Y147: 9227601.48 | Z147: 9547200 | AA147: 9547200 | AB147: 9547200 | AC147: 9547200 | AD147: 9547200 | AE147: 9547200 | AF147: 9547200 | AG147: 9547200 | AH147: 9547200 | AI147: 9547200 | AJ147: 9547200 | AK147: 9547200 | AL147: 9547200 | AM147: 9547200 | AN147: 9547200 | AO147: 9547200 | AP147: 9547200 | AQ147: 9547200 | AR147: 9547200 | AS147: 9547200 | AT147: 9547200 | AU147: 9547200 | AV147: 9547200 | AW147: 9547200 | AX147: 9547200 | AY147: 9547200 | AZ147: 9547200 | BA147: 9547200 | BB147: 9547200 | BC147: 9547200 | BD147: 9547200 | BE147: 9547200 | BF147: 9547200 | BG147: 9547200 | BH147: 9547200 | BI147: 9547200 | BJ147: 9547200 | BK147: 9547200 | BL147: 9547200 | BM147: 9547200 | BN147: 9547200 | BO147: 9547200 | BP147: 9547200 | BQ147: 9547200 | BR147: 9547200 | BS147: 9547200 | BT147: 9547200 | BU147: 9547200 | BV147: 9547200 | BW147: 9547200 | BX147: =SUM(BX145:BX146) -> 9547200 | BY147: 9547200 | BZ147: 9547200 | CA147: 9547200 | CB147: 9547200 | CC147: 9547200 | CD147: 9547200 | CE147: 9547200 | CF147: 9547200 | CG147: 9547200 | CH147: 9547200 | CI147: 9547200 | CJ147: 9547200 | CK147: 9547200 | CL147: 9547200 | CM147: 9547200 | CN147: 9547200 | CO147: 9547200 | CP147: 9547200 | CQ147: 9547200 | CR147: 9547200 | CS147: 9547200 | CT147: 9547200 | CU147: 9547200 | CV147: 9547200 | CW147: 9547200 | CX147: 9547200 | CY147: 9547200 | CZ147: 9547200 | DA147: 9547200 | DB147: 9547200 | DC147: 9547200 | DD147: 9547200 | DE147: 9547200 | DF147: 9547200 | DG147: 9547200 | DH147: 9547200 | DI147: 9547200 | DJ147: 9547200 | DK147: 9547200 | DL147: 9547200 | DM147: 9547200 | DN147: 9547200 | DO147: 9547200 | DP147: 9547200 | DQ147: 9547200 | DR147: 9547200 | DS147: 9547200 | DT147: 9547200 | DU147: 9547200 | DV147: 9547200 | DW147: 9547200 | DX147: 9547200 | DY147: 9547200 | DZ147: 9547200 | EA147: 9547200 | EB147: 9547200 | EC147: 9547200 | ED147: 9547200 | EE147: 9547200 | EF147: 9547200 | EG147: 9547200 | EH147: 9547200 | EI147: 9547200 | EJ147: =SUM(EJ145:EJ146) -> 9547200 | EK147: 9547200 | EL147: 9547200 | EM147: 9547200 | EN147: 9547200 | EO147: 9547200 | EP147: 9547200 | EQ147: 9547200 | ER147: 9547200 | ES147: 9547200 | ET147: 9547200 | EU147: 9547200 | EV147: 9547200 | EW147: 9547200 | EX147: 9547200 | EY147: 9547200 | EZ147: 9547200 | FA147: 9547200
D149: Depreciation rate | E149: Years | F149: =F68 -> 5 | G149: Periodic Rate | H149: =1/(F149*F19) -> 0.05 | K149: =$H$149 -> 0.05 | L149: =$H$149 -> 0.05 | M149: 0.05 | N149: 0.05 | O149: 0.05 | P149: 0.05 | Q149: 0.05 | R149: 0.05 | S149: 0.05 | T149: 0.05 | U149: 0.05 | V149: 0.05 | W149: 0.05 | X149: 0.05 | Y149: 0.05 | Z149: 0.05 | AA149: 0.05 | AB149: 0.05 | AC149: 0.05 | AD149: 0.05 | AE149: 0.05 | AF149: 0.05 | AG149: 0.05 | AH149: 0.05 | AI149: 0.05 | AJ149: 0.05 | AK149: 0.05 | AL149: 0.05 | AM149: 0.05 | AN149: 0.05 | AO149: 0.05 | AP149: 0.05 | AQ149: 0.05 | AR149: 0.05 | AS149: 0.05 | AT149: 0.05 | AU149: 0.05 | AV149: 0.05 | AW149: 0.05 | AX149: 0.05 | AY149: 0.05 | AZ149: 0.05 | BA149: 0.05 | BB149: 0.05 | BC149: 0.05 | BD149: 0.05 | BE149: 0.05 | BF149: 0.05 | BG149: 0.05 | BH149: 0.05 | BI149: 0.05 | BJ149: 0.05 | BK149: 0.05 | BL149: 0.05 | BM149: 0.05 | BN149: 0.05 | BO149: 0.05 | BP149: 0.05 | BQ149: 0.05 | BR149: 0.05 | BS149: 0.05 | BT149: 0.05 | BU149: 0.05 | BV149: 0.05 | BW149: 0.05 | BX149: =$H$149 -> 0.05 | BY149: 0.05 | BZ149: 0.05 | CA149: 0.05 | CB149: 0.05 | CC149: 0.05 | CD149: 0.05 | CE149: 0.05 | CF149: 0.05 | CG149: 0.05 | CH149: 0.05 | CI149: 0.05 | CJ149: 0.05 | CK149: 0.05 | CL149: 0.05 | CM149: 0.05 | CN149: 0.05 | CO149: 0.05 | CP149: 0.05 | CQ149: 0.05 | CR149: 0.05 | CS149: 0.05 | CT149: 0.05 | CU149: 0.05 | CV149: 0.05 | CW149: 0.05 | CX149: 0.05 | CY149: 0.05 | CZ149: 0.05 | DA149: 0.05 | DB149: 0.05 | DC149: 0.05 | DD149: 0.05 | DE149: 0.05 | DF149: 0.05 | DG149: 0.05 | DH149: 0.05 | DI149: 0.05 | DJ149: 0.05 | DK149: 0.05 | DL149: 0.05 | DM149: 0.05 | DN149: 0.05 | DO149: 0.05 | DP149: 0.05 | DQ149: 0.05 | DR149: 0.05 | DS149: 0.05 | DT149: 0.05 | DU149: 0.05 | DV149: 0.05 | DW149: 0.05 | DX149: 0.05 | DY149: 0.05 | DZ149: 0.05 | EA149: 0.05 | EB149: 0.05 | EC149: 0.05 | ED149: 0.05 | EE149: 0.05 | EF149: 0.05 | EG149: 0.05 | EH149: 0.05 | EI149: 0.05 | EJ149: =$H$149 -> 0.05 | EK149: 0.05 | EL149: 0.05 | EM149: 0.05 | EN149: 0.05 | EO149: 0.05 | EP149: 0.05 | EQ149: 0.05 | ER149: 0.05 | ES149: 0.05 | ET149: 0.05 | EU149: 0.05 | EV149: 0.05 | EW149: 0.05 | EX149: 0.05 | EY149: 0.05 | EZ149: 0.05 | FA149: 0.05
D150: Depreciation exp | K150: =MIN(K149*K145*K6,J152) -> 0 | L150: 0 | M150: 0 | N150: 0 | O150: 0 | P150: 0 | Q150: 0 | R150: 0 | S150: 0 | T150: 0 | U150: 0 | V150: 0 | W150: 0 | X150: 0 | Y150: 0 | Z150: 0 | AA150: 477360 | AB150: 477360 | AC150: 477360 | AD150: 477360 | AE150: 477360 | AF150: 477360 | AG150: 477360 | AH150: 477360 | AI150: 477360 | AJ150: 477360 | AK150: 477360 | AL150: 477360 | AM150: 477360 | AN150: 477360 | AO150: 477360 | AP150: 477360 | AQ150: =MIN(AQ149*AQ145*AQ6,AP152) -> 477360 | AR150: 477360 | AS150: 477360 | AT150: 477360 | AU150: 0 | AV150: 0 | AW150: 0 | AX150: 0 | AY150: 0 | AZ150: 0 | BA150: 0 | BB150: 0 | BC150: 0 | BD150: 0 | BE150: 0 | BF150: 0 | BG150: 0 | BH150: 0 | BI150: 0 | BJ150: 0 | BK150: 0 | BL150: 0 | BM150: 0 | BN150: 0 | BO150: 0 | BP150: 0 | BQ150: 0 | BR150: 0 | BS150: 0 | BT150: 0 | BU150: 0 | BV150: 0 | BW150: =MIN(BW149*BW145*BW6,BV152) -> 0 | BX150: 0 | BY150: 0 | BZ150: 0 | CA150: 0 | CB150: 0 | CC150: 0 | CD150: 0 | CE150: 0 | CF150: 0 | CG150: 0 | CH150: 0 | CI150: 0 | CJ150: 0 | CK150: 0 | CL150: 0 | CM150: 0 | CN150: 0 | CO150: 0 | CP150: 0 | CQ150: 0 | CR150: 0 | CS150: 0 | CT150: 0 | CU150: 0 | CV150: 0 | CW150: 0 | CX150: 0 | CY150: 0 | CZ150: 0 | DA150: 0 | DB150: 0 | DC150: =MIN(DC149*DC145*DC6,DB152) -> 0 | DD150: 0 | DE150: 0 | DF150: 0 | DG150: 0 | DH150: 0 | DI150: 0 | DJ150: 0 | DK150: 0 | DL150: 0 | DM150: 0 | DN150: 0 | DO150: 0 | DP150: 0 | DQ150: 0 | DR150: 0 | DS150: 0 | DT150: 0 | DU150: 0 | DV150: 0 | DW150: 0 | DX150: 0 | DY150: 0 | DZ150: 0 | EA150: 0 | EB150: 0 | EC150: 0 | ED150: 0 | EE150: 0 | EF150: 0 | EG150: 0 | EH150: 0 | EI150: =MIN(EI149*EI145*EI6,EH152) -> 0 | EJ150: 0 | EK150: 0 | EL150: 0 | EM150: 0 | EN150: 0 | EO150: 0 | EP150: 0 | EQ150: 0 | ER150: 0 | ES150: 0 | ET150: 0 | EU150: 0 | EV150: 0 | EW150: 0 | EX150: 0 | EY150: 0 | EZ150: 0 | FA150: 0
D151: Accumulated depreciation | K151: =J151+K150 -> 0 | L151: 0 | M151: 0 | N151: 0 | O151: 0 | P151: 0 | Q151: 0 | R151: 0 | S151: 0 | T151: 0 | U151: 0 | V151: 0 | W151: 0 | X151: 0 | Y151: 0 | Z151: 0 | AA151: 477360 | AB151: 954720 | AC151: 1432080 | AD151: 1909440 | AE151: 2386800 | AF151: 2864160 | AG151: 3341520 | AH151: 3818880 | AI151: 4296240 | AJ151: 4773600 | AK151: 5250960 | AL151: 5728320 | AM151: 6205680 | AN151: 6683040 | AO151: 7160400 | AP151: 7637760 | AQ151: =AP151+AQ150 -> 8115120 | AR151: 8592480 | AS151: 9069840 | AT151: 9547200 | AU151: 9547200 | AV151: 9547200 | AW151: 9547200 | AX151: 9547200 | AY151: 9547200 | AZ151: 9547200 | BA151: 9547200 | BB151: 9547200 | BC151: 9547200 | BD151: 9547200 | BE151: 9547200 | BF151: 9547200 | BG151: 9547200 | BH151: 9547200 | BI151: 9547200 | BJ151: 9547200 | BK151: 9547200 | BL151: 9547200 | BM151: 9547200 | BN151: 9547200 | BO151: 9547200 | BP151: 9547200 | BQ151: 9547200 | BR151: 9547200 | BS151: 9547200 | BT151: 9547200 | BU151: 9547200 | BV151: 9547200 | BW151: =BV151+BW150 -> 9547200 | BX151: 9547200 | BY151: 9547200 | BZ151: 9547200 | CA151: 9547200 | CB151: 9547200 | CC151: 9547200 | CD151: 9547200 | CE151: 9547200 | CF151: 9547200 | CG151: 9547200 | CH151: 9547200 | CI151: 9547200 | CJ151: 9547200 | CK151: 9547200 | CL151: 9547200 | CM151: 9547200 | CN151: 9547200 | CO151: 9547200 | CP151: 9547200 | CQ151: 9547200 | CR151: 9547200 | CS151: 9547200 | CT151: 9547200 | CU151: 9547200 | CV151: 9547200 | CW151: 9547200 | CX151: 9547200 | CY151: 9547200 | CZ151: 9547200 | DA151: 9547200 | DB151: 9547200 | DC151: =DB151+DC150 -> 9547200 | DD151: 9547200 | DE151: 9547200 | DF151: 9547200 | DG151: 9547200 | DH151: 9547200 | DI151: 9547200 | DJ151: 9547200 | DK151: 9547200 | DL151: 9547200 | DM151: 9547200 | DN151: 9547200 | DO151: 9547200 | DP151: 9547200 | DQ151: 9547200 | DR151: 9547200 | DS151: 9547200 | DT151: 9547200 | DU151: 9547200 | DV151: 9547200 | DW151: 9547200 | DX151: 9547200 | DY151: 9547200 | DZ151: 9547200 | EA151: 9547200 | EB151: 9547200 | EC151: 9547200 | ED151: 9547200 | EE151: 9547200 | EF151: 9547200 | EG151: 9547200 | EH151: 9547200 | EI151: =EH151+EI150 -> 9547200 | EJ151: 9547200 | EK151: 9547200 | EL151: 9547200 | EM151: 9547200 | EN151: 9547200 | EO151: 9547200 | EP151: 9547200 | EQ151: 9547200 | ER151: 9547200 | ES151: 9547200 | ET151: 9547200 | EU151: 9547200 | EV151: 9547200 | EW151: 9547200 | EX151: 9547200 | EY151: 9547200 | EZ151: 9547200 | FA151: 9547200
D152: Net Plant | K152: =K147-K151 -> 393625.0928 | L152: 865141.7694 | M152: 1414489.84 | N152: 2036982.756 | O152: 2723035.472 | P152: 3458423.96 | Q152: 4225100.953 | R152: 5002500.527 | S152: 5769177.52 | T152: 6504566.008 | U152: 7190618.725 | V152: 7813111.641 | W152: 8362459.711 | X152: 8833976.388 | Y152: 9227601.48 | Z152: 9547200 | AA152: 9069840 | AB152: 8592480 | AC152: 8115120 | AD152: 7637760 | AE152: 7160400 | AF152: 6683040 | AG152: 6205680 | AH152: 5728320 | AI152: 5250960 | AJ152: 4773600 | AK152: 4296240 | AL152: 3818880 | AM152: 3341520 | AN152: 2864160 | AO152: 2386800 | AP152: 1909440 | AQ152: =AQ147-AQ151 -> 1432080 | AR152: 954720 | AS152: 477360 | AT152: 0 | AU152: 0 | AV152: 0 | AW152: 0 | AX152: 0 | AY152: 0 | AZ152: 0 | BA152: 0 | BB152: 0 | BC152: 0 | BD152: 0 | BE152: 0 | BF152: 0 | BG152: 0 | BH152: 0 | BI152: 0 | BJ152: 0 | BK152: 0 | BL152: 0 | BM152: 0 | BN152: 0 | BO152: 0 | BP152: 0 | BQ152: 0 | BR152: 0 | BS152: 0 | BT152: 0 | BU152: 0 | BV152: 0 | BW152: =BW147-BW151 -> 0 | BX152: 0 | BY152: 0 | BZ152: 0 | CA152: 0 | CB152: 0 | CC152: 0 | CD152: 0 | CE152: 0 | CF152: 0 | CG152: 0 | CH152: 0 | CI152: 0 | CJ152: 0 | CK152: 0 | CL152: 0 | CM152: 0 | CN152: 0 | CO152: 0 | CP152: 0 | CQ152: 0 | CR152: 0 | CS152: 0 | CT152: 0 | CU152: 0 | CV152: 0 | CW152: 0 | CX152: 0 | CY152: 0 | CZ152: 0 | DA152: 0 | DB152: 0 | DC152: =DC147-DC151 -> 0 | DD152: 0 | DE152: 0 | DF152: 0 | DG152: 0 | DH152: 0 | DI152: 0 | DJ152: 0 | DK152: 0 | DL152: 0 | DM152: 0 | DN152: 0 | DO152: 0 | DP152: 0 | DQ152: 0 | DR152: 0 | DS152: 0 | DT152: 0 | DU152: 0 | DV152: 0 | DW152: 0 | DX152: 0 | DY152: 0 | DZ152: 0 | EA152: 0 | EB152: 0 | EC152: 0 | ED152: 0 | EE152: 0 | EF152: 0 | EG152: 0 | EH152: 0 | EI152: =EI147-EI151 -> 0 | EJ152: 0 | EK152: 0 | EL152: 0 | EM152: 0 | EN152: 0 | EO152: 0 | EP152: 0 | EQ152: 0 | ER152: 0 | ES152: 0 | ET152: 0 | EU152: 0 | EV152: 0 | EW152: 0 | EX152: 0 | EY152: 0 | EZ152: 0 | FA152: 0
D154: Test | H154: =AND(K154:FA154) -> TRUE | K154: =K152>=0 -> TRUE | L154: =L152>=0 -> TRUE | M154: TRUE | N154: TRUE | O154: TRUE | P154: TRUE | Q154: TRUE | R154: TRUE | S154: TRUE | T154: TRUE | U154: TRUE | V154: TRUE | W154: TRUE | X154: TRUE | Y154: TRUE | Z154: TRUE | AA154: TRUE | AB154: TRUE | AC154: TRUE | AD154: TRUE | AE154: TRUE | AF154: TRUE | AG154: TRUE | AH154: TRUE | AI154: TRUE | AJ154: TRUE | AK154: TRUE | AL154: TRUE | AM154: TRUE | AN154: TRUE | AO154: TRUE | AP154: TRUE | AQ154: TRUE | AR154: TRUE | AS154: TRUE | AT154: TRUE | AU154: TRUE | AV154: TRUE | AW154: TRUE | AX154: TRUE | AY154: TRUE | AZ154: TRUE | BA154: TRUE | BB154: TRUE | BC154: TRUE | BD154: TRUE | BE154: TRUE | BF154: TRUE | BG154: TRUE | BH154: TRUE | BI154: TRUE | BJ154: TRUE | BK154: TRUE | BL154: TRUE | BM154: TRUE | BN154: TRUE | BO154: TRUE | BP154: TRUE | BQ154: TRUE | BR154: TRUE | BS154: TRUE | BT154: TRUE | BU154: TRUE | BV154: TRUE | BW154: TRUE | BX154: =BX152>=0 -> TRUE | BY154: TRUE | BZ154: TRUE | CA154: TRUE | CB154: TRUE | CC154: TRUE | CD154: TRUE | CE154: TRUE | CF154: TRUE | CG154: TRUE | CH154: TRUE | CI154: TRUE | CJ154: TRUE | CK154: TRUE | CL154: TRUE | CM154: TRUE | CN154: TRUE | CO154: TRUE | CP154: TRUE | CQ154: TRUE | CR154: TRUE | CS154: TRUE | CT154: TRUE | CU154: TRUE | CV154: TRUE | CW154: TRUE | CX154: TRUE | CY154: TRUE | CZ154: TRUE | DA154: TRUE | DB154: TRUE | DC154: TRUE | DD154: TRUE | DE154: TRUE | DF154: TRUE | DG154: TRUE | DH154: TRUE | DI154: TRUE | DJ154: TRUE | DK154: TRUE | DL154: TRUE | DM154: TRUE | DN154: TRUE | DO154: TRUE | DP154: TRUE | DQ154: TRUE | DR154: TRUE | DS154: TRUE | DT154: TRUE | DU154: TRUE | DV154: TRUE | DW154: TRUE | DX154: TRUE | DY154: TRUE | DZ154: TRUE | EA154: TRUE | EB154: TRUE | EC154: TRUE | ED154: TRUE | EE154: TRUE | EF154: TRUE | EG154: TRUE | EH154: TRUE | EI154: TRUE | EJ154: =EJ152>=0 -> TRUE | EK154: TRUE | EL154: TRUE | EM154: TRUE | EN154: TRUE | EO154: TRUE | EP154: TRUE | EQ154: TRUE | ER154: TRUE | ES154: TRUE | ET154: TRUE | EU154: TRUE | EV154: TRUE | EW154: TRUE | EX154: TRUE | EY154: TRUE | EZ154: TRUE | FA154: TRUE
D156: EBIT | K156: =K119-K150 -> 0 | L156: 0 | M156: 0 | N156: 0 | O156: 0 | P156: 0 | Q156: 0 | R156: 0 | S156: 0 | T156: 0 | U156: 0 | V156: 0 | W156: 0 | X156: 0 | Y156: 0 | Z156: 0 | AA156: 351893.1491 | AB156: 516221.607 | AC156: 513457.0514 | AD156: 749355.3771 | AE156: 746556.4779 | AF156: 1107130.547 | AG156: 1104296.878 | AH156: 1185580.361 | AI156: 1182711.49 | AJ156: 1179824.853 | AK156: 1176920.342 | AL156: 1609588.846 | AM156: 1606648.252 | AN156: 1603689.45 | AO156: 1600712.326 | AP156: 1693188.767 | AQ156: =AQ119-AQ150 -> 1690174.658 | AR156: 1687141.886 | AS156: 1684090.334 | AT156: 1776491.886 | AU156: 2250762.425 | AV156: 2247653.833 | AW156: 2244525.992 | AX156: 2568131.703 | AY156: 2564965.005 | AZ156: 2561778.699 | BA156: 2558572.662 | BB156: 2657621.153 | BC156: 2654375.288 | BD156: 2651109.323 | BE156: 2647823.136 | BF156: 2746790.979 | BG156: 2743463.967 | BH156: 2740116.354 | BI156: 2736748.011 | BJ156: 3025503.131 | BK156: 3022092.944 | BL156: 3018661.641 | BM156: 3015209.09 | BN156: 3119141.16 | BO156: 0 | BP156: 0 | BQ156: 0 | BR156: 0 | BS156: 0 | BT156: 0 | BU156: 0 | BV156: 0 | BW156: =BW119-BW150 -> 0 | BX156: 0 | BY156: 0 | BZ156: 0 | CA156: 0 | CB156: 0 | CC156: 0 | CD156: 0 | CE156: 0 | CF156: 0 | CG156: 0 | CH156: 0 | CI156: 0 | CJ156: 0 | CK156: 0 | CL156: 0 | CM156: 0 | CN156: 0 | CO156: 0 | CP156: 0 | CQ156: 0 | CR156: 0 | CS156: 0 | CT156: 0 | CU156: 0 | CV156: 0 | CW156: 0 | CX156: 0 | CY156: 0 | CZ156: 0 | DA156: 0 | DB156: 0 | DC156: =DC119-DC150 -> 0 | DD156: 0 | DE156: 0 | DF156: 0 | DG156: 0 | DH156: 0 | DI156: 0 | DJ156: 0 | DK156: 0 | DL156: 0 | DM156: 0 | DN156: 0 | DO156: 0 | DP156: 0 | DQ156: 0 | DR156: 0 | DS156: 0 | DT156: 0 | DU156: 0 | DV156: 0 | DW156: 0 | DX156: 0 | DY156: 0 | DZ156: 0 | EA156: 0 | EB156: 0 | EC156: 0 | ED156: 0 | EE156: 0 | EF156: 0 | EG156: 0 | EH156: 0 | EI156: =EI119-EI150 -> 0 | EJ156: 0 | EK156: 0 | EL156: 0 | EM156: 0 | EN156: 0 | EO156: 0 | EP156: 0 | EQ156: 0 | ER156: 0 | ES156: 0 | ET156: 0 | EU156: 0 | EV156: 0 | EW156: 0 | EX156: 0 | EY156: 0 | EZ156: 0 | FA156: 0
D157: Tax on EBIT | G157: Tax Rate | H157: =F69 -> 0.17 | K157: =K156*$H$157 -> 0 | L157: =L156*$H$157 -> 0 | M157: 0 | N157: 0 | O157: 0 | P157: 0 | Q157: 0 | R157: 0 | S157: 0 | T157: 0 | U157: 0 | V157: 0 | W157: 0 | X157: 0 | Y157: 0 | Z157: 0 | AA157: 59821.83535 | AB157: 87757.67319 | AC157: 87287.69875 | AD157: 127390.4141 | AE157: 126914.6012 | AF157: 188212.193 | AG157: 187730.4692 | AH157: 201548.6615 | AI157: 201060.9533 | AJ157: 200570.2251 | AK157: 200076.4582 | AL157: 273630.1037 | AM157: 273130.2028 | AN157: 272627.2065 | AO157: 272121.0954 | AP157: 287842.0903 | AQ157: 287329.6919 | AR157: 286814.1206 | AS157: 286295.3568 | AT157: 302003.6206 | AU157: 382629.6122 | AV157: 382101.1516 | AW157: 381569.4187 | AX157: 436582.3895 | AY157: 436044.0509 | AZ157: 435502.3788 | BA157: 434957.3525 | BB157: 451795.5959 | BC157: 451243.7989 | BD157: 450688.585 | BE157: 450129.933 | BF157: 466954.4664 | BG157: 466388.8744 | BH157: 465819.7802 | BI157: 465247.1619 | BJ157: 514335.5323 | BK157: 513755.8006 | BL157: 513172.4789 | BM157: 512585.5453 | BN157: 530253.9971 | BO157: 0 | BP157: 0 | BQ157: 0 | BR157: 0 | BS157: 0 | BT157: 0 | BU157: 0 | BV157: 0 | BW157: 0 | BX157: =BX156*$H$157 -> 0 | BY157: 0 | BZ157: 0 | CA157: 0 | CB157: 0 | CC157: 0 | CD157: 0 | CE157: 0 | CF157: 0 | CG157: 0 | CH157: 0 | CI157: 0 | CJ157: 0 | CK157: 0 | CL157: 0 | CM157: 0 | CN157: 0 | CO157: 0 | CP157: 0 | CQ157: 0 | CR157: 0 | CS157: 0 | CT157: 0 | CU157: 0 | CV157: 0 | CW157: 0 | CX157: 0 | CY157: 0 | CZ157: 0 | DA157: 0 | DB157: 0 | DC157: 0 | DD157: 0 | DE157: 0 | DF157: 0 | DG157: 0 | DH157: 0 | DI157: 0 | DJ157: 0 | DK157: 0 | DL157: 0 | DM157: 0 | DN157: 0 | DO157: 0 | DP157: 0 | DQ157: 0 | DR157: 0 | DS157: 0 | DT157: 0 | DU157: 0 | DV157: 0 | DW157: 0 | DX157: 0 | DY157: 0 | DZ157: 0 | EA157: 0 | EB157: 0 | EC157: 0 | ED157: 0 | EE157: 0 | EF157: 0 | EG157: 0 | EH157: 0 | EI157: 0 | EJ157: =EJ156*$H$157 -> 0 | EK157: 0 | EL157: 0 | EM157: 0 | EN157: 0 | EO157: 0 | EP157: 0 | EQ157: 0 | ER157: 0 | ES157: 0 | ET157: 0 | EU157: 0 | EV157: 0 | EW157: 0 | EX157: 0 | EY157: 0 | EZ157: 0 | FA157: 0
D158: Free Cashflow | K158: =K132-K157 -> -45056167.29 | L158: -3143444.511 | M158: -3662320.469 | N158: -4149952.774 | O158: -4573684.775 | P158: -4902589.922 | Q158: -5111179.951 | R158: -5182663.828 | S158: -5111179.951 | T158: -4902589.922 | U158: -4573684.775 | V158: -4149952.774 | W158: -3662320.469 | X158: -3143444.511 | Y158: -2624167.285 | Z158: -2130656.797 | AA158: 769431.3138 | AB158: 905823.9338 | AC158: 903529.3527 | AD158: 1099324.963 | AE158: 1097001.877 | AF158: 1396278.354 | AG158: 1393926.409 | AH158: 1461391.7 | AI158: 1459010.537 | AJ158: 1456614.628 | AK158: 1454203.884 | AL158: 1813318.742 | AM158: 1810878.049 | AN158: 1808422.243 | AO158: 1805951.23 | AP158: 1882706.676 | AQ158: =AQ132-AQ157 -> 1880204.966 | AR158: 1877687.765 | AS158: 1875154.977 | AT158: 1951848.265 | AU158: 1868132.813 | AV158: 1865552.681 | AW158: 1862956.574 | AX158: 2131549.313 | AY158: 2128920.955 | AZ158: 2126276.32 | BA158: 2123615.309 | BB158: 2205825.557 | BC158: 2203131.489 | BD158: 2200420.738 | BE158: 2197693.203 | BF158: 2279836.512 | BG158: 2277075.093 | BH158: 2274296.574 | BI158: 2271500.85 | BJ158: 2511167.599 | BK158: 2508337.144 | BL158: 2505489.162 | BM158: 2502623.544 | BN158: 252120179.9 | BO158: 0 | BP158: 0 | BQ158: 0 | BR158: 0 | BS158: 0 | BT158: 0 | BU158: 0 | BV158: 0 | BW158: =BW132-BW157 -> 0 | BX158: 0 | BY158: 0 | BZ158: 0 | CA158: 0 | CB158: 0 | CC158: 0 | CD158: 0 | CE158: 0 | CF158: 0 | CG158: 0 | CH158: 0 | CI158: 0 | CJ158: 0 | CK158: 0 | CL158: 0 | CM158: 0 | CN158: 0 | CO158: 0 | CP158: 0 | CQ158: 0 | CR158: 0 | CS158: 0 | CT158: 0 | CU158: 0 | CV158: 0 | CW158: 0 | CX158: 0 | CY158: 0 | CZ158: 0 | DA158: 0 | DB158: 0 | DC158: =DC132-DC157 -> 0 | DD158: 0 | DE158: 0 | DF158: 0 | DG158: 0 | DH158: 0 | DI158: 0 | DJ158: 0 | DK158: 0 | DL158: 0 | DM158: 0 | DN158: 0 | DO158: 0 | DP158: 0 | DQ158: 0 | DR158: 0 | DS158: 0 | DT158: 0 | DU158: 0 | DV158: 0 | DW158: 0 | DX158: 0 | DY158: 0 | DZ158: 0 | EA158: 0 | EB158: 0 | EC158: 0 | ED158: 0 | EE158: 0 | EF158: 0 | EG158: 0 | EH158: 0 | EI158: =EI132-EI157 -> 0 | EJ158: 0 | EK158: 0 | EL158: 0 | EM158: 0 | EN158: 0 | EO158: 0 | EP158: 0 | EQ158: 0 | ER158: 0 | ES158: 0 | ET158: 0 | EU158: 0 | EV158: 0 | EW158: 0 | EX158: 0 | EY158: 0 | EZ158: 0 | FA158: 0
D159: Project IRR
D160: XIRR | F160: =XIRR(K158:FA158,K2:FA2) -> 0.1020682275
A162: Financing
B163: Funding of land - First Compute the Base for the Financing | G163: Percent | H163: Amount
C164: Land cost | H164: =K129 -> 42432000
C165: Construction Cost Excluding Land | H165: =SUM(128:128) -> 63648000
B167: Debt Sizing from the Estimated Construction Cost and the Input Leverage Figures; Include the Equity Funding Required
C168: Land loan | G168: =F74 -> 0.7 | H168: =G168*H164 -> 29702400
C169: Equity funding for Land | G169: =1-G168 -> 0.3 | H169: =H164-H168 -> 12729600
C171: Term Loan | G171: =F84 -> 0.8 | H171: =G171*H165 -> 50918400
C172: Equity Funding for Term Loan | G172: =1-G171 -> 0.2 | H172: =H165*G172 -> 12729600
B174: Land Loan: Begin with equity and debt balances related to land loan with scheduled repayment
C175: Equity Contribuions Related to Land Loan
D176: Total Required Equity Contributions | H176: =H169 -> 12729600 | K176: =$H$176 -> 12729600 | L176: =$H$176 -> 12729600 | M176: 12729600 | N176: 12729600 | O176: 12729600 | P176: 12729600 | Q176: 12729600 | R176: 12729600 | S176: 12729600 | T176: 12729600 | U176: 12729600 | V176: 12729600 | W176: 12729600 | X176: 12729600 | Y176: 12729600 | Z176: 12729600 | AA176: 12729600 | AB176: 12729600 | AC176: 12729600 | AD176: 12729600 | AE176: 12729600 | AF176: 12729600 | AG176: 12729600 | AH176: 12729600 | AI176: 12729600 | AJ176: 12729600 | AK176: 12729600 | AL176: 12729600 | AM176: 12729600 | AN176: 12729600 | AO176: 12729600 | AP176: 12729600 | AQ176: 12729600 | AR176: 12729600 | AS176: 12729600 | AT176: 12729600 | AU176: 12729600 | AV176: 12729600 | AW176: 12729600 | AX176: 12729600 | AY176: 12729600 | AZ176: 12729600 | BA176: 12729600 | BB176: 12729600 | BC176: 12729600 | BD176: 12729600 | BE176: 12729600 | BF176: 12729600 | BG176: 12729600 | BH176: 12729600 | BI176: 12729600 | BJ176: 12729600 | BK176: 12729600 | BL176: 12729600 | BM176: 12729600 | BN176: 12729600 | BO176: 12729600 | BP176: 12729600 | BQ176: 12729600 | BR176: 12729600 | BS176: 12729600 | BT176: 12729600 | BU176: 12729600 | BV176: 12729600 | BW176: 12729600 | BX176: =$H$176 -> 12729600 | BY176: 12729600 | BZ176: 12729600 | CA176: 12729600 | CB176: 12729600 | CC176: 12729600 | CD176: 12729600 | CE176: 12729600 | CF176: 12729600 | CG176: 12729600 | CH176: 12729600 | CI176: 12729600 | CJ176: 12729600 | CK176: 12729600 | CL176: 12729600 | CM176: 12729600 | CN176: 12729600 | CO176: 12729600 | CP176: 12729600 | CQ176: 12729600 | CR176: 12729600 | CS176: 12729600 | CT176: 12729600 | CU176: 12729600 | CV176: 12729600 | CW176: 12729600 | CX176: 12729600 | CY176: 12729600 | CZ176: 12729600 | DA176: 12729600 | DB176: 12729600 | DC176: 12729600 | DD176: 12729600 | DE176: 12729600 | DF176: 12729600 | DG176: 12729600 | DH176: 12729600 | DI176: 12729600 | DJ176: 12729600 | DK176: 12729600 | DL176: 12729600 | DM176: 12729600 | DN176: 12729600 | DO176: 12729600 | DP176: 12729600 | DQ176: 12729600 | DR176: 12729600 | DS176: 12729600 | DT176: 12729600 | DU176: 12729600 | DV176: 12729600 | DW176: 12729600 | DX176: 12729600 | DY176: 12729600 | DZ176: 12729600 | EA176: 12729600 | EB176: 12729600 | EC176: 12729600 | ED176: 12729600 | EE176: 12729600 | EF176: 12729600 | EG176: 12729600 | EH176: 12729600 | EI176: 12729600 | EJ176: =$H$176 -> 12729600 | EK176: 12729600 | EL176: 12729600 | EM176: 12729600 | EN176: 12729600 | EO176: 12729600 | EP176: 12729600 | EQ176: 12729600 | ER176: 12729600 | ES176: 12729600 | ET176: 12729600 | EU176: 12729600 | EV176: 12729600 | EW176: 12729600 | EX176: 12729600 | EY176: 12729600 | EZ176: 12729600 | FA176: 12729600
D177: Opening Balance of Equity for Equity | K177: =J179 -> 0 | L177: =K179 -> 12729600 | M177: 12729600 | N177: 12729600 | O177: 12729600 | P177: 12729600 | Q177: 12729600 | R177: 12729600 | S177: 12729600 | T177: 12729600 | U177: 12729600 | V177: 12729600 | W177: 12729600 | X177: 12729600 | Y177: 12729600 | Z177: 12729600 | AA177: 12729600 | AB177: 12729600 | AC177: 12729600 | AD177: 12729600 | AE177: 12729600 | AF177: 12729600 | AG177: 12729600 | AH177: 12729600 | AI177: 12729600 | AJ177: 12729600 | AK177: 12729600 | AL177: 12729600 | AM177: 12729600 | AN177: 12729600 | AO177: 12729600 | AP177: 12729600 | AQ177: 12729600 | AR177: 12729600 | AS177: 12729600 | AT177: 12729600 | AU177: 12729600 | AV177: 12729600 | AW177: 12729600 | AX177: 12729600 | AY177: 12729600 | AZ177: 12729600 | BA177: 12729600 | BB177: 12729600 | BC177: 12729600 | BD177: 12729600 | BE177: 12729600 | BF177: 12729600 | BG177: 12729600 | BH177: 12729600 | BI177: 12729600 | BJ177: 12729600 | BK177: 12729600 | BL177: 12729600 | BM177: 12729600 | BN177: 12729600 | BO177: 12729600 | BP177: 12729600 | BQ177: 12729600 | BR177: 12729600 | BS177: 12729600 | BT177: 12729600 | BU177: 12729600 | BV177: 12729600 | BW177: 12729600 | BX177: =BW179 -> 12729600 | BY177: 12729600 | BZ177: 12729600 | CA177: 12729600 | CB177: 12729600 | CC177: 12729600 | CD177: 12729600 | CE177: 12729600 | CF177: 12729600 | CG177: 12729600 | CH177: 12729600 | CI177: 12729600 | CJ177: 12729600 | CK177: 12729600 | CL177: 12729600 | CM177: 12729600 | CN177: 12729600 | CO177: 12729600 | CP177: 12729600 | CQ177: 12729600 | CR177: 12729600 | CS177: 12729600 | CT177: 12729600 | CU177: 12729600 | CV177: 12729600 | CW177: 12729600 | CX177: 12729600 | CY177: 12729600 | CZ177: 12729600 | DA177: 12729600 | DB177: 12729600 | DC177: 12729600 | DD177: 12729600 | DE177: 12729600 | DF177: 12729600 | DG177: 12729600 | DH177: 12729600 | DI177: 12729600 | DJ177: 12729600 | DK177: 12729600 | DL177: 12729600 | DM177: 12729600 | DN177: 12729600 | DO177: 12729600 | DP177: 12729600 | DQ177: 12729600 | DR177: 12729600 | DS177: 12729600 | DT177: 12729600 | DU177: 12729600 | DV177: 12729600 | DW177: 12729600 | DX177: 12729600 | DY177: 12729600 | DZ177: 12729600 | EA177: 12729600 | EB177: 12729600 | EC177: 12729600 | ED177: 12729600 | EE177: 12729600 | EF177: 12729600 | EG177: 12729600 | EH177: 12729600 | EI177: 12729600 | EJ177: =EI179 -> 12729600 | EK177: 12729600 | EL177: 12729600 | EM177: 12729600 | EN177: 12729600 | EO177: 12729600 | EP177: 12729600 | EQ177: 12729600 | ER177: 12729600 | ES177: 12729600 | ET177: 12729600 | EU177: 12729600 | EV177: 12729600 | EW177: 12729600 | EX177: 12729600 | EY177: 12729600 | EZ177: 12729600 | FA177: 12729600
D178: Add: New Equity Contributions from the Cash Flow | K178: =K254 -> 12729600 | L178: =L254 -> 0 | M178: 0 | N178: 0 | O178: 0 | P178: 0 | Q178: 0 | R178: 0 | S178: 0 | T178: 0 | U178: 0 | V178: 0 | W178: 0 | X178: 0 | Y178: 0 | Z178: 0 | AA178: 0 | AB178: 0 | AC178: 0 | AD178: 0 | AE178: 0 | AF178: 0 | AG178: 0 | AH178: 0 | AI178: 0 | AJ178: 0 | AK178: 0 | AL178: 0 | AM178: 0 | AN178: 0 | AO178: 0 | AP178: 0 | AQ178: 0 | AR178: 0 | AS178: 0 | AT178: 0 | AU178: 0 | AV178: 0 | AW178: 0 | AX178: 0 | AY178: 0 | AZ178: 0 | BA178: 0 | BB178: 0 | BC178: 0 | BD178: 0 | BE178: 0 | BF178: 0 | BG178: 0 | BH178: 0 | BI178: 0 | BJ178: 0 | BK178: 0 | BL178: 0 | BM178: 0 | BN178: 0 | BO178: 0 | BP178: 0 | BQ178: 0 | BR178: 0 | BS178: 0 | BT178: 0 | BU178: 0 | BV178: 0 | BW178: 0 | BX178: =BX254 -> 0 | BY178: 0 | BZ178: 0 | CA178: 0 | CB178: 0 | CC178: 0 | CD178: 0 | CE178: 0 | CF178: 0 | CG178: 0 | CH178: 0 | CI178: 0 | CJ178: 0 | CK178: 0 | CL178: 0 | CM178: 0 | CN178: 0 | CO178: 0 | CP178: 0 | CQ178: 0 | CR178: 0 | CS178: 0 | CT178: 0 | CU178: 0 | CV178: 0 | CW178: 0 | CX178: 0 | CY178: 0 | CZ178: 0 | DA178: 0 | DB178: 0 | DC178: 0 | DD178: 0 | DE178: 0 | DF178: 0 | DG178: 0 | DH178: 0 | DI178: 0 | DJ178: 0 | DK178: 0 | DL178: 0 | DM178: 0 | DN178: 0 | DO178: 0 | DP178: 0 | DQ178: 0 | DR178: 0 | DS178: 0 | DT178: 0 | DU178: 0 | DV178: 0 | DW178: 0 | DX178: 0 | DY178: 0 | DZ178: 0 | EA178: 0 | EB178: 0 | EC178: 0 | ED178: 0 | EE178: 0 | EF178: 0 | EG178: 0 | EH178: 0 | EI178: 0 | EJ178: =EJ254 -> 0 | EK178: 0 | EL178: 0 | EM178: 0 | EN178: 0 | EO178: 0 | EP178: 0 | EQ178: 0 | ER178: 0 | ES178: 0 | ET178: 0 | EU178: 0 | EV178: 0 | EW178: 0 | EX178: 0 | EY178: 0 | EZ178: 0 | FA178: 0
D179: Closing Balance after Contributions | K179: =SUM(K177:K178) -> 12729600 | L179: =SUM(L177:L178) -> 12729600 | M179: 12729600 | N179: 12729600 | O179: 12729600 | P179: 12729600 | Q179: 12729600 | R179: 12729600 | S179: 12729600 | T179: 12729600 | U179: 12729600 | V179: 12729600 | W179: 12729600 | X179: 12729600 | Y179: 12729600 | Z179: 12729600 | AA179: 12729600 | AB179: 12729600 | AC179: 12729600 | AD179: 12729600 | AE179: 12729600 | AF179: 12729600 | AG179: 12729600 | AH179: 12729600 | AI179: 12729600 | AJ179: 12729600 | AK179: 12729600 | AL179: 12729600 | AM179: 12729600 | AN179: 12729600 | AO179: 12729600 | AP179: 12729600 | AQ179: 12729600 | AR179: 12729600 | AS179: 12729600 | AT179: 12729600 | AU179: 12729600 | AV179: 12729600 | AW179: 12729600 | AX179: 12729600 | AY179: 12729600 | AZ179: 12729600 | BA179: 12729600 | BB179: 12729600 | BC179: 12729600 | BD179: 12729600 | BE179: 12729600 | BF179: 12729600 | BG179: 12729600 | BH179: 12729600 | BI179: 12729600 | BJ179: 12729600 | BK179: 12729600 | BL179: 12729600 | BM179: 12729600 | BN179: 12729600 | BO179: 12729600 | BP179: 12729600 | BQ179: 12729600 | BR179: 12729600 | BS179: 12729600 | BT179: 12729600 | BU179: 12729600 | BV179: 12729600 | BW179: 12729600 | BX179: =SUM(BX177:BX178) -> 12729600 | BY179: 12729600 | BZ179: 12729600 | CA179: 12729600 | CB179: 12729600 | CC179: 12729600 | CD179: 12729600 | CE179: 12729600 | CF179: 12729600 | CG179: 12729600 | CH179: 12729600 | CI179: 12729600 | CJ179: 12729600 | CK179: 12729600 | CL179: 12729600 | CM179: 12729600 | CN179: 12729600 | CO179: 12729600 | CP179: 12729600 | CQ179: 12729600 | CR179: 12729600 | CS179: 12729600 | CT179: 12729600 | CU179: 12729600 | CV179: 12729600 | CW179: 12729600 | CX179: 12729600 | CY179: 12729600 | CZ179: 12729600 | DA179: 12729600 | DB179: 12729600 | DC179: 12729600 | DD179: 12729600 | DE179: 12729600 | DF179: 12729600 | DG179: 12729600 | DH179: 12729600 | DI179: 12729600 | DJ179: 12729600 | DK179: 12729600 | DL179: 12729600 | DM179: 12729600 | DN179: 12729600 | DO179: 12729600 | DP179: 12729600 | DQ179: 12729600 | DR179: 12729600 | DS179: 12729600 | DT179: 12729600 | DU179: 12729600 | DV179: 12729600 | DW179: 12729600 | DX179: 12729600 | DY179: 12729600 | DZ179: 12729600 | EA179: 12729600 | EB179: 12729600 | EC179: 12729600 | ED179: 12729600 | EE179: 12729600 | EF179: 12729600 | EG179: 12729600 | EH179: 12729600 | EI179: 12729600 | EJ179: =SUM(EJ177:EJ178) -> 12729600 | EK179: 12729600 | EL179: 12729600 | EM179: 12729600 | EN179: 12729600 | EO179: 12729600 | EP179: 12729600 | EQ179: 12729600 | ER179: 12729600 | ES179: 12729600 | ET179: 12729600 | EU179: 12729600 | EV179: 12729600 | EW179: 12729600 | EX179: 12729600 | EY179: 12729600 | EZ179: 12729600 | FA179: 12729600
D180: Remaining Equity for Contribution from Total Commitment Less Opening Balance | K180: =K176-K177 -> 12729600 | L180: =L176-L177 -> 0 | M180: 0 | N180: 0 | O180: 0 | P180: 0 | Q180: 0 | R180: 0 | S180: 0 | T180: 0 | U180: 0 | V180: 0 | W180: 0 | X180: 0 | Y180: 0 | Z180: 0 | AA180: 0 | AB180: 0 | AC180: 0 | AD180: 0 | AE180: 0 | AF180: 0 | AG180: 0 | AH180: 0 | AI180: 0 | AJ180: 0 | AK180: 0 | AL180: 0 | AM180: 0 | AN180: 0 | AO180: 0 | AP180: 0 | AQ180: 0 | AR180: 0 | AS180: 0 | AT180: 0 | AU180: 0 | AV180: 0 | AW180: 0 | AX180: 0 | AY180: 0 | AZ180: 0 | BA180: 0 | BB180: 0 | BC180: 0 | BD180: 0 | BE180: 0 | BF180: 0 | BG180: 0 | BH180: 0 | BI180: 0 | BJ180: 0 | BK180: 0 | BL180: 0 | BM180: 0 | BN180: 0 | BO180: 0 | BP180: 0 | BQ180: 0 | BR180: 0 | BS180: 0 | BT180: 0 | BU180: 0 | BV180: 0 | BW180: 0 | BX180: =BX176-BX177 -> 0 | BY180: 0 | BZ180: 0 | CA180: 0 | CB180: 0 | CC180: 0 | CD180: 0 | CE180: 0 | CF180: 0 | CG180: 0 | CH180: 0 | CI180: 0 | CJ180: 0 | CK180: 0 | CL180: 0 | CM180: 0 | CN180: 0 | CO180: 0 | CP180: 0 | CQ180: 0 | CR180: 0 | CS180: 0 | CT180: 0 | CU180: 0 | CV180: 0 | CW180: 0 | CX180: 0 | CY180: 0 | CZ180: 0 | DA180: 0 | DB180: 0 | DC180: 0 | DD180: 0 | DE180: 0 | DF180: 0 | DG180: 0 | DH180: 0 | DI180: 0 | DJ180: 0 | DK180: 0 | DL180: 0 | DM180: 0 | DN180: 0 | DO180: 0 | DP180: 0 | DQ180: 0 | DR180: 0 | DS180: 0 | DT180: 0 | DU180: 0 | DV180: 0 | DW180: 0 | DX180: 0 | DY180: 0 | DZ180: 0 | EA180: 0 | EB180: 0 | EC180: 0 | ED180: 0 | EE180: 0 | EF180: 0 | EG180: 0 | EH180: 0 | EI180: 0 | EJ180: =EJ176-EJ177 -> 0 | EK180: 0 | EL180: 0 | EM180: 0 | EN180: 0 | EO180: 0 | EP180: 0 | EQ180: 0 | ER180: 0 | ES180: 0 | ET180: 0 | EU180: 0 | EV180: 0 | EW180: 0 | EX180: 0 | EY180: 0 | EZ180: 0 | FA180: 0
C182: Debt Balance and Commitment from the Land Loan
D183: Total Loan Commitment (Maximum Loan) | H183: =H168 -> 29702400 | K183: =$H$183 -> 29702400 | L183: =$H$183 -> 29702400 | M183: 29702400 | N183: 29702400 | O183: 29702400 | P183: 29702400 | Q183: 29702400 | R183: 29702400 | S183: 29702400 | T183: 29702400 | U183: 29702400 | V183: 29702400 | W183: 29702400 | X183: 29702400 | Y183: 29702400 | Z183: 29702400 | AA183: 29702400 | AB183: 29702400 | AC183: 29702400 | AD183: 29702400 | AE183: 29702400 | AF183: 29702400 | AG183: 29702400 | AH183: 29702400 | AI183: 29702400 | AJ183: 29702400 | AK183: 29702400 | AL183: 29702400 | AM183: 29702400 | AN183: 29702400 | AO183: 29702400 | AP183: 29702400 | AQ183: 29702400 | AR183: 29702400 | AS183: 29702400 | AT183: 29702400 | AU183: 29702400 | AV183: 29702400 | AW183: 29702400 | AX183: 29702400 | AY183: 29702400 | AZ183: 29702400 | BA183: 29702400 | BB183: 29702400 | BC183: 29702400 | BD183: 29702400 | BE183: 29702400 | BF183: 29702400 | BG183: 29702400 | BH183: 29702400 | BI183: 29702400 | BJ183: 29702400 | BK183: 29702400 | BL183: 29702400 | BM183: 29702400 | BN183: 29702400 | BO183: 29702400 | BP183: 29702400 | BQ183: 29702400 | BR183: 29702400 | BS183: 29702400 | BT183: 29702400 | BU183: 29702400 | BV183: 29702400 | BW183: 29702400 | BX183: =$H$183 -> 29702400 | BY183: 29702400 | BZ183: 29702400 | CA183: 29702400 | CB183: 29702400 | CC183: 29702400 | CD183: 29702400 | CE183: 29702400 | CF183: 29702400 | CG183: 29702400 | CH183: 29702400 | CI183: 29702400 | CJ183: 29702400 | CK183: 29702400 | CL183: 29702400 | CM183: 29702400 | CN183: 29702400 | CO183: 29702400 | CP183: 29702400 | CQ183: 29702400 | CR183: 29702400 | CS183: 29702400 | CT183: 29702400 | CU183: 29702400 | CV183: 29702400 | CW183: 29702400 | CX183: 29702400 | CY183: 29702400 | CZ183: 29702400 | DA183: 29702400 | DB183: 29702400 | DC183: 29702400 | DD183: 29702400 | DE183: 29702400 | DF183: 29702400 | DG183: 29702400 | DH183: 29702400 | DI183: 29702400 | DJ183: 29702400 | DK183: 29702400 | DL183: 29702400 | DM183: 29702400 | DN183: 29702400 | DO183: 29702400 | DP183: 29702400 | DQ183: 29702400 | DR183: 29702400 | DS183: 29702400 | DT183: 29702400 | DU183: 29702400 | DV183: 29702400 | DW183: 29702400 | DX183: 29702400 | DY183: 29702400 | DZ183: 29702400 | EA183: 29702400 | EB183: 29702400 | EC183: 29702400 | ED183: 29702400 | EE183: 29702400 | EF183: 29702400 | EG183: 29702400 | EH183: 29702400 | EI183: 29702400 | EJ183: =$H$183 -> 29702400 | EK183: 29702400 | EL183: 29702400 | EM183: 29702400 | EN183: 29702400 | EO183: 29702400 | EP183: 29702400 | EQ183: 29702400 | ER183: 29702400 | ES183: 29702400 | ET183: 29702400 | EU183: 29702400 | EV183: 29702400 | EW183: 29702400 | EX183: 29702400 | EY183: 29702400 | EZ183: 29702400 | FA183: 29702400
D185: Opening balance (Closing Balance) | K185: =J188 -> 0 | L185: =K188 -> 29702400 | M185: 29702400 | N185: 29702400 | O185: 29702400 | P185: 29702400 | Q185: 29702400 | R185: 29702400 | S185: 29702400 | T185: 29702400 | U185: 29702400 | V185: 29702400 | W185: 29702400 | X185: 29702400 | Y185: 29702400 | Z185: 29702400 | AA185: 29702400 | AB185: 29702400 | AC185: 29702400 | AD185: 29702400 | AE185: 29702400 | AF185: 0 | AG185: 0 | AH185: 0 | AI185: 0 | AJ185: 0 | AK185: 0 | AL185: 0 | AM185: 0 | AN185: 0 | AO185: 0 | AP185: 0 | AQ185: 0 | AR185: 0 | AS185: 0 | AT185: 0 | AU185: 0 | AV185: 0 | AW185: 0 | AX185: 0 | AY185: 0 | AZ185: 0 | BA185: 0 | BB185: 0 | BC185: 0 | BD185: 0 | BE185: 0 | BF185: 0 | BG185: 0 | BH185: 0 | BI185: 0 | BJ185: 0 | BK185: 0 | BL185: 0 | BM185: 0 | BN185: 0 | BO185: 0 | BP185: 0 | BQ185: 0 | BR185: 0 | BS185: 0 | BT185: 0 | BU185: 0 | BV185: 0 | BW185: 0 | BX185: =BW188 -> 0 | BY185: 0 | BZ185: 0 | CA185: 0 | CB185: 0 | CC185: 0 | CD185: 0 | CE185: 0 | CF185: 0 | CG185: 0 | CH185: 0 | CI185: 0 | CJ185: 0 | CK185: 0 | CL185: 0 | CM185: 0 | CN185: 0 | CO185: 0 | CP185: 0 | CQ185: 0 | CR185: 0 | CS185: 0 | CT185: 0 | CU185: 0 | CV185: 0 | CW185: 0 | CX185: 0 | CY185: 0 | CZ185: 0 | DA185: 0 | DB185: 0 | DC185: 0 | DD185: 0 | DE185: 0 | DF185: 0 | DG185: 0 | DH185: 0 | DI185: 0 | DJ185: 0 | DK185: 0 | DL185: 0 | DM185: 0 | DN185: 0 | DO185: 0 | DP185: 0 | DQ185: 0 | DR185: 0 | DS185: 0 | DT185: 0 | DU185: 0 | DV185: 0 | DW185: 0 | DX185: 0 | DY185: 0 | DZ185: 0 | EA185: 0 | EB185: 0 | EC185: 0 | ED185: 0 | EE185: 0 | EF185: 0 | EG185: 0 | EH185: 0 | EI185: 0 | EJ185: =EI188 -> 0 | EK185: 0 | EL185: 0 | EM185: 0 | EN185: 0 | EO185: 0 | EP185: 0 | EQ185: 0 | ER185: 0 | ES185: 0 | ET185: 0 | EU185: 0 | EV185: 0 | EW185: 0 | EX185: 0 | EY185: 0 | EZ185: 0 | FA185: 0
D186: Add: Debt Funded from MIN function with the Remaining Debt Commitment | K186: =K256 -> 29702400 | L186: =L256 -> 0 | M186: 0 | N186: 0 | O186: 0 | P186: 0 | Q186: 0 | R186: 0 | S186: 0 | T186: 0 | U186: 0 | V186: 0 | W186: 0 | X186: 0 | Y186: 0 | Z186: 0 | AA186: 0 | AB186: 0 | AC186: 0 | AD186: 0 | AE186: 0 | AF186: 0 | AG186: 0 | AH186: 0 | AI186: 0 | AJ186: 0 | AK186: 0 | AL186: 0 | AM186: 0 | AN186: 0 | AO186: 0 | AP186: 0 | AQ186: 0 | AR186: 0 | AS186: 0 | AT186: 0 | AU186: 0 | AV186: 0 | AW186: 0 | AX186: 0 | AY186: 0 | AZ186: 0 | BA186: 0 | BB186: 0 | BC186: 0 | BD186: 0 | BE186: 0 | BF186: 0 | BG186: 0 | BH186: 0 | BI186: 0 | BJ186: 0 | BK186: 0 | BL186: 0 | BM186: 0 | BN186: 0 | BO186: 0 | BP186: 0 | BQ186: 0 | BR186: 0 | BS186: 0 | BT186: 0 | BU186: 0 | BV186: 0 | BW186: 0 | BX186: =BX256 -> 0 | BY186: 0 | BZ186: 0 | CA186: 0 | CB186: 0 | CC186: 0 | CD186: 0 | CE186: 0 | CF186: 0 | CG186: 0 | CH186: 0 | CI186: 0 | CJ186: 0 | CK186: 0 | CL186: 0 | CM186: 0 | CN186: 0 | CO186: 0 | CP186: 0 | CQ186: 0 | CR186: 0 | CS186: 0 | CT186: 0 | CU186: 0 | CV186: 0 | CW186: 0 | CX186: 0 | CY186: 0 | CZ186: 0 | DA186: 0 | DB186: 0 | DC186: 0 | DD186: 0 | DE186: 0 | DF186: 0 | DG186: 0 | DH186: 0 | DI186: 0 | DJ186: 0 | DK186: 0 | DL186: 0 | DM186: 0 | DN186: 0 | DO186: 0 | DP186: 0 | DQ186: 0 | DR186: 0 | DS186: 0 | DT186: 0 | DU186: 0 | DV186: 0 | DW186: 0 | DX186: 0 | DY186: 0 | DZ186: 0 | EA186: 0 | EB186: 0 | EC186: 0 | ED186: 0 | EE186: 0 | EF186: 0 | EG186: 0 | EH186: 0 | EI186: 0 | EJ186: =EJ256 -> 0 | EK186: 0 | EL186: 0 | EM186: 0 | EN186: 0 | EO186: 0 | EP186: 0 | EQ186: 0 | ER186: 0 | ES186: 0 | ET186: 0 | EU186: 0 | EV186: 0 | EW186: 0 | EX186: 0 | EY186: 0 | EZ186: 0 | FA186: 0
D187: Less: fixed repayment from Cash Flow with MIN function | K187: =K263 -> 0 | L187: =L263 -> 0 | M187: 0 | N187: 0 | O187: 0 | P187: 0 | Q187: 0 | R187: 0 | S187: 0 | T187: 0 | U187: 0 | V187: 0 | W187: 0 | X187: 0 | Y187: 0 | Z187: 0 | AA187: 0 | AB187: 0 | AC187: 0 | AD187: 0 | AE187: 29702400 | AF187: 0 | AG187: 0 | AH187: 0 | AI187: 0 | AJ187: 0 | AK187: 0 | AL187: 0 | AM187: 0 | AN187: 0 | AO187: 0 | AP187: 0 | AQ187: 0 | AR187: 0 | AS187: 0 | AT187: 0 | AU187: 0 | AV187: 0 | AW187: 0 | AX187: 0 | AY187: 0 | AZ187: 0 | BA187: 0 | BB187: 0 | BC187: 0 | BD187: 0 | BE187: 0 | BF187: 0 | BG187: 0 | BH187: 0 | BI187: 0 | BJ187: 0 | BK187: 0 | BL187: 0 | BM187: 0 | BN187: 0 | BO187: 0 | BP187: 0 | BQ187: 0 | BR187: 0 | BS187: 0 | BT187: 0 | BU187: 0 | BV187: 0 | BW187: 0 | BX187: =BX263 -> 0 | BY187: 0 | BZ187: 0 | CA187: 0 | CB187: 0 | CC187: 0 | CD187: 0 | CE187: 0 | CF187: 0 | CG187: 0 | CH187: 0 | CI187: 0 | CJ187: 0 | CK187: 0 | CL187: 0 | CM187: 0 | CN187: 0 | CO187: 0 | CP187: 0 | CQ187: 0 | CR187: 0 | CS187: 0 | CT187: 0 | CU187: 0 | CV187: 0 | CW187: 0 | CX187: 0 | CY187: 0 | CZ187: 0 | DA187: 0 | DB187: 0 | DC187: 0 | DD187: 0 | DE187: 0 | DF187: 0 | DG187: 0 | DH187: 0 | DI187: 0 | DJ187: 0 | DK187: 0 | DL187: 0 | DM187: 0 | DN187: 0 | DO187: 0 | DP187: 0 | DQ187: 0 | DR187: 0 | DS187: 0 | DT187: 0 | DU187: 0 | DV187: 0 | DW187: 0 | DX187: 0 | DY187: 0 | DZ187: 0 | EA187: 0 | EB187: 0 | EC187: 0 | ED187: 0 | EE187: 0 | EF187: 0 | EG187: 0 | EH187: 0 | EI187: 0 | EJ187: =EJ263 -> 0 | EK187: 0 | EL187: 0 | EM187: 0 | EN187: 0 | EO187: 0 | EP187: 0 | EQ187: 0 | ER187: 0 | ES187: 0 | ET187: 0 | EU187: 0 | EV187: 0 | EW187: 0 | EX187: 0 | EY187: 0 | EZ187: 0 | FA187: 0
D188: Closing Balance | K188: =K185+K186-K187 -> 29702400 | L188: =L185+L186-L187 -> 29702400 | M188: 29702400 | N188: 29702400 | O188: 29702400 | P188: 29702400 | Q188: 29702400 | R188: 29702400 | S188: 29702400 | T188: 29702400 | U188: 29702400 | V188: 29702400 | W188: 29702400 | X188: 29702400 | Y188: 29702400 | Z188: 29702400 | AA188: 29702400 | AB188: 29702400 | AC188: 29702400 | AD188: 29702400 | AE188: 0 | AF188: 0 | AG188: 0 | AH188: 0 | AI188: 0 | AJ188: 0 | AK188: 0 | AL188: 0 | AM188: 0 | AN188: 0 | AO188: 0 | AP188: 0 | AQ188: 0 | AR188: 0 | AS188: 0 | AT188: 0 | AU188: 0 | AV188: 0 | AW188: 0 | AX188: 0 | AY188: 0 | AZ188: 0 | BA188: 0 | BB188: 0 | BC188: 0 | BD188: 0 | BE188: 0 | BF188: 0 | BG188: 0 | BH188: 0 | BI188: 0 | BJ188: 0 | BK188: 0 | BL188: 0 | BM188: 0 | BN188: 0 | BO188: 0 | BP188: 0 | BQ188: 0 | BR188: 0 | BS188: 0 | BT188: 0 | BU188: 0 | BV188: 0 | BW188: 0 | BX188: =BX185+BX186-BX187 -> 0 | BY188: 0 | BZ188: 0 | CA188: 0 | CB188: 0 | CC188: 0 | CD188: 0 | CE188: 0 | CF188: 0 | CG188: 0 | CH188: 0 | CI188: 0 | CJ188: 0 | CK188: 0 | CL188: 0 | CM188: 0 | CN188: 0 | CO188: 0 | CP188: 0 | CQ188: 0 | CR188: 0 | CS188: 0 | CT188: 0 | CU188: 0 | CV188: 0 | CW188: 0 | CX188: 0 | CY188: 0 | CZ188: 0 | DA188: 0 | DB188: 0 | DC188: 0 | DD188: 0 | DE188: 0 | DF188: 0 | DG188: 0 | DH188: 0 | DI188: 0 | DJ188: 0 | DK188: 0 | DL188: 0 | DM188: 0 | DN188: 0 | DO188: 0 | DP188: 0 | DQ188: 0 | DR188: 0 | DS188: 0 | DT188: 0 | DU188: 0 | DV188: 0 | DW188: 0 | DX188: 0 | DY188: 0 | DZ188: 0 | EA188: 0 | EB188: 0 | EC188: 0 | ED188: 0 | EE188: 0 | EF188: 0 | EG188: 0 | EH188: 0 | EI188: 0 | EJ188: =EJ185+EJ186-EJ187 -> 0 | EK188: 0 | EL188: 0 | EM188: 0 | EN188: 0 | EO188: 0 | EP188: 0 | EQ188: 0 | ER188: 0 | ES188: 0 | ET188: 0 | EU188: 0 | EV188: 0 | EW188: 0 | EX188: 0 | EY188: 0 | EZ188: 0 | FA188: 0
D189: Remaining Balance to Borrow | K189: =K183-K185 -> 29702400 | L189: =L183-L185 -> 0 | M189: 0 | N189: 0 | O189: 0 | P189: 0 | Q189: 0 | R189: 0 | S189: 0 | T189: 0 | U189: 0 | V189: 0 | W189: 0 | X189: 0 | Y189: 0 | Z189: 0 | AA189: 0 | AB189: 0 | AC189: 0 | AD189: 0 | AE189: 0 | AF189: 29702400 | AG189: 29702400 | AH189: 29702400 | AI189: 29702400 | AJ189: 29702400 | AK189: 29702400 | AL189: 29702400 | AM189: 29702400 | AN189: 29702400 | AO189: 29702400 | AP189: 29702400 | AQ189: 29702400 | AR189: 29702400 | AS189: 29702400 | AT189: 29702400 | AU189: 29702400 | AV189: 29702400 | AW189: 29702400 | AX189: 29702400 | AY189: 29702400 | AZ189: 29702400 | BA189: 29702400 | BB189: 29702400 | BC189: 29702400 | BD189: 29702400 | BE189: 29702400 | BF189: 29702400 | BG189: 29702400 | BH189: 29702400 | BI189: 29702400 | BJ189: 29702400 | BK189: 29702400 | BL189: 29702400 | BM189: 29702400 | BN189: 29702400 | BO189: 29702400 | BP189: 29702400 | BQ189: 29702400 | BR189: 29702400 | BS189: 29702400 | BT189: 29702400 | BU189: 29702400 | BV189: 29702400 | BW189: 29702400 | BX189: =BX183-BX185 -> 29702400 | BY189: 29702400 | BZ189: 29702400 | CA189: 29702400 | CB189: 29702400 | CC189: 29702400 | CD189: 29702400 | CE189: 29702400 | CF189: 29702400 | CG189: 29702400 | CH189: 29702400 | CI189: 29702400 | CJ189: 29702400 | CK189: 29702400 | CL189: 29702400 | CM189: 29702400 | CN189: 29702400 | CO189: 29702400 | CP189: 29702400 | CQ189: 29702400 | CR189: 29702400 | CS189: 29702400 | CT189: 29702400 | CU189: 29702400 | CV189: 29702400 | CW189: 29702400 | CX189: 29702400 | CY189: 29702400 | CZ189: 29702400 | DA189: 29702400 | DB189: 29702400 | DC189: 29702400 | DD189: 29702400 | DE189: 29702400 | DF189: 29702400 | DG189: 29702400 | DH189: 29702400 | DI189: 29702400 | DJ189: 29702400 | DK189: 29702400 | DL189: 29702400 | DM189: 29702400 | DN189: 29702400 | DO189: 29702400 | DP189: 29702400 | DQ189: 29702400 | DR189: 29702400 | DS189: 29702400 | DT189: 29702400 | DU189: 29702400 | DV189: 29702400 | DW189: 29702400 | DX189: 29702400 | DY189: 29702400 | DZ189: 29702400 | EA189: 29702400 | EB189: 29702400 | EC189: 29702400 | ED189: 29702400 | EE189: 29702400 | EF189: 29702400 | EG189: 29702400 | EH189: 29702400 | EI189: 29702400 | EJ189: =EJ183-EJ185 -> 29702400 | EK189: 29702400 | EL189: 29702400 | EM189: 29702400 | EN189: 29702400 | EO189: 29702400 | EP189: 29702400 | EQ189: 29702400 | ER189: 29702400 | ES189: 29702400 | ET189: 29702400 | EU189: 29702400 | EV189: 29702400 | EW189: 29702400 | EX189: 29702400 | EY189: 29702400 | EZ189: 29702400 | FA189: 29702400
D190: Test of Non-negative closing balance | I190: =AND(K190:FA190) -> TRUE | K190: =K188>=0 -> TRUE | L190: =L188>=0 -> TRUE | M190: TRUE | N190: TRUE | O190: TRUE | P190: TRUE | Q190: TRUE | R190: TRUE | S190: TRUE | T190: TRUE | U190: TRUE | V190: TRUE | W190: TRUE | X190: TRUE | Y190: TRUE | Z190: TRUE | AA190: TRUE | AB190: TRUE | AC190: TRUE | AD190: TRUE | AE190: TRUE | AF190: TRUE | AG190: TRUE | AH190: TRUE | AI190: TRUE | AJ190: TRUE | AK190: TRUE | AL190: TRUE | AM190: TRUE | AN190: TRUE | AO190: TRUE | AP190: TRUE | AQ190: TRUE | AR190: TRUE | AS190: TRUE | AT190: TRUE | AU190: TRUE | AV190: TRUE | AW190: TRUE | AX190: TRUE | AY190: TRUE | AZ190: TRUE | BA190: TRUE | BB190: TRUE | BC190: TRUE | BD190: TRUE | BE190: TRUE | BF190: TRUE | BG190: TRUE | BH190: TRUE | BI190: TRUE | BJ190: TRUE | BK190: TRUE | BL190: TRUE | BM190: TRUE | BN190: TRUE | BO190: TRUE | BP190: TRUE | BQ190: TRUE | BR190: TRUE | BS190: TRUE | BT190: TRUE | BU190: TRUE | BV190: TRUE | BW190: TRUE | BX190: =BX188>=0 -> TRUE | BY190: TRUE | BZ190: TRUE | CA190: TRUE | CB190: TRUE | CC190: TRUE | CD190: TRUE | CE190: TRUE | CF190: TRUE | CG190: TRUE | CH190: TRUE | CI190: TRUE | CJ190: TRUE | CK190: TRUE | CL190: TRUE | CM190: TRUE | CN190: TRUE | CO190: TRUE | CP190: TRUE | CQ190: TRUE | CR190: TRUE | CS190: TRUE | CT190: TRUE | CU190: TRUE | CV190: TRUE | CW190: TRUE | CX190: TRUE | CY190: TRUE | CZ190: TRUE | DA190: TRUE | DB190: TRUE | DC190: TRUE | DD190: TRUE | DE190: TRUE | DF190: TRUE | DG190: TRUE | DH190: TRUE | DI190: TRUE | DJ190: TRUE | DK190: TRUE | DL190: TRUE | DM190: TRUE | DN190: TRUE | DO190: TRUE | DP190: TRUE | DQ190: TRUE | DR190: TRUE | DS190: TRUE | DT190: TRUE | DU190: TRUE | DV190: TRUE | DW190: TRUE | DX190: TRUE | DY190: TRUE | DZ190: TRUE | EA190: TRUE | EB190: TRUE | EC190: TRUE | ED190: TRUE | EE190: TRUE | EF190: TRUE | EG190: TRUE | EH190: TRUE | EI190: TRUE | EJ190: =EJ188>=0 -> TRUE | EK190: TRUE | EL190: TRUE | EM190: TRUE | EN190: TRUE | EO190: TRUE | EP190: TRUE | EQ190: TRUE | ER190: TRUE | ES190: TRUE | ET190: TRUE | EU190: TRUE | EV190: TRUE | EW190: TRUE | EX190: TRUE | EY190: TRUE | EZ190: TRUE | FA190: TRUE
D192: Interest rate | G192: Annual Rate | H192: =F79 -> 0.022 | I192: Periodic Rate | K192: =$H$192/$F$19 -> 0.0055 | L192: 0.0055 | M192: 0.0055 | N192: 0.0055 | O192: 0.0055 | P192: 0.0055 | Q192: 0.0055 | R192: 0.0055 | S192: 0.0055 | T192: 0.0055 | U192: 0.0055 | V192: 0.0055 | W192: 0.0055 | X192: 0.0055 | Y192: 0.0055 | Z192: 0.0055 | AA192: 0.0055 | AB192: 0.0055 | AC192: 0.0055 | AD192: 0.0055 | AE192: 0.0055 | AF192: 0.0055 | AG192: 0.0055 | AH192: 0.0055 | AI192: 0.0055 | AJ192: 0.0055 | AK192: 0.0055 | AL192: 0.0055 | AM192: 0.0055 | AN192: 0.0055 | AO192: 0.0055 | AP192: 0.0055 | AQ192: =$H$192/$F$19 -> 0.0055 | AR192: 0.0055 | AS192: 0.0055 | AT192: 0.0055 | AU192: 0.0055 | AV192: 0.0055 | AW192: 0.0055 | AX192: 0.0055 | AY192: 0.0055 | AZ192: 0.0055 | BA192: 0.0055 | BB192: 0.0055 | BC192: 0.0055 | BD192: 0.0055 | BE192: 0.0055 | BF192: 0.0055 | BG192: 0.0055 | BH192: 0.0055 | BI192: 0.0055 | BJ192: 0.0055 | BK192: 0.0055 | BL192: 0.0055 | BM192: 0.0055 | BN192: 0.0055 | BO192: 0.0055 | BP192: 0.0055 | BQ192: 0.0055 | BR192: 0.0055 | BS192: 0.0055 | BT192: 0.0055 | BU192: 0.0055 | BV192: 0.0055 | BW192: =$H$192/$F$19 -> 0.0055 | BX192: 0.0055 | BY192: 0.0055 | BZ192: 0.0055 | CA192: 0.0055 | CB192: 0.0055 | CC192: 0.0055 | CD192: 0.0055 | CE192: 0.0055 | CF192: 0.0055 | CG192: 0.0055 | CH192: 0.0055 | CI192: 0.0055 | CJ192: 0.0055 | CK192: 0.0055 | CL192: 0.0055 | CM192: 0.0055 | CN192: 0.0055 | CO192: 0.0055 | CP192: 0.0055 | CQ192: 0.0055 | CR192: 0.0055 | CS192: 0.0055 | CT192: 0.0055 | CU192: 0.0055 | CV192: 0.0055 | CW192: 0.0055 | CX192: 0.0055 | CY192: 0.0055 | CZ192: 0.0055 | DA192: 0.0055 | DB192: 0.0055 | DC192: =$H$192/$F$19 -> 0.0055 | DD192: 0.0055 | DE192: 0.0055 | DF192: 0.0055 | DG192: 0.0055 | DH192: 0.0055 | DI192: 0.0055 | DJ192: 0.0055 | DK192: 0.0055 | DL192: 0.0055 | DM192: 0.0055 | DN192: 0.0055 | DO192: 0.0055 | DP192: 0.0055 | DQ192: 0.0055 | DR192: 0.0055 | DS192: 0.0055 | DT192: 0.0055 | DU192: 0.0055 | DV192: 0.0055 | DW192: 0.0055 | DX192: 0.0055 | DY192: 0.0055 | DZ192: 0.0055 | EA192: 0.0055 | EB192: 0.0055 | EC192: 0.0055 | ED192: 0.0055 | EE192: 0.0055 | EF192: 0.0055 | EG192: 0.0055 | EH192: 0.0055 | EI192: =$H$192/$F$19 -> 0.0055 | EJ192: 0.0055 | EK192: 0.0055 | EL192: 0.0055 | EM192: 0.0055 | EN192: 0.0055 | EO192: 0.0055 | EP192: 0.0055 | EQ192: 0.0055 | ER192: 0.0055 | ES192: 0.0055 | ET192: 0.0055 | EU192: 0.0055 | EV192: 0.0055 | EW192: 0.0055 | EX192: 0.0055 | EY192: 0.0055 | EZ192: 0.0055 | FA192: 0.0055
D193: Interest accrued | K193: =K185*K192 -> 0 | L193: 163363.2 | M193: 163363.2 | N193: 163363.2 | O193: 163363.2 | P193: 163363.2 | Q193: 163363.2 | R193: 163363.2 | S193: 163363.2 | T193: 163363.2 | U193: 163363.2 | V193: 163363.2 | W193: 163363.2 | X193: 163363.2 | Y193: 163363.2 | Z193: 163363.2 | AA193: 163363.2 | AB193: 163363.2 | AC193: 163363.2 | AD193: 163363.2 | AE193: 163363.2 | AF193: 0 | AG193: 0 | AH193: 0 | AI193: 0 | AJ193: 0 | AK193: 0 | AL193: 0 | AM193: 0 | AN193: 0 | AO193: 0 | AP193: 0 | AQ193: =AQ185*AQ192 -> 0 | AR193: 0 | AS193: 0 | AT193: 0 | AU193: 0 | AV193: 0 | AW193: 0 | AX193: 0 | AY193: 0 | AZ193: 0 | BA193: 0 | BB193: 0 | BC193: 0 | BD193: 0 | BE193: 0 | BF193: 0 | BG193: 0 | BH193: 0 | BI193: 0 | BJ193: 0 | BK193: 0 | BL193: 0 | BM193: 0 | BN193: 0 | BO193: 0 | BP193: 0 | BQ193: 0 | BR193: 0 | BS193: 0 | BT193: 0 | BU193: 0 | BV193: 0 | BW193: =BW185*BW192 -> 0 | BX193: 0 | BY193: 0 | BZ193: 0 | CA193: 0 | CB193: 0 | CC193: 0 | CD193: 0 | CE193: 0 | CF193: 0 | CG193: 0 | CH193: 0 | CI193: 0 | CJ193: 0 | CK193: 0 | CL193: 0 | CM193: 0 | CN193: 0 | CO193: 0 | CP193: 0 | CQ193: 0 | CR193: 0 | CS193: 0 | CT193: 0 | CU193: 0 | CV193: 0 | CW193: 0 | CX193: 0 | CY193: 0 | CZ193: 0 | DA193: 0 | DB193: 0 | DC193: =DC185*DC192 -> 0 | DD193: 0 | DE193: 0 | DF193: 0 | DG193: 0 | DH193: 0 | DI193: 0 | DJ193: 0 | DK193: 0 | DL193: 0 | DM193: 0 | DN193: 0 | DO193: 0 | DP193: 0 | DQ193: 0 | DR193: 0 | DS193: 0 | DT193: 0 | DU193: 0 | DV193: 0 | DW193: 0 | DX193: 0 | DY193: 0 | DZ193: 0 | EA193: 0 | EB193: 0 | EC193: 0 | ED193: 0 | EE193: 0 | EF193: 0 | EG193: 0 | EH193: 0 | EI193: =EI185*EI192 -> 0 | EJ193: 0 | EK193: 0 | EL193: 0 | EM193: 0 | EN193: 0 | EO193: 0 | EP193: 0 | EQ193: 0 | ER193: 0 | ES193: 0 | ET193: 0 | EU193: 0 | EV193: 0 | EW193: 0 | EX193: 0 | EY193: 0 | EZ193: 0 | FA193: 0
D195: Fees Paid | G195: Fees % | H195: =F78 -> 0.0075 | I195: =F73 -> 2013-01-01 | K195: =($I195=K1)*$H$195*K183 -> 222768 | L195: =($I195=L1)*$H$195*L183 -> 0 | M195: 0 | N195: 0 | O195: 0 | P195: 0 | Q195: 0 | R195: 0 | S195: 0 | T195: 0 | U195: 0 | V195: 0 | W195: 0 | X195: 0 | Y195: 0 | Z195: 0 | AA195: 0 | AB195: 0 | AC195: 0 | AD195: 0 | AE195: 0 | AF195: 0 | AG195: 0 | AH195: 0 | AI195: 0 | AJ195: 0 | AK195: 0 | AL195: 0 | AM195: 0 | AN195: 0 | AO195: 0 | AP195: 0 | AQ195: 0 | AR195: 0 | AS195: 0 | AT195: 0 | AU195: 0 | AV195: 0 | AW195: 0 | AX195: 0 | AY195: 0 | AZ195: 0 | BA195: 0 | BB195: 0 | BC195: 0 | BD195: 0 | BE195: 0 | BF195: 0 | BG195: 0 | BH195: 0 | BI195: 0 | BJ195: 0 | BK195: 0 | BL195: 0 | BM195: 0 | BN195: 0 | BO195: 0 | BP195: 0 | BQ195: 0 | BR195: 0 | BS195: 0 | BT195: 0 | BU195: 0 | BV195: 0 | BW195: 0 | BX195: =($I195=BX1)*$H$195*BX183 -> 0 | BY195: 0 | BZ195: 0 | CA195: 0 | CB195: 0 | CC195: 0 | CD195: 0 | CE195: 0 | CF195: 0 | CG195: 0 | CH195: 0 | CI195: 0 | CJ195: 0 | CK195: 0 | CL195: 0 | CM195: 0 | CN195: 0 | CO195: 0 | CP195: 0 | CQ195: 0 | CR195: 0 | CS195: 0 | CT195: 0 | CU195: 0 | CV195: 0 | CW195: 0 | CX195: 0 | CY195: 0 | CZ195: 0 | DA195: 0 | DB195: 0 | DC195: 0 | DD195: 0 | DE195: 0 | DF195: 0 | DG195: 0 | DH195: 0 | DI195: 0 | DJ195: 0 | DK195: 0 | DL195: 0 | DM195: 0 | DN195: 0 | DO195: 0 | DP195: 0 | DQ195: 0 | DR195: 0 | DS195: 0 | DT195: 0 | DU195: 0 | DV195: 0 | DW195: 0 | DX195: 0 | DY195: 0 | DZ195: 0 | EA195: 0 | EB195: 0 | EC195: 0 | ED195: 0 | EE195: 0 | EF195: 0 | EG195: 0 | EH195: 0 | EI195: 0 | EJ195: =($I195=EJ1)*$H$195*EJ183 -> 0 | EK195: 0 | EL195: 0 | EM195: 0 | EN195: 0 | EO195: 0 | EP195: 0 | EQ195: 0 | ER195: 0 | ES195: 0 | ET195: 0 | EU195: 0 | EV195: 0 | EW195: 0 | EX195: 0 | EY195: 0 | EZ195: 0 | FA195: 0
B197: Construction Loan: Begin with Equity Funding and then Evaluate Draws and Repayments from Cash Flow Waterfall
C198: Equity Contribution from Term Loan
D199: Total Required Equity Contribution from Above | G199: =F82 -> 2013-01-01 | H199: =H172 -> 12729600 | K199: =($G199<=K$1)*$H199 -> 12729600 | L199: =($G199<=L$1)*$H199 -> 12729600 | M199: 12729600 | N199: 12729600 | O199: 12729600 | P199: 12729600 | Q199: 12729600 | R199: 12729600 | S199: 12729600 | T199: 12729600 | U199: 12729600 | V199: 12729600 | W199: 12729600 | X199: 12729600 | Y199: 12729600 | Z199: 12729600 | AA199: 12729600 | AB199: 12729600 | AC199: 12729600 | AD199: 12729600 | AE199: 12729600 | AF199: 12729600 | AG199: 12729600 | AH199: 12729600 | AI199: 12729600 | AJ199: 12729600 | AK199: 12729600 | AL199: 12729600 | AM199: 12729600 | AN199: 12729600 | AO199: 12729600 | AP199: 12729600 | AQ199: 12729600 | AR199: 12729600 | AS199: 12729600 | AT199: 12729600 | AU199: 12729600 | AV199: 12729600 | AW199: 12729600 | AX199: 12729600 | AY199: 12729600 | AZ199: 12729600 | BA199: 12729600 | BB199: 12729600 | BC199: 12729600 | BD199: 12729600 | BE199: 12729600 | BF199: 12729600 | BG199: 12729600 | BH199: 12729600 | BI199: 12729600 | BJ199: 12729600 | BK199: 12729600 | BL199: 12729600 | BM199: 12729600 | BN199: 12729600 | BO199: 12729600 | BP199: 12729600 | BQ199: 12729600 | BR199: 12729600 | BS199: 12729600 | BT199: 12729600 | BU199: 12729600 | BV199: 12729600 | BW199: 12729600 | BX199: =($G199<=BX$1)*$H199 -> 12729600 | BY199: 12729600 | BZ199: 12729600 | CA199: 12729600 | CB199: 12729600 | CC199: 12729600 | CD199: 12729600 | CE199: 12729600 | CF199: 12729600 | CG199: 12729600 | CH199: 12729600 | CI199: 12729600 | CJ199: 12729600 | CK199: 12729600 | CL199: 12729600 | CM199: 12729600 | CN199: 12729600 | CO199: 12729600 | CP199: 12729600 | CQ199: 12729600 | CR199: 12729600 | CS199: 12729600 | CT199: 12729600 | CU199: 12729600 | CV199: 12729600 | CW199: 12729600 | CX199: 12729600 | CY199: 12729600 | CZ199: 12729600 | DA199: 12729600 | DB199: 12729600 | DC199: 12729600 | DD199: 12729600 | DE199: 12729600 | DF199: 12729600 | DG199: 12729600 | DH199: 12729600 | DI199: 12729600 | DJ199: 12729600 | DK199: 12729600 | DL199: 12729600 | DM199: 12729600 | DN199: 12729600 | DO199: 12729600 | DP199: 12729600 | DQ199: 12729600 | DR199: 12729600 | DS199: 12729600 | DT199: 12729600 | DU199: 12729600 | DV199: 12729600 | DW199: 12729600 | DX199: 12729600 | DY199: 12729600 | DZ199: 12729600 | EA199: 12729600 | EB199: 12729600 | EC199: 12729600 | ED199: 12729600 | EE199: 12729600 | EF199: 12729600 | EG199: 12729600 | EH199: 12729600 | EI199: 12729600 | EJ199: =($G199<=EJ$1)*$H199 -> 12729600 | EK199: 12729600 | EL199: 12729600 | EM199: 12729600 | EN199: 12729600 | EO199: 12729600 | EP199: 12729600 | EQ199: 12729600 | ER199: 12729600 | ES199: 12729600 | ET199: 12729600 | EU199: 12729600 | EV199: 12729600 | EW199: 12729600 | EX199: 12729600 | EY199: 12729600 | EZ199: 12729600 | FA199: 12729600
D200: Opening Balance of Equity Contribution | K200: =J202 -> 0 | L200: =K202 -> 3356119.285 | M200: 6790222.996 | N200: 10743202.66 | O200: 12729600 | P200: 12729600 | Q200: 12729600 | R200: 12729600 | S200: 12729600 | T200: 12729600 | U200: 12729600 | V200: 12729600 | W200: 12729600 | X200: 12729600 | Y200: 12729600 | Z200: 12729600 | AA200: 12729600 | AB200: 12729600 | AC200: 12729600 | AD200: 12729600 | AE200: 12729600 | AF200: 12729600 | AG200: 12729600 | AH200: 12729600 | AI200: 12729600 | AJ200: 12729600 | AK200: 12729600 | AL200: 12729600 | AM200: 12729600 | AN200: 12729600 | AO200: 12729600 | AP200: 12729600 | AQ200: 12729600 | AR200: 12729600 | AS200: 12729600 | AT200: 12729600 | AU200: 12729600 | AV200: 12729600 | AW200: 12729600 | AX200: 12729600 | AY200: 12729600 | AZ200: 12729600 | BA200: 12729600 | BB200: 12729600 | BC200: 12729600 | BD200: 12729600 | BE200: 12729600 | BF200: 12729600 | BG200: 12729600 | BH200: 12729600 | BI200: 12729600 | BJ200: 12729600 | BK200: 12729600 | BL200: 12729600 | BM200: 12729600 | BN200: 12729600 | BO200: 12729600 | BP200: 12729600 | BQ200: 12729600 | BR200: 12729600 | BS200: 12729600 | BT200: 12729600 | BU200: 12729600 | BV200: 12729600 | BW200: 12729600 | BX200: =BW202 -> 12729600 | BY200: 12729600 | BZ200: 12729600 | CA200: 12729600 | CB200: 12729600 | CC200: 12729600 | CD200: 12729600 | CE200: 12729600 | CF200: 12729600 | CG200: 12729600 | CH200: 12729600 | CI200: 12729600 | CJ200: 12729600 | CK200: 12729600 | CL200: 12729600 | CM200: 12729600 | CN200: 12729600 | CO200: 12729600 | CP200: 12729600 | CQ200: 12729600 | CR200: 12729600 | CS200: 12729600 | CT200: 12729600 | CU200: 12729600 | CV200: 12729600 | CW200: 12729600 | CX200: 12729600 | CY200: 12729600 | CZ200: 12729600 | DA200: 12729600 | DB200: 12729600 | DC200: 12729600 | DD200: 12729600 | DE200: 12729600 | DF200: 12729600 | DG200: 12729600 | DH200: 12729600 | DI200: 12729600 | DJ200: 12729600 | DK200: 12729600 | DL200: 12729600 | DM200: 12729600 | DN200: 12729600 | DO200: 12729600 | DP200: 12729600 | DQ200: 12729600 | DR200: 12729600 | DS200: 12729600 | DT200: 12729600 | DU200: 12729600 | DV200: 12729600 | DW200: 12729600 | DX200: 12729600 | DY200: 12729600 | DZ200: 12729600 | EA200: 12729600 | EB200: 12729600 | EC200: 12729600 | ED200: 12729600 | EE200: 12729600 | EF200: 12729600 | EG200: 12729600 | EH200: 12729600 | EI200: 12729600 | EJ200: =EI202 -> 12729600 | EK200: 12729600 | EL200: 12729600 | EM200: 12729600 | EN200: 12729600 | EO200: 12729600 | EP200: 12729600 | EQ200: 12729600 | ER200: 12729600 | ES200: 12729600 | ET200: 12729600 | EU200: 12729600 | EV200: 12729600 | EW200: 12729600 | EX200: 12729600 | EY200: 12729600 | EZ200: 12729600 | FA200: 12729600
D201: Add: New Equity Funding from the Cash Flow Analysis | K201: =K259 -> 3356119.285 | L201: =L259 -> 3434103.711 | M201: 3952979.669 | N201: 1986397.335 | O201: 0 | P201: 0 | Q201: 0 | R201: 0 | S201: 0 | T201: 0 | U201: 0 | V201: 0 | W201: 0 | X201: 0 | Y201: 0 | Z201: 0 | AA201: 0 | AB201: 0 | AC201: 0 | AD201: 0 | AE201: 0 | AF201: 0 | AG201: 0 | AH201: 0 | AI201: 0 | AJ201: 0 | AK201: 0 | AL201: 0 | AM201: 0 | AN201: 0 | AO201: 0 | AP201: 0 | AQ201: 0 | AR201: 0 | AS201: 0 | AT201: 0 | AU201: 0 | AV201: 0 | AW201: 0 | AX201: 0 | AY201: 0 | AZ201: 0 | BA201: 0 | BB201: 0 | BC201: 0 | BD201: 0 | BE201: 0 | BF201: 0 | BG201: 0 | BH201: 0 | BI201: 0 | BJ201: 0 | BK201: 0 | BL201: 0 | BM201: 0 | BN201: 0 | BO201: 0 | BP201: 0 | BQ201: 0 | BR201: 0 | BS201: 0 | BT201: 0 | BU201: 0 | BV201: 0 | BW201: 0 | BX201: =BX259 -> 0 | BY201: 0 | BZ201: 0 | CA201: 0 | CB201: 0 | CC201: 0 | CD201: 0 | CE201: 0 | CF201: 0 | CG201: 0 | CH201: 0 | CI201: 0 | CJ201: 0 | CK201: 0 | CL201: 0 | CM201: 0 | CN201: 0 | CO201: 0 | CP201: 0 | CQ201: 0 | CR201: 0 | CS201: 0 | CT201: 0 | CU201: 0 | CV201: 0 | CW201: 0 | CX201: 0 | CY201: 0 | CZ201: 0 | DA201: 0 | DB201: 0 | DC201: 0 | DD201: 0 | DE201: 0 | DF201: 0 | DG201: 0 | DH201: 0 | DI201: 0 | DJ201: 0 | DK201: 0 | DL201: 0 | DM201: 0 | DN201: 0 | DO201: 0 | DP201: 0 | DQ201: 0 | DR201: 0 | DS201: 0 | DT201: 0 | DU201: 0 | DV201: 0 | DW201: 0 | DX201: 0 | DY201: 0 | DZ201: 0 | EA201: 0 | EB201: 0 | EC201: 0 | ED201: 0 | EE201: 0 | EF201: 0 | EG201: 0 | EH201: 0 | EI201: 0 | EJ201: =EJ259 -> 0 | EK201: 0 | EL201: 0 | EM201: 0 | EN201: 0 | EO201: 0 | EP201: 0 | EQ201: 0 | ER201: 0 | ES201: 0 | ET201: 0 | EU201: 0 | EV201: 0 | EW201: 0 | EX201: 0 | EY201: 0 | EZ201: 0 | FA201: 0
D202: Closing Balance | K202: =K200+K201 -> 3356119.285 | L202: =L200+L201 -> 6790222.996 | M202: 10743202.66 | N202: 12729600 | O202: 12729600 | P202: 12729600 | Q202: 12729600 | R202: 12729600 | S202: 12729600 | T202: 12729600 | U202: 12729600 | V202: 12729600 | W202: 12729600 | X202: 12729600 | Y202: 12729600 | Z202: 12729600 | AA202: 12729600 | AB202: 12729600 | AC202: 12729600 | AD202: 12729600 | AE202: 12729600 | AF202: 12729600 | AG202: 12729600 | AH202: 12729600 | AI202: 12729600 | AJ202: 12729600 | AK202: 12729600 | AL202: 12729600 | AM202: 12729600 | AN202: 12729600 | AO202: 12729600 | AP202: 12729600 | AQ202: 12729600 | AR202: 12729600 | AS202: 12729600 | AT202: 12729600 | AU202: 12729600 | AV202: 12729600 | AW202: 12729600 | AX202: 12729600 | AY202: 12729600 | AZ202: 12729600 | BA202: 12729600 | BB202: 12729600 | BC202: 12729600 | BD202: 12729600 | BE202: 12729600 | BF202: 12729600 | BG202: 12729600 | BH202: 12729600 | BI202: 12729600 | BJ202: 12729600 | BK202: 12729600 | BL202: 12729600 | BM202: 12729600 | BN202: 12729600 | BO202: 12729600 | BP202: 12729600 | BQ202: 12729600 | BR202: 12729600 | BS202: 12729600 | BT202: 12729600 | BU202: 12729600 | BV202: 12729600 | BW202: 12729600 | BX202: =BX200+BX201 -> 12729600 | BY202: 12729600 | BZ202: 12729600 | CA202: 12729600 | CB202: 12729600 | CC202: 12729600 | CD202: 12729600 | CE202: 12729600 | CF202: 12729600 | CG202: 12729600 | CH202: 12729600 | CI202: 12729600 | CJ202: 12729600 | CK202: 12729600 | CL202: 12729600 | CM202: 12729600 | CN202: 12729600 | CO202: 12729600 | CP202: 12729600 | CQ202: 12729600 | CR202: 12729600 | CS202: 12729600 | CT202: 12729600 | CU202: 12729600 | CV202: 12729600 | CW202: 12729600 | CX202: 12729600 | CY202: 12729600 | CZ202: 12729600 | DA202: 12729600 | DB202: 12729600 | DC202: 12729600 | DD202: 12729600 | DE202: 12729600 | DF202: 12729600 | DG202: 12729600 | DH202: 12729600 | DI202: 12729600 | DJ202: 12729600 | DK202: 12729600 | DL202: 12729600 | DM202: 12729600 | DN202: 12729600 | DO202: 12729600 | DP202: 12729600 | DQ202: 12729600 | DR202: 12729600 | DS202: 12729600 | DT202: 12729600 | DU202: 12729600 | DV202: 12729600 | DW202: 12729600 | DX202: 12729600 | DY202: 12729600 | DZ202: 12729600 | EA202: 12729600 | EB202: 12729600 | EC202: 12729600 | ED202: 12729600 | EE202: 12729600 | EF202: 12729600 | EG202: 12729600 | EH202: 12729600 | EI202: 12729600 | EJ202: =EJ200+EJ201 -> 12729600 | EK202: 12729600 | EL202: 12729600 | EM202: 12729600 | EN202: 12729600 | EO202: 12729600 | EP202: 12729600 | EQ202: 12729600 | ER202: 12729600 | ES202: 12729600 | ET202: 12729600 | EU202: 12729600 | EV202: 12729600 | EW202: 12729600 | EX202: 12729600 | EY202: 12729600 | EZ202: 12729600 | FA202: 12729600
D203: Remaining Equity Balance to Fund | K203: =K199-K200 -> 12729600 | L203: =L199-L200 -> 9373480.715 | M203: 5939377.004 | N203: 1986397.335 | O203: 0 | P203: 0 | Q203: 0 | R203: 0 | S203: 0 | T203: 0 | U203: 0 | V203: 0 | W203: 0 | X203: 0 | Y203: 0 | Z203: 0 | AA203: 0 | AB203: 0 | AC203: 0 | AD203: 0 | AE203: 0 | AF203: 0 | AG203: 0 | AH203: 0 | AI203: 0 | AJ203: 0 | AK203: 0 | AL203: 0 | AM203: 0 | AN203: 0 | AO203: 0 | AP203: 0 | AQ203: 0 | AR203: 0 | AS203: 0 | AT203: 0 | AU203: 0 | AV203: 0 | AW203: 0 | AX203: 0 | AY203: 0 | AZ203: 0 | BA203: 0 | BB203: 0 | BC203: 0 | BD203: 0 | BE203: 0 | BF203: 0 | BG203: 0 | BH203: 0 | BI203: 0 | BJ203: 0 | BK203: 0 | BL203: 0 | BM203: 0 | BN203: 0 | BO203: 0 | BP203: 0 | BQ203: 0 | BR203: 0 | BS203: 0 | BT203: 0 | BU203: 0 | BV203: 0 | BW203: 0 | BX203: =BX199-BX200 -> 0 | BY203: 0 | BZ203: 0 | CA203: 0 | CB203: 0 | CC203: 0 | CD203: 0 | CE203: 0 | CF203: 0 | CG203: 0 | CH203: 0 | CI203: 0 | CJ203: 0 | CK203: 0 | CL203: 0 | CM203: 0 | CN203: 0 | CO203: 0 | CP203: 0 | CQ203: 0 | CR203: 0 | CS203: 0 | CT203: 0 | CU203: 0 | CV203: 0 | CW203: 0 | CX203: 0 | CY203: 0 | CZ203: 0 | DA203: 0 | DB203: 0 | DC203: 0 | DD203: 0 | DE203: 0 | DF203: 0 | DG203: 0 | DH203: 0 | DI203: 0 | DJ203: 0 | DK203: 0 | DL203: 0 | DM203: 0 | DN203: 0 | DO203: 0 | DP203: 0 | DQ203: 0 | DR203: 0 | DS203: 0 | DT203: 0 | DU203: 0 | DV203: 0 | DW203: 0 | DX203: 0 | DY203: 0 | DZ203: 0 | EA203: 0 | EB203: 0 | EC203: 0 | ED203: 0 | EE203: 0 | EF203: 0 | EG203: 0 | EH203: 0 | EI203: 0 | EJ203: =EJ199-EJ200 -> 0 | EK203: 0 | EL203: 0 | EM203: 0 | EN203: 0 | EO203: 0 | EP203: 0 | EQ203: 0 | ER203: 0 | ES203: 0 | ET203: 0 | EU203: 0 | EV203: 0 | EW203: 0 | EX203: 0 | EY203: 0 | EZ203: 0 | FA203: 0
C205: Loan Balance
D206: Loan Commitment | G206: =G199 -> 2013-01-01 | H206: =F83 -> 2017-02-01 | I206: =H171 -> 50918400 | K206: =AND(K1>=$G$206,K1<=$H$206)*$I$206 -> 50918400 | L206: 50918400 | M206: 50918400 | N206: 50918400 | O206: 50918400 | P206: 50918400 | Q206: 50918400 | R206: 50918400 | S206: 50918400 | T206: 50918400 | U206: 50918400 | V206: 50918400 | W206: 50918400 | X206: 50918400 | Y206: 50918400 | Z206: 50918400 | AA206: 50918400 | AB206: 0 | AC206: 0 | AD206: 0 | AE206: 0 | AF206: 0 | AG206: 0 | AH206: 0 | AI206: 0 | AJ206: 0 | AK206: 0 | AL206: 0 | AM206: 0 | AN206: 0 | AO206: 0 | AP206: 0 | AQ206: =AND(AQ1>=$G$206,AQ1<=$H$206)*$I$206 -> 0 | AR206: 0 | AS206: 0 | AT206: 0 | AU206: 0 | AV206: 0 | AW206: 0 | AX206: 0 | AY206: 0 | AZ206: 0 | BA206: 0 | BB206: 0 | BC206: 0 | BD206: 0 | BE206: 0 | BF206: 0 | BG206: 0 | BH206: 0 | BI206: 0 | BJ206: 0 | BK206: 0 | BL206: 0 | BM206: 0 | BN206: 0 | BO206: 0 | BP206: 0 | BQ206: 0 | BR206: 0 | BS206: 0 | BT206: 0 | BU206: 0 | BV206: 0 | BW206: =AND(BW1>=$G$206,BW1<=$H$206)*$I$206 -> 0 | BX206: 0 | BY206: 0 | BZ206: 0 | CA206: 0 | CB206: 0 | CC206: 0 | CD206: 0 | CE206: 0 | CF206: 0 | CG206: 0 | CH206: 0 | CI206: 0 | CJ206: 0 | CK206: 0 | CL206: 0 | CM206: 0 | CN206: 0 | CO206: 0 | CP206: 0 | CQ206: 0 | CR206: 0 | CS206: 0 | CT206: 0 | CU206: 0 | CV206: 0 | CW206: 0 | CX206: 0 | CY206: 0 | CZ206: 0 | DA206: 0 | DB206: 0 | DC206: =AND(DC1>=$G$206,DC1<=$H$206)*$I$206 -> 0 | DD206: 0 | DE206: 0 | DF206: 0 | DG206: 0 | DH206: 0 | DI206: 0 | DJ206: 0 | DK206: 0 | DL206: 0 | DM206: 0 | DN206: 0 | DO206: 0 | DP206: 0 | DQ206: 0 | DR206: 0 | DS206: 0 | DT206: 0 | DU206: 0 | DV206: 0 | DW206: 0 | DX206: 0 | DY206: 0 | DZ206: 0 | EA206: 0 | EB206: 0 | EC206: 0 | ED206: 0 | EE206: 0 | EF206: 0 | EG206: 0 | EH206: 0 | EI206: =AND(EI1>=$G$206,EI1<=$H$206)*$I$206 -> 0 | EJ206: 0 | EK206: 0 | EL206: 0 | EM206: 0 | EN206: 0 | EO206: 0 | EP206: 0 | EQ206: 0 | ER206: 0 | ES206: 0 | ET206: 0 | EU206: 0 | EV206: 0 | EW206: 0 | EX206: 0 | EY206: 0 | EZ206: 0 | FA206: 0
D207: Opening balance | K207: =J210 -> 0 | L207: =K210 -> 0 | M207: 0 | N207: 0 | O207: 2454214.639 | P207: 7322098.819 | Q207: 12525910.07 | R207: 17945817.84 | S207: 23445027.72 | T207: 28880686.32 | U207: 34115595.83 | V207: 39029151.55 | W207: 43526063.08 | X207: 47541829.09 | Y207: 50918400 | Z207: 50918400 | AA207: 50918400 | AB207: 50796803.3 | AC207: 50634145 | AD207: 50471982.69 | AE207: 50250889.9 | AF207: 50250889.9 | AG207: 49891440.63 | AH207: 49532271.81 | AI207: 49152438.6 | AJ207: 48772870.48 | AK207: 48393572.21 | AL207: 48014548.54 | AM207: 47527342.12 | AN207: 47040291.67 | AO207: 46553401.91 | AP207: 46066677.57 | AQ207: 45556350.93 | AR207: 45046171.22 | AS207: 44536143.25 | AT207: 44026271.88 | AU207: 43492789.47 | AV207: 42983790.72 | AW207: 42474964 | AX207: 41966314.29 | AY207: 41376485.15 | AZ207: 40786746.9 | BA207: 40197104.53 | BB207: 39607563.07 | BC207: 38992661.24 | BD207: 38377840.37 | BE207: 37763105.54 | BF207: 37148461.89 | BG207: 36508448.28 | BH207: 35868506.12 | BI207: 35228640.62 | BJ207: 34588857.04 | BK207: 33876416.73 | BL207: 33163982.92 | BM207: 32451560.87 | BN207: 31739155.89 | BO207: 0 | BP207: 0 | BQ207: 0 | BR207: 0 | BS207: 0 | BT207: 0 | BU207: 0 | BV207: 0 | BW207: 0 | BX207: =BW210 -> 0 | BY207: 0 | BZ207: 0 | CA207: 0 | CB207: 0 | CC207: 0 | CD207: 0 | CE207: 0 | CF207: 0 | CG207: 0 | CH207: 0 | CI207: 0 | CJ207: 0 | CK207: 0 | CL207: 0 | CM207: 0 | CN207: 0 | CO207: 0 | CP207: 0 | CQ207: 0 | CR207: 0 | CS207: 0 | CT207: 0 | CU207: 0 | CV207: 0 | CW207: 0 | CX207: 0 | CY207: 0 | CZ207: 0 | DA207: 0 | DB207: 0 | DC207: 0 | DD207: 0 | DE207: 0 | DF207: 0 | DG207: 0 | DH207: 0 | DI207: 0 | DJ207: 0 | DK207: 0 | DL207: 0 | DM207: 0 | DN207: 0 | DO207: 0 | DP207: 0 | DQ207: 0 | DR207: 0 | DS207: 0 | DT207: 0 | DU207: 0 | DV207: 0 | DW207: 0 | DX207: 0 | DY207: 0 | DZ207: 0 | EA207: 0 | EB207: 0 | EC207: 0 | ED207: 0 | EE207: 0 | EF207: 0 | EG207: 0 | EH207: 0 | EI207: 0 | EJ207: =EI210 -> 0 | EK207: 0 | EL207: 0 | EM207: 0 | EN207: 0 | EO207: 0 | EP207: 0 | EQ207: 0 | ER207: 0 | ES207: 0 | ET207: 0 | EU207: 0 | EV207: 0 | EW207: 0 | EX207: 0 | EY207: 0 | EZ207: 0 | FA207: 0
D208: Add: Amount Funded from Negative Cash Flow Relative to Remaining Commitment | K208: =K261 -> 0 | L208: =L261 -> 0 | M208: 0 | N208: 2454214.639 | O208: 4867884.18 | P208: 5203811.25 | Q208: 5419907.776 | R208: 5499209.87 | S208: 5435658.603 | T208: 5234909.512 | U208: 4913555.722 | V208: 4496911.525 | W208: 4015766.015 | X208: 3376570.907 | Y208: 0 | Z208: 0 | AA208: 0 | AB208: 0 | AC208: 0 | AD208: 0 | AE208: 0 | AF208: 0 | AG208: 0 | AH208: 0 | AI208: 0 | AJ208: 0 | AK208: 0 | AL208: 0 | AM208: 0 | AN208: 0 | AO208: 0 | AP208: 0 | AQ208: 0 | AR208: 0 | AS208: 0 | AT208: 0 | AU208: 0 | AV208: 0 | AW208: 0 | AX208: 0 | AY208: 0 | AZ208: 0 | BA208: 0 | BB208: 0 | BC208: 0 | BD208: 0 | BE208: 0 | BF208: 0 | BG208: 0 | BH208: 0 | BI208: 0 | BJ208: 0 | BK208: 0 | BL208: 0 | BM208: 0 | BN208: 0 | BO208: 0 | BP208: 0 | BQ208: 0 | BR208: 0 | BS208: 0 | BT208: 0 | BU208: 0 | BV208: 0 | BW208: 0 | BX208: =BX261 -> 0 | BY208: 0 | BZ208: 0 | CA208: 0 | CB208: 0 | CC208: 0 | CD208: 0 | CE208: 0 | CF208: 0 | CG208: 0 | CH208: 0 | CI208: 0 | CJ208: 0 | CK208: 0 | CL208: 0 | CM208: 0 | CN208: 0 | CO208: 0 | CP208: 0 | CQ208: 0 | CR208: 0 | CS208: 0 | CT208: 0 | CU208: 0 | CV208: 0 | CW208: 0 | CX208: 0 | CY208: 0 | CZ208: 0 | DA208: 0 | DB208: 0 | DC208: 0 | DD208: 0 | DE208: 0 | DF208: 0 | DG208: 0 | DH208: 0 | DI208: 0 | DJ208: 0 | DK208: 0 | DL208: 0 | DM208: 0 | DN208: 0 | DO208: 0 | DP208: 0 | DQ208: 0 | DR208: 0 | DS208: 0 | DT208: 0 | DU208: 0 | DV208: 0 | DW208: 0 | DX208: 0 | DY208: 0 | DZ208: 0 | EA208: 0 | EB208: 0 | EC208: 0 | ED208: 0 | EE208: 0 | EF208: 0 | EG208: 0 | EH208: 0 | EI208: 0 | EJ208: =EJ261 -> 0 | EK208: 0 | EL208: 0 | EM208: 0 | EN208: 0 | EO208: 0 | EP208: 0 | EQ208: 0 | ER208: 0 | ES208: 0 | ET208: 0 | EU208: 0 | EV208: 0 | EW208: 0 | EX208: 0 | EY208: 0 | EZ208: 0 | FA208: 0
D209: Less: Cash Flow Sweep from Cash Flow Analysis with MIN function | K209: =K265 -> 0 | L209: =L265 -> 0 | M209: 0 | N209: 0 | O209: 0 | P209: 0 | Q209: 0 | R209: 0 | S209: 0 | T209: 0 | U209: 0 | V209: 0 | W209: 0 | X209: 0 | Y209: 0 | Z209: 0 | AA209: 121596.6965 | AB209: 162658.301 | AC209: 162162.3108 | AD209: 221092.7914 | AE209: 0 | AF209: 359449.2662 | AG209: 359168.8211 | AH209: 379833.2155 | AI209: 379568.1142 | AJ209: 379298.2759 | AK209: 379023.6677 | AL209: 487206.4153 | AM209: 487050.4509 | AN209: 486889.768 | AO209: 486724.333 | AP209: 510326.64 | AQ209: 510179.7159 | AR209: 510027.9706 | AS209: 509871.3697 | AT209: 533482.4065 | AU209: 508998.747 | AV209: 508826.726 | AW209: 508649.7084 | AX209: 589829.1358 | AY209: 589738.2485 | AZ209: 589642.3711 | BA209: 589541.4675 | BB209: 614901.8218 | BC209: 614820.8765 | BD209: 614734.8308 | BE209: 614643.6477 | BF209: 640013.6104 | BG209: 639942.1606 | BH209: 639865.4965 | BI209: 639783.5802 | BJ209: 712440.309 | BK209: 712433.8113 | BL209: 712422.0478 | BM209: 712404.9797 | BN209: 31739155.89 | BO209: 0 | BP209: 0 | BQ209: 0 | BR209: 0 | BS209: 0 | BT209: 0 | BU209: 0 | BV209: 0 | BW209: 0 | BX209: =BX265 -> 0 | BY209: 0 | BZ209: 0 | CA209: 0 | CB209: 0 | CC209: 0 | CD209: 0 | CE209: 0 | CF209: 0 | CG209: 0 | CH209: 0 | CI209: 0 | CJ209: 0 | CK209: 0 | CL209: 0 | CM209: 0 | CN209: 0 | CO209: 0 | CP209: 0 | CQ209: 0 | CR209: 0 | CS209: 0 | CT209: 0 | CU209: 0 | CV209: 0 | CW209: 0 | CX209: 0 | CY209: 0 | CZ209: 0 | DA209: 0 | DB209: 0 | DC209: 0 | DD209: 0 | DE209: 0 | DF209: 0 | DG209: 0 | DH209: 0 | DI209: 0 | DJ209: 0 | DK209: 0 | DL209: 0 | DM209: 0 | DN209: 0 | DO209: 0 | DP209: 0 | DQ209: 0 | DR209: 0 | DS209: 0 | DT209: 0 | DU209: 0 | DV209: 0 | DW209: 0 | DX209: 0 | DY209: 0 | DZ209: 0 | EA209: 0 | EB209: 0 | EC209: 0 | ED209: 0 | EE209: 0 | EF209: 0 | EG209: 0 | EH209: 0 | EI209: 0 | EJ209: =EJ265 -> 0 | EK209: 0 | EL209: 0 | EM209: 0 | EN209: 0 | EO209: 0 | EP209: 0 | EQ209: 0 | ER209: 0 | ES209: 0 | ET209: 0 | EU209: 0 | EV209: 0 | EW209: 0 | EX209: 0 | EY209: 0 | EZ209: 0 | FA209: 0
D210: Closing balance | K210: =K207+K208-K209 -> 0 | L210: =L207+L208-L209 -> 0 | M210: 0 | N210: 2454214.639 | O210: 7322098.819 | P210: 12525910.07 | Q210: 17945817.84 | R210: 23445027.72 | S210: 28880686.32 | T210: 34115595.83 | U210: 39029151.55 | V210: 43526063.08 | W210: 47541829.09 | X210: 50918400 | Y210: 50918400 | Z210: 50918400 | AA210: 50796803.3 | AB210: 50634145 | AC210: 50471982.69 | AD210: 50250889.9 | AE210: 50250889.9 | AF210: 49891440.63 | AG210: 49532271.81 | AH210: 49152438.6 | AI210: 48772870.48 | AJ210: 48393572.21 | AK210: 48014548.54 | AL210: 47527342.12 | AM210: 47040291.67 | AN210: 46553401.91 | AO210: 46066677.57 | AP210: 45556350.93 | AQ210: 45046171.22 | AR210: 44536143.25 | AS210: 44026271.88 | AT210: 43492789.47 | AU210: 42983790.72 | AV210: 42474964 | AW210: 41966314.29 | AX210: 41376485.15 | AY210: 40786746.9 | AZ210: 40197104.53 | BA210: 39607563.07 | BB210: 38992661.24 | BC210: 38377840.37 | BD210: 37763105.54 | BE210: 37148461.89 | BF210: 36508448.28 | BG210: 35868506.12 | BH210: 35228640.62 | BI210: 34588857.04 | BJ210: 33876416.73 | BK210: 33163982.92 | BL210: 32451560.87 | BM210: 31739155.89 | BN210: 0 | BO210: 0 | BP210: 0 | BQ210: 0 | BR210: 0 | BS210: 0 | BT210: 0 | BU210: 0 | BV210: 0 | BW210: 0 | BX210: =BX207+BX208-BX209 -> 0 | BY210: 0 | BZ210: 0 | CA210: 0 | CB210: 0 | CC210: 0 | CD210: 0 | CE210: 0 | CF210: 0 | CG210: 0 | CH210: 0 | CI210: 0 | CJ210: 0 | CK210: 0 | CL210: 0 | CM210: 0 | CN210: 0 | CO210: 0 | CP210: 0 | CQ210: 0 | CR210: 0 | CS210: 0 | CT210: 0 | CU210: 0 | CV210: 0 | CW210: 0 | CX210: 0 | CY210: 0 | CZ210: 0 | DA210: 0 | DB210: 0 | DC210: 0 | DD210: 0 | DE210: 0 | DF210: 0 | DG210: 0 | DH210: 0 | DI210: 0 | DJ210: 0 | DK210: 0 | DL210: 0 | DM210: 0 | DN210: 0 | DO210: 0 | DP210: 0 | DQ210: 0 | DR210: 0 | DS210: 0 | DT210: 0 | DU210: 0 | DV210: 0 | DW210: 0 | DX210: 0 | DY210: 0 | DZ210: 0 | EA210: 0 | EB210: 0 | EC210: 0 | ED210: 0 | EE210: 0 | EF210: 0 | EG210: 0 | EH210: 0 | EI210: 0 | EJ210: =EJ207+EJ208-EJ209 -> 0 | EK210: 0 | EL210: 0 | EM210: 0 | EN210: 0 | EO210: 0 | EP210: 0 | EQ210: 0 | ER210: 0 | ES210: 0 | ET210: 0 | EU210: 0 | EV210: 0 | EW210: 0 | EX210: 0 | EY210: 0 | EZ210: 0 | FA210: 0
D211: Unfunded Balance | K211: =MAX(K206-K207,0) -> 50918400 | L211: =MAX(L206-L207,0) -> 50918400 | M211: 50918400 | N211: 50918400 | O211: 48464185.36 | P211: 43596301.18 | Q211: 38392489.93 | R211: 32972582.16 | S211: 27473372.28 | T211: 22037713.68 | U211: 16802804.17 | V211: 11889248.45 | W211: 7392336.922 | X211: 3376570.907 | Y211: 0 | Z211: 0 | AA211: 0 | AB211: 0 | AC211: 0 | AD211: 0 | AE211: 0 | AF211: 0 | AG211: 0 | AH211: 0 | AI211: 0 | AJ211: 0 | AK211: 0 | AL211: 0 | AM211: 0 | AN211: 0 | AO211: 0 | AP211: 0 | AQ211: 0 | AR211: 0 | AS211: 0 | AT211: 0 | AU211: 0 | AV211: 0 | AW211: 0 | AX211: 0 | AY211: 0 | AZ211: 0 | BA211: 0 | BB211: 0 | BC211: 0 | BD211: 0 | BE211: 0 | BF211: 0 | BG211: 0 | BH211: 0 | BI211: 0 | BJ211: 0 | BK211: 0 | BL211: 0 | BM211: 0 | BN211: 0 | BO211: 0 | BP211: 0 | BQ211: 0 | BR211: 0 | BS211: 0 | BT211: 0 | BU211: 0 | BV211: 0 | BW211: 0 | BX211: =MAX(BX206-BX207,0) -> 0 | BY211: 0 | BZ211: 0 | CA211: 0 | CB211: 0 | CC211: 0 | CD211: 0 | CE211: 0 | CF211: 0 | CG211: 0 | CH211: 0 | CI211: 0 | CJ211: 0 | CK211: 0 | CL211: 0 | CM211: 0 | CN211: 0 | CO211: 0 | CP211: 0 | CQ211: 0 | CR211: 0 | CS211: 0 | CT211: 0 | CU211: 0 | CV211: 0 | CW211: 0 | CX211: 0 | CY211: 0 | CZ211: 0 | DA211: 0 | DB211: 0 | DC211: 0 | DD211: 0 | DE211: 0 | DF211: 0 | DG211: 0 | DH211: 0 | DI211: 0 | DJ211: 0 | DK211: 0 | DL211: 0 | DM211: 0 | DN211: 0 | DO211: 0 | DP211: 0 | DQ211: 0 | DR211: 0 | DS211: 0 | DT211: 0 | DU211: 0 | DV211: 0 | DW211: 0 | DX211: 0 | DY211: 0 | DZ211: 0 | EA211: 0 | EB211: 0 | EC211: 0 | ED211: 0 | EE211: 0 | EF211: 0 | EG211: 0 | EH211: 0 | EI211: 0 | EJ211: =MAX(EJ206-EJ207,0) -> 0 | EK211: 0 | EL211: 0 | EM211: 0 | EN211: 0 | EO211: 0 | EP211: 0 | EQ211: 0 | ER211: 0 | ES211: 0 | ET211: 0 | EU211: 0 | EV211: 0 | EW211: 0 | EX211: 0 | EY211: 0 | EZ211: 0 | FA211: 0
D213: Interest rate | G213: Annual Rate | H213: =F88 -> 0.019 | I213: Periodic Rate | K213: =$H$213/$F$19 -> 0.00475 | L213: 0.00475 | M213: 0.00475 | N213: 0.00475 | O213: 0.00475 | P213: 0.00475 | Q213: 0.00475 | R213: 0.00475 | S213: 0.00475 | T213: 0.00475 | U213: 0.00475 | V213: 0.00475 | W213: 0.00475 | X213: 0.00475 | Y213: 0.00475 | Z213: 0.00475 | AA213: 0.00475 | AB213: 0.00475 | AC213: 0.00475 | AD213: 0.00475 | AE213: 0.00475 | AF213: 0.00475 | AG213: 0.00475 | AH213: 0.00475 | AI213: 0.00475 | AJ213: 0.00475 | AK213: 0.00475 | AL213: 0.00475 | AM213: 0.00475 | AN213: 0.00475 | AO213: 0.00475 | AP213: 0.00475 | AQ213: =$H$213/$F$19 -> 0.00475 | AR213: 0.00475 | AS213: 0.00475 | AT213: 0.00475 | AU213: 0.00475 | AV213: 0.00475 | AW213: 0.00475 | AX213: 0.00475 | AY213: 0.00475 | AZ213: 0.00475 | BA213: 0.00475 | BB213: 0.00475 | BC213: 0.00475 | BD213: 0.00475 | BE213: 0.00475 | BF213: 0.00475 | BG213: 0.00475 | BH213: 0.00475 | BI213: 0.00475 | BJ213: 0.00475 | BK213: 0.00475 | BL213: 0.00475 | BM213: 0.00475 | BN213: 0.00475 | BO213: 0.00475 | BP213: 0.00475 | BQ213: 0.00475 | BR213: 0.00475 | BS213: 0.00475 | BT213: 0.00475 | BU213: 0.00475 | BV213: 0.00475 | BW213: =$H$213/$F$19 -> 0.00475 | BX213: 0.00475 | BY213: 0.00475 | BZ213: 0.00475 | CA213: 0.00475 | CB213: 0.00475 | CC213: 0.00475 | CD213: 0.00475 | CE213: 0.00475 | CF213: 0.00475 | CG213: 0.00475 | CH213: 0.00475 | CI213: 0.00475 | CJ213: 0.00475 | CK213: 0.00475 | CL213: 0.00475 | CM213: 0.00475 | CN213: 0.00475 | CO213: 0.00475 | CP213: 0.00475 | CQ213: 0.00475 | CR213: 0.00475 | CS213: 0.00475 | CT213: 0.00475 | CU213: 0.00475 | CV213: 0.00475 | CW213: 0.00475 | CX213: 0.00475 | CY213: 0.00475 | CZ213: 0.00475 | DA213: 0.00475 | DB213: 0.00475 | DC213: =$H$213/$F$19 -> 0.00475 | DD213: 0.00475 | DE213: 0.00475 | DF213: 0.00475 | DG213: 0.00475 | DH213: 0.00475 | DI213: 0.00475 | DJ213: 0.00475 | DK213: 0.00475 | DL213: 0.00475 | DM213: 0.00475 | DN213: 0.00475 | DO213: 0.00475 | DP213: 0.00475 | DQ213: 0.00475 | DR213: 0.00475 | DS213: 0.00475 | DT213: 0.00475 | DU213: 0.00475 | DV213: 0.00475 | DW213: 0.00475 | DX213: 0.00475 | DY213: 0.00475 | DZ213: 0.00475 | EA213: 0.00475 | EB213: 0.00475 | EC213: 0.00475 | ED213: 0.00475 | EE213: 0.00475 | EF213: 0.00475 | EG213: 0.00475 | EH213: 0.00475 | EI213: =$H$213/$F$19 -> 0.00475 | EJ213: 0.00475 | EK213: 0.00475 | EL213: 0.00475 | EM213: 0.00475 | EN213: 0.00475 | EO213: 0.00475 | EP213: 0.00475 | EQ213: 0.00475 | ER213: 0.00475 | ES213: 0.00475 | ET213: 0.00475 | EU213: 0.00475 | EV213: 0.00475 | EW213: 0.00475 | EX213: 0.00475 | EY213: 0.00475 | EZ213: 0.00475 | FA213: 0.00475
D214: Interest accrued | K214: =K213*K207 -> 0 | L214: 0 | M214: 0 | N214: 0 | O214: 11657.51953 | P214: 34779.96939 | Q214: 59498.07283 | R214: 85242.63476 | S214: 111363.8816 | T214: 137183.26 | U214: 162049.0802 | V214: 185388.4699 | W214: 206748.7996 | X214: 225823.6882 | Y214: 241862.4 | Z214: 241862.4 | AA214: 241862.4 | AB214: 241284.8157 | AC214: 240512.1888 | AD214: 239741.9178 | AE214: 238691.727 | AF214: 238691.727 | AG214: 236984.343 | AH214: 235278.2911 | AI214: 233474.0833 | AJ214: 231671.1348 | AK214: 229869.468 | AL214: 228069.1056 | AM214: 225754.8751 | AN214: 223441.3854 | AO214: 221128.6591 | AP214: 218816.7185 | AQ214: =AQ213*AQ207 -> 216392.6669 | AR214: 213969.3133 | AS214: 211546.6804 | AT214: 209124.7914 | AU214: 206590.75 | AV214: 204173.0059 | AW214: 201756.079 | AX214: 199339.9929 | AY214: 196538.3045 | AZ214: 193737.0478 | BA214: 190936.2465 | BB214: 188135.9246 | BC214: 185215.1409 | BD214: 182294.7417 | BE214: 179374.7513 | BF214: 176455.194 | BG214: 173415.1293 | BH214: 170375.4041 | BI214: 167336.0429 | BJ214: 164297.0709 | BK214: 160912.9795 | BL214: 157528.9189 | BM214: 154144.9141 | BN214: 150760.9905 | BO214: 0 | BP214: 0 | BQ214: 0 | BR214: 0 | BS214: 0 | BT214: 0 | BU214: 0 | BV214: 0 | BW214: =BW213*BW207 -> 0 | BX214: 0 | BY214: 0 | BZ214: 0 | CA214: 0 | CB214: 0 | CC214: 0 | CD214: 0 | CE214: 0 | CF214: 0 | CG214: 0 | CH214: 0 | CI214: 0 | CJ214: 0 | CK214: 0 | CL214: 0 | CM214: 0 | CN214: 0 | CO214: 0 | CP214: 0 | CQ214: 0 | CR214: 0 | CS214: 0 | CT214: 0 | CU214: 0 | CV214: 0 | CW214: 0 | CX214: 0 | CY214: 0 | CZ214: 0 | DA214: 0 | DB214: 0 | DC214: =DC213*DC207 -> 0 | DD214: 0 | DE214: 0 | DF214: 0 | DG214: 0 | DH214: 0 | DI214: 0 | DJ214: 0 | DK214: 0 | DL214: 0 | DM214: 0 | DN214: 0 | DO214: 0 | DP214: 0 | DQ214: 0 | DR214: 0 | DS214: 0 | DT214: 0 | DU214: 0 | DV214: 0 | DW214: 0 | DX214: 0 | DY214: 0 | DZ214: 0 | EA214: 0 | EB214: 0 | EC214: 0 | ED214: 0 | EE214: 0 | EF214: 0 | EG214: 0 | EH214: 0 | EI214: =EI213*EI207 -> 0 | EJ214: 0 | EK214: 0 | EL214: 0 | EM214: 0 | EN214: 0 | EO214: 0 | EP214: 0 | EQ214: 0 | ER214: 0 | ES214: 0 | ET214: 0 | EU214: 0 | EV214: 0 | EW214: 0 | EX214: 0 | EY214: 0 | EZ214: 0 | FA214: 0
D216: Upfront Fee Amount | G216: Fee Pct | H216: =F78 -> 0.0075 | I216: =G206 -> 2013-01-01 | K216: =(K1=$I$216)*$H$216*K206 -> 381888 | L216: 0 | M216: 0 | N216: 0 | O216: 0 | P216: 0 | Q216: 0 | R216: 0 | S216: 0 | T216: 0 | U216: 0 | V216: 0 | W216: 0 | X216: 0 | Y216: 0 | Z216: 0 | AA216: 0 | AB216: 0 | AC216: 0 | AD216: 0 | AE216: 0 | AF216: 0 | AG216: 0 | AH216: 0 | AI216: 0 | AJ216: 0 | AK216: 0 | AL216: 0 | AM216: 0 | AN216: 0 | AO216: 0 | AP216: 0 | AQ216: =(AQ1=$I$216)*$H$216*AQ206 -> 0 | AR216: 0 | AS216: 0 | AT216: 0 | AU216: 0 | AV216: 0 | AW216: 0 | AX216: 0 | AY216: 0 | AZ216: 0 | BA216: 0 | BB216: 0 | BC216: 0 | BD216: 0 | BE216: 0 | BF216: 0 | BG216: 0 | BH216: 0 | BI216: 0 | BJ216: 0 | BK216: 0 | BL216: 0 | BM216: 0 | BN216: 0 | BO216: 0 | BP216: 0 | BQ216: 0 | BR216: 0 | BS216: 0 | BT216: 0 | BU216: 0 | BV216: 0 | BW216: =(BW1=$I$216)*$H$216*BW206 -> 0 | BX216: 0 | BY216: 0 | BZ216: 0 | CA216: 0 | CB216: 0 | CC216: 0 | CD216: 0 | CE216: 0 | CF216: 0 | CG216: 0 | CH216: 0 | CI216: 0 | CJ216: 0 | CK216: 0 | CL216: 0 | CM216: 0 | CN216: 0 | CO216: 0 | CP216: 0 | CQ216: 0 | CR216: 0 | CS216: 0 | CT216: 0 | CU216: 0 | CV216: 0 | CW216: 0 | CX216: 0 | CY216: 0 | CZ216: 0 | DA216: 0 | DB216: 0 | DC216: =(DC1=$I$216)*$H$216*DC206 -> 0 | DD216: 0 | DE216: 0 | DF216: 0 | DG216: 0 | DH216: 0 | DI216: 0 | DJ216: 0 | DK216: 0 | DL216: 0 | DM216: 0 | DN216: 0 | DO216: 0 | DP216: 0 | DQ216: 0 | DR216: 0 | DS216: 0 | DT216: 0 | DU216: 0 | DV216: 0 | DW216: 0 | DX216: 0 | DY216: 0 | DZ216: 0 | EA216: 0 | EB216: 0 | EC216: 0 | ED216: 0 | EE216: 0 | EF216: 0 | EG216: 0 | EH216: 0 | EI216: =(EI1=$I$216)*$H$216*EI206 -> 0 | EJ216: 0 | EK216: 0 | EL216: 0 | EM216: 0 | EN216: 0 | EO216: 0 | EP216: 0 | EQ216: 0 | ER216: 0 | ES216: 0 | ET216: 0 | EU216: 0 | EV216: 0 | EW216: 0 | EX216: 0 | EY216: 0 | EZ216: 0 | FA216: 0
D217: Commitment Fee Percent | G217: Fee Pct | H217: =F87 -> 0.01 | I217: Periodic Rate | J217: =H217/F19 -> 0.0025 | K217: =$J$217*K211 -> 127296 | L217: =$J$217*L211 -> 127296 | M217: 127296 | N217: 127296 | O217: 121160.4634 | P217: 108990.753 | Q217: 95981.22483 | R217: 82431.45539 | S217: 68683.43071 | T217: 55094.2842 | U217: 42007.01042 | V217: 29723.12112 | W217: 18480.8423 | X217: 8441.427267 | Y217: 0 | Z217: 0 | AA217: 0 | AB217: 0 | AC217: 0 | AD217: 0 | AE217: 0 | AF217: 0 | AG217: 0 | AH217: 0 | AI217: 0 | AJ217: 0 | AK217: 0 | AL217: 0 | AM217: 0 | AN217: 0 | AO217: 0 | AP217: 0 | AQ217: 0 | AR217: 0 | AS217: 0 | AT217: 0 | AU217: 0 | AV217: 0 | AW217: 0 | AX217: 0 | AY217: 0 | AZ217: 0 | BA217: 0 | BB217: 0 | BC217: 0 | BD217: 0 | BE217: 0 | BF217: 0 | BG217: 0 | BH217: 0 | BI217: 0 | BJ217: 0 | BK217: 0 | BL217: 0 | BM217: 0 | BN217: 0 | BO217: 0 | BP217: 0 | BQ217: 0 | BR217: 0 | BS217: 0 | BT217: 0 | BU217: 0 | BV217: 0 | BW217: 0 | BX217: =$J$217*BX211 -> 0 | BY217: 0 | BZ217: 0 | CA217: 0 | CB217: 0 | CC217: 0 | CD217: 0 | CE217: 0 | CF217: 0 | CG217: 0 | CH217: 0 | CI217: 0 | CJ217: 0 | CK217: 0 | CL217: 0 | CM217: 0 | CN217: 0 | CO217: 0 | CP217: 0 | CQ217: 0 | CR217: 0 | CS217: 0 | CT217: 0 | CU217: 0 | CV217: 0 | CW217: 0 | CX217: 0 | CY217: 0 | CZ217: 0 | DA217: 0 | DB217: 0 | DC217: 0 | DD217: 0 | DE217: 0 | DF217: 0 | DG217: 0 | DH217: 0 | DI217: 0 | DJ217: 0 | DK217: 0 | DL217: 0 | DM217: 0 | DN217: 0 | DO217: 0 | DP217: 0 | DQ217: 0 | DR217: 0 | DS217: 0 | DT217: 0 | DU217: 0 | DV217: 0 | DW217: 0 | DX217: 0 | DY217: 0 | DZ217: 0 | EA217: 0 | EB217: 0 | EC217: 0 | ED217: 0 | EE217: 0 | EF217: 0 | EG217: 0 | EH217: 0 | EI217: 0 | EJ217: =$J$217*EJ211 -> 0 | EK217: 0 | EL217: 0 | EM217: 0 | EN217: 0 | EO217: 0 | EP217: 0 | EQ217: 0 | ER217: 0 | ES217: 0 | ET217: 0 | EU217: 0 | EV217: 0 | EW217: 0 | EX217: 0 | EY217: 0 | EZ217: 0 | FA217: 0
B219: Cash Balance from Trapped Cash Flow when Cannot Pay Dividend
D220: Opening Balance | K220: =J223 -> 0 | L220: =K223 -> 0 | M220: 0 | N220: 0 | O220: 0 | P220: 0 | Q220: 0 | R220: 0 | S220: 0 | T220: 0 | U220: 0 | V220: 0 | W220: 0 | X220: 0 | Y220: 0 | Z220: 0 | AA220: 0 | AB220: 0 | AC220: 0 | AD220: 0 | AE220: 0 | AF220: 0 | AG220: 0 | AH220: 0 | AI220: 0 | AJ220: 0 | AK220: 0 | AL220: 0 | AM220: 0 | AN220: 0 | AO220: 0 | AP220: 0 | AQ220: 0 | AR220: 0 | AS220: 0 | AT220: 0 | AU220: 0 | AV220: 0 | AW220: 0 | AX220: 0 | AY220: 0 | AZ220: 0 | BA220: 0 | BB220: 0 | BC220: 0 | BD220: 0 | BE220: 0 | BF220: 0 | BG220: 0 | BH220: 0 | BI220: 0 | BJ220: 0 | BK220: 0 | BL220: 0 | BM220: 0 | BN220: 0 | BO220: 0 | BP220: 0 | BQ220: 0 | BR220: 0 | BS220: 0 | BT220: 0 | BU220: 0 | BV220: 0 | BW220: 0 | BX220: =BW223 -> 0 | BY220: 0 | BZ220: 0 | CA220: 0 | CB220: 0 | CC220: 0 | CD220: 0 | CE220: 0 | CF220: 0 | CG220: 0 | CH220: 0 | CI220: 0 | CJ220: 0 | CK220: 0 | CL220: 0 | CM220: 0 | CN220: 0 | CO220: 0 | CP220: 0 | CQ220: 0 | CR220: 0 | CS220: 0 | CT220: 0 | CU220: 0 | CV220: 0 | CW220: 0 | CX220: 0 | CY220: 0 | CZ220: 0 | DA220: 0 | DB220: 0 | DC220: 0 | DD220: 0 | DE220: 0 | DF220: 0 | DG220: 0 | DH220: 0 | DI220: 0 | DJ220: 0 | DK220: 0 | DL220: 0 | DM220: 0 | DN220: 0 | DO220: 0 | DP220: 0 | DQ220: 0 | DR220: 0 | DS220: 0 | DT220: 0 | DU220: 0 | DV220: 0 | DW220: 0 | DX220: 0 | DY220: 0 | DZ220: 0 | EA220: 0 | EB220: 0 | EC220: 0 | ED220: 0 | EE220: 0 | EF220: 0 | EG220: 0 | EH220: 0 | EI220: 0 | EJ220: =EI223 -> 0 | EK220: 0 | EL220: 0 | EM220: 0 | EN220: 0 | EO220: 0 | EP220: 0 | EQ220: 0 | ER220: 0 | ES220: 0 | ET220: 0 | EU220: 0 | EV220: 0 | EW220: 0 | EX220: 0 | EY220: 0 | EZ220: 0 | FA220: 0
D221: Add: Positive Cash Flow | K221: =K271 -> 0 | L221: =L271 -> 0 | M221: 0 | N221: 0 | O221: 0 | P221: 0 | Q221: 0 | R221: 0 | S221: 0 | T221: 0 | U221: 0 | V221: 0 | W221: 0 | X221: 0 | Y221: 0 | Z221: 0 | AA221: 0 | AB221: 0 | AC221: 0 | AD221: 0 | AE221: 0 | AF221: 0 | AG221: 0 | AH221: 0 | AI221: 0 | AJ221: 0 | AK221: 0 | AL221: 0 | AM221: 0 | AN221: 0 | AO221: 0 | AP221: 0 | AQ221: 0 | AR221: 0 | AS221: 0 | AT221: 0 | AU221: 0 | AV221: 0 | AW221: 0 | AX221: 0 | AY221: 0 | AZ221: 0 | BA221: 0 | BB221: 0 | BC221: 0 | BD221: 0 | BE221: 0 | BF221: 0 | BG221: 0 | BH221: 0 | BI221: 0 | BJ221: 0 | BK221: 0 | BL221: 0 | BM221: 0 | BN221: 0 | BO221: 0 | BP221: 0 | BQ221: 0 | BR221: 0 | BS221: 0 | BT221: 0 | BU221: 0 | BV221: 0 | BW221: 0 | BX221: =BX271 -> 0 | BY221: 0 | BZ221: 0 | CA221: 0 | CB221: 0 | CC221: 0 | CD221: 0 | CE221: 0 | CF221: 0 | CG221: 0 | CH221: 0 | CI221: 0 | CJ221: 0 | CK221: 0 | CL221: 0 | CM221: 0 | CN221: 0 | CO221: 0 | CP221: 0 | CQ221: 0 | CR221: 0 | CS221: 0 | CT221: 0 | CU221: 0 | CV221: 0 | CW221: 0 | CX221: 0 | CY221: 0 | CZ221: 0 | DA221: 0 | DB221: 0 | DC221: 0 | DD221: 0 | DE221: 0 | DF221: 0 | DG221: 0 | DH221: 0 | DI221: 0 | DJ221: 0 | DK221: 0 | DL221: 0 | DM221: 0 | DN221: 0 | DO221: 0 | DP221: 0 | DQ221: 0 | DR221: 0 | DS221: 0 | DT221: 0 | DU221: 0 | DV221: 0 | DW221: 0 | DX221: 0 | DY221: 0 | DZ221: 0 | EA221: 0 | EB221: 0 | EC221: 0 | ED221: 0 | EE221: 0 | EF221: 0 | EG221: 0 | EH221: 0 | EI221: 0 | EJ221: =EJ271 -> 0 | EK221: 0 | EL221: 0 | EM221: 0 | EN221: 0 | EO221: 0 | EP221: 0 | EQ221: 0 | ER221: 0 | ES221: 0 | ET221: 0 | EU221: 0 | EV221: 0 | EW221: 0 | EX221: 0 | EY221: 0 | EZ221: 0 | FA221: 0
D222: Less: Cash Released for Dividends | K222: =K270 -> 0 | L222: =L270 -> 0 | M222: 0 | N222: 0 | O222: 0 | P222: 0 | Q222: 0 | R222: 0 | S222: 0 | T222: 0 | U222: 0 | V222: 0 | W222: 0 | X222: 0 | Y222: 0 | Z222: 0 | AA222: 0 | AB222: 0 | AC222: 0 | AD222: 0 | AE222: 0 | AF222: 0 | AG222: 0 | AH222: 0 | AI222: 0 | AJ222: 0 | AK222: 0 | AL222: 0 | AM222: 0 | AN222: 0 | AO222: 0 | AP222: 0 | AQ222: 0 | AR222: 0 | AS222: 0 | AT222: 0 | AU222: 0 | AV222: 0 | AW222: 0 | AX222: 0 | AY222: 0 | AZ222: 0 | BA222: 0 | BB222: 0 | BC222: 0 | BD222: 0 | BE222: 0 | BF222: 0 | BG222: 0 | BH222: 0 | BI222: 0 | BJ222: 0 | BK222: 0 | BL222: 0 | BM222: 0 | BN222: 0 | BO222: 0 | BP222: 0 | BQ222: 0 | BR222: 0 | BS222: 0 | BT222: 0 | BU222: 0 | BV222: 0 | BW222: 0 | BX222: =BX270 -> 0 | BY222: 0 | BZ222: 0 | CA222: 0 | CB222: 0 | CC222: 0 | CD222: 0 | CE222: 0 | CF222: 0 | CG222: 0 | CH222: 0 | CI222: 0 | CJ222: 0 | CK222: 0 | CL222: 0 | CM222: 0 | CN222: 0 | CO222: 0 | CP222: 0 | CQ222: 0 | CR222: 0 | CS222: 0 | CT222: 0 | CU222: 0 | CV222: 0 | CW222: 0 | CX222: 0 | CY222: 0 | CZ222: 0 | DA222: 0 | DB222: 0 | DC222: 0 | DD222: 0 | DE222: 0 | DF222: 0 | DG222: 0 | DH222: 0 | DI222: 0 | DJ222: 0 | DK222: 0 | DL222: 0 | DM222: 0 | DN222: 0 | DO222: 0 | DP222: 0 | DQ222: 0 | DR222: 0 | DS222: 0 | DT222: 0 | DU222: 0 | DV222: 0 | DW222: 0 | DX222: 0 | DY222: 0 | DZ222: 0 | EA222: 0 | EB222: 0 | EC222: 0 | ED222: 0 | EE222: 0 | EF222: 0 | EG222: 0 | EH222: 0 | EI222: 0 | EJ222: =EJ270 -> 0 | EK222: 0 | EL222: 0 | EM222: 0 | EN222: 0 | EO222: 0 | EP222: 0 | EQ222: 0 | ER222: 0 | ES222: 0 | ET222: 0 | EU222: 0 | EV222: 0 | EW222: 0 | EX222: 0 | EY222: 0 | EZ222: 0 | FA222: 0
D223: Closing Balance | K223: =K220+K221-K222 -> 0 | L223: =L220+L221-L222 -> 0 | M223: 0 | N223: 0 | O223: 0 | P223: 0 | Q223: 0 | R223: 0 | S223: 0 | T223: 0 | U223: 0 | V223: 0 | W223: 0 | X223: 0 | Y223: 0 | Z223: 0 | AA223: 0 | AB223: 0 | AC223: 0 | AD223: 0 | AE223: 0 | AF223: 0 | AG223: 0 | AH223: 0 | AI223: 0 | AJ223: 0 | AK223: 0 | AL223: 0 | AM223: 0 | AN223: 0 | AO223: 0 | AP223: 0 | AQ223: 0 | AR223: 0 | AS223: 0 | AT223: 0 | AU223: 0 | AV223: 0 | AW223: 0 | AX223: 0 | AY223: 0 | AZ223: 0 | BA223: 0 | BB223: 0 | BC223: 0 | BD223: 0 | BE223: 0 | BF223: 0 | BG223: 0 | BH223: 0 | BI223: 0 | BJ223: 0 | BK223: 0 | BL223: 0 | BM223: 0 | BN223: 0 | BO223: 0 | BP223: 0 | BQ223: 0 | BR223: 0 | BS223: 0 | BT223: 0 | BU223: 0 | BV223: 0 | BW223: 0 | BX223: =BX220+BX221-BX222 -> 0 | BY223: 0 | BZ223: 0 | CA223: 0 | CB223: 0 | CC223: 0 | CD223: 0 | CE223: 0 | CF223: 0 | CG223: 0 | CH223: 0 | CI223: 0 | CJ223: 0 | CK223: 0 | CL223: 0 | CM223: 0 | CN223: 0 | CO223: 0 | CP223: 0 | CQ223: 0 | CR223: 0 | CS223: 0 | CT223: 0 | CU223: 0 | CV223: 0 | CW223: 0 | CX223: 0 | CY223: 0 | CZ223: 0 | DA223: 0 | DB223: 0 | DC223: 0 | DD223: 0 | DE223: 0 | DF223: 0 | DG223: 0 | DH223: 0 | DI223: 0 | DJ223: 0 | DK223: 0 | DL223: 0 | DM223: 0 | DN223: 0 | DO223: 0 | DP223: 0 | DQ223: 0 | DR223: 0 | DS223: 0 | DT223: 0 | DU223: 0 | DV223: 0 | DW223: 0 | DX223: 0 | DY223: 0 | DZ223: 0 | EA223: 0 | EB223: 0 | EC223: 0 | ED223: 0 | EE223: 0 | EF223: 0 | EG223: 0 | EH223: 0 | EI223: 0 | EJ223: =EJ220+EJ221-EJ222 -> 0 | EK223: 0 | EL223: 0 | EM223: 0 | EN223: 0 | EO223: 0 | EP223: 0 | EQ223: 0 | ER223: 0 | ES223: 0 | ET223: 0 | EU223: 0 | EV223: 0 | EW223: 0 | EX223: 0 | EY223: 0 | EZ223: 0 | FA223: 0
D224: Interest Income Rate
D225: Interest Income
A227: Profit & Loss
B228: Revenues | K228: =K107 -> 0 | L228: 0 | M228: 0 | N228: 0 | O228: 0 | P228: 0 | Q228: 0 | R228: 0 | S228: 0 | T228: 0 | U228: 0 | V228: 0 | W228: 0 | X228: 0 | Y228: 0 | Z228: 0 | AA228: 1856400 | AB228: 2042040 | AC228: 2042040 | AD228: 2307240 | AE228: 2307240 | AF228: 2711007 | AG228: 2711007 | AH228: 2804490 | AI228: 2804490 | AJ228: 2804490 | AK228: 2804490 | AL228: 3288480 | AM228: 3288480 | AN228: 3288480 | AO228: 3288480 | AP228: 3394560 | AQ228: =AQ107 -> 3394560 | AR228: 3394560 | AS228: 3394560 | AT228: 3500640 | AU228: 3500640 | AV228: 3500640 | AW228: 3500640 | AX228: 3863698.8 | AY228: 3863698.8 | AZ228: 3863698.8 | BA228: 3863698.8 | BB228: 3977337 | BC228: 3977337 | BD228: 3977337 | BE228: 3977337 | BF228: 4090975.2 | BG228: 4090975.2 | BH228: 4090975.2 | BI228: 4090975.2 | BJ228: 4415580 | BK228: 4415580 | BL228: 4415580 | BM228: 4415580 | BN228: 4534920 | BO228: 0 | BP228: 0 | BQ228: 0 | BR228: 0 | BS228: 0 | BT228: 0 | BU228: 0 | BV228: 0 | BW228: =BW107 -> 0 | BX228: 0 | BY228: 0 | BZ228: 0 | CA228: 0 | CB228: 0 | CC228: 0 | CD228: 0 | CE228: 0 | CF228: 0 | CG228: 0 | CH228: 0 | CI228: 0 | CJ228: 0 | CK228: 0 | CL228: 0 | CM228: 0 | CN228: 0 | CO228: 0 | CP228: 0 | CQ228: 0 | CR228: 0 | CS228: 0 | CT228: 0 | CU228: 0 | CV228: 0 | CW228: 0 | CX228: 0 | CY228: 0 | CZ228: 0 | DA228: 0 | DB228: 0 | DC228: =DC107 -> 0 | DD228: 0 | DE228: 0 | DF228: 0 | DG228: 0 | DH228: 0 | DI228: 0 | DJ228: 0 | DK228: 0 | DL228: 0 | DM228: 0 | DN228: 0 | DO228: 0 | DP228: 0 | DQ228: 0 | DR228: 0 | DS228: 0 | DT228: 0 | DU228: 0 | DV228: 0 | DW228: 0 | DX228: 0 | DY228: 0 | DZ228: 0 | EA228: 0 | EB228: 0 | EC228: 0 | ED228: 0 | EE228: 0 | EF228: 0 | EG228: 0 | EH228: 0 | EI228: =EI107 -> 0 | EJ228: 0 | EK228: 0 | EL228: 0 | EM228: 0 | EN228: 0 | EO228: 0 | EP228: 0 | EQ228: 0 | ER228: 0 | ES228: 0 | ET228: 0 | EU228: 0 | EV228: 0 | EW228: 0 | EX228: 0 | EY228: 0 | EZ228: 0 | FA228: 0
B229: Less: Expenses | K229: =K117 -> 0 | L229: 0 | M229: 0 | N229: 0 | O229: 0 | P229: 0 | Q229: 0 | R229: 0 | S229: 0 | T229: 0 | U229: 0 | V229: 0 | W229: 0 | X229: 0 | Y229: 0 | Z229: 0 | AA229: 1027146.851 | AB229: 1048458.393 | AC229: 1051222.949 | AD229: 1080524.623 | AE229: 1083323.522 | AF229: 1126516.453 | AG229: 1129350.122 | AH229: 1141549.639 | AI229: 1144418.51 | AJ229: 1147305.147 | AK229: 1150209.658 | AL229: 1201531.154 | AM229: 1204471.748 | AN229: 1207430.55 | AO229: 1210407.674 | AP229: 1224011.233 | AQ229: =AQ117 -> 1227025.342 | AR229: 1230058.114 | AS229: 1233109.666 | AT229: 1246788.114 | AU229: 1249877.575 | AV229: 1252986.167 | AW229: 1256114.008 | AX229: 1295567.097 | AY229: 1298733.795 | AZ229: 1301920.101 | BA229: 1305126.138 | BB229: 1319715.847 | BC229: 1322961.712 | BD229: 1326227.677 | BE229: 1329513.864 | BF229: 1344184.221 | BG229: 1347511.233 | BH229: 1350858.846 | BI229: 1354227.189 | BJ229: 1390076.869 | BK229: 1393487.056 | BL229: 1396918.359 | BM229: 1400370.91 | BN229: 1415778.84 | BO229: 0 | BP229: 0 | BQ229: 0 | BR229: 0 | BS229: 0 | BT229: 0 | BU229: 0 | BV229: 0 | BW229: =BW117 -> 0 | BX229: 0 | BY229: 0 | BZ229: 0 | CA229: 0 | CB229: 0 | CC229: 0 | CD229: 0 | CE229: 0 | CF229: 0 | CG229: 0 | CH229: 0 | CI229: 0 | CJ229: 0 | CK229: 0 | CL229: 0 | CM229: 0 | CN229: 0 | CO229: 0 | CP229: 0 | CQ229: 0 | CR229: 0 | CS229: 0 | CT229: 0 | CU229: 0 | CV229: 0 | CW229: 0 | CX229: 0 | CY229: 0 | CZ229: 0 | DA229: 0 | DB229: 0 | DC229: =DC117 -> 0 | DD229: 0 | DE229: 0 | DF229: 0 | DG229: 0 | DH229: 0 | DI229: 0 | DJ229: 0 | DK229: 0 | DL229: 0 | DM229: 0 | DN229: 0 | DO229: 0 | DP229: 0 | DQ229: 0 | DR229: 0 | DS229: 0 | DT229: 0 | DU229: 0 | DV229: 0 | DW229: 0 | DX229: 0 | DY229: 0 | DZ229: 0 | EA229: 0 | EB229: 0 | EC229: 0 | ED229: 0 | EE229: 0 | EF229: 0 | EG229: 0 | EH229: 0 | EI229: =EI117 -> 0 | EJ229: 0 | EK229: 0 | EL229: 0 | EM229: 0 | EN229: 0 | EO229: 0 | EP229: 0 | EQ229: 0 | ER229: 0 | ES229: 0 | ET229: 0 | EU229: 0 | EV229: 0 | EW229: 0 | EX229: 0 | EY229: 0 | EZ229: 0 | FA229: 0
C230: EBITDA: Net Property Income | K230: =K228-K229 -> 0 | L230: =L228-L229 -> 0 | M230: 0 | N230: 0 | O230: 0 | P230: 0 | Q230: 0 | R230: 0 | S230: 0 | T230: 0 | U230: 0 | V230: 0 | W230: 0 | X230: 0 | Y230: 0 | Z230: 0 | AA230: 829253.1491 | AB230: 993581.607 | AC230: 990817.0514 | AD230: 1226715.377 | AE230: 1223916.478 | AF230: 1584490.547 | AG230: 1581656.878 | AH230: 1662940.361 | AI230: 1660071.49 | AJ230: 1657184.853 | AK230: 1654280.342 | AL230: 2086948.846 | AM230: 2084008.252 | AN230: 2081049.45 | AO230: 2078072.326 | AP230: 2170548.767 | AQ230: 2167534.658 | AR230: 2164501.886 | AS230: 2161450.334 | AT230: 2253851.886 | AU230: 2250762.425 | AV230: 2247653.833 | AW230: 2244525.992 | AX230: 2568131.703 | AY230: 2564965.005 | AZ230: 2561778.699 | BA230: 2558572.662 | BB230: 2657621.153 | BC230: 2654375.288 | BD230: 2651109.323 | BE230: 2647823.136 | BF230: 2746790.979 | BG230: 2743463.967 | BH230: 2740116.354 | BI230: 2736748.011 | BJ230: 3025503.131 | BK230: 3022092.944 | BL230: 3018661.641 | BM230: 3015209.09 | BN230: 3119141.16 | BO230: 0 | BP230: 0 | BQ230: 0 | BR230: 0 | BS230: 0 | BT230: 0 | BU230: 0 | BV230: 0 | BW230: 0 | BX230: =BX228-BX229 -> 0 | BY230: 0 | BZ230: 0 | CA230: 0 | CB230: 0 | CC230: 0 | CD230: 0 | CE230: 0 | CF230: 0 | CG230: 0 | CH230: 0 | CI230: 0 | CJ230: 0 | CK230: 0 | CL230: 0 | CM230: 0 | CN230: 0 | CO230: 0 | CP230: 0 | CQ230: 0 | CR230: 0 | CS230: 0 | CT230: 0 | CU230: 0 | CV230: 0 | CW230: 0 | CX230: 0 | CY230: 0 | CZ230: 0 | DA230: 0 | DB230: 0 | DC230: 0 | DD230: 0 | DE230: 0 | DF230: 0 | DG230: 0 | DH230: 0 | DI230: 0 | DJ230: 0 | DK230: 0 | DL230: 0 | DM230: 0 | DN230: 0 | DO230: 0 | DP230: 0 | DQ230: 0 | DR230: 0 | DS230: 0 | DT230: 0 | DU230: 0 | DV230: 0 | DW230: 0 | DX230: 0 | DY230: 0 | DZ230: 0 | EA230: 0 | EB230: 0 | EC230: 0 | ED230: 0 | EE230: 0 | EF230: 0 | EG230: 0 | EH230: 0 | EI230: 0 | EJ230: =EJ228-EJ229 -> 0 | EK230: 0 | EL230: 0 | EM230: 0 | EN230: 0 | EO230: 0 | EP230: 0 | EQ230: 0 | ER230: 0 | ES230: 0 | ET230: 0 | EU230: 0 | EV230: 0 | EW230: 0 | EX230: 0 | EY230: 0 | EZ230: 0 | FA230: 0
B231: Less: Depreciation | K231: =K150 -> 0 | L231: 0 | M231: 0 | N231: 0 | O231: 0 | P231: 0 | Q231: 0 | R231: 0 | S231: 0 | T231: 0 | U231: 0 | V231: 0 | W231: 0 | X231: 0 | Y231: 0 | Z231: 0 | AA231: 477360 | AB231: 477360 | AC231: 477360 | AD231: 477360 | AE231: 477360 | AF231: 477360 | AG231: 477360 | AH231: 477360 | AI231: 477360 | AJ231: 477360 | AK231: 477360 | AL231: 477360 | AM231: 477360 | AN231: 477360 | AO231: 477360 | AP231: 477360 | AQ231: =AQ150 -> 477360 | AR231: 477360 | AS231: 477360 | AT231: 477360 | AU231: 0 | AV231: 0 | AW231: 0 | AX231: 0 | AY231: 0 | AZ231: 0 | BA231: 0 | BB231: 0 | BC231: 0 | BD231: 0 | BE231: 0 | BF231: 0 | BG231: 0 | BH231: 0 | BI231: 0 | BJ231: 0 | BK231: 0 | BL231: 0 | BM231: 0 | BN231: 0 | BO231: 0 | BP231: 0 | BQ231: 0 | BR231: 0 | BS231: 0 | BT231: 0 | BU231: 0 | BV231: 0 | BW231: =BW150 -> 0 | BX231: 0 | BY231: 0 | BZ231: 0 | CA231: 0 | CB231: 0 | CC231: 0 | CD231: 0 | CE231: 0 | CF231: 0 | CG231: 0 | CH231: 0 | CI231: 0 | CJ231: 0 | CK231: 0 | CL231: 0 | CM231: 0 | CN231: 0 | CO231: 0 | CP231: 0 | CQ231: 0 | CR231: 0 | CS231: 0 | CT231: 0 | CU231: 0 | CV231: 0 | CW231: 0 | CX231: 0 | CY231: 0 | CZ231: 0 | DA231: 0 | DB231: 0 | DC231: =DC150 -> 0 | DD231: 0 | DE231: 0 | DF231: 0 | DG231: 0 | DH231: 0 | DI231: 0 | DJ231: 0 | DK231: 0 | DL231: 0 | DM231: 0 | DN231: 0 | DO231: 0 | DP231: 0 | DQ231: 0 | DR231: 0 | DS231: 0 | DT231: 0 | DU231: 0 | DV231: 0 | DW231: 0 | DX231: 0 | DY231: 0 | DZ231: 0 | EA231: 0 | EB231: 0 | EC231: 0 | ED231: 0 | EE231: 0 | EF231: 0 | EG231: 0 | EH231: 0 | EI231: =EI150 -> 0 | EJ231: 0 | EK231: 0 | EL231: 0 | EM231: 0 | EN231: 0 | EO231: 0 | EP231: 0 | EQ231: 0 | ER231: 0 | ES231: 0 | ET231: 0 | EU231: 0 | EV231: 0 | EW231: 0 | EX231: 0 | EY231: 0 | EZ231: 0 | FA231: 0
C232: EBIT | K232: =K230-K231 -> 0 | L232: =L230-L231 -> 0 | M232: 0 | N232: 0 | O232: 0 | P232: 0 | Q232: 0 | R232: 0 | S232: 0 | T232: 0 | U232: 0 | V232: 0 | W232: 0 | X232: 0 | Y232: 0 | Z232: 0 | AA232: 351893.1491 | AB232: 516221.607 | AC232: 513457.0514 | AD232: 749355.3771 | AE232: 746556.4779 | AF232: 1107130.547 | AG232: 1104296.878 | AH232: 1185580.361 | AI232: 1182711.49 | AJ232: 1179824.853 | AK232: 1176920.342 | AL232: 1609588.846 | AM232: 1606648.252 | AN232: 1603689.45 | AO232: 1600712.326 | AP232: 1693188.767 | AQ232: 1690174.658 | AR232: 1687141.886 | AS232: 1684090.334 | AT232: 1776491.886 | AU232: 2250762.425 | AV232: 2247653.833 | AW232: 2244525.992 | AX232: 2568131.703 | AY232: 2564965.005 | AZ232: 2561778.699 | BA232: 2558572.662 | BB232: 2657621.153 | BC232: 2654375.288 | BD232: 2651109.323 | BE232: 2647823.136 | BF232: 2746790.979 | BG232: 2743463.967 | BH232: 2740116.354 | BI232: 2736748.011 | BJ232: 3025503.131 | BK232: 3022092.944 | BL232: 3018661.641 | BM232: 3015209.09 | BN232: 3119141.16 | BO232: 0 | BP232: 0 | BQ232: 0 | BR232: 0 | BS232: 0 | BT232: 0 | BU232: 0 | BV232: 0 | BW232: 0 | BX232: =BX230-BX231 -> 0 | BY232: 0 | BZ232: 0 | CA232: 0 | CB232: 0 | CC232: 0 | CD232: 0 | CE232: 0 | CF232: 0 | CG232: 0 | CH232: 0 | CI232: 0 | CJ232: 0 | CK232: 0 | CL232: 0 | CM232: 0 | CN232: 0 | CO232: 0 | CP232: 0 | CQ232: 0 | CR232: 0 | CS232: 0 | CT232: 0 | CU232: 0 | CV232: 0 | CW232: 0 | CX232: 0 | CY232: 0 | CZ232: 0 | DA232: 0 | DB232: 0 | DC232: 0 | DD232: 0 | DE232: 0 | DF232: 0 | DG232: 0 | DH232: 0 | DI232: 0 | DJ232: 0 | DK232: 0 | DL232: 0 | DM232: 0 | DN232: 0 | DO232: 0 | DP232: 0 | DQ232: 0 | DR232: 0 | DS232: 0 | DT232: 0 | DU232: 0 | DV232: 0 | DW232: 0 | DX232: 0 | DY232: 0 | DZ232: 0 | EA232: 0 | EB232: 0 | EC232: 0 | ED232: 0 | EE232: 0 | EF232: 0 | EG232: 0 | EH232: 0 | EI232: 0 | EJ232: =EJ230-EJ231 -> 0 | EK232: 0 | EL232: 0 | EM232: 0 | EN232: 0 | EO232: 0 | EP232: 0 | EQ232: 0 | ER232: 0 | ES232: 0 | ET232: 0 | EU232: 0 | EV232: 0 | EW232: 0 | EX232: 0 | EY232: 0 | EZ232: 0 | FA232: 0
B233: Less: Interest on Land Loan | K233: =K193 -> 0 | L233: 163363.2 | M233: 163363.2 | N233: 163363.2 | O233: 163363.2 | P233: 163363.2 | Q233: 163363.2 | R233: 163363.2 | S233: 163363.2 | T233: 163363.2 | U233: 163363.2 | V233: 163363.2 | W233: 163363.2 | X233: 163363.2 | Y233: 163363.2 | Z233: 163363.2 | AA233: 163363.2 | AB233: 163363.2 | AC233: 163363.2 | AD233: 163363.2 | AE233: 163363.2 | AF233: 0 | AG233: 0 | AH233: 0 | AI233: 0 | AJ233: 0 | AK233: 0 | AL233: 0 | AM233: 0 | AN233: 0 | AO233: 0 | AP233: 0 | AQ233: =AQ193 -> 0 | AR233: 0 | AS233: 0 | AT233: 0 | AU233: 0 | AV233: 0 | AW233: 0 | AX233: 0 | AY233: 0 | AZ233: 0 | BA233: 0 | BB233: 0 | BC233: 0 | BD233: 0 | BE233: 0 | BF233: 0 | BG233: 0 | BH233: 0 | BI233: 0 | BJ233: 0 | BK233: 0 | BL233: 0 | BM233: 0 | BN233: 0 | BO233: 0 | BP233: 0 | BQ233: 0 | BR233: 0 | BS233: 0 | BT233: 0 | BU233: 0 | BV233: 0 | BW233: =BW193 -> 0 | BX233: 0 | BY233: 0 | BZ233: 0 | CA233: 0 | CB233: 0 | CC233: 0 | CD233: 0 | CE233: 0 | CF233: 0 | CG233: 0 | CH233: 0 | CI233: 0 | CJ233: 0 | CK233: 0 | CL233: 0 | CM233: 0 | CN233: 0 | CO233: 0 | CP233: 0 | CQ233: 0 | CR233: 0 | CS233: 0 | CT233: 0 | CU233: 0 | CV233: 0 | CW233: 0 | CX233: 0 | CY233: 0 | CZ233: 0 | DA233: 0 | DB233: 0 | DC233: =DC193 -> 0 | DD233: 0 | DE233: 0 | DF233: 0 | DG233: 0 | DH233: 0 | DI233: 0 | DJ233: 0 | DK233: 0 | DL233: 0 | DM233: 0 | DN233: 0 | DO233: 0 | DP233: 0 | DQ233: 0 | DR233: 0 | DS233: 0 | DT233: 0 | DU233: 0 | DV233: 0 | DW233: 0 | DX233: 0 | DY233: 0 | DZ233: 0 | EA233: 0 | EB233: 0 | EC233: 0 | ED233: 0 | EE233: 0 | EF233: 0 | EG233: 0 | EH233: 0 | EI233: =EI193 -> 0 | EJ233: 0 | EK233: 0 | EL233: 0 | EM233: 0 | EN233: 0 | EO233: 0 | EP233: 0 | EQ233: 0 | ER233: 0 | ES233: 0 | ET233: 0 | EU233: 0 | EV233: 0 | EW233: 0 | EX233: 0 | EY233: 0 | EZ233: 0 | FA233: 0
B234: Less: Interest on Term Loan | K234: =K214 -> 0 | L234: 0 | M234: 0 | N234: 0 | O234: 11657.51953 | P234: 34779.96939 | Q234: 59498.07283 | R234: 85242.63476 | S234: 111363.8816 | T234: 137183.26 | U234: 162049.0802 | V234: 185388.4699 | W234: 206748.7996 | X234: 225823.6882 | Y234: 241862.4 | Z234: 241862.4 | AA234: 241862.4 | AB234: 241284.8157 | AC234: 240512.1888 | AD234: 239741.9178 | AE234: 238691.727 | AF234: 238691.727 | AG234: 236984.343 | AH234: 235278.2911 | AI234: 233474.0833 | AJ234: 231671.1348 | AK234: 229869.468 | AL234: 228069.1056 | AM234: 225754.8751 | AN234: 223441.3854 | AO234: 221128.6591 | AP234: 218816.7185 | AQ234: =AQ214 -> 216392.6669 | AR234: 213969.3133 | AS234: 211546.6804 | AT234: 209124.7914 | AU234: 206590.75 | AV234: 204173.0059 | AW234: 201756.079 | AX234: 199339.9929 | AY234: 196538.3045 | AZ234: 193737.0478 | BA234: 190936.2465 | BB234: 188135.9246 | BC234: 185215.1409 | BD234: 182294.7417 | BE234: 179374.7513 | BF234: 176455.194 | BG234: 173415.1293 | BH234: 170375.4041 | BI234: 167336.0429 | BJ234: 164297.0709 | BK234: 160912.9795 | BL234: 157528.9189 | BM234: 154144.9141 | BN234: 150760.9905 | BO234: 0 | BP234: 0 | BQ234: 0 | BR234: 0 | BS234: 0 | BT234: 0 | BU234: 0 | BV234: 0 | BW234: =BW214 -> 0 | BX234: 0 | BY234: 0 | BZ234: 0 | CA234: 0 | CB234: 0 | CC234: 0 | CD234: 0 | CE234: 0 | CF234: 0 | CG234: 0 | CH234: 0 | CI234: 0 | CJ234: 0 | CK234: 0 | CL234: 0 | CM234: 0 | CN234: 0 | CO234: 0 | CP234: 0 | CQ234: 0 | CR234: 0 | CS234: 0 | CT234: 0 | CU234: 0 | CV234: 0 | CW234: 0 | CX234: 0 | CY234: 0 | CZ234: 0 | DA234: 0 | DB234: 0 | DC234: =DC214 -> 0 | DD234: 0 | DE234: 0 | DF234: 0 | DG234: 0 | DH234: 0 | DI234: 0 | DJ234: 0 | DK234: 0 | DL234: 0 | DM234: 0 | DN234: 0 | DO234: 0 | DP234: 0 | DQ234: 0 | DR234: 0 | DS234: 0 | DT234: 0 | DU234: 0 | DV234: 0 | DW234: 0 | DX234: 0 | DY234: 0 | DZ234: 0 | EA234: 0 | EB234: 0 | EC234: 0 | ED234: 0 | EE234: 0 | EF234: 0 | EG234: 0 | EH234: 0 | EI234: =EI214 -> 0 | EJ234: 0 | EK234: 0 | EL234: 0 | EM234: 0 | EN234: 0 | EO234: 0 | EP234: 0 | EQ234: 0 | ER234: 0 | ES234: 0 | ET234: 0 | EU234: 0 | EV234: 0 | EW234: 0 | EX234: 0 | EY234: 0 | EZ234: 0 | FA234: 0
B235: Less: Fees | K235: =K217+K216+K195 -> 731952 | L235: 127296 | M235: 127296 | N235: 127296 | O235: 121160.4634 | P235: 108990.753 | Q235: 95981.22483 | R235: 82431.45539 | S235: 68683.43071 | T235: 55094.2842 | U235: 42007.01042 | V235: 29723.12112 | W235: 18480.8423 | X235: 8441.427267 | Y235: 0 | Z235: 0 | AA235: 0 | AB235: 0 | AC235: 0 | AD235: 0 | AE235: 0 | AF235: 0 | AG235: 0 | AH235: 0 | AI235: 0 | AJ235: 0 | AK235: 0 | AL235: 0 | AM235: 0 | AN235: 0 | AO235: 0 | AP235: 0 | AQ235: =AQ217+AQ216+AQ195 -> 0 | AR235: 0 | AS235: 0 | AT235: 0 | AU235: 0 | AV235: 0 | AW235: 0 | AX235: 0 | AY235: 0 | AZ235: 0 | BA235: 0 | BB235: 0 | BC235: 0 | BD235: 0 | BE235: 0 | BF235: 0 | BG235: 0 | BH235: 0 | BI235: 0 | BJ235: 0 | BK235: 0 | BL235: 0 | BM235: 0 | BN235: 0 | BO235: 0 | BP235: 0 | BQ235: 0 | BR235: 0 | BS235: 0 | BT235: 0 | BU235: 0 | BV235: 0 | BW235: =BW217+BW216+BW195 -> 0 | BX235: 0 | BY235: 0 | BZ235: 0 | CA235: 0 | CB235: 0 | CC235: 0 | CD235: 0 | CE235: 0 | CF235: 0 | CG235: 0 | CH235: 0 | CI235: 0 | CJ235: 0 | CK235: 0 | CL235: 0 | CM235: 0 | CN235: 0 | CO235: 0 | CP235: 0 | CQ235: 0 | CR235: 0 | CS235: 0 | CT235: 0 | CU235: 0 | CV235: 0 | CW235: 0 | CX235: 0 | CY235: 0 | CZ235: 0 | DA235: 0 | DB235: 0 | DC235: =DC217+DC216+DC195 -> 0 | DD235: 0 | DE235: 0 | DF235: 0 | DG235: 0 | DH235: 0 | DI235: 0 | DJ235: 0 | DK235: 0 | DL235: 0 | DM235: 0 | DN235: 0 | DO235: 0 | DP235: 0 | DQ235: 0 | DR235: 0 | DS235: 0 | DT235: 0 | DU235: 0 | DV235: 0 | DW235: 0 | DX235: 0 | DY235: 0 | DZ235: 0 | EA235: 0 | EB235: 0 | EC235: 0 | ED235: 0 | EE235: 0 | EF235: 0 | EG235: 0 | EH235: 0 | EI235: =EI217+EI216+EI195 -> 0 | EJ235: 0 | EK235: 0 | EL235: 0 | EM235: 0 | EN235: 0 | EO235: 0 | EP235: 0 | EQ235: 0 | ER235: 0 | ES235: 0 | ET235: 0 | EU235: 0 | EV235: 0 | EW235: 0 | EX235: 0 | EY235: 0 | EZ235: 0 | FA235: 0
C236: EBT | K236: =K232-K234 -> 0 | L236: =L232-L234 -> 0 | M236: 0 | N236: 0 | O236: -11657.51953 | P236: -34779.96939 | Q236: -59498.07283 | R236: -85242.63476 | S236: -111363.8816 | T236: -137183.26 | U236: -162049.0802 | V236: -185388.4699 | W236: -206748.7996 | X236: -225823.6882 | Y236: -241862.4 | Z236: -241862.4 | AA236: 110030.7491 | AB236: 274936.7913 | AC236: 272944.8627 | AD236: 509613.4593 | AE236: 507864.7508 | AF236: 868438.8202 | AG236: 867312.5347 | AH236: 950302.0704 | AI236: 949237.4065 | AJ236: 948153.7186 | AK236: 947050.8742 | AL236: 1381519.74 | AM236: 1380893.377 | AN236: 1380248.064 | AO236: 1379583.667 | AP236: 1474372.048 | AQ236: 1473781.991 | AR236: 1473172.573 | AS236: 1472543.653 | AT236: 1567367.094 | AU236: 2044171.675 | AV236: 2043480.827 | AW236: 2042769.913 | AX236: 2368791.71 | AY236: 2368426.701 | AZ236: 2368041.651 | BA236: 2367636.415 | BB236: 2469485.228 | BC236: 2469160.147 | BD236: 2468814.582 | BE236: 2468448.384 | BF236: 2570335.785 | BG236: 2570048.838 | BH236: 2569740.95 | BI236: 2569411.969 | BJ236: 2861206.06 | BK236: 2861179.965 | BL236: 2861132.722 | BM236: 2861064.176 | BN236: 2968380.169 | BO236: 0 | BP236: 0 | BQ236: 0 | BR236: 0 | BS236: 0 | BT236: 0 | BU236: 0 | BV236: 0 | BW236: 0 | BX236: =BX232-BX234 -> 0 | BY236: 0 | BZ236: 0 | CA236: 0 | CB236: 0 | CC236: 0 | CD236: 0 | CE236: 0 | CF236: 0 | CG236: 0 | CH236: 0 | CI236: 0 | CJ236: 0 | CK236: 0 | CL236: 0 | CM236: 0 | CN236: 0 | CO236: 0 | CP236: 0 | CQ236: 0 | CR236: 0 | CS236: 0 | CT236: 0 | CU236: 0 | CV236: 0 | CW236: 0 | CX236: 0 | CY236: 0 | CZ236: 0 | DA236: 0 | DB236: 0 | DC236: 0 | DD236: 0 | DE236: 0 | DF236: 0 | DG236: 0 | DH236: 0 | DI236: 0 | DJ236: 0 | DK236: 0 | DL236: 0 | DM236: 0 | DN236: 0 | DO236: 0 | DP236: 0 | DQ236: 0 | DR236: 0 | DS236: 0 | DT236: 0 | DU236: 0 | DV236: 0 | DW236: 0 | DX236: 0 | DY236: 0 | DZ236: 0 | EA236: 0 | EB236: 0 | EC236: 0 | ED236: 0 | EE236: 0 | EF236: 0 | EG236: 0 | EH236: 0 | EI236: 0 | EJ236: =EJ232-EJ234 -> 0 | EK236: 0 | EL236: 0 | EM236: 0 | EN236: 0 | EO236: 0 | EP236: 0 | EQ236: 0 | ER236: 0 | ES236: 0 | ET236: 0 | EU236: 0 | EV236: 0 | EW236: 0 | EX236: 0 | EY236: 0 | EZ236: 0 | FA236: 0
B237: Less: Taxes | G237: Tax Rate | H237: =F69 -> 0.17 | K237: =K236*$H$237 -> 0 | L237: =L236*$H$237 -> 0 | M237: 0 | N237: 0 | O237: -1981.778321 | P237: -5912.594796 | Q237: -10114.67238 | R237: -14491.24791 | S237: -18931.85988 | T237: -23321.1542 | U237: -27548.34363 | V237: -31516.03988 | W237: -35147.29594 | X237: -38390.02699 | Y237: -41116.608 | Z237: -41116.608 | AA237: 18705.22735 | AB237: 46739.25453 | AC237: 46400.62666 | AD237: 86634.28808 | AE237: 86337.00764 | AF237: 147634.5994 | AG237: 147443.1309 | AH237: 161551.352 | AI237: 161370.3591 | AJ237: 161186.1322 | AK237: 160998.6486 | AL237: 234858.3558 | AM237: 234751.8741 | AN237: 234642.1709 | AO237: 234529.2233 | AP237: 250643.2482 | AQ237: 250542.9385 | AR237: 250439.3374 | AS237: 250332.4211 | AT237: 266452.4061 | AU237: 347509.1847 | AV237: 347391.7406 | AW237: 347270.8853 | AX237: 402694.5907 | AY237: 402632.5392 | AZ237: 402567.0807 | BA237: 402498.1906 | BB237: 419812.4888 | BC237: 419757.2249 | BD237: 419698.4789 | BE237: 419636.2253 | BF237: 436957.0834 | BG237: 436908.3025 | BH237: 436855.9615 | BI237: 436800.0346 | BJ237: 486405.0303 | BK237: 486400.594 | BL237: 486392.5627 | BM237: 486380.9099 | BN237: 504624.6288 | BO237: 0 | BP237: 0 | BQ237: 0 | BR237: 0 | BS237: 0 | BT237: 0 | BU237: 0 | BV237: 0 | BW237: 0 | BX237: =BX236*$H$237 -> 0 | BY237: 0 | BZ237: 0 | CA237: 0 | CB237: 0 | CC237: 0 | CD237: 0 | CE237: 0 | CF237: 0 | CG237: 0 | CH237: 0 | CI237: 0 | CJ237: 0 | CK237: 0 | CL237: 0 | CM237: 0 | CN237: 0 | CO237: 0 | CP237: 0 | CQ237: 0 | CR237: 0 | CS237: 0 | CT237: 0 | CU237: 0 | CV237: 0 | CW237: 0 | CX237: 0 | CY237: 0 | CZ237: 0 | DA237: 0 | DB237: 0 | DC237: 0 | DD237: 0 | DE237: 0 | DF237: 0 | DG237: 0 | DH237: 0 | DI237: 0 | DJ237: 0 | DK237: 0 | DL237: 0 | DM237: 0 | DN237: 0 | DO237: 0 | DP237: 0 | DQ237: 0 | DR237: 0 | DS237: 0 | DT237: 0 | DU237: 0 | DV237: 0 | DW237: 0 | DX237: 0 | DY237: 0 | DZ237: 0 | EA237: 0 | EB237: 0 | EC237: 0 | ED237: 0 | EE237: 0 | EF237: 0 | EG237: 0 | EH237: 0 | EI237: 0 | EJ237: =EJ236*$H$237 -> 0 | EK237: 0 | EL237: 0 | EM237: 0 | EN237: 0 | EO237: 0 | EP237: 0 | EQ237: 0 | ER237: 0 | ES237: 0 | ET237: 0 | EU237: 0 | EV237: 0 | EW237: 0 | EX237: 0 | EY237: 0 | EZ237: 0 | FA237: 0
... 67 more rows

Sheet Model Tests
B2: Construction Period | C2: ='Working Model (Q)'!I5 -> TRUE
B3: Holding Period | C3: ='Working Model (Q)'!I6 -> TRUE | H3: comment2 | I3: FALSE
B4: Scurve Test | C4: ='Working Model (Q)'!J127 -> TRUE
B5: Capital Allowance Test | C5: ='Working Model (Q)'!H154 -> TRUE
B6: Dividend
B7: Balance Sheet Test
B9: Aggregate Test | C9: =AND(C2:C7) -> TRUE

Sheet Annual
C1: Holding Period | E1: ='Working Model (Q)'!$F$21+'Working Model (Q)'!F18/'Working Model (Q)'!F19 -> 14 | G1: Top Date | H1: TRUE
I2: 1
E3: =IF(H1,YEAR('Working Model (Q)'!F16),YEAR('Working Model (Q)'!F20)) -> 2013 | F3: =+E3+1 -> 2014 | G3: =+F3+1 -> 2015 | H3: 2016 | I3: 2017 | J3: 2018 | K3: 2019 | L3: 2020 | M3: 2021 | N3: 2022 | O3: 2023 | P3: 2024 | Q3: 2025 | R3: 2026 | S3: 2027 | T3: 2028 | U3: 2029 | V3: 2030 | W3: 2031 | X3: 2032 | Y3: 2033 | Z3: 2034 | AA3: 2035 | AB3: 2036 | AC3: 2037 | AD3: 2038 | AE3: 2039 | AF3: 2040 | AG3: 2041 | AH3: 2042 | AI3: 2043 | AJ3: 2044 | AK3: 2045
C5: Revenue | E5: =SUMIF('Working Model (Q)'!$3:$3,Annual!E$3,'Working Model (Q)'!107:107) -> 0 | F5: =SUMIF('Working Model (Q)'!3:3,Annual!F3,'Working Model (Q)'!107:107) -> 0 | G5: =SUMIF('Working Model (Q)'!3:3,Annual!G3,'Working Model (Q)'!107:107) -> 0 | H5: =SUMIF('Working Model (Q)'!3:3,Annual!H3,'Working Model (Q)'!107:107) -> 0 | I5: =SUMIF('Working Model (Q)'!3:3,Annual!I3,'Working Model (Q)'!107:107) -> 8247720 | J5: =SUMIF('Working Model (Q)'!3:3,Annual!J3,'Working Model (Q)'!107:107) -> 10533744 | K5: =SUMIF('Working Model (Q)'!3:3,Annual!K3,'Working Model (Q)'!107:107) -> 11701950 | L5: =SUMIF('Working Model (Q)'!3:3,Annual!L3,'Working Model (Q)'!107:107) -> 13260000 | M5: =SUMIF('Working Model (Q)'!3:3,Annual!M3,'Working Model (Q)'!107:107) -> 13684320 | N5: =SUMIF('Working Model (Q)'!3:3,Annual!N3,'Working Model (Q)'!107:107) -> 14365618.8 | O5: =SUMIF('Working Model (Q)'!3:3,Annual!O3,'Working Model (Q)'!107:107) -> 15568433.4 | P5: =SUMIF('Working Model (Q)'!3:3,Annual!P3,'Working Model (Q)'!107:107) -> 16022986.2 | Q5: =SUMIF('Working Model (Q)'!3:3,Annual!Q3,'Working Model (Q)'!107:107) -> 16688505.6 | R5: =SUMIF('Working Model (Q)'!3:3,Annual!R3,'Working Model (Q)'!107:107) -> 17781660 | S5: =SUMIF('Working Model (Q)'!3:3,Annual!S3,'Working Model (Q)'!107:107) -> 0 | T5: =SUMIF('Working Model (Q)'!3:3,Annual!T3,'Working Model (Q)'!107:107) -> 0 | U5: =SUMIF('Working Model (Q)'!3:3,Annual!U3,'Working Model (Q)'!107:107) -> 0 | V5: =SUMIF('Working Model (Q)'!3:3,Annual!V3,'Working Model (Q)'!107:107) -> 0 | W5: =SUMIF('Working Model (Q)'!3:3,Annual!W3,'Working Model (Q)'!107:107) -> 0 | X5: =SUMIF('Working Model (Q)'!3:3,Annual!X3,'Working Model (Q)'!107:107) -> 0 | Y5: =SUMIF('Working Model (Q)'!3:3,Annual!Y3,'Working Model (Q)'!107:107) -> 0 | Z5: =SUMIF('Working Model (Q)'!3:3,Annual!Z3,'Working Model (Q)'!107:107) -> 0 | AA5: =SUMIF('Working Model (Q)'!3:3,Annual!AA3,'Working Model (Q)'!107:107) -> 0 | AB5: =SUMIF('Working Model (Q)'!3:3,Annual!AB3,'Working Model (Q)'!107:107) -> 0 | AC5: =SUMIF('Working Model (Q)'!3:3,Annual!AC3,'Working Model (Q)'!107:107) -> 0 | AD5: =SUMIF('Working Model (Q)'!3:3,Annual!AD3,'Working Model (Q)'!107:107) -> 0 | AE5: =SUMIF('Working Model (Q)'!3:3,Annual!AE3,'Working Model (Q)'!107:107) -> 0 | AF5: =SUMIF('Working Model (Q)'!3:3,Annual!AF3,'Working Model (Q)'!107:107) -> 0 | AG5: =SUMIF('Working Model (Q)'!3:3,Annual!AG3,'Working Model (Q)'!107:107) -> 0 | AH5: =SUMIF('Working Model (Q)'!3:3,Annual!AH3,'Working Model (Q)'!107:107) -> 0 | AI5: =SUMIF('Working Model (Q)'!3:3,Annual!AI3,'Working Model (Q)'!107:107) -> 0 | AJ5: =SUMIF('Working Model (Q)'!3:3,Annual!AJ3,'Working Model (Q)'!107:107) -> 0 | AK5: =SUMIF('Working Model (Q)'!3:3,Annual!AK3,'Working Model (Q)'!107:107) -> 0
C6: Property Taxes | E6: =SUMIF('Working Model (Q)'!$3:$3,Annual!E$3,'Working Model (Q)'!110:110) -> 0 | F6: =SUMIF('Working Model (Q)'!$3:$3,Annual!F$3,'Working Model (Q)'!110:110) -> 0 | G6: =SUMIF('Working Model (Q)'!$3:$3,Annual!G$3,'Working Model (Q)'!110:110) -> 0 | H6: =SUMIF('Working Model (Q)'!$3:$3,Annual!H$3,'Working Model (Q)'!110:110) -> 0 | I6: =SUMIF('Working Model (Q)'!$3:$3,Annual!I$3,'Working Model (Q)'!110:110) -> 824772 | J6: =SUMIF('Working Model (Q)'!$3:$3,Annual!J$3,'Working Model (Q)'!110:110) -> 1053374.4 | K6: =SUMIF('Working Model (Q)'!$3:$3,Annual!K$3,'Working Model (Q)'!110:110) -> 1170195 | L6: =SUMIF('Working Model (Q)'!$3:$3,Annual!L$3,'Working Model (Q)'!110:110) -> 1326000 | M6: =SUMIF('Working Model (Q)'!$3:$3,Annual!M$3,'Working Model (Q)'!110:110) -> 1368432 | N6: =SUMIF('Working Model (Q)'!$3:$3,Annual!N$3,'Working Model (Q)'!110:110) -> 1436561.88 | O6: =SUMIF('Working Model (Q)'!$3:$3,Annual!O$3,'Working Model (Q)'!110:110) -> 1556843.34 | P6: =SUMIF('Working Model (Q)'!$3:$3,Annual!P$3,'Working Model (Q)'!110:110) -> 1602298.62 | Q6: =SUMIF('Working Model (Q)'!$3:$3,Annual!Q$3,'Working Model (Q)'!110:110) -> 1668850.56 | R6: =SUMIF('Working Model (Q)'!$3:$3,Annual!R$3,'Working Model (Q)'!110:110) -> 1778166 | S6: =SUMIF('Working Model (Q)'!$3:$3,Annual!S$3,'Working Model (Q)'!110:110) -> 0 | T6: =SUMIF('Working Model (Q)'!$3:$3,Annual!T$3,'Working Model (Q)'!110:110) -> 0 | U6: =SUMIF('Working Model (Q)'!$3:$3,Annual!U$3,'Working Model (Q)'!110:110) -> 0 | V6: =SUMIF('Working Model (Q)'!$3:$3,Annual!V$3,'Working Model (Q)'!110:110) -> 0 | W6: =SUMIF('Working Model (Q)'!$3:$3,Annual!W$3,'Working Model (Q)'!110:110) -> 0 | X6: =SUMIF('Working Model (Q)'!$3:$3,Annual!X$3,'Working Model (Q)'!110:110) -> 0 | Y6: =SUMIF('Working Model (Q)'!$3:$3,Annual!Y$3,'Working Model (Q)'!110:110) -> 0 | Z6: =SUMIF('Working Model (Q)'!$3:$3,Annual!Z$3,'Working Model (Q)'!110:110) -> 0 | AA6: =SUMIF('Working Model (Q)'!$3:$3,Annual!AA$3,'Working Model (Q)'!110:110) -> 0 | AB6: =SUMIF('Working Model (Q)'!$3:$3,Annual!AB$3,'Working Model (Q)'!110:110) -> 0 | AC6: =SUMIF('Working Model (Q)'!$3:$3,Annual!AC$3,'Working Model (Q)'!110:110) -> 0 | AD6: =SUMIF('Working Model (Q)'!$3:$3,Annual!AD$3,'Working Model (Q)'!110:110) -> 0 | AE6: =SUMIF('Working Model (Q)'!$3:$3,Annual!AE$3,'Working Model (Q)'!110:110) -> 0 | AF6: =SUMIF('Working Model (Q)'!$3:$3,Annual!AF$3,'Working Model (Q)'!110:110) -> 0 | AG6: =SUMIF('Working Model (Q)'!$3:$3,Annual!AG$3,'Working Model (Q)'!110:110) -> 0 | AH6: =SUMIF('Working Model (Q)'!$3:$3,Annual!AH$3,'Working Model (Q)'!110:110) -> 0 | AI6: =SUMIF('Working Model (Q)'!$3:$3,Annual!AI$3,'Working Model (Q)'!110:110) -> 0 | AJ6: =SUMIF('Working Model (Q)'!$3:$3,Annual!AJ$3,'Working Model (Q)'!110:110) -> 0 | AK6: =SUMIF('Working Model (Q)'!$3:$3,Annual!AK$3,'Working Model (Q)'!110:110) -> 0
C7: Utilities | E7: =SUMIF('Working Model (Q)'!$3:$3,Annual!E$3,'Working Model (Q)'!115:115) -> 0 | F7: =SUMIF('Working Model (Q)'!$3:$3,Annual!F$3,'Working Model (Q)'!115:115) -> 0 | G7: =SUMIF('Working Model (Q)'!$3:$3,Annual!G$3,'Working Model (Q)'!115:115) -> 0 | H7: =SUMIF('Working Model (Q)'!$3:$3,Annual!H$3,'Working Model (Q)'!115:115) -> 0 | I7: =SUMIF('Working Model (Q)'!$3:$3,Annual!I$3,'Working Model (Q)'!115:115) -> 1791380.815 | J7: =SUMIF('Working Model (Q)'!$3:$3,Annual!J$3,'Working Model (Q)'!115:115) -> 1836165.336 | K7: =SUMIF('Working Model (Q)'!$3:$3,Annual!K$3,'Working Model (Q)'!115:115) -> 1882069.469 | L7: =SUMIF('Working Model (Q)'!$3:$3,Annual!L$3,'Working Model (Q)'!115:115) -> 1929121.206 | M7: =SUMIF('Working Model (Q)'!$3:$3,Annual!M$3,'Working Model (Q)'!115:115) -> 1977349.236 | N7: =SUMIF('Working Model (Q)'!$3:$3,Annual!N$3,'Working Model (Q)'!115:115) -> 2026782.967 | O7: =SUMIF('Working Model (Q)'!$3:$3,Annual!O$3,'Working Model (Q)'!115:115) -> 2077452.541 | P7: =SUMIF('Working Model (Q)'!$3:$3,Annual!P$3,'Working Model (Q)'!115:115) -> 2129388.855 | Q7: =SUMIF('Working Model (Q)'!$3:$3,Annual!Q$3,'Working Model (Q)'!115:115) -> 2182623.576 | R7: =SUMIF('Working Model (Q)'!$3:$3,Annual!R$3,'Working Model (Q)'!115:115) -> 2237189.165 | S7: =SUMIF('Working Model (Q)'!$3:$3,Annual!S$3,'Working Model (Q)'!115:115) -> 0 | T7: =SUMIF('Working Model (Q)'!$3:$3,Annual!T$3,'Working Model (Q)'!115:115) -> 0 | U7: =SUMIF('Working Model (Q)'!$3:$3,Annual!U$3,'Working Model (Q)'!115:115) -> 0 | V7: =SUMIF('Working Model (Q)'!$3:$3,Annual!V$3,'Working Model (Q)'!115:115) -> 0 | W7: =SUMIF('Working Model (Q)'!$3:$3,Annual!W$3,'Working Model (Q)'!115:115) -> 0 | X7: =SUMIF('Working Model (Q)'!$3:$3,Annual!X$3,'Working Model (Q)'!115:115) -> 0 | Y7: =SUMIF('Working Model (Q)'!$3:$3,Annual!Y$3,'Working Model (Q)'!115:115) -> 0 | Z7: =SUMIF('Working Model (Q)'!$3:$3,Annual!Z$3,'Working Model (Q)'!115:115) -> 0 | AA7: =SUMIF('Working Model (Q)'!$3:$3,Annual!AA$3,'Working Model (Q)'!115:115) -> 0 | AB7: =SUMIF('Working Model (Q)'!$3:$3,Annual!AB$3,'Working Model (Q)'!115:115) -> 0 | AC7: =SUMIF('Working Model (Q)'!$3:$3,Annual!AC$3,'Working Model (Q)'!115:115) -> 0 | AD7: =SUMIF('Working Model (Q)'!$3:$3,Annual!AD$3,'Working Model (Q)'!115:115) -> 0 | AE7: =SUMIF('Working Model (Q)'!$3:$3,Annual!AE$3,'Working Model (Q)'!115:115) -> 0 | AF7: =SUMIF('Working Model (Q)'!$3:$3,Annual!AF$3,'Working Model (Q)'!115:115) -> 0 | AG7: =SUMIF('Working Model (Q)'!$3:$3,Annual!AG$3,'Working Model (Q)'!115:115) -> 0 | AH7: =SUMIF('Working Model (Q)'!$3:$3,Annual!AH$3,'Working Model (Q)'!115:115) -> 0 | AI7: =SUMIF('Working Model (Q)'!$3:$3,Annual!AI$3,'Working Model (Q)'!115:115) -> 0 | AJ7: =SUMIF('Working Model (Q)'!$3:$3,Annual!AJ$3,'Working Model (Q)'!115:115) -> 0 | AK7: =SUMIF('Working Model (Q)'!$3:$3,Annual!AK$3,'Working Model (Q)'!115:115) -> 0
C8: ='Working Model (Q)'!C121 -> Exit Proceeds | E8: =SUMIF('Working Model (Q)'!$3:$3,Annual!E$3,'Working Model (Q)'!121:121) -> 0 | F8: =SUMIF('Working Model (Q)'!$3:$3,Annual!F$3,'Working Model (Q)'!121:121) -> 0 | G8: =SUMIF('Working Model (Q)'!$3:$3,Annual!G$3,'Working Model (Q)'!121:121) -> 0 | H8: =SUMIF('Working Model (Q)'!$3:$3,Annual!H$3,'Working Model (Q)'!121:121) -> 0 | I8: =SUMIF('Working Model (Q)'!$3:$3,Annual!I$3,'Working Model (Q)'!121:121) -> 0 | J8: =SUMIF('Working Model (Q)'!$3:$3,Annual!J$3,'Working Model (Q)'!121:121) -> 0 | K8: =SUMIF('Working Model (Q)'!$3:$3,Annual!K$3,'Working Model (Q)'!121:121) -> 0 | L8: =SUMIF('Working Model (Q)'!$3:$3,Annual!L$3,'Working Model (Q)'!121:121) -> 0 | M8: =SUMIF('Working Model (Q)'!$3:$3,Annual!M$3,'Working Model (Q)'!121:121) -> 0 | N8: =SUMIF('Working Model (Q)'!$3:$3,Annual!N$3,'Working Model (Q)'!121:121) -> 0 | O8: =SUMIF('Working Model (Q)'!$3:$3,Annual!O$3,'Working Model (Q)'!121:121) -> 0 | P8: =SUMIF('Working Model (Q)'!$3:$3,Annual!P$3,'Working Model (Q)'!121:121) -> 0 | Q8: =SUMIF('Working Model (Q)'!$3:$3,Annual!Q$3,'Working Model (Q)'!121:121) -> 0 | R8: =SUMIF('Working Model (Q)'!$3:$3,Annual!R$3,'Working Model (Q)'!121:121) -> 249531292.8 | S8: =SUMIF('Working Model (Q)'!$3:$3,Annual!S$3,'Working Model (Q)'!121:121) -> 0 | T8: =SUMIF('Working Model (Q)'!$3:$3,Annual!T$3,'Working Model (Q)'!121:121) -> 0 | U8: =SUMIF('Working Model (Q)'!$3:$3,Annual!U$3,'Working Model (Q)'!121:121) -> 0 | V8: =SUMIF('Working Model (Q)'!$3:$3,Annual!V$3,'Working Model (Q)'!121:121) -> 0 | W8: =SUMIF('Working Model (Q)'!$3:$3,Annual!W$3,'Working Model (Q)'!121:121) -> 0 | X8: =SUMIF('Working Model (Q)'!$3:$3,Annual!X$3,'Working Model (Q)'!121:121) -> 0 | Y8: =SUMIF('Working Model (Q)'!$3:$3,Annual!Y$3,'Working Model (Q)'!121:121) -> 0 | Z8: =SUMIF('Working Model (Q)'!$3:$3,Annual!Z$3,'Working Model (Q)'!121:121) -> 0 | AA8: =SUMIF('Working Model (Q)'!$3:$3,Annual!AA$3,'Working Model (Q)'!121:121) -> 0 | AB8: =SUMIF('Working Model (Q)'!$3:$3,Annual!AB$3,'Working Model (Q)'!121:121) -> 0 | AC8: =SUMIF('Working Model (Q)'!$3:$3,Annual!AC$3,'Working Model (Q)'!121:121) -> 0 | AD8: =SUMIF('Working Model (Q)'!$3:$3,Annual!AD$3,'Working Model (Q)'!121:121) -> 0 | AE8: =SUMIF('Working Model (Q)'!$3:$3,Annual!AE$3,'Working Model (Q)'!121:121) -> 0 | AF8: =SUMIF('Working Model (Q)'!$3:$3,Annual!AF$3,'Working Model (Q)'!121:121) -> 0 | AG8: =SUMIF('Working Model (Q)'!$3:$3,Annual!AG$3,'Working Model (Q)'!121:121) -> 0 | AH8: =SUMIF('Working Model (Q)'!$3:$3,Annual!AH$3,'Working Model (Q)'!121:121) -> 0 | AI8: =SUMIF('Working Model (Q)'!$3:$3,Annual!AI$3,'Working Model (Q)'!121:121) -> 0 | AJ8: =SUMIF('Working Model (Q)'!$3:$3,Annual!AJ$3,'Working Model (Q)'!121:121) -> 0 | AK8: =SUMIF('Working Model (Q)'!$3:$3,Annual!AK$3,'Working Model (Q)'!121:121) -> 0
C9: ='Working Model (Q)'!D129 -> Land Cost | E9: =SUMIF('Working Model (Q)'!$3:$3,Annual!E$3,'Working Model (Q)'!129:129) -> 42432000 | F9: =SUMIF('Working Model (Q)'!$3:$3,Annual!F$3,'Working Model (Q)'!129:129) -> 0 | G9: =SUMIF('Working Model (Q)'!$3:$3,Annual!G$3,'Working Model (Q)'!129:129) -> 0 | H9: =SUMIF('Working Model (Q)'!$3:$3,Annual!H$3,'Working Model (Q)'!129:129) -> 0 | I9: =SUMIF('Working Model (Q)'!$3:$3,Annual!I$3,'Working Model (Q)'!129:129) -> 0 | J9: =SUMIF('Working Model (Q)'!$3:$3,Annual!J$3,'Working Model (Q)'!129:129) -> 0 | K9: =SUMIF('Working Model (Q)'!$3:$3,Annual!K$3,'Working Model (Q)'!129:129) -> 0 | L9: =SUMIF('Working Model (Q)'!$3:$3,Annual!L$3,'Working Model (Q)'!129:129) -> 0 | M9: =SUMIF('Working Model (Q)'!$3:$3,Annual!M$3,'Working Model (Q)'!129:129) -> 0 | N9: =SUMIF('Working Model (Q)'!$3:$3,Annual!N$3,'Working Model (Q)'!129:129) -> 0 | O9: =SUMIF('Working Model (Q)'!$3:$3,Annual!O$3,'Working Model (Q)'!129:129) -> 0 | P9: =SUMIF('Working Model (Q)'!$3:$3,Annual!P$3,'Working Model (Q)'!129:129) -> 0 | Q9: =SUMIF('Working Model (Q)'!$3:$3,Annual!Q$3,'Working Model (Q)'!129:129) -> 0 | R9: =SUMIF('Working Model (Q)'!$3:$3,Annual!R$3,'Working Model (Q)'!129:129) -> 0 | S9: =SUMIF('Working Model (Q)'!$3:$3,Annual!S$3,'Working Model (Q)'!129:129) -> 0 | T9: =SUMIF('Working Model (Q)'!$3:$3,Annual!T$3,'Working Model (Q)'!129:129) -> 0 | U9: =SUMIF('Working Model (Q)'!$3:$3,Annual!U$3,'Working Model (Q)'!129:129) -> 0 | V9: =SUMIF('Working Model (Q)'!$3:$3,Annual!V$3,'Working Model (Q)'!129:129) -> 0 | W9: =SUMIF('Working Model (Q)'!$3:$3,Annual!W$3,'Working Model (Q)'!129:129) -> 0 | X9: =SUMIF('Working Model (Q)'!$3:$3,Annual!X$3,'Working Model (Q)'!129:129) -> 0 | Y9: =SUMIF('Working Model (Q)'!$3:$3,Annual!Y$3,'Working Model (Q)'!129:129) -> 0 | Z9: =SUMIF('Working Model (Q)'!$3:$3,Annual!Z$3,'Working Model (Q)'!129:129) -> 0 | AA9: =SUMIF('Working Model (Q)'!$3:$3,Annual!AA$3,'Working Model (Q)'!129:129) -> 0 | AB9: =SUMIF('Working Model (Q)'!$3:$3,Annual!AB$3,'Working Model (Q)'!129:129) -> 0 | AC9: =SUMIF('Working Model (Q)'!$3:$3,Annual!AC$3,'Working Model (Q)'!129:129) -> 0 | AD9: =SUMIF('Working Model (Q)'!$3:$3,Annual!AD$3,'Working Model (Q)'!129:129) -> 0 | AE9: =SUMIF('Working Model (Q)'!$3:$3,Annual!AE$3,'Working Model (Q)'!129:129) -> 0 | AF9: =SUMIF('Working Model (Q)'!$3:$3,Annual!AF$3,'Working Model (Q)'!129:129) -> 0 | AG9: =SUMIF('Working Model (Q)'!$3:$3,Annual!AG$3,'Working Model (Q)'!129:129) -> 0 | AH9: =SUMIF('Working Model (Q)'!$3:$3,Annual!AH$3,'Working Model (Q)'!129:129) -> 0 | AI9: =SUMIF('Working Model (Q)'!$3:$3,Annual!AI$3,'Working Model (Q)'!129:129) -> 0 | AJ9: =SUMIF('Working Model (Q)'!$3:$3,Annual!AJ$3,'Working Model (Q)'!129:129) -> 0 | AK9: =SUMIF('Working Model (Q)'!$3:$3,Annual!AK$3,'Working Model (Q)'!129:129) -> 0
C10: ='Working Model (Q)'!D128 -> Construction Expenditure | E10: =SUMIF('Working Model (Q)'!$3:$3,Annual!E$3,'Working Model (Q)'!128:128) -> 13579885.04 | F10: =SUMIF('Working Model (Q)'!$3:$3,Annual!F$3,'Working Model (Q)'!128:128) -> 19770118.48 | G10: =SUMIF('Working Model (Q)'!$3:$3,Annual!G$3,'Working Model (Q)'!128:128) -> 18737407.42 | H10: =SUMIF('Working Model (Q)'!$3:$3,Annual!H$3,'Working Model (Q)'!128:128) -> 11560589.06 | I10: =SUMIF('Working Model (Q)'!$3:$3,Annual!I$3,'Working Model (Q)'!128:128) -> 0 | J10: =SUMIF('Working Model (Q)'!$3:$3,Annual!J$3,'Working Model (Q)'!128:128) -> 0 | K10: =SUMIF('Working Model (Q)'!$3:$3,Annual!K$3,'Working Model (Q)'!128:128) -> 0 | L10: =SUMIF('Working Model (Q)'!$3:$3,Annual!L$3,'Working Model (Q)'!128:128) -> 0 | M10: =SUMIF('Working Model (Q)'!$3:$3,Annual!M$3,'Working Model (Q)'!128:128) -> 0 | N10: =SUMIF('Working Model (Q)'!$3:$3,Annual!N$3,'Working Model (Q)'!128:128) -> 0 | O10: =SUMIF('Working Model (Q)'!$3:$3,Annual!O$3,'Working Model (Q)'!128:128) -> 0 | P10: =SUMIF('Working Model (Q)'!$3:$3,Annual!P$3,'Working Model (Q)'!128:128) -> 0 | Q10: =SUMIF('Working Model (Q)'!$3:$3,Annual!Q$3,'Working Model (Q)'!128:128) -> 0 | R10: =SUMIF('Working Model (Q)'!$3:$3,Annual!R$3,'Working Model (Q)'!128:128) -> 0 | S10: =SUMIF('Working Model (Q)'!$3:$3,Annual!S$3,'Working Model (Q)'!128:128) -> 0 | T10: =SUMIF('Working Model (Q)'!$3:$3,Annual!T$3,'Working Model (Q)'!128:128) -> 0 | U10: =SUMIF('Working Model (Q)'!$3:$3,Annual!U$3,'Working Model (Q)'!128:128) -> 0 | V10: =SUMIF('Working Model (Q)'!$3:$3,Annual!V$3,'Working Model (Q)'!128:128) -> 0 | W10: =SUMIF('Working Model (Q)'!$3:$3,Annual!W$3,'Working Model (Q)'!128:128) -> 0 | X10: =SUMIF('Working Model (Q)'!$3:$3,Annual!X$3,'Working Model (Q)'!128:128) -> 0 | Y10: =SUMIF('Working Model (Q)'!$3:$3,Annual!Y$3,'Working Model (Q)'!128:128) -> 0 | Z10: =SUMIF('Working Model (Q)'!$3:$3,Annual!Z$3,'Working Model (Q)'!128:128) -> 0 | AA10: =SUMIF('Working Model (Q)'!$3:$3,Annual!AA$3,'Working Model (Q)'!128:128) -> 0 | AB10: =SUMIF('Working Model (Q)'!$3:$3,Annual!AB$3,'Working Model (Q)'!128:128) -> 0 | AC10: =SUMIF('Working Model (Q)'!$3:$3,Annual!AC$3,'Working Model (Q)'!128:128) -> 0 | AD10: =SUMIF('Working Model (Q)'!$3:$3,Annual!AD$3,'Working Model (Q)'!128:128) -> 0 | AE10: =SUMIF('Working Model (Q)'!$3:$3,Annual!AE$3,'Working Model (Q)'!128:128) -> 0 | AF10: =SUMIF('Working Model (Q)'!$3:$3,Annual!AF$3,'Working Model (Q)'!128:128) -> 0 | AG10: =SUMIF('Working Model (Q)'!$3:$3,Annual!AG$3,'Working Model (Q)'!128:128) -> 0 | AH10: =SUMIF('Working Model (Q)'!$3:$3,Annual!AH$3,'Working Model (Q)'!128:128) -> 0 | AI10: =SUMIF('Working Model (Q)'!$3:$3,Annual!AI$3,'Working Model (Q)'!128:128) -> 0 | AJ10: =SUMIF('Working Model (Q)'!$3:$3,Annual!AJ$3,'Working Model (Q)'!128:128) -> 0 | AK10: =SUMIF('Working Model (Q)'!$3:$3,Annual!AK$3,'Working Model (Q)'!128:128) -> 0
C11: ='Working Model (Q)'!D130 -> Total Project Dev Expenditure | E11: =SUMIF('Working Model (Q)'!$3:$3,Annual!E$3,'Working Model (Q)'!130:130) -> 56011885.04 | F11: =SUMIF('Working Model (Q)'!$3:$3,Annual!F$3,'Working Model (Q)'!130:130) -> 19770118.48 | G11: =SUMIF('Working Model (Q)'!$3:$3,Annual!G$3,'Working Model (Q)'!130:130) -> 18737407.42 | H11: =SUMIF('Working Model (Q)'!$3:$3,Annual!H$3,'Working Model (Q)'!130:130) -> 11560589.06 | I11: =SUMIF('Working Model (Q)'!$3:$3,Annual!I$3,'Working Model (Q)'!130:130) -> 0 | J11: =SUMIF('Working Model (Q)'!$3:$3,Annual!J$3,'Working Model (Q)'!130:130) -> 0 | K11: =SUMIF('Working Model (Q)'!$3:$3,Annual!K$3,'Working Model (Q)'!130:130) -> 0 | L11: =SUMIF('Working Model (Q)'!$3:$3,Annual!L$3,'Working Model (Q)'!130:130) -> 0 | M11: =SUMIF('Working Model (Q)'!$3:$3,Annual!M$3,'Working Model (Q)'!130:130) -> 0 | N11: =SUMIF('Working Model (Q)'!$3:$3,Annual!N$3,'Working Model (Q)'!130:130) -> 0 | O11: =SUMIF('Working Model (Q)'!$3:$3,Annual!O$3,'Working Model (Q)'!130:130) -> 0 | P11: =SUMIF('Working Model (Q)'!$3:$3,Annual!P$3,'Working Model (Q)'!130:130) -> 0 | Q11: =SUMIF('Working Model (Q)'!$3:$3,Annual!Q$3,'Working Model (Q)'!130:130) -> 0 | R11: =SUMIF('Working Model (Q)'!$3:$3,Annual!R$3,'Working Model (Q)'!130:130) -> 0 | S11: =SUMIF('Working Model (Q)'!$3:$3,Annual!S$3,'Working Model (Q)'!130:130) -> 0 | T11: =SUMIF('Working Model (Q)'!$3:$3,Annual!T$3,'Working Model (Q)'!130:130) -> 0 | U11: =SUMIF('Working Model (Q)'!$3:$3,Annual!U$3,'Working Model (Q)'!130:130) -> 0 | V11: =SUMIF('Working Model (Q)'!$3:$3,Annual!V$3,'Working Model (Q)'!130:130) -> 0 | W11: =SUMIF('Working Model (Q)'!$3:$3,Annual!W$3,'Working Model (Q)'!130:130) -> 0 | X11: =SUMIF('Working Model (Q)'!$3:$3,Annual!X$3,'Working Model (Q)'!130:130) -> 0 | Y11: =SUMIF('Working Model (Q)'!$3:$3,Annual!Y$3,'Working Model (Q)'!130:130) -> 0 | Z11: =SUMIF('Working Model (Q)'!$3:$3,Annual!Z$3,'Working Model (Q)'!130:130) -> 0 | AA11: =SUMIF('Working Model (Q)'!$3:$3,Annual!AA$3,'Working Model (Q)'!130:130) -> 0 | AB11: =SUMIF('Working Model (Q)'!$3:$3,Annual!AB$3,'Working Model (Q)'!130:130) -> 0 | AC11: =SUMIF('Working Model (Q)'!$3:$3,Annual!AC$3,'Working Model (Q)'!130:130) -> 0 | AD11: =SUMIF('Working Model (Q)'!$3:$3,Annual!AD$3,'Working Model (Q)'!130:130) -> 0 | AE11: =SUMIF('Working Model (Q)'!$3:$3,Annual!AE$3,'Working Model (Q)'!130:130) -> 0 | AF11: =SUMIF('Working Model (Q)'!$3:$3,Annual!AF$3,'Working Model (Q)'!130:130) -> 0 | AG11: =SUMIF('Working Model (Q)'!$3:$3,Annual!AG$3,'Working Model (Q)'!130:130) -> 0 | AH11: =SUMIF('Working Model (Q)'!$3:$3,Annual!AH$3,'Working Model (Q)'!130:130) -> 0 | AI11: =SUMIF('Working Model (Q)'!$3:$3,Annual!AI$3,'Working Model (Q)'!130:130) -> 0 | AJ11: =SUMIF('Working Model (Q)'!$3:$3,Annual!AJ$3,'Working Model (Q)'!130:130) -> 0 | AK11: =SUMIF('Working Model (Q)'!$3:$3,Annual!AK$3,'Working Model (Q)'!130:130) -> 0
C12: Net Property Income | E12: =SUMIF('Working Model (Q)'!$3:$3,Annual!E$3,'Working Model (Q)'!119:119) -> 0 | F12: =SUMIF('Working Model (Q)'!$3:$3,Annual!F$3,'Working Model (Q)'!119:119) -> 0 | G12: =SUMIF('Working Model (Q)'!$3:$3,Annual!G$3,'Working Model (Q)'!119:119) -> 0 | H12: =SUMIF('Working Model (Q)'!$3:$3,Annual!H$3,'Working Model (Q)'!119:119) -> 0 | I12: =SUMIF('Working Model (Q)'!$3:$3,Annual!I$3,'Working Model (Q)'!119:119) -> 4040367.185 | J12: =SUMIF('Working Model (Q)'!$3:$3,Annual!J$3,'Working Model (Q)'!119:119) -> 6053004.264 | K12: =SUMIF('Working Model (Q)'!$3:$3,Annual!K$3,'Working Model (Q)'!119:119) -> 7058485.531 | L12: =SUMIF('Working Model (Q)'!$3:$3,Annual!L$3,'Working Model (Q)'!119:119) -> 8413678.794 | M12: =SUMIF('Working Model (Q)'!$3:$3,Annual!M$3,'Working Model (Q)'!119:119) -> 8747338.764 | N12: =SUMIF('Working Model (Q)'!$3:$3,Annual!N$3,'Working Model (Q)'!119:119) -> 9311073.953 | O12: =SUMIF('Working Model (Q)'!$3:$3,Annual!O$3,'Working Model (Q)'!119:119) -> 10342937.52 | P12: =SUMIF('Working Model (Q)'!$3:$3,Annual!P$3,'Working Model (Q)'!119:119) -> 10700098.73 | Q12: =SUMIF('Working Model (Q)'!$3:$3,Annual!Q$3,'Working Model (Q)'!119:119) -> 11245831.46 | R12: =SUMIF('Working Model (Q)'!$3:$3,Annual!R$3,'Working Model (Q)'!119:119) -> 12175104.83 | S12: =SUMIF('Working Model (Q)'!$3:$3,Annual!S$3,'Working Model (Q)'!119:119) -> 0 | T12: =SUMIF('Working Model (Q)'!$3:$3,Annual!T$3,'Working Model (Q)'!119:119) -> 0 | U12: =SUMIF('Working Model (Q)'!$3:$3,Annual!U$3,'Working Model (Q)'!119:119) -> 0 | V12: =SUMIF('Working Model (Q)'!$3:$3,Annual!V$3,'Working Model (Q)'!119:119) -> 0 | W12: =SUMIF('Working Model (Q)'!$3:$3,Annual!W$3,'Working Model (Q)'!119:119) -> 0 | X12: =SUMIF('Working Model (Q)'!$3:$3,Annual!X$3,'Working Model (Q)'!119:119) -> 0 | Y12: =SUMIF('Working Model (Q)'!$3:$3,Annual!Y$3,'Working Model (Q)'!119:119) -> 0 | Z12: =SUMIF('Working Model (Q)'!$3:$3,Annual!Z$3,'Working Model (Q)'!119:119) -> 0 | AA12: =SUMIF('Working Model (Q)'!$3:$3,Annual!AA$3,'Working Model (Q)'!119:119) -> 0 | AB12: =SUMIF('Working Model (Q)'!$3:$3,Annual!AB$3,'Working Model (Q)'!119:119) -> 0 | AC12: =SUMIF('Working Model (Q)'!$3:$3,Annual!AC$3,'Working Model (Q)'!119:119) -> 0 | AD12: =SUMIF('Working Model (Q)'!$3:$3,Annual!AD$3,'Working Model (Q)'!119:119) -> 0 | AE12: =SUMIF('Working Model (Q)'!$3:$3,Annual!AE$3,'Working Model (Q)'!119:119) -> 0 | AF12: =SUMIF('Working Model (Q)'!$3:$3,Annual!AF$3,'Working Model (Q)'!119:119) -> 0 | AG12: =SUMIF('Working Model (Q)'!$3:$3,Annual!AG$3,'Working Model (Q)'!119:119) -> 0 | AH12: =SUMIF('Working Model (Q)'!$3:$3,Annual!AH$3,'Working Model (Q)'!119:119) -> 0 | AI12: =SUMIF('Working Model (Q)'!$3:$3,Annual!AI$3,'Working Model (Q)'!119:119) -> 0 | AJ12: =SUMIF('Working Model (Q)'!$3:$3,Annual!AJ$3,'Working Model (Q)'!119:119) -> 0 | AK12: =SUMIF('Working Model (Q)'!$3:$3,Annual!AK$3,'Working Model (Q)'!119:119) -> 0
C15: Marketing | E15: =SUMIF('Working Model (Q)'!$3:$3,Annual!E$3,'Working Model (Q)'!116:116) -> 0 | F15: =SUMIF('Working Model (Q)'!$3:$3,Annual!F$3,'Working Model (Q)'!116:116) -> 0 | G15: =SUMIF('Working Model (Q)'!$3:$3,Annual!G$3,'Working Model (Q)'!116:116) -> 0 | H15: =SUMIF('Working Model (Q)'!$3:$3,Annual!H$3,'Working Model (Q)'!116:116) -> 0 | I15: =SUMIF('Working Model (Q)'!$3:$3,Annual!I$3,'Working Model (Q)'!116:116) -> 1591200 | J15: =SUMIF('Working Model (Q)'!$3:$3,Annual!J$3,'Working Model (Q)'!116:116) -> 1591200 | K15: =SUMIF('Working Model (Q)'!$3:$3,Annual!K$3,'Working Model (Q)'!116:116) -> 1591200 | L15: =SUMIF('Working Model (Q)'!$3:$3,Annual!L$3,'Working Model (Q)'!116:116) -> 1591200 | M15: =SUMIF('Working Model (Q)'!$3:$3,Annual!M$3,'Working Model (Q)'!116:116) -> 1591200 | N15: =SUMIF('Working Model (Q)'!$3:$3,Annual!N$3,'Working Model (Q)'!116:116) -> 1591200 | O15: =SUMIF('Working Model (Q)'!$3:$3,Annual!O$3,'Working Model (Q)'!116:116) -> 1591200 | P15: =SUMIF('Working Model (Q)'!$3:$3,Annual!P$3,'Working Model (Q)'!116:116) -> 1591200 | Q15: =SUMIF('Working Model (Q)'!$3:$3,Annual!Q$3,'Working Model (Q)'!116:116) -> 1591200 | R15: =SUMIF('Working Model (Q)'!$3:$3,Annual!R$3,'Working Model (Q)'!116:116) -> 1591200 | S15: =SUMIF('Working Model (Q)'!$3:$3,Annual!S$3,'Working Model (Q)'!116:116) -> 0 | T15: =SUMIF('Working Model (Q)'!$3:$3,Annual!T$3,'Working Model (Q)'!116:116) -> 0 | U15: =SUMIF('Working Model (Q)'!$3:$3,Annual!U$3,'Working Model (Q)'!116:116) -> 0 | V15: =SUMIF('Working Model (Q)'!$3:$3,Annual!V$3,'Working Model (Q)'!116:116) -> 0 | W15: =SUMIF('Working Model (Q)'!$3:$3,Annual!W$3,'Working Model (Q)'!116:116) -> 0 | X15: =SUMIF('Working Model (Q)'!$3:$3,Annual!X$3,'Working Model (Q)'!116:116) -> 0 | Y15: =SUMIF('Working Model (Q)'!$3:$3,Annual!Y$3,'Working Model (Q)'!116:116) -> 0 | Z15: =SUMIF('Working Model (Q)'!$3:$3,Annual!Z$3,'Working Model (Q)'!116:116) -> 0 | AA15: =SUMIF('Working Model (Q)'!$3:$3,Annual!AA$3,'Working Model (Q)'!116:116) -> 0 | AB15: =SUMIF('Working Model (Q)'!$3:$3,Annual!AB$3,'Working Model (Q)'!116:116) -> 0 | AC15: =SUMIF('Working Model (Q)'!$3:$3,Annual!AC$3,'Working Model (Q)'!116:116) -> 0 | AD15: =SUMIF('Working Model (Q)'!$3:$3,Annual!AD$3,'Working Model (Q)'!116:116) -> 0 | AE15: =SUMIF('Working Model (Q)'!$3:$3,Annual!AE$3,'Working Model (Q)'!116:116) -> 0 | AF15: =SUMIF('Working Model (Q)'!$3:$3,Annual!AF$3,'Working Model (Q)'!116:116) -> 0 | AG15: =SUMIF('Working Model (Q)'!$3:$3,Annual!AG$3,'Working Model (Q)'!116:116) -> 0 | AH15: =SUMIF('Working Model (Q)'!$3:$3,Annual!AH$3,'Working Model (Q)'!116:116) -> 0 | AI15: =SUMIF('Working Model (Q)'!$3:$3,Annual!AI$3,'Working Model (Q)'!116:116) -> 0 | AJ15: =SUMIF('Working Model (Q)'!$3:$3,Annual!AJ$3,'Working Model (Q)'!116:116) -> 0 | AK15: =SUMIF('Working Model (Q)'!$3:$3,Annual!AK$3,'Working Model (Q)'!116:116) -> 0
C17: =INDEX(C5:C15,$I$2) -> Revenue | E17: =INDEX(E5:E15,$I$2) -> 0 | F17: =INDEX(F5:F15,$I$2) -> 0 | G17: 0 | H17: 0 | I17: 8247720 | J17: 10533744 | K17: 11701950 | L17: 13260000 | M17: 13684320 | N17: 14365618.8 | O17: 15568433.4 | P17: 16022986.2 | Q17: 16688505.6 | R17: 17781660 | S17: 0 | T17: 0 | U17: 0 | V17: 0 | W17: 0 | X17: 0 | Y17: 0 | Z17: 0 | AA17: 0 | AB17: 0 | AC17: 0 | AD17: 0 | AE17: 0 | AF17: 0 | AG17: 0 | AH17: 0 | AI17: 0 | AJ17: 0 | AK17: 0
E246: =OFFSET(E5,1,13) -> 1778166 | F246: =ShowFormula(E246) -> =OFFSET(E5,1,13)
A247: row number | D247: =I2-1 -> 0
A248: column number | D248: 0
A249: height | D249: 1
A250: width | D250: =E1 -> 14
E251: =SUM(OFFSET(E5,D247,D248,D249,D250)) -> 137854938
A253: Chart Title | D253: =C17 -> Revenue | E253: Holding Period | F253: =E1 -> 14

Sheet Property Index
A1: Time | B1: Property Price Index of Office Space | C1: Rental Rate | E1: Time | F1: Median Rental of Private Sector Office Space in Central Area | H1: Property Index | I1: % change
A2: 1975Q1 | B2: 15.2 | E2: 1990Q1 | F2: 64.54 | G2: =MATCH('Property Index'!E2,'Property Index'!A:A) -> 62 | H2: =INDEX('Property Index'!B:B,'Property Index'!G2) -> 98
A3: 1975Q2 | B3: 15.2 | E3: 1990Q2 | F3: 67.79 | G3: =MATCH('Property Index'!E3,'Property Index'!A:A) -> 63 | H3: =INDEX('Property Index'!B:B,'Property Index'!G3) -> 91.2 | I3: =LN(F3/F2) -> 0.04912950482
A4: 1975Q3 | B4: 15.8 | E4: 1990Q3 | F4: 73.74 | G4: =MATCH('Property Index'!E4,'Property Index'!A:A) -> 64 | H4: =INDEX('Property Index'!B:B,'Property Index'!G4) -> 97.8 | I4: 0.08413070136
A5: 1975Q4 | B5: 16.3 | E5: 1990Q4 | F5: 73.67 | G5: =MATCH('Property Index'!E5,'Property Index'!A:A) -> 65 | H5: =INDEX('Property Index'!B:B,'Property Index'!G5) -> 89.4 | I5: -0.0009497321113
A6: 1976Q1 | B6: 17.2 | E6: 1991Q1 | F6: 73.6 | G6: =MATCH('Property Index'!E6,'Property Index'!A:A) -> 66 | H6: =INDEX('Property Index'!B:B,'Property Index'!G6) -> 91.4 | I6: -0.0009506349599
A7: 1976Q2 | B7: 17.8 | E7: 1991Q2 | F7: 70.21 | G7: =MATCH('Property Index'!E7,'Property Index'!A:A) -> 67 | H7: =INDEX('Property Index'!B:B,'Property Index'!G7) -> 91.1 | I7: -0.04715427471
A8: 1976Q3 | B8: 18.3 | E8: 1991Q3 | F8: 69.46 | G8: =MATCH('Property Index'!E8,'Property Index'!A:A) -> 68 | H8: =INDEX('Property Index'!B:B,'Property Index'!G8) -> 91 | I8: -0.01073970371
A9: 1976Q4 | B9: 18.7 | E9: 1991Q4 | F9: 68.61 | G9: =MATCH('Property Index'!E9,'Property Index'!A:A) -> 69 | H9: =INDEX('Property Index'!B:B,'Property Index'!G9) -> 92 | I9: -0.01231275061
A10: 1977Q1 | B10: 18.7 | E10: 1992Q1 | F10: 64.64 | G10: =MATCH('Property Index'!E10,'Property Index'!A:A) -> 70 | H10: =INDEX('Property Index'!B:B,'Property Index'!G10) -> 94.9 | I10: -0.05960488249
A11: 1977Q2 | B11: 18.7 | E11: 1992Q2 | F11: 61.34 | G11: =MATCH('Property Index'!E11,'Property Index'!A:A) -> 71 | H11: =INDEX('Property Index'!B:B,'Property Index'!G11) -> 89.7 | I11: -0.05240125553
A12: 1977Q3 | B12: 18.3 | E12: 1992Q3 | F12: 59.6 | G12: =MATCH('Property Index'!E12,'Property Index'!A:A) -> 72 | H12: =INDEX('Property Index'!B:B,'Property Index'!G12) -> 86.9 | I12: -0.02877658461
A13: 1977Q4 | B13: 17.8 | E13: 1992Q4 | F13: 56.87 | G13: =MATCH('Property Index'!E13,'Property Index'!A:A) -> 73 | H13: =INDEX('Property Index'!B:B,'Property Index'!G13) -> 81.7 | I13: -0.04688761275
A14: 1978Q1 | B14: 17.8 | E14: 1993Q1 | F14: 55.14 | G14: =MATCH('Property Index'!E14,'Property Index'!A:A) -> 74 | H14: =INDEX('Property Index'!B:B,'Property Index'!G14) -> 81.6 | I14: -0.03089255572
A15: 1978Q2 | B15: 18.3 | E15: 1993Q2 | F15: 53.45 | G15: =MATCH('Property Index'!E15,'Property Index'!A:A) -> 75 | H15: =INDEX('Property Index'!B:B,'Property Index'!G15) -> 86.6 | I15: -0.03112876812
A16: 1978Q3 | B16: 18.7 | E16: 1993Q3 | F16: 49.7 | G16: =MATCH('Property Index'!E16,'Property Index'!A:A) -> 76 | H16: =INDEX('Property Index'!B:B,'Property Index'!G16) -> 89 | I16: -0.07274170437
A17: 1978Q4 | B17: 18.7 | E17: 1993Q4 | F17: 49.54 | G17: =MATCH('Property Index'!E17,'Property Index'!A:A) -> 77 | H17: =INDEX('Property Index'!B:B,'Property Index'!G17) -> 91 | I17: -0.003224509041
A18: 1979Q1 | B18: 18.7 | E18: 1994Q1 | F18: 50.15 | G18: =MATCH('Property Index'!E18,'Property Index'!A:A) -> 78 | H18: =INDEX('Property Index'!B:B,'Property Index'!G18) -> 95 | I18: 0.01223809035
A19: 1979Q2 | B19: 20.2 | E19: 1994Q2 | F19: 50.72 | G19: =MATCH('Property Index'!E19,'Property Index'!A:A) -> 79 | H19: =INDEX('Property Index'!B:B,'Property Index'!G19) -> 101.5 | I19: 0.01130179572
A20: 1979Q3 | B20: 21.6 | E20: 1994Q3 | F20: 54.21 | G20: =MATCH('Property Index'!E20,'Property Index'!A:A) -> 80 | H20: =INDEX('Property Index'!B:B,'Property Index'!G20) -> 113.5 | I20: 0.06654508314
A21: 1979Q4 | B21: 23.6 | E21: 1994Q4 | F21: 55.47 | G21: =MATCH('Property Index'!E21,'Property Index'!A:A) -> 81 | H21: =INDEX('Property Index'!B:B,'Property Index'!G21) -> 131.4 | I21: 0.02297694079
A22: 1980Q1 | B22: 27.1 | E22: 1995Q1 | F22: 62.67 | G22: =MATCH('Property Index'!E22,'Property Index'!A:A) -> 82 | H22: =INDEX('Property Index'!B:B,'Property Index'!G22) -> 145.3 | I22: 0.1220405302
A23: 1980Q2 | B23: 33.5 | E23: 1995Q2 | F23: 66.99 | G23: =MATCH('Property Index'!E23,'Property Index'!A:A) -> 83 | H23: =INDEX('Property Index'!B:B,'Property Index'!G23) -> 151.7 | I23: 0.06666049028
A24: 1980Q3 | B24: 40.9 | E24: 1995Q3 | F24: 70.35 | G24: =MATCH('Property Index'!E24,'Property Index'!A:A) -> 84 | H24: =INDEX('Property Index'!B:B,'Property Index'!G24) -> 157.5 | I24: 0.04893942904
A25: 1980Q4 | B25: 55.2 | E25: 1995Q4 | F25: 72.66 | G25: =MATCH('Property Index'!E25,'Property Index'!A:A) -> 85 | H25: =INDEX('Property Index'!B:B,'Property Index'!G25) -> 160.3 | I25: 0.03230824323
A26: 1981Q1 | B26: 88.7 | E26: 1996Q1 | F26: 74.76 | G26: =MATCH('Property Index'!E26,'Property Index'!A:A) -> 86 | H26: =INDEX('Property Index'!B:B,'Property Index'!G26) -> 161.4 | I26: 0.02849195579
A27: 1981Q2 | B27: 123.1 | E27: 1996Q2 | F27: 75.14 | G27: =MATCH('Property Index'!E27,'Property Index'!A:A) -> 87 | H27: =INDEX('Property Index'!B:B,'Property Index'!G27) -> 162.7 | I27: 0.005070057558
A28: 1981Q3 | B28: 123.6 | E28: 1996Q3 | F28: 74.17 | G28: =MATCH('Property Index'!E28,'Property Index'!A:A) -> 88 | H28: =INDEX('Property Index'!B:B,'Property Index'!G28) -> 163.3 | I28: -0.0129932844
A29: 1981Q4 | B29: 104.9 | E29: 1996Q4 | F29: 72.66 | G29: =MATCH('Property Index'!E29,'Property Index'!A:A) -> 89 | H29: =INDEX('Property Index'!B:B,'Property Index'!G29) -> 160.3 | I29: -0.02056872896
A30: 1982Q1 | B30: 97.6 | E30: 1997Q1 | F30: 72.38 | G30: =MATCH('Property Index'!E30,'Property Index'!A:A) -> 90 | H30: =INDEX('Property Index'!B:B,'Property Index'!G30) -> 152.4 | I30: -0.003861008657
A31: 1982Q2 | B31: 95.6 | E31: 1997Q2 | F31: 72.03 | G31: =MATCH('Property Index'!E31,'Property Index'!A:A) -> 91 | H31: =INDEX('Property Index'!B:B,'Property Index'!G31) -> 150.2 | I31: -0.004847319234
A32: 1982Q3 | B32: 93.6 | E32: 1997Q3 | F32: 70.07 | G32: =MATCH('Property Index'!E32,'Property Index'!A:A) -> 92 | H32: =INDEX('Property Index'!B:B,'Property Index'!G32) -> 145.5 | I32: -0.02758795652
A33: 1982Q4 | B33: 92.7 | E33: 1997Q4 | F33: 68.73 | G33: =MATCH('Property Index'!E33,'Property Index'!A:A) -> 93 | H33: =INDEX('Property Index'!B:B,'Property Index'!G33) -> 143.2 | I33: -0.01930895725
A34: 1983Q1 | B34: 90.7 | E34: 1998Q1 | F34: 66.72 | G34: =MATCH('Property Index'!E34,'Property Index'!A:A) -> 94 | H34: =INDEX('Property Index'!B:B,'Property Index'!G34) -> 136.8 | I34: -0.02968102708
A35: 1983Q2 | B35: 88.1 | E35: 1998Q2 | F35: 63.28 | G35: =MATCH('Property Index'!E35,'Property Index'!A:A) -> 95 | H35: =INDEX('Property Index'!B:B,'Property Index'!G35) -> 124.9 | I35: =LN(F35/F34) -> -0.05293543459
A36: 1983Q3 | B36: 83.3 | E36: 1998Q3 | F36: 60.4 | G36: =MATCH('Property Index'!E36,'Property Index'!A:A) -> 96 | H36: =INDEX('Property Index'!B:B,'Property Index'!G36) -> 109.3 | I36: -0.04658021852
A37: 1983Q4 | B37: 78.8 | E37: 1998Q4 | F37: 57.45 | G37: =MATCH('Property Index'!E37,'Property Index'!A:A) -> 97 | H37: =INDEX('Property Index'!B:B,'Property Index'!G37) -> 100 | I37: -0.05007410065
A38: 1984Q1 | B38: 74.9 | E38: 1999Q1 | F38: 54.61 | G38: =MATCH('Property Index'!E38,'Property Index'!A:A) -> 98 | H38: =INDEX('Property Index'!B:B,'Property Index'!G38) -> 92.2 | I38: -0.05069798813
A39: 1984Q2 | B39: 68 | E39: 1999Q2 | F39: 52.15 | G39: =MATCH('Property Index'!E39,'Property Index'!A:A) -> 99 | H39: =INDEX('Property Index'!B:B,'Property Index'!G39) -> 91.9 | I39: -0.04609283472
A40: 1984Q3 | B40: 65 | E40: 1999Q3 | F40: 50.98 | G40: =MATCH('Property Index'!E40,'Property Index'!A:A) -> 100 | H40: =INDEX('Property Index'!B:B,'Property Index'!G40) -> 90.5 | I40: -0.0226907825
A41: 1984Q4 | B41: 56.2 | E41: 1999Q4 | F41: 51.45 | G41: =MATCH('Property Index'!E41,'Property Index'!A:A) -> 101 | H41: =INDEX('Property Index'!B:B,'Property Index'!G41) -> 98.7 | I41: 0.009177063332
A42: 1985Q1 | B42: 57.1 | E42: 2000Q1 | F42: 52.85 | G42: =MATCH('Property Index'!E42,'Property Index'!A:A) -> 102 | H42: =INDEX('Property Index'!B:B,'Property Index'!G42) -> 104.7 | I42: 0.02684725004
A43: 1985Q2 | B43: 53.7 | E43: 2000Q2 | F43: 55.4 | G43: =MATCH('Property Index'!E43,'Property Index'!A:A) -> 103 | H43: =INDEX('Property Index'!B:B,'Property Index'!G43) -> 116.7 | I43: 0.04712188144
A44: 1985Q3 | B44: 48.3 | E44: 2000Q3 | F44: 56.83 | G44: =MATCH('Property Index'!E44,'Property Index'!A:A) -> 104 | H44: =INDEX('Property Index'!B:B,'Property Index'!G44) -> 119.2 | I44: 0.02548476156
A45: 1985Q4 | B45: 37.9 | E45: 2000Q4 | F45: 58.42 | G45: =MATCH('Property Index'!E45,'Property Index'!A:A) -> 105 | H45: =INDEX('Property Index'!B:B,'Property Index'!G45) -> 125.9 | I45: 0.02759394165
A46: 1986Q1 | B46: 40.4 | E46: 2001Q1 | F46: 60.15 | G46: =MATCH('Property Index'!E46,'Property Index'!A:A) -> 106 | H46: =INDEX('Property Index'!B:B,'Property Index'!G46) -> 114.5 | I46: 0.02918314546
A47: 1986Q2 | B47: 42.3 | E47: 2001Q2 | F47: 60.13 | G47: =MATCH('Property Index'!E47,'Property Index'!A:A) -> 107 | H47: =INDEX('Property Index'!B:B,'Property Index'!G47) -> 110.9 | I47: -0.0003325573692
A48: 1986Q3 | B48: 41.5 | E48: 2001Q3 | F48: 58.53 | G48: =MATCH('Property Index'!E48,'Property Index'!A:A) -> 108 | H48: =INDEX('Property Index'!B:B,'Property Index'!G48) -> 106.8 | I48: -0.02696944175
A49: 1986Q4 | B49: 42.1 | E49: 2001Q4 | F49: 55.36 | G49: =MATCH('Property Index'!E49,'Property Index'!A:A) -> 109 | H49: =INDEX('Property Index'!B:B,'Property Index'!G49) -> 98.8 | I49: -0.05568213199
A50: 1987Q1 | B50: 45.2 | E50: 2002Q1 | F50: 53.7 | G50: =MATCH('Property Index'!E50,'Property Index'!A:A) -> 110 | H50: =INDEX('Property Index'!B:B,'Property Index'!G50) -> 93.6 | I50: -0.03044430979
A51: 1987Q2 | B51: 46.5 | E51: 2002Q2 | F51: 51.44 | G51: =MATCH('Property Index'!E51,'Property Index'!A:A) -> 111 | H51: =INDEX('Property Index'!B:B,'Property Index'!G51) -> 90.4 | I51: -0.04299692159
A52: 1987Q3 | B52: 48.4 | E52: 2002Q3 | F52: 50.11 | G52: =MATCH('Property Index'!E52,'Property Index'!A:A) -> 112 | H52: =INDEX('Property Index'!B:B,'Property Index'!G52) -> 86.9 | I52: -0.02619549096
A53: 1987Q4 | B53: 52.7 | E53: 2002Q4 | F53: 48.5 | G53: =MATCH('Property Index'!E53,'Property Index'!A:A) -> 113 | H53: =INDEX('Property Index'!B:B,'Property Index'!G53) -> 82.3 | I53: -0.03265679103
A54: 1988Q1 | B54: 55.7 | E54: 2003Q1 | F54: 46.8 | G54: =MATCH('Property Index'!E54,'Property Index'!A:A) -> 114 | H54: =INDEX('Property Index'!B:B,'Property Index'!G54) -> 79.8 | I54: -0.03568059502
A55: 1988Q2 | B55: 56.5 | E55: 2003Q2 | F55: 45.84 | G55: =MATCH('Property Index'!E55,'Property Index'!A:A) -> 115 | H55: =INDEX('Property Index'!B:B,'Property Index'!G55) -> 77.1 | I55: -0.02072613052
A56: 1988Q3 | B56: 57.3 | E56: 2003Q3 | F56: 44 | G56: =MATCH('Property Index'!E56,'Property Index'!A:A) -> 116 | H56: =INDEX('Property Index'!B:B,'Property Index'!G56) -> 75.5 | I56: -0.04096743849
A57: 1988Q4 | B57: 60.8 | E57: 2003Q4 | F57: 43.22 | G57: =MATCH('Property Index'!E57,'Property Index'!A:A) -> 117 | H57: =INDEX('Property Index'!B:B,'Property Index'!G57) -> 73.5 | I57: -0.01788628284
A58: 1989Q1 | B58: 68.2 | E58: 2004Q1 | F58: 43 | G58: =MATCH('Property Index'!E58,'Property Index'!A:A) -> 118 | H58: =INDEX('Property Index'!B:B,'Property Index'!G58) -> 71.9 | I58: -0.005103235385
A59: 1989Q2 | B59: 74.7 | E59: 2004Q2 | F59: 43.31 | G59: =MATCH('Property Index'!E59,'Property Index'!A:A) -> 119 | H59: =INDEX('Property Index'!B:B,'Property Index'!G59) -> 72.1 | I59: 0.007183439533
A60: 1989Q3 | B60: 87.8 | E60: 2004Q3 | F60: 44.55 | G60: =MATCH('Property Index'!E60,'Property Index'!A:A) -> 120 | H60: =INDEX('Property Index'!B:B,'Property Index'!G60) -> 72.5 | I60: 0.02822859869
A61: 1989Q4 | B61: 87.3 | E61: 2004Q4 | F61: 44.96 | G61: =MATCH('Property Index'!E61,'Property Index'!A:A) -> 121 | H61: =INDEX('Property Index'!B:B,'Property Index'!G61) -> 73 | I61: 0.009161051669
A62: 1990Q1 | B62: 98 | E62: 2005Q1 | F62: 46.02 | G62: =MATCH('Property Index'!E62,'Property Index'!A:A) -> 122 | H62: =INDEX('Property Index'!B:B,'Property Index'!G62) -> 73.7 | I62: 0.02330287902
A63: 1990Q2 | B63: 91.2 | E63: 2005Q2 | F63: 46.49 | G63: =MATCH('Property Index'!E63,'Property Index'!A:A) -> 123 | H63: =INDEX('Property Index'!B:B,'Property Index'!G63) -> 74.1 | I63: 0.0101611511
A64: 1990Q3 | B64: 97.8 | E64: 2005Q3 | F64: 47.6 | G64: =MATCH('Property Index'!E64,'Property Index'!A:A) -> 124 | H64: =INDEX('Property Index'!B:B,'Property Index'!G64) -> 75.1 | I64: 0.02359552553
A65: 1990Q4 | B65: 89.4 | E65: 2005Q4 | F65: 50.95 | G65: =MATCH('Property Index'!E65,'Property Index'!A:A) -> 125 | H65: =INDEX('Property Index'!B:B,'Property Index'!G65) -> 76.3 | I65: 0.06801199843
A66: 1991Q1 | B66: 91.4 | E66: 2006Q1 | F66: 52.31 | G66: =MATCH('Property Index'!E66,'Property Index'!A:A) -> 126 | H66: =INDEX('Property Index'!B:B,'Property Index'!G66) -> 77.4 | I66: 0.02634279771
A67: 1991Q2 | B67: 91.1 | E67: 2006Q2 | F67: 56.01 | G67: =MATCH('Property Index'!E67,'Property Index'!A:A) -> 127 | H67: =INDEX('Property Index'!B:B,'Property Index'!G67) -> 80.1 | I67: =LN(F67/F66) -> 0.06834268884
A68: 1991Q3 | B68: 91 | E68: 2006Q3 | F68: 60.06 | G68: =MATCH('Property Index'!E68,'Property Index'!A:A) -> 128 | H68: =INDEX('Property Index'!B:B,'Property Index'!G68) -> 82.9 | I68: 0.06981381633
A69: 1991Q4 | B69: 92 | E69: 2006Q4 | F69: 67.12 | G69: =MATCH('Property Index'!E69,'Property Index'!A:A) -> 129 | H69: =INDEX('Property Index'!B:B,'Property Index'!G69) -> 89.3 | I69: 0.1111379996
A70: 1992Q1 | B70: 94.9 | E70: 2007Q1 | F70: 74.4 | G70: =MATCH('Property Index'!E70,'Property Index'!A:A) -> 130 | H70: =INDEX('Property Index'!B:B,'Property Index'!G70) -> 93.1 | I70: 0.1029738797
A71: 1992Q2 | B71: 89.7 | E71: 2007Q2 | F71: 83.04 | G71: =MATCH('Property Index'!E71,'Property Index'!A:A) -> 131 | H71: =INDEX('Property Index'!B:B,'Property Index'!G71) -> 101.4 | I71: 0.1098664776
A72: 1992Q3 | B72: 86.9 | E72: 2007Q3 | F72: 95.5 | G72: =MATCH('Property Index'!E72,'Property Index'!A:A) -> 132 | H72: =INDEX('Property Index'!B:B,'Property Index'!G72) -> 109.6 | I72: 0.1398038281
A73: 1992Q4 | B73: 81.7 | E73: 2007Q4 | F73: 106.02 | G73: =MATCH('Property Index'!E73,'Property Index'!A:A) -> 133 | H73: =INDEX('Property Index'!B:B,'Property Index'!G73) -> 118.4 | I73: 0.1045015081
A74: 1993Q1 | B74: 81.6 | E74: 2008Q1 | F74: 113.84 | G74: =MATCH('Property Index'!E74,'Property Index'!A:A) -> 134 | H74: =INDEX('Property Index'!B:B,'Property Index'!G74) -> 119.7 | I74: 0.07116619822
A75: 1993Q2 | B75: 86.6 | E75: 2008Q2 | F75: 121.71 | G75: =MATCH('Property Index'!E75,'Property Index'!A:A) -> 135 | H75: =INDEX('Property Index'!B:B,'Property Index'!G75) -> 120.5 | I75: 0.0668472121
A76: 1993Q3 | B76: 89 | E76: 2008Q3 | F76: 121.3 | G76: =MATCH('Property Index'!E76,'Property Index'!A:A) -> 136 | H76: =INDEX('Property Index'!B:B,'Property Index'!G76) -> 115.8 | I76: -0.003374349936
A77: 1993Q4 | B77: 91 | E77: 2008Q4 | F77: 113.37 | G77: =MATCH('Property Index'!E77,'Property Index'!A:A) -> 137 | H77: =INDEX('Property Index'!B:B,'Property Index'!G77) -> 110.1 | I77: -0.06761000992
A78: 1994Q1 | B78: 95 | E78: 2009Q1 | F78: 100.85 | G78: =MATCH('Property Index'!E78,'Property Index'!A:A) -> 138 | H78: =INDEX('Property Index'!B:B,'Property Index'!G78) -> 96.9 | I78: -0.1170225416
A79: 1994Q2 | B79: 101.5 | E79: 2009Q2 | F79: 92.68 | G79: =MATCH('Property Index'!E79,'Property Index'!A:A) -> 139 | H79: =INDEX('Property Index'!B:B,'Property Index'!G79) -> 93.1 | I79: -0.08448156484
A80: 1994Q3 | B80: 113.5 | E80: 2009Q3 | F80: 88.86 | G80: =MATCH('Property Index'!E80,'Property Index'!A:A) -> 140 | H80: =INDEX('Property Index'!B:B,'Property Index'!G80) -> 91.1 | I80: -0.04209060206
A81: 1994Q4 | B81: 131.4 | E81: 2009Q4 | F81: 85.31 | G81: =MATCH('Property Index'!E81,'Property Index'!A:A) -> 141 | H81: =INDEX('Property Index'!B:B,'Property Index'!G81) -> 92 | I81: -0.04077041659
A82: 1995Q1 | B82: 145.3 | E82: 2010Q1 | F82: 85.43 | G82: =MATCH('Property Index'!E82,'Property Index'!A:A) -> 142 | H82: =INDEX('Property Index'!B:B,'Property Index'!G82) -> 93.7 | I82: 0.001405646243
A83: 1995Q2 | B83: 151.7 | E83: 2010Q2 | F83: 86.2 | G83: =MATCH('Property Index'!E83,'Property Index'!A:A) -> 143 | H83: =INDEX('Property Index'!B:B,'Property Index'!G83) -> 98 | I83: 0.008972850506
A84: 1995Q3 | B84: 157.5 | E84: 2010Q3 | F84: 91.29 | G84: =MATCH('Property Index'!E84,'Property Index'!A:A) -> 144 | H84: =INDEX('Property Index'!B:B,'Property Index'!G84) -> 104.1 | I84: 0.05737107491
A85: 1995Q4 | B85: 160.3 | E85: 2010Q4 | F85: 95.49 | G85: =MATCH('Property Index'!E85,'Property Index'!A:A) -> 145 | H85: =INDEX('Property Index'!B:B,'Property Index'!G85) -> 109.4 | I85: 0.04498027739
A86: 1996Q1 | B86: 161.4 | E86: 2011Q1 | F86: 100.03 | G86: =MATCH('Property Index'!E86,'Property Index'!A:A) -> 146 | H86: =INDEX('Property Index'!B:B,'Property Index'!G86) -> 114.8 | I86: 0.04644861103
A87: 1996Q2 | B87: 162.7 | E87: 2011Q2 | F87: 101.03 | G87: =MATCH('Property Index'!E87,'Property Index'!A:A) -> 147 | H87: =INDEX('Property Index'!B:B,'Property Index'!G87) -> 118.9 | I87: 0.009947361443
A88: 1996Q3 | B88: 163.3 | E88: 2011Q3 | F88: 101.74 | G88: =MATCH('Property Index'!E88,'Property Index'!A:A) -> 148 | H88: =INDEX('Property Index'!B:B,'Property Index'!G88) -> 123.3 | I88: 0.007003036955
A89: 1996Q4 | B89: 160.3 | E89: 2011Q4 | F89: 102.15 | G89: =MATCH('Property Index'!E89,'Property Index'!A:A) -> 149 | H89: =INDEX('Property Index'!B:B,'Property Index'!G89) -> 124.5 | I89: 0.004021781869
A90: 1997Q1 | B90: 152.4 | E90: 2012Q1 | F90: 101.33 | G90: =MATCH('Property Index'!E90,'Property Index'!A:A) -> 150 | H90: =INDEX('Property Index'!B:B,'Property Index'!G90) -> 124.5 | I90: -0.008059803803
A91: 1997Q2 | B91: 150.2 | E91: 2012Q2 | F91: 100.62 | G91: =MATCH('Property Index'!E91,'Property Index'!A:A) -> 151 | H91: =INDEX('Property Index'!B:B,'Property Index'!G91) -> 123.4 | I91: -0.007031472397
A92: 1997Q3 | B92: 145.5 | E92: 2012Q3 | F92: 100.67 | G92: =MATCH('Property Index'!E92,'Property Index'!A:A) -> 152 | H92: =INDEX('Property Index'!B:B,'Property Index'!G92) -> 125.8 | I92: 0.0004967956782
A93: 1997Q4 | B93: 143.2 | E93: 2012Q4 | F93: 100.17 | G93: =MATCH('Property Index'!E93,'Property Index'!A:A) -> 153 | H93: =INDEX('Property Index'!B:B,'Property Index'!G93) -> 126.2 | I93: -0.004979098118
A94: 1998Q1 | B94: 136.8 | E94: 2013Q1 | F94: 99.67 | G94: =MATCH('Property Index'!E94,'Property Index'!A:A) -> 154 | H94: =INDEX('Property Index'!B:B,'Property Index'!G94) -> 128.9 | I94: -0.005004013644
A95: 1998Q2 | B95: 124.9 | E95: 2013Q2 | F95: 99.77 | G95: =MATCH('Property Index'!E95,'Property Index'!A:A) -> 155 | H95: =INDEX('Property Index'!B:B,'Property Index'!G95) -> 130.8 | I95: 0.001002807946
A96: 1998Q3 | B96: 109.3
A97: 1998Q4 | B97: 100
A98: 1999Q1 | B98: 92.2
A99: 1999Q2 | B99: 91.9
A100: 1999Q3 | B100: 90.5
A101: 1999Q4 | B101: 98.7
A102: 2000Q1 | B102: 104.7
A103: 2000Q2 | B103: 116.7
A104: 2000Q3 | B104: 119.2
A105: 2000Q4 | B105: 125.9
A106: 2001Q1 | B106: 114.5
A107: 2001Q2 | B107: 110.9
A108: 2001Q3 | B108: 106.8
A109: 2001Q4 | B109: 98.8
A110: 2002Q1 | B110: 93.6
A111: 2002Q2 | B111: 90.4
A112: 2002Q3 | B112: 86.9
A113: 2002Q4 | B113: 82.3
A114: 2003Q1 | B114: 79.8
A115: 2003Q2 | B115: 77.1
A116: 2003Q3 | B116: 75.5
A117: 2003Q4 | B117: 73.5
A118: 2004Q1 | B118: 71.9
A119: 2004Q2 | B119: 72.1
A120: 2004Q3 | B120: 72.5
A121: 2004Q4 | B121: 73
A122: 2005Q1 | B122: 73.7
A123: 2005Q2 | B123: 74.1
A124: 2005Q3 | B124: 75.1
A125: 2005Q4 | B125: 76.3
A126: 2006Q1 | B126: 77.4
A127: 2006Q2 | B127: 80.1
A128: 2006Q3 | B128: 82.9
A129: 2006Q4 | B129: 89.3
A130: 2007Q1 | B130: 93.1
A131: 2007Q2 | B131: 101.4
A132: 2007Q3 | B132: 109.6
A133: 2007Q4 | B133: 118.4
A134: 2008Q1 | B134: 119.7
A135: 2008Q2 | B135: 120.5
A136: 2008Q3 | B136: 115.8
A137: 2008Q4 | B137: 110.1
A138: 2009Q1 | B138: 96.9
A139: 2009Q2 | B139: 93.1
A140: 2009Q3 | B140: 91.1
A141: 2009Q4 | B141: 92
A142: 2010Q1 | B142: 93.7
A143: 2010Q2 | B143: 98
A144: 2010Q3 | B144: 104.1
A145: 2010Q4 | B145: 109.4
A146: 2011Q1 | B146: 114.8
A147: 2011Q2 | B147: 118.9
A148: 2011Q3 | B148: 123.3
A149: 2011Q4 | B149: 124.5
A150: 2012Q1 | B150: 124.5
A151: 2012Q2 | B151: 123.4
A152: 2012Q3 | B152: 125.8
A153: 2012Q4 | B153: 126.2
A154: 2013Q1 | B154: 128.9
A155: 2013Q2 | B155: 130.8
A158: series_id | B158: pt_09_wi_ppi
A159: series_start_period | B159: 1975Q1
A160: frequency | B160: Q
A161: explanatory_note | B161: The statistics were compiled from information in caveats lodged at the option stage with the Singapore Land Registry. A caveat is normally lodged by a purchaser to protect his/her interest of a property shortly after the option to purchase is exercised.The prices in 4Q98 are used as the base reference price of the index (i.e. the index for 4Q98 assumes a value of 100).The indices are compiled based on a Moving Average weight method, whereby the value of properties transacted in the past 12 quarters are used as weights.

Sheet Lease Roll
B1: Lease Roll | E1: Percent | F1: NLA | G1: Rent | H1: Term | I1: Renew Prob | J1: First Exp | K1: Idle Time | L1: 2nd Trm Mnt | M1: 2nd Start | N1: 2nd Idle
C2: Anchor Tenant | E2: 0.4 | F2: =NLA*E2 -> 35360 | G2: 9 | H2: 10 | I2: 0.9 | J2: =EDATE('Working Model (Q)'!$F$20,H2*12) -> 2027-01-01 | K2: 10 | L2: =H2*12 -> 120 | M2: =EDATE(J2,K2) -> 2027-11-01 | N2: 5
C3: Lease 1 | E3: 0.1 | F3: 8840 | G3: 10 | H3: 3 | I3: 0.5 | J3: =EDATE('Working Model (Q)'!$F$20,H3*12) -> 2020-01-01 | K3: 3 | L3: 36 | M3: 2020-04-01 | N3: 4
C4: Lease 2 | E4: 0.1 | F4: 8840 | G4: 10.5 | H4: 2 | I4: 0.8 | J4: =EDATE('Working Model (Q)'!$F$20,H4*12) -> 2019-01-01 | K4: 3 | L4: 24 | M4: 2019-04-01 | N4: 2
C5: Lease 3 | E5: 0.1 | F5: 8840 | G5: 11 | H5: 2 | I5: 0.2 | J5: =EDATE('Working Model (Q)'!$F$20,H5*12) -> 2019-01-01 | K5: 3 | L5: 24 | M5: 2019-04-01 | N5: 10
C6: Lease 4 | E6: 0.05 | F6: 4420 | G6: 11 | H6: 1 | I6: 0.2 | J6: =EDATE('Working Model (Q)'!$F$20,H6*12) -> 2018-01-01 | K6: 3 | L6: 12 | M6: 2018-04-01 | N6: 12
C7: Lease 5 | E7: 0.25 | F7: 22100 | G7: 12 | H7: 1 | I7: 0.2 | J7: =EDATE('Working Model (Q)'!$F$20,H7*12) -> 2018-01-01 | K7: 0 | L7: 12 | M7: 2018-01-01 | N7: 0
E8: =SUM(E2:E7) -> 1
C9: Codes
D10: 1 - First Lease
D11: 2 - Partial Lease
D12: 3 - Idle Time
D13: 4 - Second Lease
D14: 5 - Second Idle Time
D15: 6 - Third Lease
C17: Anchor Tenant | K17: =lease_codes('Working Model (Q)'!K1,'Working Model (Q)'!K2,$J$2,$K$2,$L$2,$N$2) -> 1 | L17: =lease_codes('Working Model (Q)'!L1,'Working Model (Q)'!L2,$J$2,$K$2,$L$2,$N$2) -> 1 | M17: =lease_codes('Working Model (Q)'!M1,'Working Model (Q)'!M2,$J$2,$K$2,$L$2,$N$2) -> 1 | N17: =lease_codes('Working Model (Q)'!N1,'Working Model (Q)'!N2,$J$2,$K$2,$L$2,$N$2) -> 1 | O17: =lease_codes('Working Model (Q)'!O1,'Working Model (Q)'!O2,$J$2,$K$2,$L$2,$N$2) -> 1 | P17: =lease_codes('Working Model (Q)'!P1,'Working Model (Q)'!P2,$J$2,$K$2,$L$2,$N$2) -> 1 | Q17: =lease_codes('Working Model (Q)'!Q1,'Working Model (Q)'!Q2,$J$2,$K$2,$L$2,$N$2) -> 1 | R17: =lease_codes('Working Model (Q)'!R1,'Working Model (Q)'!R2,$J$2,$K$2,$L$2,$N$2) -> 1 | S17: =lease_codes('Working Model (Q)'!S1,'Working Model (Q)'!S2,$J$2,$K$2,$L$2,$N$2) -> 1 | T17: =lease_codes('Working Model (Q)'!T1,'Working Model (Q)'!T2,$J$2,$K$2,$L$2,$N$2) -> 1 | U17: =lease_codes('Working Model (Q)'!U1,'Working Model (Q)'!U2,$J$2,$K$2,$L$2,$N$2) -> 1 | V17: =lease_codes('Working Model (Q)'!V1,'Working Model (Q)'!V2,$J$2,$K$2,$L$2,$N$2) -> 1 | W17: =lease_codes('Working Model (Q)'!W1,'Working Model (Q)'!W2,$J$2,$K$2,$L$2,$N$2) -> 1 | X17: =lease_codes('Working Model (Q)'!X1,'Working Model (Q)'!X2,$J$2,$K$2,$L$2,$N$2) -> 1 | Y17: =lease_codes('Working Model (Q)'!Y1,'Working Model (Q)'!Y2,$J$2,$K$2,$L$2,$N$2) -> 1 | Z17: =lease_codes('Working Model (Q)'!Z1,'Working Model (Q)'!Z2,$J$2,$K$2,$L$2,$N$2) -> 1 | AA17: =lease_codes('Working Model (Q)'!AA1,'Working Model (Q)'!AA2,$J$2,$K$2,$L$2,$N$2) -> 1 | AB17: =lease_codes('Working Model (Q)'!AB1,'Working Model (Q)'!AB2,$J$2,$K$2,$L$2,$N$2) -> 1 | AC17: =lease_codes('Working Model (Q)'!AC1,'Working Model (Q)'!AC2,$J$2,$K$2,$L$2,$N$2) -> 1 | AD17: =lease_codes('Working Model (Q)'!AD1,'Working Model (Q)'!AD2,$J$2,$K$2,$L$2,$N$2) -> 1 | AE17: =lease_codes('Working Model (Q)'!AE1,'Working Model (Q)'!AE2,$J$2,$K$2,$L$2,$N$2) -> 1 | AF17: =lease_codes('Working Model (Q)'!AF1,'Working Model (Q)'!AF2,$J$2,$K$2,$L$2,$N$2) -> 1 | AG17: =lease_codes('Working Model (Q)'!AG1,'Working Model (Q)'!AG2,$J$2,$K$2,$L$2,$N$2) -> 1 | AH17: =lease_codes('Working Model (Q)'!AH1,'Working Model (Q)'!AH2,$J$2,$K$2,$L$2,$N$2) -> 1 | AI17: =lease_codes('Working Model (Q)'!AI1,'Working Model (Q)'!AI2,$J$2,$K$2,$L$2,$N$2) -> 1 | AJ17: =lease_codes('Working Model (Q)'!AJ1,'Working Model (Q)'!AJ2,$J$2,$K$2,$L$2,$N$2) -> 1 | AK17: =lease_codes('Working Model (Q)'!AK1,'Working Model (Q)'!AK2,$J$2,$K$2,$L$2,$N$2) -> 1 | AL17: =lease_codes('Working Model (Q)'!AL1,'Working Model (Q)'!AL2,$J$2,$K$2,$L$2,$N$2) -> 1 | AM17: =lease_codes('Working Model (Q)'!AM1,'Working Model (Q)'!AM2,$J$2,$K$2,$L$2,$N$2) -> 1 | AN17: =lease_codes('Working Model (Q)'!AN1,'Working Model (Q)'!AN2,$J$2,$K$2,$L$2,$N$2) -> 1 | AO17: =lease_codes('Working Model (Q)'!AO1,'Working Model (Q)'!AO2,$J$2,$K$2,$L$2,$N$2) -> 1 | AP17: =lease_codes('Working Model (Q)'!AP1,'Working Model (Q)'!AP2,$J$2,$K$2,$L$2,$N$2) -> 1 | AQ17: =lease_codes('Working Model (Q)'!AQ1,'Working Model (Q)'!AQ2,$J$2,$K$2,$L$2,$N$2) -> 1 | AR17: =lease_codes('Working Model (Q)'!AR1,'Working Model (Q)'!AR2,$J$2,$K$2,$L$2,$N$2) -> 1 | AS17: =lease_codes('Working Model (Q)'!AS1,'Working Model (Q)'!AS2,$J$2,$K$2,$L$2,$N$2) -> 1 | AT17: =lease_codes('Working Model (Q)'!AT1,'Working Model (Q)'!AT2,$J$2,$K$2,$L$2,$N$2) -> 1 | AU17: =lease_codes('Working Model (Q)'!AU1,'Working Model (Q)'!AU2,$J$2,$K$2,$L$2,$N$2) -> 1 | AV17: =lease_codes('Working Model (Q)'!AV1,'Working Model (Q)'!AV2,$J$2,$K$2,$L$2,$N$2) -> 1 | AW17: =lease_codes('Working Model (Q)'!AW1,'Working Model (Q)'!AW2,$J$2,$K$2,$L$2,$N$2) -> 1 | AX17: =lease_codes('Working Model (Q)'!AX1,'Working Model (Q)'!AX2,$J$2,$K$2,$L$2,$N$2) -> 1 | AY17: =lease_codes('Working Model (Q)'!AY1,'Working Model (Q)'!AY2,$J$2,$K$2,$L$2,$N$2) -> 1 | AZ17: =lease_codes('Working Model (Q)'!AZ1,'Working Model (Q)'!AZ2,$J$2,$K$2,$L$2,$N$2) -> 1 | BA17: =lease_codes('Working Model (Q)'!BA1,'Working Model (Q)'!BA2,$J$2,$K$2,$L$2,$N$2) -> 1 | BB17: =lease_codes('Working Model (Q)'!BB1,'Working Model (Q)'!BB2,$J$2,$K$2,$L$2,$N$2) -> 1 | BC17: =lease_codes('Working Model (Q)'!BC1,'Working Model (Q)'!BC2,$J$2,$K$2,$L$2,$N$2) -> 1 | BD17: =lease_codes('Working Model (Q)'!BD1,'Working Model (Q)'!BD2,$J$2,$K$2,$L$2,$N$2) -> 1 | BE17: =lease_codes('Working Model (Q)'!BE1,'Working Model (Q)'!BE2,$J$2,$K$2,$L$2,$N$2) -> 1 | BF17: =lease_codes('Working Model (Q)'!BF1,'Working Model (Q)'!BF2,$J$2,$K$2,$L$2,$N$2) -> 1 | BG17: =lease_codes('Working Model (Q)'!BG1,'Working Model (Q)'!BG2,$J$2,$K$2,$L$2,$N$2) -> 1 | BH17: =lease_codes('Working Model (Q)'!BH1,'Working Model (Q)'!BH2,$J$2,$K$2,$L$2,$N$2) -> 1 | BI17: =lease_codes('Working Model (Q)'!BI1,'Working Model (Q)'!BI2,$J$2,$K$2,$L$2,$N$2) -> 1 | BJ17: =lease_codes('Working Model (Q)'!BJ1,'Working Model (Q)'!BJ2,$J$2,$K$2,$L$2,$N$2) -> 1 | BK17: =lease_codes('Working Model (Q)'!BK1,'Working Model (Q)'!BK2,$J$2,$K$2,$L$2,$N$2) -> 1 | BL17: =lease_codes('Working Model (Q)'!BL1,'Working Model (Q)'!BL2,$J$2,$K$2,$L$2,$N$2) -> 1 | BM17: =lease_codes('Working Model (Q)'!BM1,'Working Model (Q)'!BM2,$J$2,$K$2,$L$2,$N$2) -> 1 | BN17: =lease_codes('Working Model (Q)'!BN1,'Working Model (Q)'!BN2,$J$2,$K$2,$L$2,$N$2) -> 1 | BO17: =lease_codes('Working Model (Q)'!BO1,'Working Model (Q)'!BO2,$J$2,$K$2,$L$2,$N$2) -> 3 | BP17: =lease_codes('Working Model (Q)'!BP1,'Working Model (Q)'!BP2,$J$2,$K$2,$L$2,$N$2) -> 3 | BQ17: =lease_codes('Working Model (Q)'!BQ1,'Working Model (Q)'!BQ2,$J$2,$K$2,$L$2,$N$2) -> 3 | BR17: =lease_codes('Working Model (Q)'!BR1,'Working Model (Q)'!BR2,$J$2,$K$2,$L$2,$N$2) -> 3 | BS17: =lease_codes('Working Model (Q)'!BS1,'Working Model (Q)'!BS2,$J$2,$K$2,$L$2,$N$2) -> 4 | BT17: =lease_codes('Working Model (Q)'!BT1,'Working Model (Q)'!BT2,$J$2,$K$2,$L$2,$N$2) -> 4 | BU17: =lease_codes('Working Model (Q)'!BU1,'Working Model (Q)'!BU2,$J$2,$K$2,$L$2,$N$2) -> 4 | BV17: =lease_codes('Working Model (Q)'!BV1,'Working Model (Q)'!BV2,$J$2,$K$2,$L$2,$N$2) -> 4 | BW17: =lease_codes('Working Model (Q)'!BW1,'Working Model (Q)'!BW2,$J$2,$K$2,$L$2,$N$2) -> 4 | BX17: =lease_codes('Working Model (Q)'!BX1,'Working Model (Q)'!BX2,$J$2,$K$2,$L$2,$N$2) -> 4 | BY17: =lease_codes('Working Model (Q)'!BY1,'Working Model (Q)'!BY2,$J$2,$K$2,$L$2,$N$2) -> 4 | BZ17: =lease_codes('Working Model (Q)'!BZ1,'Working Model (Q)'!BZ2,$J$2,$K$2,$L$2,$N$2) -> 4 | CA17: =lease_codes('Working Model (Q)'!CA1,'Working Model (Q)'!CA2,$J$2,$K$2,$L$2,$N$2) -> 4 | CB17: =lease_codes('Working Model (Q)'!CB1,'Working Model (Q)'!CB2,$J$2,$K$2,$L$2,$N$2) -> 4 | CC17: =lease_codes('Working Model (Q)'!CC1,'Working Model (Q)'!CC2,$J$2,$K$2,$L$2,$N$2) -> 4 | CD17: =lease_codes('Working Model (Q)'!CD1,'Working Model (Q)'!CD2,$J$2,$K$2,$L$2,$N$2) -> 4 | CE17: =lease_codes('Working Model (Q)'!CE1,'Working Model (Q)'!CE2,$J$2,$K$2,$L$2,$N$2) -> 4 | CF17: =lease_codes('Working Model (Q)'!CF1,'Working Model (Q)'!CF2,$J$2,$K$2,$L$2,$N$2) -> 4 | CG17: =lease_codes('Working Model (Q)'!CG1,'Working Model (Q)'!CG2,$J$2,$K$2,$L$2,$N$2) -> 4 | CH17: =lease_codes('Working Model (Q)'!CH1,'Working Model (Q)'!CH2,$J$2,$K$2,$L$2,$N$2) -> 4 | CI17: =lease_codes('Working Model (Q)'!CI1,'Working Model (Q)'!CI2,$J$2,$K$2,$L$2,$N$2) -> 4 | CJ17: =lease_codes('Working Model (Q)'!CJ1,'Working Model (Q)'!CJ2,$J$2,$K$2,$L$2,$N$2) -> 4 | CK17: =lease_codes('Working Model (Q)'!CK1,'Working Model (Q)'!CK2,$J$2,$K$2,$L$2,$N$2) -> 4 | CL17: =lease_codes('Working Model (Q)'!CL1,'Working Model (Q)'!CL2,$J$2,$K$2,$L$2,$N$2) -> 4 | CM17: =lease_codes('Working Model (Q)'!CM1,'Working Model (Q)'!CM2,$J$2,$K$2,$L$2,$N$2) -> 4 | CN17: =lease_codes('Working Model (Q)'!CN1,'Working Model (Q)'!CN2,$J$2,$K$2,$L$2,$N$2) -> 4 | CO17: =lease_codes('Working Model (Q)'!CO1,'Working Model (Q)'!CO2,$J$2,$K$2,$L$2,$N$2) -> 4 | CP17: =lease_codes('Working Model (Q)'!CP1,'Working Model (Q)'!CP2,$J$2,$K$2,$L$2,$N$2) -> 4 | CQ17: =lease_codes('Working Model (Q)'!CQ1,'Working Model (Q)'!CQ2,$J$2,$K$2,$L$2,$N$2) -> 4 | CR17: =lease_codes('Working Model (Q)'!CR1,'Working Model (Q)'!CR2,$J$2,$K$2,$L$2,$N$2) -> 4 | CS17: =lease_codes('Working Model (Q)'!CS1,'Working Model (Q)'!CS2,$J$2,$K$2,$L$2,$N$2) -> 4 | CT17: =lease_codes('Working Model (Q)'!CT1,'Working Model (Q)'!CT2,$J$2,$K$2,$L$2,$N$2) -> 4 | CU17: =lease_codes('Working Model (Q)'!CU1,'Working Model (Q)'!CU2,$J$2,$K$2,$L$2,$N$2) -> 4 | CV17: =lease_codes('Working Model (Q)'!CV1,'Working Model (Q)'!CV2,$J$2,$K$2,$L$2,$N$2) -> 4 | CW17: =lease_codes('Working Model (Q)'!CW1,'Working Model (Q)'!CW2,$J$2,$K$2,$L$2,$N$2) -> 4 | CX17: =lease_codes('Working Model (Q)'!CX1,'Working Model (Q)'!CX2,$J$2,$K$2,$L$2,$N$2) -> 4 | CY17: =lease_codes('Working Model (Q)'!CY1,'Working Model (Q)'!CY2,$J$2,$K$2,$L$2,$N$2) -> 4 | CZ17: =lease_codes('Working Model (Q)'!CZ1,'Working Model (Q)'!CZ2,$J$2,$K$2,$L$2,$N$2) -> 4 | DA17: =lease_codes('Working Model (Q)'!DA1,'Working Model (Q)'!DA2,$J$2,$K$2,$L$2,$N$2) -> 4 | DB17: =lease_codes('Working Model (Q)'!DB1,'Working Model (Q)'!DB2,$J$2,$K$2,$L$2,$N$2) -> 4 | DC17: =lease_codes('Working Model (Q)'!DC1,'Working Model (Q)'!DC2,$J$2,$K$2,$L$2,$N$2) -> 4 | DD17: =lease_codes('Working Model (Q)'!DD1,'Working Model (Q)'!DD2,$J$2,$K$2,$L$2,$N$2) -> 4 | DE17: =lease_codes('Working Model (Q)'!DE1,'Working Model (Q)'!DE2,$J$2,$K$2,$L$2,$N$2) -> 4 | DF17: =lease_codes('Working Model (Q)'!DF1,'Working Model (Q)'!DF2,$J$2,$K$2,$L$2,$N$2) -> 4 | DG17: =lease_codes('Working Model (Q)'!DG1,'Working Model (Q)'!DG2,$J$2,$K$2,$L$2,$N$2) -> 5 | DH17: =lease_codes('Working Model (Q)'!DH1,'Working Model (Q)'!DH2,$J$2,$K$2,$L$2,$N$2) -> 5 | DI17: =lease_codes('Working Model (Q)'!DI1,'Working Model (Q)'!DI2,$J$2,$K$2,$L$2,$N$2) -> 6 | DJ17: =lease_codes('Working Model (Q)'!DJ1,'Working Model (Q)'!DJ2,$J$2,$K$2,$L$2,$N$2) -> 6 | DK17: =lease_codes('Working Model (Q)'!DK1,'Working Model (Q)'!DK2,$J$2,$K$2,$L$2,$N$2) -> 6 | DL17: =lease_codes('Working Model (Q)'!DL1,'Working Model (Q)'!DL2,$J$2,$K$2,$L$2,$N$2) -> 6 | DM17: =lease_codes('Working Model (Q)'!DM1,'Working Model (Q)'!DM2,$J$2,$K$2,$L$2,$N$2) -> 6 | DN17: =lease_codes('Working Model (Q)'!DN1,'Working Model (Q)'!DN2,$J$2,$K$2,$L$2,$N$2) -> 6 | DO17: =lease_codes('Working Model (Q)'!DO1,'Working Model (Q)'!DO2,$J$2,$K$2,$L$2,$N$2) -> 6 | DP17: =lease_codes('Working Model (Q)'!DP1,'Working Model (Q)'!DP2,$J$2,$K$2,$L$2,$N$2) -> 6 | DQ17: =lease_codes('Working Model (Q)'!DQ1,'Working Model (Q)'!DQ2,$J$2,$K$2,$L$2,$N$2) -> 6 | DR17: =lease_codes('Working Model (Q)'!DR1,'Working Model (Q)'!DR2,$J$2,$K$2,$L$2,$N$2) -> 6 | DS17: =lease_codes('Working Model (Q)'!DS1,'Working Model (Q)'!DS2,$J$2,$K$2,$L$2,$N$2) -> 6 | DT17: =lease_codes('Working Model (Q)'!DT1,'Working Model (Q)'!DT2,$J$2,$K$2,$L$2,$N$2) -> 6 | DU17: =lease_codes('Working Model (Q)'!DU1,'Working Model (Q)'!DU2,$J$2,$K$2,$L$2,$N$2) -> 6 | DV17: =lease_codes('Working Model (Q)'!DV1,'Working Model (Q)'!DV2,$J$2,$K$2,$L$2,$N$2) -> 6 | DW17: =lease_codes('Working Model (Q)'!DW1,'Working Model (Q)'!DW2,$J$2,$K$2,$L$2,$N$2) -> 6 | DX17: =lease_codes('Working Model (Q)'!DX1,'Working Model (Q)'!DX2,$J$2,$K$2,$L$2,$N$2) -> 6 | DY17: =lease_codes('Working Model (Q)'!DY1,'Working Model (Q)'!DY2,$J$2,$K$2,$L$2,$N$2) -> 6 | DZ17: =lease_codes('Working Model (Q)'!DZ1,'Working Model (Q)'!DZ2,$J$2,$K$2,$L$2,$N$2) -> 6 | EA17: =lease_codes('Working Model (Q)'!EA1,'Working Model (Q)'!EA2,$J$2,$K$2,$L$2,$N$2) -> 6 | EB17: =lease_codes('Working Model (Q)'!EB1,'Working Model (Q)'!EB2,$J$2,$K$2,$L$2,$N$2) -> 6 | EC17: =lease_codes('Working Model (Q)'!EC1,'Working Model (Q)'!EC2,$J$2,$K$2,$L$2,$N$2) -> 6 | ED17: =lease_codes('Working Model (Q)'!ED1,'Working Model (Q)'!ED2,$J$2,$K$2,$L$2,$N$2) -> 6 | EE17: =lease_codes('Working Model (Q)'!EE1,'Working Model (Q)'!EE2,$J$2,$K$2,$L$2,$N$2) -> 6 | EF17: =lease_codes('Working Model (Q)'!EF1,'Working Model (Q)'!EF2,$J$2,$K$2,$L$2,$N$2) -> 6 | EG17: =lease_codes('Working Model (Q)'!EG1,'Working Model (Q)'!EG2,$J$2,$K$2,$L$2,$N$2) -> 6 | EH17: =lease_codes('Working Model (Q)'!EH1,'Working Model (Q)'!EH2,$J$2,$K$2,$L$2,$N$2) -> 6 | EI17: =lease_codes('Working Model (Q)'!EI1,'Working Model (Q)'!EI2,$J$2,$K$2,$L$2,$N$2) -> 6 | EJ17: =lease_codes('Working Model (Q)'!EJ1,'Working Model (Q)'!EJ2,$J$2,$K$2,$L$2,$N$2) -> 6 | EK17: =lease_codes('Working Model (Q)'!EK1,'Working Model (Q)'!EK2,$J$2,$K$2,$L$2,$N$2) -> 6 | EL17: =lease_codes('Working Model (Q)'!EL1,'Working Model (Q)'!EL2,$J$2,$K$2,$L$2,$N$2) -> 6 | EM17: =lease_codes('Working Model (Q)'!EM1,'Working Model (Q)'!EM2,$J$2,$K$2,$L$2,$N$2) -> 6 | EN17: =lease_codes('Working Model (Q)'!EN1,'Working Model (Q)'!EN2,$J$2,$K$2,$L$2,$N$2) -> 6 | EO17: =lease_codes('Working Model (Q)'!EO1,'Working Model (Q)'!EO2,$J$2,$K$2,$L$2,$N$2) -> 6 | EP17: =lease_codes('Working Model (Q)'!EP1,'Working Model (Q)'!EP2,$J$2,$K$2,$L$2,$N$2) -> 6 | EQ17: =lease_codes('Working Model (Q)'!EQ1,'Working Model (Q)'!EQ2,$J$2,$K$2,$L$2,$N$2) -> 6 | ER17: =lease_codes('Working Model (Q)'!ER1,'Working Model (Q)'!ER2,$J$2,$K$2,$L$2,$N$2) -> 6 | ES17: =lease_codes('Working Model (Q)'!ES1,'Working Model (Q)'!ES2,$J$2,$K$2,$L$2,$N$2) -> 6 | ET17: =lease_codes('Working Model (Q)'!ET1,'Working Model (Q)'!ET2,$J$2,$K$2,$L$2,$N$2) -> 6 | EU17: =lease_codes('Working Model (Q)'!EU1,'Working Model (Q)'!EU2,$J$2,$K$2,$L$2,$N$2) -> 6 | EV17: =lease_codes('Working Model (Q)'!EV1,'Working Model (Q)'!EV2,$J$2,$K$2,$L$2,$N$2) -> 6 | EW17: =lease_codes('Working Model (Q)'!EW1,'Working Model (Q)'!EW2,$J$2,$K$2,$L$2,$N$2) -> 6 | EX17: =lease_codes('Working Model (Q)'!EX1,'Working Model (Q)'!EX2,$J$2,$K$2,$L$2,$N$2) -> 6 | EY17: =lease_codes('Working Model (Q)'!EY1,'Working Model (Q)'!EY2,$J$2,$K$2,$L$2,$N$2) -> 6 | EZ17: =lease_codes('Working Model (Q)'!EZ1,'Working Model (Q)'!EZ2,$J$2,$K$2,$L$2,$N$2) -> 6 | FA17: =lease_codes('Working Model (Q)'!FA1,'Working Model (Q)'!FA2,$J$2,$K$2,$L$2,$N$2) -> 6
C21: Volatility
D22: Adjusted Spot Rent
C23: Anchor Tenant | E23: NLA | F23: ='Lease Roll'!F2 -> 35360
C24: Lease 1 | E24: NLA | F24: ='Lease Roll'!F3 -> 8840
C25: Lease 2 | E25: NLA | F25: ='Lease Roll'!F4 -> 8840
C26: Lease 3 | E26: NLA | F26: ='Lease Roll'!F5 -> 8840
C27: Lease 4 | E27: NLA | F27: ='Lease Roll'!F6 -> 4420
C28: Lease 5 | E28: NLA | F28: ='Lease Roll'!F7 -> 22100

Sheet Mixed Use
A1: Start Date | K1: =J2+1 -> 2013-01-01 | L1: =K2+1 -> 2013-02-01 | M1: 2013-03-01 | N1: 2013-04-01 | O1: 2013-05-01 | P1: 2013-06-01 | Q1: 2013-07-01 | R1: 2013-08-01 | S1: 2013-09-01 | T1: 2013-10-01 | U1: 2013-11-01 | V1: 2013-12-01 | W1: 2014-01-01 | X1: 2014-02-01 | Y1: 2014-03-01 | Z1: 2014-04-01 | AA1: 2014-05-01 | AB1: 2014-06-01 | AC1: 2014-07-01 | AD1: 2014-08-01 | AE1: 2014-09-01 | AF1: 2014-10-01 | AG1: 2014-11-01 | AH1: 2014-12-01 | AI1: 2015-01-01 | AJ1: 2015-02-01 | AK1: 2015-03-01 | AL1: 2015-04-01 | AM1: 2015-05-01 | AN1: 2015-06-01 | AO1: 2015-07-01 | AP1: 2015-08-01 | AQ1: 2015-09-01 | AR1: 2015-10-01 | AS1: 2015-11-01 | AT1: 2015-12-01 | AU1: 2016-01-01 | AV1: 2016-02-01 | AW1: 2016-03-01 | AX1: 2016-04-01 | AY1: 2016-05-01 | AZ1: 2016-06-01 | BA1: 2016-07-01 | BB1: 2016-08-01 | BC1: 2016-09-01 | BD1: 2016-10-01 | BE1: 2016-11-01 | BF1: 2016-12-01 | BG1: 2017-01-01 | BH1: 2017-02-01 | BI1: 2017-03-01 | BJ1: 2017-04-01 | BK1: 2017-05-01 | BL1: 2017-06-01 | BM1: 2017-07-01 | BN1: 2017-08-01 | BO1: 2017-09-01 | BP1: 2017-10-01 | BQ1: 2017-11-01 | BR1: 2017-12-01 | BS1: 2018-01-01 | BT1: 2018-02-01 | BU1: 2018-03-01 | BV1: 2018-04-01 | BW1: 2018-05-01 | BX1: =BW2+1 -> 2018-06-01 | BY1: 2018-07-01 | BZ1: 2018-08-01 | CA1: 2018-09-01 | CB1: 2018-10-01 | CC1: 2018-11-01 | CD1: 2018-12-01 | CE1: 2019-01-01 | CF1: 2019-02-01 | CG1: 2019-03-01 | CH1: 2019-04-01 | CI1: 2019-05-01 | CJ1: 2019-06-01 | CK1: 2019-07-01 | CL1: 2019-08-01 | CM1: 2019-09-01 | CN1: 2019-10-01 | CO1: 2019-11-01 | CP1: 2019-12-01 | CQ1: 2020-01-01 | CR1: 2020-02-01 | CS1: 2020-03-01 | CT1: 2020-04-01 | CU1: 2020-05-01 | CV1: 2020-06-01 | CW1: 2020-07-01 | CX1: 2020-08-01 | CY1: 2020-09-01 | CZ1: 2020-10-01 | DA1: 2020-11-01 | DB1: 2020-12-01 | DC1: 2021-01-01 | DD1: 2021-02-01 | DE1: 2021-03-01 | DF1: 2021-04-01 | DG1: 2021-05-01 | DH1: 2021-06-01 | DI1: 2021-07-01 | DJ1: 2021-08-01 | DK1: 2021-09-01 | DL1: 2021-10-01 | DM1: 2021-11-01 | DN1: 2021-12-01 | DO1: 2022-01-01 | DP1: 2022-02-01 | DQ1: 2022-03-01 | DR1: 2022-04-01 | DS1: 2022-05-01 | DT1: 2022-06-01 | DU1: 2022-07-01 | DV1: 2022-08-01 | DW1: 2022-09-01 | DX1: 2022-10-01 | DY1: 2022-11-01 | DZ1: 2022-12-01 | EA1: 2023-01-01 | EB1: 2023-02-01 | EC1: 2023-03-01 | ED1: 2023-04-01 | EE1: 2023-05-01 | EF1: 2023-06-01 | EG1: 2023-07-01 | EH1: 2023-08-01 | EI1: 2023-09-01 | EJ1: =EI2+1 -> 2023-10-01 | EK1: 2023-11-01 | EL1: 2023-12-01 | EM1: 2024-01-01 | EN1: 2024-02-01 | EO1: 2024-03-01 | EP1: 2024-04-01 | EQ1: 2024-05-01 | ER1: 2024-06-01 | ES1: 2024-07-01 | ET1: 2024-08-01 | EU1: 2024-09-01 | EV1: 2024-10-01 | EW1: 2024-11-01 | EX1: 2024-12-01 | EY1: 2025-01-01 | EZ1: 2025-02-01 | FA1: 2025-03-01 | FB1: 2025-04-01 | FC1: 2025-05-01 | FD1: 2025-06-01 | FE1: 2025-07-01 | FF1: 2025-08-01 | FG1: 2025-09-01 | FH1: 2025-10-01 | FI1: 2025-11-01 | FJ1: 2025-12-01 | FK1: 2026-01-01 | FL1: 2026-02-01 | FM1: 2026-03-01 | FN1: 2026-04-01 | FO1: 2026-05-01 | FP1: 2026-06-01 | FQ1: 2026-07-01 | FR1: 2026-08-01 | FS1: 2026-09-01 | FT1: 2026-10-01 | FU1: 2026-11-01 | FV1: 2026-12-01 | FW1: =FV2+1 -> 2027-01-01 | FX1: =FW2+1 -> 2027-02-01 | FY1: =FX2+1 -> 2027-03-01 | FZ1: =FY2+1 -> 2027-04-01 | GA1: =FZ2+1 -> 2027-05-01 | GB1: =GA2+1 -> 2027-06-01 | GC1: =GB2+1 -> 2027-07-01 | GD1: =GC2+1 -> 2027-08-01 | GE1: =GD2+1 -> 2027-09-01 | GF1: =GE2+1 -> 2027-10-01 | GG1: =GF2+1 -> 2027-11-01 | GH1: =GG2+1 -> 2027-12-01 | GI1: =GH2+1 -> 2028-01-01 | GJ1: =GI2+1 -> 2028-02-01 | GK1: =GJ2+1 -> 2028-03-01 | GL1: =GK2+1 -> 2028-04-01 | GM1: =GL2+1 -> 2028-05-01 | GN1: =GM2+1 -> 2028-06-01 | GO1: =GN2+1 -> 2028-07-01 | GP1: =GO2+1 -> 2028-08-01 | GQ1: =GP2+1 -> 2028-09-01 | GR1: =GQ2+1 -> 2028-10-01 | GS1: =GR2+1 -> 2028-11-01 | GT1: =GS2+1 -> 2028-12-01 | GU1: =GT2+1 -> 2029-01-01 | GV1: =GU2+1 -> 2029-02-01 | GW1: =GV2+1 -> 2029-03-01 | GX1: =GW2+1 -> 2029-04-01 | GY1: =GX2+1 -> 2029-05-01 | GZ1: =GY2+1 -> 2029-06-01 | HA1: =GZ2+1 -> 2029-07-01 | HB1: =HA2+1 -> 2029-08-01 | HC1: =HB2+1 -> 2029-09-01 | HD1: =HC2+1 -> 2029-10-01 | HE1: =HD2+1 -> 2029-11-01 | HF1: =HE2+1 -> 2029-12-01 | HG1: =HF2+1 -> 2030-01-01 | HH1: =HG2+1 -> 2030-02-01 | HI1: =HH2+1 -> 2030-03-01 | HJ1: =HI2+1 -> 2030-04-01 | HK1: =HJ2+1 -> 2030-05-01 | HL1: =HK2+1 -> 2030-06-01 | HM1: =HL2+1 -> 2030-07-01 | HN1: =HM2+1 -> 2030-08-01 | HO1: =HN2+1 -> 2030-09-01 | HP1: =HO2+1 -> 2030-10-01 | HQ1: =HP2+1 -> 2030-11-01 | HR1: =HQ2+1 -> 2030-12-01 | HS1: =HR2+1 -> 2031-01-01 | HT1: =HS2+1 -> 2031-02-01 | HU1: =HT2+1 -> 2031-03-01 | HV1: =HU2+1 -> 2031-04-01 | HW1: =HV2+1 -> 2031-05-01 | HX1: =HW2+1 -> 2031-06-01 | HY1: =HX2+1 -> 2031-07-01 | HZ1: =HY2+1 -> 2031-08-01 | IA1: =HZ2+1 -> 2031-09-01 | IB1: =IA2+1 -> 2031-10-01 | IC1: =IB2+1 -> 2031-11-01 | ID1: =IC2+1 -> 2031-12-01 | IE1: =ID2+1 -> 2032-01-01 | IF1: =IE2+1 -> 2032-02-01 | IG1: =IF2+1 -> 2032-03-01 | IH1: =IG2+1 -> 2032-04-01 | II1: =IH2+1 -> 2032-05-01 | IJ1: =II2+1 -> 2032-06-01 | IK1: =IJ2+1 -> 2032-07-01 | IL1: =IK2+1 -> 2032-08-01 | IM1: =IL2+1 -> 2032-09-01 | IN1: =IM2+1 -> 2032-10-01 | IO1: =IN2+1 -> 2032-11-01 | IP1: =IO2+1 -> 2032-12-01 | IQ1: =IP2+1 -> 2033-01-01 | IR1: =IQ2+1 -> 2033-02-01 | IS1: =IR2+1 -> 2033-03-01 | IT1: =IS2+1 -> 2033-04-01 | IU1: =IT2+1 -> 2033-05-01 | IV1: =IU2+1 -> 2033-06-01 | IW1: =IV2+1 -> 2033-07-01 | IX1: =IW2+1 -> 2033-08-01 | IY1: =IX2+1 -> 2033-09-01 | IZ1: =IY2+1 -> 2033-10-01 | JA1: =IZ2+1 -> 2033-11-01 | JB1: =JA2+1 -> 2033-12-01 | JC1: =JB2+1 -> 2034-01-01 | JD1: =JC2+1 -> 2034-02-01 | JE1: =JD2+1 -> 2034-03-01 | JF1: =JE2+1 -> 2034-04-01 | JG1: =JF2+1 -> 2034-05-01 | JH1: =JG2+1 -> 2034-06-01 | JI1: =JH2+1 -> 2034-07-01 | JJ1: =JI2+1 -> 2034-08-01 | JK1: =JJ2+1 -> 2034-09-01 | JL1: =JK2+1 -> 2034-10-01 | JM1: =JL2+1 -> 2034-11-01 | JN1: =JM2+1 -> 2034-12-01 | JO1: =JN2+1 -> 2035-01-01 | JP1: =JO2+1 -> 2035-02-01 | JQ1: =JP2+1 -> 2035-03-01 | JR1: =JQ2+1 -> 2035-04-01 | JS1: =JR2+1 -> 2035-05-01 | JT1: =JS2+1 -> 2035-06-01 | JU1: =JT2+1 -> 2035-07-01 | JV1: =JU2+1 -> 2035-08-01 | JW1: =JV2+1 -> 2035-09-01 | JX1: =JW2+1 -> 2035-10-01 | JY1: =JX2+1 -> 2035-11-01 | JZ1: =JY2+1 -> 2035-12-01 | KA1: =JZ2+1 -> 2036-01-01 | KB1: =KA2+1 -> 2036-02-01 | KC1: =KB2+1 -> 2036-03-01 | KD1: =KC2+1 -> 2036-04-01 | KE1: =KD2+1 -> 2036-05-01 | KF1: =KE2+1 -> 2036-06-01 | KG1: =KF2+1 -> 2036-07-01 | KH1: =KG2+1 -> 2036-08-01 | KI1: =KH2+1 -> 2036-09-01 | KJ1: =KI2+1 -> 2036-10-01 | KK1: =KJ2+1 -> 2036-11-01 | KL1: =KK2+1 -> 2036-12-01 | KM1: =KL2+1 -> 2037-01-01 | KN1: =KM2+1 -> 2037-02-01 | KO1: =KN2+1 -> 2037-03-01 | KP1: =KO2+1 -> 2037-04-01 | KQ1: =KP2+1 -> 2037-05-01 | KR1: =KQ2+1 -> 2037-06-01 | KS1: =KR2+1 -> 2037-07-01 | KT1: =KS2+1 -> 2037-08-01 | KU1: =KT2+1 -> 2037-09-01 | KV1: =KU2+1 -> 2037-10-01 | KW1: =KV2+1 -> 2037-11-01 | KX1: =KW2+1 -> 2037-12-01 | KY1: =KX2+1 -> 2038-01-01 | KZ1: =KY2+1 -> 2038-02-01
A2: End Date | J2: =E7-1 -> 2012-12-31 | K2: =EDATE(K1,1)-1 -> 2013-01-31 | L2: =EDATE(L1,1)-1 -> 2013-02-28 | M2: 2013-03-31 | N2: 2013-04-30 | O2: 2013-05-31 | P2: 2013-06-30 | Q2: 2013-07-31 | R2: 2013-08-31 | S2: 2013-09-30 | T2: 2013-10-31 | U2: 2013-11-30 | V2: 2013-12-31 | W2: 2014-01-31 | X2: 2014-02-28 | Y2: 2014-03-31 | Z2: 2014-04-30 | AA2: 2014-05-31 | AB2: 2014-06-30 | AC2: 2014-07-31 | AD2: 2014-08-31 | AE2: 2014-09-30 | AF2: 2014-10-31 | AG2: 2014-11-30 | AH2: 2014-12-31 | AI2: 2015-01-31 | AJ2: 2015-02-28 | AK2: 2015-03-31 | AL2: 2015-04-30 | AM2: 2015-05-31 | AN2: 2015-06-30 | AO2: 2015-07-31 | AP2: 2015-08-31 | AQ2: 2015-09-30 | AR2: 2015-10-31 | AS2: 2015-11-30 | AT2: 2015-12-31 | AU2: 2016-01-31 | AV2: 2016-02-29 | AW2: 2016-03-31 | AX2: 2016-04-30 | AY2: 2016-05-31 | AZ2: 2016-06-30 | BA2: 2016-07-31 | BB2: 2016-08-31 | BC2: 2016-09-30 | BD2: 2016-10-31 | BE2: 2016-11-30 | BF2: 2016-12-31 | BG2: 2017-01-31 | BH2: 2017-02-28 | BI2: 2017-03-31 | BJ2: 2017-04-30 | BK2: 2017-05-31 | BL2: 2017-06-30 | BM2: 2017-07-31 | BN2: 2017-08-31 | BO2: 2017-09-30 | BP2: 2017-10-31 | BQ2: 2017-11-30 | BR2: 2017-12-31 | BS2: 2018-01-31 | BT2: 2018-02-28 | BU2: 2018-03-31 | BV2: 2018-04-30 | BW2: 2018-05-31 | BX2: =EDATE(BX1,1)-1 -> 2018-06-30 | BY2: 2018-07-31 | BZ2: 2018-08-31 | CA2: 2018-09-30 | CB2: 2018-10-31 | CC2: 2018-11-30 | CD2: 2018-12-31 | CE2: 2019-01-31 | CF2: 2019-02-28 | CG2: 2019-03-31 | CH2: 2019-04-30 | CI2: 2019-05-31 | CJ2: 2019-06-30 | CK2: 2019-07-31 | CL2: 2019-08-31 | CM2: 2019-09-30 | CN2: 2019-10-31 | CO2: 2019-11-30 | CP2: 2019-12-31 | CQ2: 2020-01-31 | CR2: 2020-02-29 | CS2: 2020-03-31 | CT2: 2020-04-30 | CU2: 2020-05-31 | CV2: 2020-06-30 | CW2: 2020-07-31 | CX2: 2020-08-31 | CY2: 2020-09-30 | CZ2: 2020-10-31 | DA2: 2020-11-30 | DB2: 2020-12-31 | DC2: 2021-01-31 | DD2: 2021-02-28 | DE2: 2021-03-31 | DF2: 2021-04-30 | DG2: 2021-05-31 | DH2: 2021-06-30 | DI2: 2021-07-31 | DJ2: 2021-08-31 | DK2: 2021-09-30 | DL2: 2021-10-31 | DM2: 2021-11-30 | DN2: 2021-12-31 | DO2: 2022-01-31 | DP2: 2022-02-28 | DQ2: 2022-03-31 | DR2: 2022-04-30 | DS2: 2022-05-31 | DT2: 2022-06-30 | DU2: 2022-07-31 | DV2: 2022-08-31 | DW2: 2022-09-30 | DX2: 2022-10-31 | DY2: 2022-11-30 | DZ2: 2022-12-31 | EA2: 2023-01-31 | EB2: 2023-02-28 | EC2: 2023-03-31 | ED2: 2023-04-30 | EE2: 2023-05-31 | EF2: 2023-06-30 | EG2: 2023-07-31 | EH2: 2023-08-31 | EI2: 2023-09-30 | EJ2: =EDATE(EJ1,1)-1 -> 2023-10-31 | EK2: 2023-11-30 | EL2: 2023-12-31 | EM2: 2024-01-31 | EN2: 2024-02-29 | EO2: 2024-03-31 | EP2: 2024-04-30 | EQ2: 2024-05-31 | ER2: 2024-06-30 | ES2: 2024-07-31 | ET2: 2024-08-31 | EU2: 2024-09-30 | EV2: 2024-10-31 | EW2: 2024-11-30 | EX2: 2024-12-31 | EY2: 2025-01-31 | EZ2: 2025-02-28 | FA2: 2025-03-31 | FB2: 2025-04-30 | FC2: 2025-05-31 | FD2: 2025-06-30 | FE2: 2025-07-31 | FF2: 2025-08-31 | FG2: 2025-09-30 | FH2: 2025-10-31 | FI2: 2025-11-30 | FJ2: 2025-12-31 | FK2: 2026-01-31 | FL2: 2026-02-28 | FM2: 2026-03-31 | FN2: 2026-04-30 | FO2: 2026-05-31 | FP2: 2026-06-30 | FQ2: 2026-07-31 | FR2: 2026-08-31 | FS2: 2026-09-30 | FT2: 2026-10-31 | FU2: 2026-11-30 | FV2: 2026-12-31 | FW2: =EDATE(FW1,1)-1 -> 2027-01-31 | FX2: 2027-02-28 | FY2: 2027-03-31 | FZ2: 2027-04-30 | GA2: 2027-05-31 | GB2: 2027-06-30 | GC2: 2027-07-31 | GD2: 2027-08-31 | GE2: 2027-09-30 | GF2: 2027-10-31 | GG2: 2027-11-30 | GH2: 2027-12-31 | GI2: 2028-01-31 | GJ2: 2028-02-29 | GK2: 2028-03-31 | GL2: 2028-04-30 | GM2: 2028-05-31 | GN2: 2028-06-30 | GO2: 2028-07-31 | GP2: 2028-08-31 | GQ2: 2028-09-30 | GR2: 2028-10-31 | GS2: 2028-11-30 | GT2: 2028-12-31 | GU2: 2029-01-31 | GV2: 2029-02-28 | GW2: 2029-03-31 | GX2: 2029-04-30 | GY2: 2029-05-31 | GZ2: 2029-06-30 | HA2: 2029-07-31 | HB2: 2029-08-31 | HC2: 2029-09-30 | HD2: 2029-10-31 | HE2: 2029-11-30 | HF2: 2029-12-31 | HG2: 2030-01-31 | HH2: 2030-02-28 | HI2: 2030-03-31 | HJ2: 2030-04-30 | HK2: 2030-05-31 | HL2: 2030-06-30 | HM2: 2030-07-31 | HN2: 2030-08-31 | HO2: 2030-09-30 | HP2: 2030-10-31 | HQ2: 2030-11-30 | HR2: 2030-12-31 | HS2: 2031-01-31 | HT2: 2031-02-28 | HU2: 2031-03-31 | HV2: 2031-04-30 | HW2: 2031-05-31 | HX2: 2031-06-30 | HY2: 2031-07-31 | HZ2: 2031-08-31 | IA2: 2031-09-30 | IB2: 2031-10-31 | IC2: 2031-11-30 | ID2: 2031-12-31 | IE2: 2032-01-31 | IF2: 2032-02-29 | IG2: 2032-03-31 | IH2: 2032-04-30 | II2: =EDATE(II1,1)-1 -> 2032-05-31 | IJ2: 2032-06-30 | IK2: 2032-07-31 | IL2: 2032-08-31 | IM2: 2032-09-30 | IN2: 2032-10-31 | IO2: 2032-11-30 | IP2: 2032-12-31 | IQ2: 2033-01-31 | IR2: 2033-02-28 | IS2: 2033-03-31 | IT2: 2033-04-30 | IU2: 2033-05-31 | IV2: 2033-06-30 | IW2: 2033-07-31 | IX2: 2033-08-31 | IY2: 2033-09-30 | IZ2: 2033-10-31 | JA2: 2033-11-30 | JB2: 2033-12-31 | JC2: 2034-01-31 | JD2: 2034-02-28 | JE2: 2034-03-31 | JF2: 2034-04-30 | JG2: 2034-05-31 | JH2: 2034-06-30 | JI2: 2034-07-31 | JJ2: 2034-08-31 | JK2: 2034-09-30 | JL2: 2034-10-31 | JM2: 2034-11-30 | JN2: 2034-12-31 | JO2: 2035-01-31 | JP2: 2035-02-28 | JQ2: 2035-03-31 | JR2: 2035-04-30 | JS2: 2035-05-31 | JT2: 2035-06-30 | JU2: 2035-07-31 | JV2: 2035-08-31 | JW2: 2035-09-30 | JX2: 2035-10-31 | JY2: 2035-11-30 | JZ2: 2035-12-31 | KA2: 2036-01-31 | KB2: =EDATE(KB1,1)-1 -> 2036-02-29 | KC2: 2036-03-31 | KD2: 2036-04-30 | KE2: 2036-05-31 | KF2: 2036-06-30 | KG2: 2036-07-31 | KH2: 2036-08-31 | KI2: 2036-09-30 | KJ2: 2036-10-31 | KK2: 2036-11-30 | KL2: 2036-12-31 | KM2: 2037-01-31 | KN2: 2037-02-28 | KO2: 2037-03-31 | KP2: 2037-04-30 | KQ2: 2037-05-31 | KR2: 2037-06-30 | KS2: 2037-07-31 | KT2: 2037-08-31 | KU2: 2037-09-30 | KV2: 2037-10-31 | KW2: 2037-11-30 | KX2: 2037-12-31 | KY2: 2038-01-31 | KZ2: 2038-02-28
A3: Days | K3: =K2-K1+1 -> 31 | L3: =L2-L1+1 -> 28 | M3: 31 | N3: 30 | O3: 31 | P3: 30 | Q3: 31 | R3: 31 | S3: 30 | T3: 31 | U3: 30 | V3: 31 | W3: 31 | X3: 28 | Y3: 31 | Z3: 30 | AA3: 31 | AB3: 30 | AC3: 31 | AD3: 31 | AE3: 30 | AF3: 31 | AG3: 30 | AH3: 31 | AI3: 31 | AJ3: 28 | AK3: 31 | AL3: 30 | AM3: 31 | AN3: 30 | AO3: 31 | AP3: 31 | AQ3: 30 | AR3: 31 | AS3: 30 | AT3: 31 | AU3: 31 | AV3: 29 | AW3: 31 | AX3: 30 | AY3: 31 | AZ3: 30 | BA3: 31 | BB3: 31 | BC3: 30 | BD3: 31 | BE3: 30 | BF3: 31 | BG3: 31 | BH3: 28 | BI3: 31 | BJ3: 30 | BK3: 31 | BL3: 30 | BM3: 31 | BN3: 31 | BO3: 30 | BP3: 31 | BQ3: 30 | BR3: 31 | BS3: 31 | BT3: 28 | BU3: 31 | BV3: 30 | BW3: 31 | BX3: =BX2-BX1+1 -> 30 | BY3: 31 | BZ3: 31 | CA3: 30 | CB3: 31 | CC3: 30 | CD3: 31 | CE3: 31 | CF3: 28 | CG3: 31 | CH3: 30 | CI3: 31 | CJ3: 30 | CK3: 31 | CL3: 31 | CM3: 30 | CN3: 31 | CO3: 30 | CP3: 31 | CQ3: 31 | CR3: 29 | CS3: 31 | CT3: 30 | CU3: 31 | CV3: 30 | CW3: 31 | CX3: 31 | CY3: 30 | CZ3: 31 | DA3: 30 | DB3: 31 | DC3: 31 | DD3: 28 | DE3: 31 | DF3: 30 | DG3: 31 | DH3: 30 | DI3: 31 | DJ3: 31 | DK3: 30 | DL3: 31 | DM3: 30 | DN3: 31 | DO3: 31 | DP3: 28 | DQ3: 31 | DR3: 30 | DS3: 31 | DT3: 30 | DU3: 31 | DV3: 31 | DW3: 30 | DX3: 31 | DY3: 30 | DZ3: 31 | EA3: 31 | EB3: 28 | EC3: 31 | ED3: 30 | EE3: 31 | EF3: 30 | EG3: 31 | EH3: 31 | EI3: 30 | EJ3: =EJ2-EJ1+1 -> 31 | EK3: 30 | EL3: 31 | EM3: 31 | EN3: 29 | EO3: 31 | EP3: 30 | EQ3: 31 | ER3: 30 | ES3: 31 | ET3: 31 | EU3: 30 | EV3: 31 | EW3: 30 | EX3: 31 | EY3: 31 | EZ3: 28 | FA3: 31 | FB3: 30 | FC3: 31 | FD3: 30 | FE3: 31 | FF3: 31 | FG3: 30 | FH3: 31 | FI3: 30 | FJ3: 31 | FK3: 31 | FL3: 28 | FM3: 31 | FN3: 30 | FO3: 31 | FP3: 30 | FQ3: 31 | FR3: 31 | FS3: 30 | FT3: 31 | FU3: 30 | FV3: 31 | FW3: =FW2-FW1+1 -> 31 | FX3: =FX2-FX1+1 -> 28 | FY3: =FY2-FY1+1 -> 31 | FZ3: =FZ2-FZ1+1 -> 30 | GA3: =GA2-GA1+1 -> 31 | GB3: =GB2-GB1+1 -> 30 | GC3: =GC2-GC1+1 -> 31 | GD3: =GD2-GD1+1 -> 31 | GE3: =GE2-GE1+1 -> 30 | GF3: =GF2-GF1+1 -> 31 | GG3: =GG2-GG1+1 -> 30 | GH3: =GH2-GH1+1 -> 31 | GI3: =GI2-GI1+1 -> 31 | GJ3: =GJ2-GJ1+1 -> 29 | GK3: =GK2-GK1+1 -> 31 | GL3: =GL2-GL1+1 -> 30 | GM3: =GM2-GM1+1 -> 31 | GN3: =GN2-GN1+1 -> 30 | GO3: =GO2-GO1+1 -> 31 | GP3: =GP2-GP1+1 -> 31 | GQ3: =GQ2-GQ1+1 -> 30 | GR3: =GR2-GR1+1 -> 31 | GS3: =GS2-GS1+1 -> 30 | GT3: =GT2-GT1+1 -> 31 | GU3: =GU2-GU1+1 -> 31 | GV3: =GV2-GV1+1 -> 28 | GW3: =GW2-GW1+1 -> 31 | GX3: =GX2-GX1+1 -> 30 | GY3: =GY2-GY1+1 -> 31 | GZ3: =GZ2-GZ1+1 -> 30 | HA3: =HA2-HA1+1 -> 31 | HB3: =HB2-HB1+1 -> 31 | HC3: =HC2-HC1+1 -> 30 | HD3: =HD2-HD1+1 -> 31 | HE3: =HE2-HE1+1 -> 30 | HF3: =HF2-HF1+1 -> 31 | HG3: =HG2-HG1+1 -> 31 | HH3: =HH2-HH1+1 -> 28 | HI3: =HI2-HI1+1 -> 31 | HJ3: =HJ2-HJ1+1 -> 30 | HK3: =HK2-HK1+1 -> 31 | HL3: =HL2-HL1+1 -> 30 | HM3: =HM2-HM1+1 -> 31 | HN3: =HN2-HN1+1 -> 31 | HO3: =HO2-HO1+1 -> 30 | HP3: =HP2-HP1+1 -> 31 | HQ3: =HQ2-HQ1+1 -> 30 | HR3: =HR2-HR1+1 -> 31 | HS3: =HS2-HS1+1 -> 31 | HT3: =HT2-HT1+1 -> 28 | HU3: =HU2-HU1+1 -> 31 | HV3: =HV2-HV1+1 -> 30 | HW3: =HW2-HW1+1 -> 31 | HX3: =HX2-HX1+1 -> 30 | HY3: =HY2-HY1+1 -> 31 | HZ3: =HZ2-HZ1+1 -> 31 | IA3: =IA2-IA1+1 -> 30 | IB3: =IB2-IB1+1 -> 31 | IC3: =IC2-IC1+1 -> 30 | ID3: =ID2-ID1+1 -> 31 | IE3: =IE2-IE1+1 -> 31 | IF3: =IF2-IF1+1 -> 29 | IG3: =IG2-IG1+1 -> 31 | IH3: =IH2-IH1+1 -> 30 | II3: =II2-II1+1 -> 31 | IJ3: =IJ2-IJ1+1 -> 30 | IK3: =IK2-IK1+1 -> 31 | IL3: =IL2-IL1+1 -> 31 | IM3: =IM2-IM1+1 -> 30 | IN3: =IN2-IN1+1 -> 31 | IO3: =IO2-IO1+1 -> 30 | IP3: =IP2-IP1+1 -> 31 | IQ3: =IQ2-IQ1+1 -> 31 | IR3: =IR2-IR1+1 -> 28 | IS3: =IS2-IS1+1 -> 31 | IT3: =IT2-IT1+1 -> 30 | IU3: =IU2-IU1+1 -> 31 | IV3: =IV2-IV1+1 -> 30 | IW3: =IW2-IW1+1 -> 31 | IX3: =IX2-IX1+1 -> 31 | IY3: =IY2-IY1+1 -> 30 | IZ3: =IZ2-IZ1+1 -> 31 | JA3: =JA2-JA1+1 -> 30 | JB3: =JB2-JB1+1 -> 31 | JC3: =JC2-JC1+1 -> 31 | JD3: =JD2-JD1+1 -> 28 | JE3: =JE2-JE1+1 -> 31 | JF3: =JF2-JF1+1 -> 30 | JG3: =JG2-JG1+1 -> 31 | JH3: =JH2-JH1+1 -> 30 | JI3: =JI2-JI1+1 -> 31 | JJ3: =JJ2-JJ1+1 -> 31 | JK3: =JK2-JK1+1 -> 30 | JL3: =JL2-JL1+1 -> 31 | JM3: =JM2-JM1+1 -> 30 | JN3: =JN2-JN1+1 -> 31 | JO3: =JO2-JO1+1 -> 31 | JP3: =JP2-JP1+1 -> 28 | JQ3: =JQ2-JQ1+1 -> 31 | JR3: =JR2-JR1+1 -> 30 | JS3: =JS2-JS1+1 -> 31 | JT3: =JT2-JT1+1 -> 30 | JU3: =JU2-JU1+1 -> 31 | JV3: =JV2-JV1+1 -> 31 | JW3: =JW2-JW1+1 -> 30 | JX3: =JX2-JX1+1 -> 31 | JY3: =JY2-JY1+1 -> 30 | JZ3: =JZ2-JZ1+1 -> 31 | KA3: =KA2-KA1+1 -> 31 | KB3: =KB2-KB1+1 -> 29 | KC3: =KC2-KC1+1 -> 31 | KD3: =KD2-KD1+1 -> 30 | KE3: =KE2-KE1+1 -> 31 | KF3: =KF2-KF1+1 -> 30 | KG3: =KG2-KG1+1 -> 31 | KH3: =KH2-KH1+1 -> 31 | KI3: =KI2-KI1+1 -> 30 | KJ3: =KJ2-KJ1+1 -> 31 | KK3: =KK2-KK1+1 -> 30 | KL3: =KL2-KL1+1 -> 31 | KM3: =KM2-KM1+1 -> 31 | KN3: =KN2-KN1+1 -> 28 | KO3: =KO2-KO1+1 -> 31 | KP3: =KP2-KP1+1 -> 30 | KQ3: =KQ2-KQ1+1 -> 31 | KR3: =KR2-KR1+1 -> 30 | KS3: =KS2-KS1+1 -> 31 | KT3: =KT2-KT1+1 -> 31 | KU3: =KU2-KU1+1 -> 30 | KV3: =KV2-KV1+1 -> 31 | KW3: =KW2-KW1+1 -> 30 | KX3: =KX2-KX1+1 -> 31 | KY3: =KY2-KY1+1 -> 31 | KZ3: =KZ2-KZ1+1 -> 28
A4: Year
B6: Dates
D7: Start Date | E7: 2013-01-01
D8: Periods per Year
D9: Months per Period
D10: Days per 360 Period
D12: Holding Period (Commercial) | E12: 5
D14: Rental Growth Rate Code | E14: 1 | F14: =INDEX(D45:D49,E14) -> Base Rental Rate
D15: Inflation Rate Code | E15: 1 | F15: =INDEX(D53:D55,E15) -> Base Inflation
D16: Cap Rate | E16: 0.04
D17: Growth for Cap Rate Calculaion | E17: 0.02
D18: Final Month for Residential Sales | E18: 21
D19: Discount Rate | E19: 0.07
D20: Tax Rate | E20: 0.17
D21: Capital Allowance Years | E21: 5
F23: 1 | G23: 2 | H23: 3 | I23: 4 | J23: 5 | K23: 6 | L23: 7 | M23: 8 | N23: 9 | O23: 10 | P23: 11 | Q23: 12 | R23: 13 | S23: 14 | T23: 15 | U23: 16 | V23: 17 | W23: 18 | X23: 19 | Y23: 20 | Z23: 21 | AA23: 22 | AB23: 23
A24: Operating Assumptions | F24: Timing Assumptions | I24: General Assumptions | L24: Construction Cost Assumptions | Q24: Residential Revenue Assumptions | X24: Commercial Revenues, Costs and Terminal Value
E25: Project IRR | F25: Code Number | G25: Construction Start | H25: Construction Months | I25: TOP Date | J25: Gross Area Sq Foot | K25: NLA per Unit (Sq Foot | L25: Number of Units (Residential) | M25: Construction Cost $S/Gross Area | N25: Cost Sensitivity Percentage | O25: S-Curve Code | P25: S-Curve Name | Q25: Rental/Sales Sensitivity | R25: Selling Price / NSA | S25: Margin on Sales | T25: Progress Payments Code | U25: Progress Payment Name | V25: Sales Rate Scenario | W25: Sale Rate Name | X25: Rental Rate S$/NFA per Month | Y25: Service Charge S$/NFA/Mnth | Z25: Occupancy Code Number | AA25: Operating Costs | AB25: Length of Lease for Comml (Yrs)
D26: Land | F26: 1 | G26: 2013-01-05 | H26: 1 | I26: =EDATE(G26,H26) -> 2013-02-05 | J26: 1 | L26: 1 | M26: 500000 | N26: 1 | O26: 1 | P26: =INDEX($K$214:$T$214,O26) -> Land | Q26: 1 | S26: =IF(R26,R26/M26-1) -> FALSE | U26: =IF(T26,INDEX($V$220:$X$220,T26),"") ->  | W26: =IF(V26,INDEX($Y$220:$AA$220,V26),"") -> 
D27: Infrastructure | F27: 2 | G27: 2013-10-12 | H27: 12.5 | I27: 2014-10-17 | J27: 1 | L27: 1 | M27: 100000 | N27: 1 | O27: 1 | P27: Land | Q27: 1 | S27: FALSE
D28: Residential 1 | E28: =G295 -> 0 | F28: 3 | G28: 2016-10-15 | H28: 36 | I28: =EDATE(G28,H28) -> 2019-10-15 | J28: 1000 | K28: 950 | L28: 250 | M28: 50 | N28: 1 | O28: 8 | P28: Res Base | Q28: 1 | R28: 59 | S28: =IF(R28,(R28*K28)/(M28*J28)-1) -> 0.121 | T28: 1 | U28: 0 | V28: 1 | W28: 0.1
D29: Residential 2 | E29: 0 | F29: 4 | G29: 2018-12-01 | H29: 36 | I29: =EDATE(G29,H29) -> 2021-12-01 | J29: 1000 | K29: 950 | L29: 140 | M29: 70 | N29: 1 | O29: 8 | P29: Res Base | Q29: 1 | R29: 85 | S29: =IF(R29,(R29*K29)/(M29*J29)-1) -> 0.1535714286 | T29: 1 | U29: 0 | V29: 3 | W29: 0.05
D30: Residential 3 | E30: 0 | F30: 5 | G30: 2015-01-01 | H30: 36 | I30: =EDATE(G30,H30) -> 2018-01-01 | J30: 1000 | K30: 800 | L30: 200 | M30: 55 | N30: 1 | O30: 8 | P30: Res Base | Q30: 1 | R30: 80 | S30: =IF(R30,(R30*K30)/(M30*J30)-1) -> 0.1636363636 | T30: 3 | U30: 0 | V30: 2 | W30: 0.05
D31: Retail | E31: =J107 -> 0.05666939318 | F31: 6 | G31: 2016-06-13 | H31: =DAYS360(G31,I31)/30 -> 33.63333333 | I31: 2019-04-02 | J31: 150000 | K31: =J31*0.6 -> 90000 | L31: 1 | M31: 160 | N31: 1 | O31: 2 | P31: Coml Base | Q31: 1 | S31: FALSE | X31: 5.5 | Y31: 1.5 | Z31: 1 | AA31: 2.8 | AB31: 3
D32: Office | E32: =J108 -> 0.08797616661 | F32: 7 | G32: 2018-03-30 | H32: =DAYS360(G32,I32)/30 -> 10.13333333 | I32: 2019-02-04 | J32: 100000 | K32: =J32*0.6 -> 60000 | L32: 1 | M32: 170 | N32: 1 | O32: 5 | P32: Office Base | Q32: 1 | S32: FALSE | X32: 6 | Y32: 1.5 | Z32: 2 | AA32: 3.8 | AB32: 3
D33: Shopping Centre | E33: 0.07618718445 | F33: 8 | G33: 2013-07-14 | H33: =DAYS360(G33,I33)/30 -> 12 | I33: 2014-07-14 | J33: 80000 | K33: =J33*0.6 -> 48000 | L33: 1 | M33: 180 | N33: 1 | O33: 2 | P33: Coml Base | Q33: 1 | S33: FALSE | X33: 6.2 | Y33: 1.5 | Z33: 3 | AA33: 3.9 | AB33: 3
A36: Occupancy Assumptions
B37: Age in Years | G37: 1 | H37: 2 | I37: 3 | J37: 4 | K37: 5 | L37: 6 | M37: 7 | N37: 8 | O37: 9 | P37: 10
C38: 1 | D38: Base Utilisation | G38: 0.5 | H38: 0.7 | I38: 0.8 | J38: 0.9 | K38: 0.9 | L38: 0.9 | M38: 0.9 | N38: 0.9 | O38: 0.9 | P38: 0.9
C39: 2 | D39: High Utilisation | G39: 0.6 | H39: 0.8 | I39: 0.85 | J39: 0.9 | K39: 0.9 | L39: 0.9 | M39: 0.9 | N39: 0.9 | O39: 0.9 | P39: 0.9
C40: 4 | D40: Low Utilisation | G40: 0.5 | H40: 0.6 | I40: 0.7 | J40: 0.7 | K40: 0.7 | L40: 0.7 | M40: 0.7 | N40: 0.7 | O40: 0.7 | P40: 0.7
C41: 5 | D41: Sensitvity Utilisation | G41: 0.8 | H41: 0.8 | I41: 0.8 | J41: 0.8 | K41: 0.8 | L41: 0.8 | M41: 0.8 | N41: 0.8 | O41: 0.8 | P41: 0.8
A43: Rental Rate Growth Assumptions
B44: Age | E44: 2013 | F44: =E44+1 -> 2014 | G44: 2015 | H44: =G44+1 -> 2016 | I44: 2017 | J44: 2018 | K44: 2019 | L44: 2020 | M44: 2021 | N44: 2022 | O44: 2023 | P44: 2024 | Q44: 2025 | R44: 2026 | S44: 2027 | T44: 2028 | U44: 2029 | V44: 2030 | W44: 2031 | X44: 2032 | Y44: 2033 | Z44: 2034
C45: 1 | D45: Base Rental Rate | E45: 0 | F45: 0.015 | G45: 0.015 | H45: 0.015 | I45: 0.015 | J45: 0.015 | K45: 0.015 | L45: 0.015 | M45: 0.015 | N45: 0.015 | O45: 0.015 | P45: 0.015 | Q45: 0.015 | R45: 0.015 | S45: 0.015 | T45: 0.015 | U45: 0.015 | V45: 0.015 | W45: 0.015 | X45: 0.015 | Y45: 0.015 | Z45: 0.015
